Workbook

Sheet Input (hidden)
K1: Premium Glance: $ | L1: =ROUND('One Insured'!L20,2) -> 2721.86 | M1: =ROUND('Two Insured'!M21,2) -> 3323.7
A2: ~ GTL Critical Cash Design Input Page ~ | D2: Agents - Simply make choices in the YELLOW cells. When done, click a button to view quote. | K2: Prems:
A3: Agent Name & Contact Info: | B3: GoldenCare | C3: 800-842-7799
K4: above 3K?: | L4: =IF(B6="LA","OK",IF(B6="SD","OK",IF(B6="KS","OK",IF(B6="MN","OK","NO")))) -> NO | M4: =L4 -> NO
B5: 1st Client: | C5: 2nd Client: | K5: ST Avail?: | L5: =VLOOKUP(B6,STATECHART,4,0) -> YES | M5: =L5 -> YES
A6: State: | B6: OH | C6: =IF($B16="Yes",CONCATENATE(K1," ",M1),CONCATENATE(K1," ",L1)) -> Premium Glance: $ 3323.7 | D6: =IF(L5="YES","","Sorry, Critical Care is not currently available in 1st Client's State!") ->  | K6: State?: | L6: =B6 -> OH | M6: =L6 -> OH
A7: First Name: | B7: John | C7: Sally | K7: 1st: | L7: John | M7: Sally
A8: Last Name: | B8: Prospect | C8: Prospect | D8: =IF(AND(L12>3000,L4="NO"),"Sorry, 1st Client's Monthly Benefit amount is too high!","") ->  | K8: Last: | L8: Prospect | M8: Prospect
A9: Age: | B9: 60 | C9: 55 | D9: =IF(AND(M12>3000,M4="NO",B16="Yes"),"Sorry, 2nd Client's Monthly Benefit amount is too high!","") ->  | K9: Age band: | L9: =VLOOKUP(B9,AGERANGE,2,0) -> 60-64 | M9: =VLOOKUP(C9,AGERANGE,2,0) -> 55-59
A10: Tobacco: | B10: No | C10: No | D10: =IF(AND(B9>69,L14="Yes"),"Sorry, Return of Premium Not Available Past Age 69!",IF(AND(L14="Yes",L6="TX",B9>54),"Sorry, TX Return of Premium Not Available Past Age 54!","")) ->  | K10: Tobac?: | L10: =B10 -> No | M10: =C10 -> No
A11: Plan Choice: | B11: Plan A - Critical Care | C11: Plan B - Cancer Care+ | D11: =IF(AND(B6="MD",L14="Yes"),"Sorry, Return of Premium Not Available In Maryland!",IF(AND(L14="Yes",B6="NJ"),"Sorry, Return of Premium Not Available In New Jersey!",IF(AND(L14="Yes",B6="MN"),"Sorry, Return of Premium Not Available In Minnesota!",""))) ->  | K11: Plan: | L11: =VLOOKUP(B11,PLANCHART,2,0) -> A | M11: =VLOOKUP(C11,PLANCHART,2,0) -> B | N11: =VLOOKUP(B19,PLANCHART,2,0) -> A
A12: Monthly Ben.: | B12: 2500 | C12: 2000 | D12: =IF(AND(B6="HI",(OR(B9<60,B17="Yes"))),"Sorry, Hawaii Only Allows Age 60 & Over!",(IF(AND(B6="HI",B16="Yes",C9<60),"Sorry, Hawaii Only Allows Age 60 & Over!",""))) ->  | K12: Mos. Ben: | L12: =VLOOKUP(B12,MOSBENCHART,2,0) -> 2500 | M12: =VLOOKUP(C12,MOSBENCHART,2,0) -> 2000 | N12: 500
A13: Benefit Period: | B13: 24 Months | C13: 12 Months | K13: Ben Per: | L13: =VLOOKUP(B13,BENPERCHART,2,0) -> 24 | M13: =VLOOKUP(C13,BENPERCHART,2,0) -> 12 | N13: =L20 -> 18
A14: Return of Premium: | B14: No | C14: Would you like to show the premiums for all three Plans (A, B & C)? | D14: =IF(AND(B6="WA",B16="Yes",(OR(NOT(B11=C11),NOT(B12=C12),NOT(B13=C13)))),"In WA, Spousal Plans Must Be Identical, or They Must Apply Seperately!","") ->  | K14: ROP?: | L14: =B14 -> No
A15: Prem. Mode: | B15: Annual | K15: Mode fact: | L15: =IF($B$6="HI",VLOOKUP($B$15,MODECHART,3,0),(IF($B$6="MN",VLOOKUP($B$15,MODECHART,3,0),VLOOKUP(B15,MODECHART,2,0)))) -> 1
A16: Spouse Also?: | B16: Yes | D16: No | K16: Spouse? | L16: =B16 -> Yes
A17: Dependent Coverage?: | B17: Yes | D17: =IF(AND($B$16="No",$L$20>$L$13),"Sorry, the Dependent's Benefit Period Cannot Be Greater Than The 1st Client's!",IF(AND($B$16="Yes",$L$20>$L$13,$L$20>$M$13),"Sorry, the Dependent's Benefit Period Cannot Be Greater Than Both Clients' Benefit Periods!","")) ->  | K17: Depend: | L17: =B17 -> Yes
A18: No. of Dependents: | B18: 1 | D18: =IF(AND($B$6="WA",$B$17="Yes",$B$16="No",NOT(B19=B11)),"In WA, Dependent's Must Choose The Same Plan Type as One of the Parent's!",IF(AND($B$6="WA",$B17="Yes",$B$16="Yes",(OR(NOT(B19=B11),NOT(B19=C11)))),"In WA, Dependent's Must Choose The Same Plan Type as One of the Parent's!","")) ->  | K18: Depend #: | L18: =IF(L17="Yes",B18,0) -> 1
A19: Depend. Plan : | B19: Plan A - Critical Care | K19: Dpend Plan: | L19: =VLOOKUP(B19,PLANCHART,2,0) -> A
A20: Depend. Ben. Per.: | B20: 18 Months | K20: Dpend Period: | L20: =IF(L17="Yes",(VLOOKUP(B20,BENPERCHART,2,0)),0) -> 18
K21: Dep Mos: | L21: =IF(L17="Yes",500,0) -> 500
A22: Form: CCRATE14-07 (R 02/15) | K22: St Code: | L22: =VLOOKUP(L6,STATECHART,3,0) -> 55 | M22: =VLOOKUP(M6,STATECHART,3,0) -> 55 | N22: =M22 -> 55 | S22: St Code: | T22: =$L$22 -> 55 | U22: =$M$22 -> 55 | V22: =$N$22 -> 55 | AA22: St Code: | AB22: =$L$22 -> 55 | AC22: =$M$22 -> 55 | AD22: =$N$22 -> 55 | AI22: St Code: | AJ22: =$L$22 -> 55 | AK22: =$M$22 -> 55 | AL22: =$N$22 -> 55
K23: Plan Code: | L23: =IF(L11="D","A",L11) -> A | M23: =IF(M11="D","A",M11) -> B | N23: =L19 -> A | S23: Plan Code: | T23: A | U23: A | V23: A | AA23: Plan Code: | AB23: B | AC23: B | AD23: B | AI23: Plan Code: | AJ23: C | AK23: C | AL23: C
K24: Per Code: | L24: =L13 -> 24 | M24: =M13 -> 12 | N24: =L20 -> 18 | S24: Per Code: | T24: =$L$24 -> 24 | U24: =$M$24 -> 12 | V24: =$N$24 -> 18 | AA24: Per Code: | AB24: =$L$24 -> 24 | AC24: =$M$24 -> 12 | AD24: =$N$24 -> 18 | AI24: Per Code: | AJ24: =$L$24 -> 24 | AK24: =$M$24 -> 12 | AL24: =$N$24 -> 18
K25: Age Code: | L25: =L9 -> 60-64 | M25: =M9 -> 55-59 | N25: D | S25: Age Code: | T25: =$L$25 -> 60-64 | U25: =$M$25 -> 55-59 | V25: =$N$25 -> D | AA25: Age Code: | AB25: =$L$25 -> 60-64 | AC25: =$M$25 -> 55-59 | AD25: =$N$25 -> D | AI25: Age Code: | AJ25: =$L$25 -> 60-64 | AK25: =$M$25 -> 55-59 | AL25: =$N$25 -> D
K26: ConCan: | L26: =CONCATENATE(L23,"-",L24,"-",L25) -> A-24-60-64 | M26: =CONCATENATE(M23,"-",M24,"-",M25) -> B-12-55-59 | N26: =CONCATENATE(N23,"-",N24,"-",N25) -> A-18-D | S26: ConCan: | T26: =CONCATENATE(T23,"-",T24,"-",T25) -> A-24-60-64 | U26: =CONCATENATE(U23,"-",U24,"-",U25) -> A-12-55-59 | V26: =CONCATENATE(V23,"-",V24,"-",V25) -> A-18-D | AA26: ConCan: | AB26: =CONCATENATE(AB23,"-",AB24,"-",AB25) -> B-24-60-64 | AC26: =CONCATENATE(AC23,"-",AC24,"-",AC25) -> B-12-55-59 | AD26: =CONCATENATE(AD23,"-",AD24,"-",AD25) -> B-18-D | AI26: ConCan: | AJ26: =CONCATENATE(AJ23,"-",AJ24,"-",AJ25) -> C-24-60-64 | AK26: =CONCATENATE(AK23,"-",AK24,"-",AK25) -> C-12-55-59 | AL26: =CONCATENATE(AL23,"-",AL24,"-",AL25) -> C-18-D
K28: Plan Annuals-50: | L28: =VLOOKUP(L$26,CHART50,MATCH(L$12,BENS50,0),FALSE) -> 2946.7 | M28: =VLOOKUP(M$26,CHART50,MATCH(M$12,BENS50,0),FALSE) -> 664.4 | N28: =IF($N$24=0,0,VLOOKUP(N$26,CHART50,MATCH(N$12,BENS50,0),FALSE)) -> 22 | O28: =N28*$L$18 -> 22 | S28: Plan Annuals-50: | T28: =VLOOKUP(T$26,CHART50,MATCH(L$12,BENS50,0),FALSE) -> 2946.7 | U28: =VLOOKUP(U$26,CHART50,MATCH(M$12,BENS50,0),FALSE) -> 978.8 | V28: =VLOOKUP(V$26,CHART50,MATCH(N$12,BENS50,0),FALSE) -> 22 | W28: =V28*$L$18 -> 22 | AA28: Plan Annuals-50: | AB28: =VLOOKUP(AB$26,CHART50,MATCH(L$12,BENS50,0),FALSE) -> 1995.4 | AC28: =VLOOKUP(AC$26,CHART50,MATCH(M$12,BENS50,0),FALSE) -> 664.4 | AD28: =VLOOKUP(AD$26,CHART50,MATCH(N$12,BENS50,0),FALSE) -> 14.68 | AE28: =AD28*$L$18 -> 14.68 | AI28: Plan Annuals-50: | AJ28: =VLOOKUP(AJ$26,CHART50,MATCH(L$12,BENS50,0),FALSE) -> 1556.4 | AK28: =VLOOKUP(AK$26,CHART50,MATCH(M$12,BENS50,0),FALSE) -> 473.6 | AL28: =VLOOKUP(AL$26,CHART50,MATCH(N$12,BENS50,0),FALSE) -> 9.54 | AM28: =AL28*$L$18 -> 9.54
K29: Plan Annuals-55: | L29: =VLOOKUP(L$26,CHART55,MATCH(L$12,BENS55,0),FALSE) -> 2676.9 | M29: =VLOOKUP(M$26,CHART55,MATCH(M$12,BENS55,0),FALSE) -> 601.84 | N29: =IF($N$24=0,0,VLOOKUP(N$26,CHART55,MATCH(N$12,BENS55,0),FALSE)) -> 19.96 | O29: 19.96 | S29: Plan Annuals-55: | T29: =VLOOKUP(T$26,CHART55,MATCH(L$12,BENS55,0),FALSE) -> 2676.9 | U29: =VLOOKUP(U$26,CHART55,MATCH(M$12,BENS55,0),FALSE) -> 884.88 | V29: =VLOOKUP(V$26,CHART55,MATCH(N$12,BENS55,0),FALSE) -> 19.96 | W29: 19.96 | AA29: Plan Annuals-55: | AB29: =VLOOKUP(AB$26,CHART55,MATCH(L$12,BENS55,0),FALSE) -> 1797.9 | AC29: =VLOOKUP(AC$26,CHART55,MATCH(M$12,BENS55,0),FALSE) -> 601.84 | AD29: =VLOOKUP(AD$26,CHART55,MATCH(N$12,BENS55,0),FALSE) -> 13.26 | AE29: 13.26 | AI29: Plan Annuals-55: | AJ29: =VLOOKUP(AJ$26,CHART55,MATCH(L$12,BENS55,0),FALSE) -> 1408.3 | AK29: =VLOOKUP(AK$26,CHART55,MATCH(M$12,BENS55,0),FALSE) -> 433.28 | AL29: =VLOOKUP(AL$26,CHART55,MATCH(N$12,BENS55,0),FALSE) -> 8.64 | AM29: 8.64
K30: Plan Annuals-60: | L30: =VLOOKUP(L$26,CHART60,MATCH(L$12,BENS60,0),FALSE) -> 2443.9 | M30: =VLOOKUP(M$26,CHART60,MATCH(M$12,BENS60,0),FALSE) -> 554.8 | N30: =IF($N$24=0,0,VLOOKUP(N$26,CHART60,MATCH(N$12,BENS60,0),FALSE)) -> 18.28 | O30: 18.28 | S30: Plan Annuals-60: | T30: =VLOOKUP(T$26,CHART60,MATCH(L$12,BENS60,0),FALSE) -> 2443.9 | U30: =VLOOKUP(U$26,CHART60,MATCH(M$12,BENS60,0),FALSE) -> 814.4 | V30: =VLOOKUP(V$26,CHART60,MATCH(N$12,BENS60,0),FALSE) -> 18.28 | W30: 18.28 | AA30: Plan Annuals-60: | AB30: =VLOOKUP(AB$26,CHART60,MATCH(L$12,BENS60,0),FALSE) -> 1653.6 | AC30: =VLOOKUP(AC$26,CHART60,MATCH(M$12,BENS60,0),FALSE) -> 554.8 | AD30: =VLOOKUP(AD$26,CHART60,MATCH(N$12,BENS60,0),FALSE) -> 12.16 | AE30: 12.16 | AI30: Plan Annuals-60: | AJ30: =VLOOKUP(AJ$26,CHART60,MATCH(L$12,BENS60,0),FALSE) -> 1296.7 | AK30: =VLOOKUP(AK$26,CHART60,MATCH(M$12,BENS60,0),FALSE) -> 393.36 | AL30: =VLOOKUP(AL$26,CHART60,MATCH(N$12,BENS60,0),FALSE) -> 7.94 | AM30: 7.94
K31: Plan Annuals-65: | L31: =VLOOKUP(L$26,CHART65,MATCH(L$12,BENS65,0),FALSE) -> 2263.7 | M31: =VLOOKUP(M$26,CHART65,MATCH(M$12,BENS65,0),FALSE) -> 508.08 | N31: =IF($N$24=0,0,VLOOKUP(N$26,CHART65,MATCH(N$12,BENS65,0),FALSE)) -> 16.88 | O31: 16.88 | S31: Plan Annuals-65: | T31: =VLOOKUP(T$26,CHART65,MATCH(L$12,BENS65,0),FALSE) -> 2263.7 | U31: =VLOOKUP(U$26,CHART65,MATCH(M$12,BENS65,0),FALSE) -> 751.68 | V31: =VLOOKUP(V$26,CHART65,MATCH(N$12,BENS65,0),FALSE) -> 16.88 | W31: 16.88 | AA31: Plan Annuals-65: | AB31: =VLOOKUP(AB$26,CHART65,MATCH(L$12,BENS65,0),FALSE) -> 1510.4 | AC31: =VLOOKUP(AC$26,CHART65,MATCH(M$12,BENS65,0),FALSE) -> 508.08 | AD31: =VLOOKUP(AD$26,CHART65,MATCH(N$12,BENS65,0),FALSE) -> 11.36 | AE31: 11.36 | AI31: Plan Annuals-65: | AJ31: =VLOOKUP(AJ$26,CHART65,MATCH(L$12,BENS65,0),FALSE) -> 1186 | AK31: =VLOOKUP(AK$26,CHART65,MATCH(M$12,BENS65,0),FALSE) -> 361.28 | AL31: =VLOOKUP(AL$26,CHART65,MATCH(N$12,BENS65,0),FALSE) -> 7.46 | AM31: 7.46
K32: Plan Annuals-SD: | L32: =VLOOKUP(L$26,CHARTSD,MATCH(L$12,BENSSD,0),FALSE) -> 2345 | M32: =VLOOKUP(M$26,CHARTSD,MATCH(M$12,BENSSD,0),FALSE) -> 539.6 | N32: =IF($N$24=0,0,VLOOKUP(N$26,CHARTSD,MATCH(N$12,BENSSD,0),FALSE)) -> 17.7 | O32: 17.7 | S32: Plan Annuals-SD: | T32: =VLOOKUP(T$26,CHARTSD,MATCH(L$12,BENSSD,0),FALSE) -> 2345 | U32: =VLOOKUP(U$26,CHARTSD,MATCH(M$12,BENSSD,0),FALSE) -> 790.4 | V32: =VLOOKUP(V$26,CHARTSD,MATCH(N$12,BENSSD,0),FALSE) -> 17.7 | W32: 17.7 | AA32: Plan Annuals-SD: | AB32: =VLOOKUP(AB$26,CHARTSD,MATCH(L$12,BENSSD,0),FALSE) -> 1586.3 | AC32: =VLOOKUP(AC$26,CHARTSD,MATCH(M$12,BENSSD,0),FALSE) -> 539.6 | AD32: =VLOOKUP(AD$26,CHARTSD,MATCH(N$12,BENSSD,0),FALSE) -> 11.76 | AE32: 11.76 | AI32: Plan Annuals-SD: | AJ32: =VLOOKUP(AJ$26,CHARTSD,MATCH(L$12,BENSSD,0),FALSE) -> 1207 | AK32: =VLOOKUP(AK$26,CHARTSD,MATCH(M$12,BENSSD,0),FALSE) -> 372.4 | AL32: =VLOOKUP(AL$26,CHARTSD,MATCH(N$12,BENSSD,0),FALSE) -> 7.56 | AM32: 7.56
K33: Plan Annuals-IN: | L33: =VLOOKUP(L$26,CHARTIN,MATCH(L$12,BENSIN,0),FALSE) -> 2710.2 | M33: =VLOOKUP(M$26,CHARTIN,MATCH(M$12,BENSIN,0),FALSE) -> 609.36 | N33: =IF($N$24=0,0,VLOOKUP(N$26,CHARTIN,MATCH(N$12,BENSIN,0),FALSE)) -> 20.2 | O33: 20.2 | S33: Plan Annuals-IN: | T33: =VLOOKUP(T$26,CHARTIN,MATCH(L$12,BENSIN,0),FALSE) -> 2710.2 | U33: =VLOOKUP(U$26,CHARTIN,MATCH(M$12,BENSIN,0),FALSE) -> 895.92 | V33: =VLOOKUP(V$26,CHARTIN,MATCH(N$12,BENSIN,0),FALSE) -> 20.2 | W33: 20.2 | AA33: Plan Annuals-IN: | AB33: =VLOOKUP(AB$26,CHARTIN,MATCH(L$12,BENSIN,0),FALSE) -> 1820.3 | AC33: =VLOOKUP(AC$26,CHARTIN,MATCH(M$12,BENSIN,0),FALSE) -> 609.36 | AD33: =VLOOKUP(AD$26,CHARTIN,MATCH(N$12,BENSIN,0),FALSE) -> 13.42 | AE33: 13.42 | AI33: Plan Annuals-IN: | AJ33: =VLOOKUP(AJ$26,CHARTIN,MATCH(L$12,BENSIN,0),FALSE) -> 1425.9 | AK33: =VLOOKUP(AK$26,CHARTIN,MATCH(M$12,BENSIN,0),FALSE) -> 438.8 | AL33: =VLOOKUP(AL$26,CHARTIN,MATCH(N$12,BENSIN,0),FALSE) -> 8.74 | AM33: 8.74
M34: times ROP | N34: new ttl | O34: after $25 fee | P34: modal fact. | U34: times ROP | V34: new ttl | W34: after $25 fee | X34: modal fact. | AC34: times ROP | AD34: new ttl | AE34: after $25 fee | AF34: modal fact. | AK34: times ROP | AL34: new ttl | AM34: after $25 fee | AN34: modal fact.
K35: Plan Annuals-50: | L35: =L28+IF($B$16="Yes",$M28,0)+IF($B$17="Yes",$O28,0) -> 3633.1 | M35: =IF($L$14="Yes",(IF($L$6="NJ",0,(IF($L$6="MD",0,(IF($L$6="MN",0,(IF($L$6="TX",VLOOKUP($L$49,TXROPFACTORS,2,0),(VLOOKUP($L$25,ROPFACTORS,2,0)))))))))),1) -> 1 | N35: =L35*M35 -> 3633.1 | O35: =N35+25 -> 3658.1 | P35: =$L$15 -> 1 | S35: Plan Annuals-50: | T35: =T28+IF($B$16="Yes",$U28,0)+IF($B$17="Yes",$W28,0) -> 3947.5 | U35: =IF($L$14="Yes",VLOOKUP($L$25,ROPFACTORS,2,0),1) -> 1 | V35: =T35*U35 -> 3947.5 | W35: =V35+25 -> 3972.5 | X35: =$L$15 -> 1 | AA35: Plan Annuals-50: | AB35: =AB28+IF($B$16="Yes",$AC28,0)+IF($B$17="Yes",$AE28,0) -> 2674.48 | AC35: =IF($L$14="Yes",VLOOKUP($L$25,ROPFACTORS,2,0),1) -> 1 | AD35: =AB35*AC35 -> 2674.48 | AE35: =AD35+25 -> 2699.48 | AF35: =$L$15 -> 1 | AI35: Plan Annuals-50: | AJ35: =AJ28+IF($B$16="Yes",$AK28,0)+IF($B$17="Yes",$AM28,0) -> 2039.54 | AK35: =IF($L$14="Yes",VLOOKUP($L$25,ROPFACTORS,2,0),1) -> 1 | AL35: =AJ35*AK35 -> 2039.54 | AM35: =AL35+25 -> 2064.54 | AN35: =$L$15 -> 1
K36: Plan Annuals-55: | L36: 3298.7 | M36: =IF($L$14="Yes",VLOOKUP($L$25,ROPFACTORS,2,0),1) -> 1 | N36: 3298.7 | O36: 3323.7 | P36: 1 | S36: Plan Annuals-55: | T36: 3581.74 | U36: 1 | V36: 3581.74 | W36: 3606.74 | X36: 1 | AA36: Plan Annuals-55: | AB36: 2413 | AC36: 1 | AD36: 2413 | AE36: 2438 | AF36: 1 | AI36: Plan Annuals-55: | AJ36: 1850.22 | AK36: 1 | AL36: 1850.22 | AM36: 1875.22 | AN36: 1
K37: Plan Annuals-60: | L37: 3016.98 | M37: =IF($L$14="Yes",VLOOKUP($L$25,ROPFACTORS,2,0),1) -> 1 | N37: 3016.98 | O37: 3041.98 | P37: 1 | S37: Plan Annuals-60: | T37: 3276.58 | U37: 1 | V37: 3276.58 | W37: 3301.58 | X37: 1 | AA37: Plan Annuals-60: | AB37: 2220.56 | AC37: 1 | AD37: 2220.56 | AE37: 2245.56 | AF37: 1 | AI37: Plan Annuals-60: | AJ37: 1698 | AK37: 1 | AL37: 1698 | AM37: 1723 | AN37: 1
K38: Plan Annuals-65: | L38: 2788.66 | M38: =IF($L$14="Yes",VLOOKUP($L$25,ROPFACTORS,2,0),1) -> 1 | N38: 2788.66 | O38: 2813.66 | P38: 1 | S38: Plan Annuals-65: | T38: 3032.26 | U38: 1 | V38: 3032.26 | W38: 3057.26 | X38: 1 | AA38: Plan Annuals-65: | AB38: 2029.84 | AC38: 1 | AD38: 2029.84 | AE38: 2054.84 | AF38: 1 | AI38: Plan Annuals-65: | AJ38: 1554.74 | AK38: 1 | AL38: 1554.74 | AM38: 1579.74 | AN38: 1
K39: Plan Annuals-SD: | L39: 2902.3 | M39: =IF($L$14="Yes",VLOOKUP($L$25,ROPFACTORS,2,0),1) -> 1 | N39: 2902.3 | O39: 2927.3 | P39: 1 | S39: Plan Annuals-SD: | T39: 3153.1 | U39: 1 | V39: 3153.1 | W39: 3178.1 | X39: 1 | AA39: Plan Annuals-SD: | AB39: 2137.66 | AC39: 1 | AD39: 2137.66 | AE39: 2162.66 | AF39: 1 | AI39: Plan Annuals-SD: | AJ39: 1586.96 | AK39: 1 | AL39: 1586.96 | AM39: 1611.96 | AN39: 1
K40: Plan Annuals-IN: | L40: 3339.76 | M40: =IF($L$14="Yes",VLOOKUP($L$25,ROPFACTORS,2,0),1) -> 1 | N40: 3339.76 | O40: 3364.76 | P40: 1 | S40: Plan Annuals-IN: | T40: 3626.32 | U40: 1 | V40: 3626.32 | W40: 3651.32 | X40: 1 | AA40: Plan Annuals-IN: | AB40: 2443.08 | AC40: 1 | AD40: 2443.08 | AE40: 2468.08 | AF40: 1 | AI40: Plan Annuals-IN: | AJ40: 1873.44 | AK40: 1 | AL40: 1873.44 | AM40: 1898.44 | AN40: 1
AB41: modal prem | AJ41: modal prem
I42: these are new: | K42: Plan Annuals-KY: | L42: =VLOOKUP(L$26,CHARTKY,MATCH(L$12,BENSKY,0),FALSE) -> 2297.6 | M42: =VLOOKUP(M$26,CHARTKY,MATCH(M$12,BENSKY,0),FALSE) -> 515.76 | N42: =IF($N$24=0,0,VLOOKUP(N$26,CHARTKY,MATCH(N$12,BENSKY,0),FALSE)) -> 17.12 | O42: =N42*$L$18 -> 17.12 | S42: Plan Annuals-KY: | T42: =VLOOKUP(T$26,CHARTKY,MATCH(L$12,BENSKY,0),FALSE) -> 2297.6 | U42: =VLOOKUP(U$26,CHARTKY,MATCH(M$12,BENSKY,0),FALSE) -> 762.96 | V42: =VLOOKUP(V$26,CHARTKY,MATCH(N$12,BENSKY,0),FALSE) -> 17.12 | W42: =V42*$L$18 -> 17.12 | AA42: Plan Annuals-KY: | AB42: =VLOOKUP(AB$26,CHARTKY,MATCH(L$12,BENSKY,0),FALSE) -> 1533 | AC42: =VLOOKUP(AC$26,CHARTKY,MATCH(M$12,BENSKY,0),FALSE) -> 515.76 | AD42: =VLOOKUP(AD$26,CHARTKY,MATCH(N$12,BENSKY,0),FALSE) -> 11.36 | AE42: =AD42*$L$18 -> 11.36 | AI42: Plan Annuals-KY: | AJ42: =VLOOKUP(AJ$26,CHARTKY,MATCH(L$12,BENSKY,0),FALSE) -> 1203.8 | AK42: =VLOOKUP(AK$26,CHARTKY,MATCH(M$12,BENSKY,0),FALSE) -> 366.8 | AL42: =VLOOKUP(AL$26,CHARTKY,MATCH(N$12,BENSKY,0),FALSE) -> 7.38 | AM42: =AL42*$L$18 -> 7.38
K43: Plan Annuals-KS-LA: | L43: =VLOOKUP(L$26,CHARTKS,MATCH(L$12,BENSKS,0),FALSE) -> 2827.8 | M43: =VLOOKUP(M$26,CHARTKS,MATCH(M$12,BENSKS,0),FALSE) -> 646 | N43: =IF($N$24=0,0,VLOOKUP(N$26,CHARTKS,MATCH(N$12,BENSKS,0),FALSE)) -> 21.3 | O43: 21.3 | S43: Plan Annuals-KS-LA: | T43: =VLOOKUP(T$26,CHARTKS,MATCH(L$12,BENSKS,0),FALSE) -> 2827.8 | U43: =VLOOKUP(U$26,CHARTKS,MATCH(M$12,BENSKS,0),FALSE) -> 950 | V43: =VLOOKUP(V$26,CHARTKS,MATCH(N$12,BENSKS,0),FALSE) -> 21.3 | W43: 21.3 | AA43: Plan Annuals-KS-LA: | AB43: =VLOOKUP(AB$26,CHARTKS,MATCH(L$12,BENSKS,0),FALSE) -> 1914 | AC43: =VLOOKUP(AC$26,CHARTKS,MATCH(M$12,BENSKS,0),FALSE) -> 646 | AD43: =VLOOKUP(AD$26,CHARTKS,MATCH(N$12,BENSKS,0),FALSE) -> 14.2 | AE43: 14.2 | AI43: Plan Annuals-KS-LA: | AJ43: =VLOOKUP(AJ$26,CHARTKS,MATCH(L$12,BENSKS,0),FALSE) -> 1448.4 | AK43: =VLOOKUP(AK$26,CHARTKS,MATCH(M$12,BENSKS,0),FALSE) -> 448.4 | AL43: =VLOOKUP(AL$26,CHARTKS,MATCH(N$12,BENSKS,0),FALSE) -> 9.08 | AM43: 9.08
K44: Plan Annuals-HI: | L44: =VLOOKUP(L$26,CHARTHI,MATCH(L$12,BENSHI,0),FALSE) -> 3034.4 | M44: =VLOOKUP(M$26,CHARTHI,MATCH(M$12,BENSHI,0),FALSE) -> 99999 | N44: =IF($N$24=0,0,VLOOKUP(N$26,CHARTHI,MATCH(N$12,BENSHI,0),FALSE)) -> 99999 | O44: 99999 | S44: Plan Annuals-HI: | T44: =VLOOKUP(T$26,CHARTHI,MATCH(L$12,BENSHI,0),FALSE) -> 3034.4 | U44: =VLOOKUP(U$26,CHARTHI,MATCH(M$12,BENSHI,0),FALSE) -> 99999 | V44: =VLOOKUP(V$26,CHARTHI,MATCH(N$12,BENSHI,0),FALSE) -> 99999 | W44: 99999 | AA44: Plan Annuals-HI: | AB44: =VLOOKUP(AB$26,CHARTHI,MATCH(L$12,BENSHI,0),FALSE) -> 2120.4 | AC44: =VLOOKUP(AC$26,CHARTHI,MATCH(M$12,BENSHI,0),FALSE) -> 99999 | AD44: =VLOOKUP(AD$26,CHARTHI,MATCH(N$12,BENSHI,0),FALSE) -> 99999 | AE44: 99999 | AI44: Plan Annuals-HI: | AJ44: =VLOOKUP(AJ$26,CHARTHI,MATCH(L$12,BENSHI,0),FALSE) -> 1632.3 | AK44: =VLOOKUP(AK$26,CHARTHI,MATCH(M$12,BENSHI,0),FALSE) -> 99999 | AL44: =VLOOKUP(AL$26,CHARTHI,MATCH(N$12,BENSHI,0),FALSE) -> 99999 | AM44: 99999
K45: Plan Annuals-MN: | L45: =VLOOKUP(L$26,CHARTMN,MATCH(L$12,BENSMN,0),FALSE) -> 3670.14 | M45: =VLOOKUP(M$26,CHARTMN,MATCH(M$12,BENSMN,0),FALSE) -> 881.22 | N45: =IF($N$24=0,0,VLOOKUP(N$26,CHARTMN,MATCH(N$12,BENSMN,0),FALSE)) -> 20.04 | O45: 20.04 | S45: Plan Annuals-MN: | T45: =VLOOKUP(T$26,CHARTMN,MATCH(L$12,BENSMN,0),FALSE) -> 3670.14 | U45: =VLOOKUP(U$26,CHARTMN,MATCH(M$12,BENSMN,0),FALSE) -> 1345.96 | V45: =VLOOKUP(V$26,CHART50,MATCH(N$12,BENS50,0),FALSE) -> 22 | W45: 22 | AA45: Plan Annuals-MN: | AB45: =VLOOKUP(AB$26,CHARTMN,MATCH(L$12,BENSMN,0),FALSE) -> 2550.85 | AC45: =VLOOKUP(AC$26,CHARTMN,MATCH(M$12,BENSMN,0),FALSE) -> 881.22 | AD45: =VLOOKUP(AD$26,CHART50,MATCH(N$12,BENS50,0),FALSE) -> 14.68 | AE45: 14.68 | AI45: Plan Annuals-MN | AJ45: =VLOOKUP(AJ$26,CHARTMN,MATCH(L$12,BENSMN,0),FALSE) -> 1809.47 | AK45: =VLOOKUP(AK$26,CHARTMN,MATCH(M$12,BENSMN,0),FALSE) -> 682.78 | AL45: =VLOOKUP(AL$26,CHART50,MATCH(N$12,BENS50,0),FALSE) -> 9.54 | AM45: 9.54
K46: Plan Annuals-XX: | L46: =VLOOKUP(L$26,CHART50,MATCH(L$12,BENS50,0),FALSE) -> 2946.7 | M46: =VLOOKUP(M$26,CHART50,MATCH(M$12,BENS50,0),FALSE) -> 664.4 | N46: =IF($N$24=0,0,VLOOKUP(N$26,CHART50,MATCH(N$12,BENS50,0),FALSE)) -> 22 | O46: 22 | S46: Plan Annuals-XX: | T46: 2946.7 | U46: 978.8 | V46: 22 | W46: 22 | AA46: Plan Annuals-XX: | AB46: 1995.4 | AC46: 664.4 | AD46: 14.68 | AE46: 14.68 | AI46: Plan Annuals-XX: | AJ46: 1556.4 | AK46: 473.6 | AL46: 9.54 | AM46: 9.54
K47: Plan Annuals-XX: | L47: =VLOOKUP(L$26,CHART50,MATCH(L$12,BENS50,0),FALSE) -> 2946.7 | M47: =VLOOKUP(M$26,CHART50,MATCH(M$12,BENS50,0),FALSE) -> 664.4 | N47: =IF($N$24=0,0,VLOOKUP(N$26,CHART50,MATCH(N$12,BENS50,0),FALSE)) -> 22 | O47: 22 | S47: Plan Annuals-XX: | T47: 2946.7 | U47: 978.8 | V47: 22 | W47: 22 | AA47: Plan Annuals-XX: | AB47: 1995.4 | AC47: 664.4 | AD47: 14.68 | AE47: 14.68 | AI47: Plan Annuals-XX: | AJ47: 1556.4 | AK47: 473.6 | AL47: 9.54 | AM47: 9.54
K49: TX-ROP-AGE-BAND: | L49: =VLOOKUP(B9,TXAGERANGE,2,0) -> 60-64
I51: these are new: | K51: This is "FIRSTANNPREM" | M51: col counts on this line… | O51: 5 | P51: 6 | Q51: 7 | R51: 8 | S51: 9 | T51: 10 | U51: 11 | V51: 12 | W51: 13 | X51: 14 | Y51: 15 | Z51: 16 | AA51: 17 | AB51: 18 | AC51: 19 | AD51: 20 | AE51: 21 | AF51: 22 | AG51: 23 | AH51: 24 | AI51: 25 | AJ51: 26 | AK51: 27 | AL51: 28 | AM51: 29
K52: 50 | L52: =L28 -> 2946.7 | M52: =M28 -> 664.4 | N52: =N28 -> 22 | O52: =O28 -> 22 | T52: =T28 -> 2946.7 | U52: 978.8 | V52: 22 | W52: 22 | AB52: =AB28 -> 1995.4 | AC52: 664.4 | AD52: 14.68 | AE52: 14.68 | AJ52: =AJ28 -> 1556.4 | AK52: 473.6 | AL52: 9.54 | AM52: 9.54
K53: 55 | L53: =L29 -> 2676.9 | M53: 601.84 | N53: =N29 -> 19.96 | O53: 19.96 | T53: 2676.9 | U53: 884.88 | V53: 19.96 | W53: 19.96 | AB53: 1797.9 | AC53: 601.84 | AD53: 13.26 | AE53: 13.26 | AJ53: 1408.3 | AK53: 433.28 | AL53: 8.64 | AM53: 8.64
K54: 60 | L54: 2443.9 | M54: 554.8 | N54: 18.28 | O54: 18.28 | T54: 2443.9 | U54: 814.4 | V54: 18.28 | W54: 18.28 | AB54: 1653.6 | AC54: 554.8 | AD54: 12.16 | AE54: 12.16 | AJ54: 1296.7 | AK54: 393.36 | AL54: 7.94 | AM54: 7.94
K55: 65 | L55: 2263.7 | M55: 508.08 | N55: 16.88 | O55: 16.88 | T55: 2263.7 | U55: 751.68 | V55: 16.88 | W55: 16.88 | AB55: 1510.4 | AC55: 508.08 | AD55: 11.36 | AE55: 11.36 | AJ55: 1186 | AK55: 361.28 | AL55: 7.46 | AM55: 7.46
K56: SD | L56: 2345 | M56: 539.6 | N56: 17.7 | O56: 17.7 | T56: 2345 | U56: 790.4 | V56: 17.7 | W56: 17.7 | AB56: 1586.3 | AC56: 539.6 | AD56: 11.76 | AE56: 11.76 | AJ56: 1207 | AK56: 372.4 | AL56: 7.56 | AM56: 7.56
K57: IN | L57: 2710.2 | M57: 609.36 | N57: 20.2 | O57: 20.2 | T57: 2710.2 | U57: 895.92 | V57: 20.2 | W57: 20.2 | AB57: 1820.3 | AC57: 609.36 | AD57: 13.42 | AE57: 13.42 | AJ57: 1425.9 | AK57: 438.8 | AL57: 8.74 | AM57: 8.74
K58: KY | L58: =L42 -> 2297.6 | M58: 515.76 | N58: 17.12 | O58: 17.12 | T58: =T42 -> 2297.6 | U58: 762.96 | V58: 17.12 | W58: 17.12 | AB58: =AB42 -> 1533 | AC58: 515.76 | AD58: 11.36 | AE58: 11.36 | AJ58: =AJ42 -> 1203.8 | AK58: 366.8 | AL58: 7.38 | AM58: 7.38
K59: KS | L59: 2827.8 | M59: 646 | N59: 21.3 | O59: 21.3 | T59: 2827.8 | U59: 950 | V59: 21.3 | W59: 21.3 | AB59: 1914 | AC59: 646 | AD59: 14.2 | AE59: 14.2 | AJ59: 1448.4 | AK59: 448.4 | AL59: 9.08 | AM59: 9.08
K60: LA | L60: =L43 -> 2827.8 | M60: 646 | N60: 21.3 | O60: 21.3 | T60: =T43 -> 2827.8 | U60: 950 | V60: 21.3 | W60: 21.3 | AB60: =AB43 -> 1914 | AC60: 646 | AD60: 14.2 | AE60: 14.2 | AJ60: =AJ43 -> 1448.4 | AK60: 448.4 | AL60: 9.08 | AM60: 9.08
K61: HI | L61: 3034.4 | M61: 99999 | N61: 99999 | O61: 99999 | T61: 3034.4 | U61: 99999 | V61: 99999 | W61: 99999 | AB61: 2120.4 | AC61: 99999 | AD61: 99999 | AE61: 99999 | AJ61: 1632.3 | AK61: 99999 | AL61: 99999 | AM61: 99999
K62: MN | L62: =L45 -> 3670.14 | M62: 881.22 | N62: 20.04 | O62: 20.04 | T62: 3670.14 | U62: 1345.96 | V62: 22 | W62: 22 | AB62: 2550.85 | AC62: 881.22 | AD62: 14.68 | AE62: 14.68 | AJ62: 1809.47 | AK62: 682.78 | AL62: 9.54 | AM62: 9.54

Sheet Input2
I1: Medico GI Rider Age: | J1: 62 | K1: Med. Underwriting | N1: Below is Rx Max: | O1: Below is Rx Max: | P1: Below is Rx Max: | Q1: Keep at $300 | Y1: Glance: $ | Z1: =ROUND('One Insured'!L20,2) -> 2721.86 | AA1: =ROUND('Two Insured'!M21,2) -> 3323.7 | AD1: Below is GTL Recover Cash | AH1: Below is AETNA HHC+
A2: ~ OMNIFLEX ~ | D2: ** IF one of the fillable cells turns RED… go to "Notes" tab for explanation. | J2: No GI Rider | K2: Full UW | N2: $500 Rx Max | O2: $0 Rx Max | P2: $300 Rx Max | Q2: $300 Rx Max | Y2: Prems: | AM2: =VLOOKUP($K$2,MEDHHCDAILY,2,0) -> Simplified UW | AN2: =VLOOKUP($K$2,MEDUWCHART,2,0) -> F | AO2: =VLOOKUP($K$2,MEDUWCHART,2,0) -> F | AQ2: =VLOOKUP($K$2,MEDUWCHART,2,0) -> F | AR2: =VLOOKUP($K$2,MEDUWCHART,2,0) -> F
A3: Product: | B3: Aetna Recovery Care | C3: Aetna Recovery Care | D3: GTL Recover Cash | E3: GTL Recover Cash | F3: HNL ST HHC | G3: HNL ST HHC | H3: GTL ST HHC | I3: GTL ST HHC | J3: MedicoSTC | K3: MedicoSTC | L3: Aetna HHC+ | M3: Aetna HHC+ | N3: StdLife STC5! | O3: StdLife STC5! | P3: OmniFlex | Q3: OmniFlex | R3: 3 | Y3: Below is Aetna Recovery Care | AG3: Below is AetnaHHC+ | AJ3: Below is GTL ST HHC | AM3: Below is MEDICO | AP3: Below is Medico INFL | AS3: Below is StdLife STC5 | AV3: Below is StdLife STC7
B4: =Aetna1!G59 -> 1432.6 | C4: =Aetna1!G60 -> 1609.3 | D4: =GTLRate1!G65 -> 661.7 | E4: =GTLRate1!G66 -> 883.9 | F4: =HNLHHC!G96 -> 1 | G4: =HNLHHC!G97 -> 66.72 | H4: =GTLHHC1!G96 -> 541.28 | I4: =GTLHHC1!G97 -> 76.94 | J4: =MedRate2!I96 -> 1640.9 | K4: =MedRate2!I97 -> 1727.26 | L4: ='AetnaHHC+'!G96 -> 935 | M4: ='AetnaHHC+'!G97 -> 565.5 | N4: =STCRate5!G96 -> 1437.85 | O4: =STCRate5!G97 -> 972.05 | P4: =STCRate7!G96 -> 2136.51 | Q4: =STCRate7!G97 -> 2459.25 | R4: 4 | S4: ** The NEW STC2 Rates | Y4: above 3K?: | Z4: =IF(B6="LA","OK",IF(B6="SD","OK",IF(B6="KS","OK",IF(B6="MN","OK","NO")))) -> NO | AA4: =Z4 -> NO | AG4: 50-HHCSame | AH4: =IF(AH7=AH6,"Y","N") -> Y | AI4: =IF(AI7=AI6,"Y","N") -> Y | AJ4: Plan(AC): | AK4: =VLOOKUP($H17,GTLSTHHCOPTIONCHART,4,FALSE) -> PlanC | AL4: =VLOOKUP($I17,GTLSTHHCOPTIONCHART,4,FALSE) -> PlanC | AM4: 50-HHCSame | AN4: =IF(AN7=AN6,"Y","N") -> Y | AO4: =IF(AO7=AO6,"Y","N") -> Y | AP4: 50-HHCSame | AQ4: =IF(AQ7=AQ6,"Y","N") ->  | AR4: =IF(AR7=AR6,"Y","N") ->  | AS4: 50-HHCSame | AT4: =IF(AT7=AT6,"Y","N") -> Y | AU4: =IF(AU7=AU6,"Y","N") -> Y | AV4: 50-HHCSame | AW4: =IF(AW7=AW6,"Y","N") ->  | AX4: =IF(AX7=AX6,"Y","N") -> 
B5: 1st Client: | C5: 2nd Client: | D5: 1st Client: | E5: 2nd Client: | F5: 1st Client: | G5: 2nd Client: | H5: 1st Client: | I5: 2nd Client: | J5: 1st Client: | K5: 2nd Client: | L5: 1st Client: | M5: 2nd Client: | N5: 1st Client: | O5: 2nd Client: | P5: 1st Client: | Q5: 2nd Client: | R5: 5 | S5: are NOT ACCURATE. | Y5: ST Avail?: | Z5: =VLOOKUP(B6,AETNASTATECHART,4,0) -> YES | AA5: =Z5 -> YES | AB5: =Z5 -> YES | AC5: State Avail? | AD5: =VLOOKUP(D6,GTLSTATECHART,4,0) -> NO* | AE5: =AD5 -> NO* | AG5: State Avail? | AH5: =VLOOKUP(L6,STCSTATECHART,4,0) -> YES | AI5: =AH5 -> YES | AJ5: State Avail? | AK5: =VLOOKUP(H6,GTLSTHHCSTATECHART,4,0) -> YES* | AL5: =AK5 -> YES* | AM5: State Avail? | AN5: =VLOOKUP(J6,STCSTATECHART,4,0) -> YES | AO5: =AN5 -> YES | AP5: State Avail? | AQ5: =VLOOKUP(L6,STCSTATECHART,4,0) -> YES | AR5: =AQ5 -> YES | AS5: State Avail? | AT5: =VLOOKUP(N6,STCSTATECHART,4,0) -> YES | AU5: =AT5 -> YES | AV5: State Avail? | AW5: =VLOOKUP(P6,OMNISTATECHART,4,0) -> YES | AX5: =AW5 -> YES
A6: State: | B6: GA | C6: =IF($B16="Yes",CONCATENATE(Y1," ",Aetna1!G61),CONCATENATE(Y1," ",B4)) -> Glance: $ 1432.6 | D6: FL-None | E6: =IF($D16="Yes",CONCATENATE($Y1," ",GTLRate1!G67),CONCATENATE($Y1," ",D4)) -> Glance: $ 661.7 | F6: NE | G6: =IF($F16="Yes",CONCATENATE($Y1," ",(F4+G4)),CONCATENATE($Y1," ",F4)) -> Glance: $ 1 | H6: DE-Note | I6: =IF($H16="Yes",CONCATENATE($Y1," ",(H4+I4)," (Rx)"),CONCATENATE($Y1," ",H4," (Rx)")) -> Glance: $ 541.28 (Rx) | J6: IA | K6: =IF($J16="Yes",CONCATENATE($Y1," ",MedRate2!I98),CONCATENATE($Y1," ",J4)) -> Glance: $ 1640.9 | L6: IA | M6: =IF($L16="Yes",CONCATENATE($Y1," ",'AetnaHHC+'!G98),CONCATENATE($Y1," ",L4)) -> Glance: $ 935 | N6: IA | O6: =IF($N16="Yes",CONCATENATE($Y1," ",STCRate5!G98),CONCATENATE($Y1," ",N4)) -> Glance: $ 1437.85 | P6: AL | Q6: =IF($P16="Yes",CONCATENATE($Y1," ",STCRate7!G98),CONCATENATE($Y1," ",P4)) -> Glance: $ 4595.76 | R6: 6 | S6: Just calculations and | Y6: State?: | Z6: =B6 -> GA | AA6: =Z6 -> GA | AG6: HHC/Infl? | AH6: N | AI6: N | AJ6: HHC $ | AK6: =VLOOKUP(H17,GTLSTHHCOPTIONCHART,2,FALSE) -> 450 | AL6: =VLOOKUP(I17,GTLSTHHCOPTIONCHART,2,FALSE) -> 450 | AM6: HHC/Infl? | AN6: =MedRate1!B83 -> N | AO6: =MedRate1!B84 -> N | AP6: HHC/Infl? | AQ6: ='AetnaHHC+'!B83 -> 13 | AR6: ='AetnaHHC+'!B84 -> 13 | AS6: HHC/Infl? | AT6: =STCRate5!B83 -> N | AU6: =STCRate5!B84 -> N | AV6: HHC/Infl? | AW6: =STCRate7!B83 -> Y | AX6: =STCRate7!B84 -> Y
A7: First Name: | B7: John | C7: Sally | D7: =B7 -> John | E7: =C7 -> Sally | F7: =B7 -> John | G7: =C7 -> Sally | H7: =B7 -> John | I7: =C7 -> Sally | J7: John Prospect | K7: Sally Prospect | L7: =B7 -> John | M7: Sally | N7: John | O7: =E7 -> Sally | P7: Bob | Q7: Betty | R7: 7 | S7: tables in place, etc.!! | Y7: 1st: | Z7: =B7 -> John | AA7: =C7 -> Sally | AC7: Inflate? | AD7: =VLOOKUP(D11,GTLBIOCHART,2) -> A | AE7: =VLOOKUP(E11,GTLBIOCHART,2) -> A | AG7: Fast/Infl.? | AH7: N | AI7: N | AJ7: HHAide $ | AK7: =VLOOKUP(H17,GTLSTHHCOPTIONCHART,5,FALSE) -> 120 | AL7: =VLOOKUP(I17,GTLSTHHCOPTIONCHART,5,FALSE) -> 120 | AM7: NH/Infl.? | AN7: =MedRate1!A83 -> N | AO7: =MedRate1!A84 -> N | AP7: Fast/Infl.? | AQ7: =VLOOKUP(L11,SLINFLCHART,2,FALSE) ->  | AR7: =VLOOKUP(M11,SLINFLCHART,2,FALSE) ->  | AS7: Fast/Infl.? | AT7: =VLOOKUP(N11,SLINFLCHART,2,FALSE) -> N | AU7: =VLOOKUP(O11,SLINFLCHART,2,FALSE) -> N | AV7: Fast/Infl.? | AW7: =VLOOKUP(P11,SLINFLCHART,2,FALSE) ->  | AX7: =VLOOKUP(Q11,SLINFLCHART,2,FALSE) -> 
A8: Last Name: | B8: Prospect | C8: Prospect | D8: =B8 -> Prospect | E8: =C8 -> Prospect | F8: =B8 -> Prospect | G8: =C8 -> Prospect | H8: =B8 -> Prospect | I8: =B8 -> Prospect | J8: 5% Multi Disc. | K8: No Multi Disc. | L8: Prospect | M8: Prospect | N8: Prospect | O8: Prospect | P8: Smith | Q8: Smith | R8: 8 | Y8: Last: | Z8: =B8 -> Prospect | AA8: =C8 -> Prospect | AC8: Tobacco? | AD8: =IF($D10="No",1,2) -> 1 | AE8: =IF($E10="No",1,2) -> 1 | AG8: Tobacco? | AH8: =IF($L10="No",1,2) -> 1 | AI8: =IF($M10="No",1,2) -> 1 | AM8: Tobacco? | AN8: =IF($J10="No",1,2) -> 1 | AO8: =IF($K10="No",1,2) -> 1 | AP8: Tobacco? | AQ8: =IF($L10="No",1,2) -> 1 | AR8: =IF($M10="No",1,2) -> 1 | AS8: Tobacco? | AT8: =IF($N10="No",1,2) -> 1 | AU8: =IF($O10="No",1,2) -> 1 | AV8: Tobacco? | AW8: =IF($P10="No",1,2) -> 1 | AX8: =IF($Q10="No",1,2) -> 1
A9: Age: | B9: 61 | C9: 60 | D9: 70 | E9: 61 | F9: 64 | G9: 65 | H9: 61 | I9: 71 | J9: 60 | K9: 60 | L9: 61 | M9: 64 | N9: 64 | O9: 64 | P9: 58 | Q9: 60 | R9: 9 | Y9: Age band: | Z9: =VLOOKUP(B9,AETNAAGERANGE,2,0) -> 60-64 | AA9: =VLOOKUP(C9,AETNAAGERANGE,2,0) -> 60-64 | AC9: Concate: | AD9: =CONCATENATE(AD7,AD8) -> A1 | AE9: =CONCATENATE(AE7,AE8) -> A1 | AG9: Concate: | AH9: =CONCATENATE(AH7,AH8) -> N1 | AI9: =CONCATENATE(AI7,AI8) -> N1 | AM9: Concate: | AN9: =CONCATENATE(AN7,AN8) -> N1 | AO9: =CONCATENATE(AO7,AO8) -> N1 | AP9: Concate: | AQ9: =CONCATENATE(AQ7,AQ8) ->  | AR9: =CONCATENATE(AR7,AR8) ->  | AS9: Concate: | AT9: =CONCATENATE(AT7,AT8) -> N1 | AU9: =CONCATENATE(AU7,AU8) -> N1 | AV9: Concate: | AW9: =CONCATENATE(AW7,AW8) ->  | AX9: =CONCATENATE(AX7,AX8) -> 
A10: Tobacco: | B10: No | C10: No | D10: No | E10: No | F10: No | G10: No | H10: No | I10: No | J10: No | K10: No | L10: No | M10: No | N10: No | O10: No | P10: No | Q10: No | R10: 10 | Y10: Fac. Elim Days: | Z10: =VLOOKUP(B14,AETNAELIMCHART,2) -> 20 | AA10: =VLOOKUP(C14,AETNAELIMCHART,2) -> 0 | AB10: HHC BELOW | AG10: FacGrowth | AH10: =IF(ISNUMBER(SEARCH("+",AH12)),"Y","N") -> N | AI10: =IF(ISNUMBER(SEARCH("+",AI12)),"Y","N") -> N | AM10: FacGrowth | AN10: =IF(ISNUMBER(SEARCH("+",AN12)),"Y","N") -> N | AO10: =IF(ISNUMBER(SEARCH("+",AO12)),"Y","N") -> N | AP10: FacGrowth | AQ10: =IF(ISNUMBER(SEARCH("+",AQ12)),"Y","N") -> N | AR10: =IF(ISNUMBER(SEARCH("+",AR12)),"Y","N") -> N | AS10: FacGrowth | AT10: =IF(ISNUMBER(SEARCH("+",AT12)),"Y","N") -> N | AU10: =IF(ISNUMBER(SEARCH("+",AU12)),"Y","N") -> N | AV10: FacGrowth | AW10: =IF(ISNUMBER(SEARCH("+",AW12)),"Y","N") -> Y | AX10: =IF(ISNUMBER(SEARCH("+",AX12)),"Y","N") -> Y
A11: Inflation Choice: | B11: None Avail. | C11: None Avail. | D11: A-0% Inflation | E11: A-0% Inflation | F11: No Inflation Avail. | G11: No Inflation Avail. | H11: No Acct/Sick Rider | I11: No Acct/Sick Rider | J11: No GI Rider | K11: No GI Rider | L11: No AMB/ER Rider | M11: No AMB/ER Rider | N11: 0% on Fast50 | O11: 0% on Fast50 | P11: =STCRate7!B124 -> 5%-FAC&HHC | Q11: =STCRate7!B125 -> 5%-FAC&HHC | R11: 11 | Y11: Period Days: | Z11: =VLOOKUP(B13,AETNAFACCHART,2,FALSE) -> 360 | AA11: =VLOOKUP(C13,AETNAFACCHART,2,FALSE) -> 360 | AB11: =VLOOKUP(B18,AETNAHHCSCHART,2) -> 52 | AC11: =VLOOKUP(C18,AETNAHHCSCHART,2) -> 52 | AG11: Amb Code: | AH11: =VLOOKUP(L11,HHCPLUSAMBCHART,2,FALSE) -> 0 | AI11: =VLOOKUP(M11,HHCPLUSAMBCHART,2,FALSE) -> 0 | AJ11: AC Code: | AK11: =VLOOKUP($H$11,GTLSTHHCACCHART,2,FALSE) -> AC-0 | AL11: =VLOOKUP($I$11,GTLSTHHCACCHART,2,FALSE) -> AC-0 | AM11: HHC Growth | AN11: =IF(ISNUMBER(SEARCH("+",AN18)),"Y","N") -> N | AO11: =IF(ISNUMBER(SEARCH("+",AO18)),"Y","N") -> N | AP11: HHC Growth | AQ11: =IF(ISNUMBER(SEARCH("+",AQ18)),"Y","N") -> N | AR11: =IF(ISNUMBER(SEARCH("+",AR18)),"Y","N") -> N | AS11: HHC Growth | AT11: =IF(ISNUMBER(SEARCH("+",AT18)),"Y","N") -> N | AU11: =IF(ISNUMBER(SEARCH("+",AU18)),"Y","N") -> N | AV11: HHC Growth | AW11: =IF(ISNUMBER(SEARCH("+",AW18)),"Y","N") -> Y | AX11: =IF(ISNUMBER(SEARCH("+",AX18)),"Y","N") -> Y
A12: Facility Benefit: | B12: 200 | C12: 310 | D12: 50 | E12: 200 | F12: Plus 1x $25 App Fee | G12: Plus 1x $25 App Fee | H12: No Critical Acc. Rider | I12: No Critical Acc. Rider | J12: 300 | K12: 300 | L12: No Cancer Rider | M12: $2,500 Cancer | N12: 200 | O12: 200 | P12: 400 | Q12: 400 | R12: 12 | Y12: Fac. Factor: | Z12: =VLOOKUP(B12,AETNADROPCHART,2,0) -> 20 | AA12: =VLOOKUP(C12,AETNADROPCHART,2,0) -> 31 | AB12: =VLOOKUP(B17,AETHHCBENSCHART,2,FALSE) -> 8 | AC12: =VLOOKUP(C17,AETHHCBENSCHART,2,FALSE) -> 7 | AG12: Cancer Fac | AH12: =VLOOKUP(L12,HHCPLUSCANCHART,3,FALSE) -> 0 | AI12: =VLOOKUP(M12,HHCPLUSCANCHART,3,FALSE) -> 1 | AJ12: Crit Code: | AK12: =VLOOKUP($H$12,GTLSTHHCCRITCHART,2,FALSE) -> CA-0 | AL12: =VLOOKUP($I$12,GTLSTHHCCRITCHART,2,FALSE) -> CA-0 | AM12: NH? | AN12: =VLOOKUP(J13,MED2CHART,2,FALSE) -> 360 | AO12: =VLOOKUP(K13,MED2CHART,2,FALSE) -> 360 | AP12: NH? | AQ12: =VLOOKUP(J13,MEDFACCHART,2,FALSE) -> 360 | AR12: =VLOOKUP(K13,MEDFACCHART,2,FALSE) -> 360 | AS12: NH? | AT12: =VLOOKUP(N13,SLFACCHART,2,FALSE) -> 360 | AU12: =VLOOKUP(O13,SLFACCHART,2,FALSE) -> 360 | AV12: NH? | AW12: =VLOOKUP(P13,MANFACCHART,2,FALSE) -> 360+ | AX12: =VLOOKUP(Q13,MANFACCHART,2,FALSE) -> 360+
A13: Facility Ben. Period: | B13: 360 Day | C13: 360 Day | D13: 360 Day | E13: 360 Day | F13: No Household Disc. | G13: With Household Disc. | H13: No Dental/Vis. Rider | I13: No Dental/Vis. Rider | J13: 360 Day | K13: 360 Day | L13: No Facility | M13: No Facility | N13: 360 Day | O13: 360 Day | P13: 360 Day (w/5%) | Q13: 360 Day (w/5%) | R13: 13 | Y13: Fac./$10 | Z13: =Aetna1!G52 -> 35.95 | AA13: =Aetna1!G53 -> 34.8 | AC13: NH? | AD13: =VLOOKUP(D13,GTLFACCHART,2,FALSE) -> 360 | AE13: =VLOOKUP(E13,GTLFACCHART,2,FALSE) -> 360 | AG13: Elim? | AH13: =VLOOKUP(F14,SLFACECHART,2,FALSE) ->  | AI13: =VLOOKUP(G14,SLFACECHART,2,FALSE) ->  | AJ13: D/V Code: | AK13: =VLOOKUP($H$13,GTLSTHHCDVCHART,2,FALSE) -> DV-0 | AL13: =VLOOKUP($I$13,GTLSTHHCDVCHART,2,FALSE) -> DV-0 | AM13: Elim? | AN13: =VLOOKUP(J14,MEDHHCELIMCHART,2,FALSE) -> 20 | AO13: =VLOOKUP(K14,MEDHHCELIMCHART,2,FALSE) -> 20 | AP13: Elim? | AQ13: =VLOOKUP(J14,MEDHHCELIMCHART,2,FALSE) -> 20 | AR13: =VLOOKUP(J14,MEDHHCELIMCHART,2,FALSE) -> 20 | AS13: Elim? | AT13: =VLOOKUP(N14,SLFACECHART,2,FALSE) -> 20 | AU13: =VLOOKUP(O14,SLFACECHART,2,FALSE) -> 20 | AV13: Elim? | AW13: =VLOOKUP(P14,MANFACECHART,2,FALSE) -> 60 | AX13: =VLOOKUP(Q14,MANFACECHART,2,FALSE) -> 60
A14: Facility Elimination: | B14: 20 | C14: 0 | D14: 0 | E14: 0 | F14: No Ambulance Rider | G14: No Ambulance Rider | H14: No Ambulance Rider | I14: No Ambulance Rider | J14: 20 Day | K14: 20 Day | L14: Benefit Avail. | M14: Benefit Avail. | N14: 20 Day | O14: 20 Day | P14: 60 Day | Q14: 60 Day | R14: 14 | Y14: FAC-Match: | Z14: =CONCATENATE(Z11,"-",Z10) -> 360-20 | AA14: =CONCATENATE(AA11,"-",AA10) -> 360-0 | AC14: NH-ELIM: | AD14: =CONCATENATE(AD13,"-",D14) -> 360-0 | AE14: =CONCATENATE(AE13,"-",E14) -> 360-0 | AG14: NH-Elim: | AH14: =CONCATENATE(AH12,"-",AH13) ->  | AI14: =CONCATENATE(AI12,"-",AI13) ->  | AJ14: Amb. Code: | AK14: =VLOOKUP($H$14,GTLSTHHCAMBCHART,2,FALSE) -> AMB-0 | AL14: =VLOOKUP($I$14,GTLSTHHCAMBCHART,2,FALSE) -> AMB-0 | AM14: NH-Elim: | AN14: =CONCATENATE(AN2,"-",AN12,"-",AN13) -> F-360-20 | AO14: =CONCATENATE(AO2,"-",AO12,"-",AO13) -> F-360-20 | AP14: NH-Elim: | AQ14: =CONCATENATE(AQ2,"-",AQ12,"-",AQ13) -> F-360-20 | AR14: =CONCATENATE(AR2,"-",AR12,"-",AR13) -> F-360-20 | AS14: NH-Elim: | AT14: =CONCATENATE(AT12,"-",AT13) -> 360-20 | AU14: =CONCATENATE(AU12,"-",AU13) -> 360-20 | AV14: NH-Elim: | AW14: =CONCATENATE(AW12,"-",AW13) -> 360+-60 | AX14: =CONCATENATE(AX12,"-",AX13) -> 360+-60
A15: Prem. Mode: | B15: Annual | C15: Annual | D15: Annual | E15: Annual | F15: No Addl AIDE Rider | G15: No Addl AIDE Rider | H15: No Ret. Of Prem. Rider | I15: No Ret. Of Prem. Rider | J15: Annual | K15: Annual | L15: Annual | M15: Annual | N15: Annual | O15: Annual | P15: Annual | Q15: =P15 -> Annual | R15: 15 | Y15: Mode fact: | Z15: =IF($B$6="HI",VLOOKUP($B$15,MODECHART,3,0),(IF($B$6="MN",VLOOKUP($B$15,MODECHART,3,0),VLOOKUP(B15,MODECHART,2,0)))) -> 1 | AC15: ConCate2: | AD15: =CONCATENATE(AD9,"-",AD14) -> A1-360-0 | AE15: =CONCATENATE(AE9,"-",AE14) -> A1-360-0 | AG15: ConCate2: | AH15: =CONCATENATE(AH9,"-",AH14) ->  | AI15: =CONCATENATE(AI9,"-",AI14) ->  | AJ15: ROP Code: | AK15: =VLOOKUP($H$15,GTLSTHHCROPCHART,2,FALSE) -> ROP-0 | AL15: =VLOOKUP($I$15,GTLSTHHCROPCHART,2,FALSE) -> ROP-0 | AM15: ConCate2: | AN15: =CONCATENATE(AN9,"-",AN14) -> N1-F-360-20 | AO15: =CONCATENATE(AO9,"-",AO14) -> N1-F-360-20 | AP15: ConCate2: | AQ15: =CONCATENATE(AQ9,"-",AQ14) ->  | AR15: =CONCATENATE(AR9,"-",AR14) ->  | AS15: ConCate2: | AT15: =CONCATENATE(AT9,"-",AT14) -> N1-360-20 | AU15: =CONCATENATE(AU9,"-",AU14) -> N1-360-20 | AV15: ConCate2: | AW15: =CONCATENATE(AW9,"-",AW14) ->  | AX15: =CONCATENATE(AX9,"-",AX14) -> 
A16: Spouse Also?: | B16: No | C16: =B16 -> No | D16: No | E16: =D16 -> No | F16: No | G16: =F16 -> No | H16: No | I16: =H16 -> No | J16: No | K16: =J16 -> No | L16: No | M16: =L16 -> No | N16: No | O16: =N16 -> No | P16: Yes | Q16: =P16 -> Yes | R16: 16 | Y16: Spouse? | Z16: =B16 -> No | AC16: Spouse? | AD16: =D16 -> No | AG16: Spouse? | AH16: =L16 -> No | AI16: =M16 -> No | AJ16: Spouse?: | AK16: =H16 -> No | AL16: =I16 -> No | AM16: Spouse? | AN16: =J16 -> No | AO16: =K16 -> No | AP16: Spouse? | AQ16: =L16 -> No | AR16: =M16 -> No | AS16: Spouse? | AT16: =N16 -> No | AU16: =O16 -> No | AV16: Spouse? | AW16: =P16 -> Yes | AX16: =Q16 -> Yes
A17: HHC Benefit: | B17: $1,200/Week | C17: $1,050/Week | D17: $75/Visit | E17: $75/Visit | F17: C ($600/$150 Aide) | G17: C ($600/$150 Aide) | H17: C ($450/$120 Aide) | I17: C ($450/$120 Aide) | J17: 200 | K17: 200 | L17: $1,200/Week | M17: $750/Week | N17: 150 | O17: 150 | P17: 300 | Q17: 300 | R17: 17 | Y17: HI Factors | Z17: =VLOOKUP(B20,AETNADROPCHART,2) -> 5 | AA17: =VLOOKUP(C20,AETNADROPCHART,2) -> 1 | AC17: HHC Ben? | AD17: =VLOOKUP(D17,GTLHHCBENSCHART,2,FALSE) -> 3 | AE17: =VLOOKUP(E17,GTLHHCBENSCHART,2,FALSE) -> 3 | AG17: HHC Ben Fact | AH17: =VLOOKUP(L17,HHCPLUSHHCCHART,3,FALSE) -> 8 | AI17: =VLOOKUP(M17,HHCPLUSHHCCHART,3,FALSE) -> 5 | AJ17: Plan?: | AK17: =VLOOKUP($H$17,GTLSTHHCOPTIONCHART,3,FALSE) -> C | AL17: =VLOOKUP($I$17,GTLSTHHCOPTIONCHART,3,FALSE) -> C | AM17: HHC Elim? | AN17: =VLOOKUP(J19,MEDHHCELIMCHART,2,FALSE) -> 0 | AO17: =VLOOKUP(K19,MEDHHCELIMCHART,2,FALSE) -> 0 | AP17: HHC Elim? | AQ17: =VLOOKUP(J19,MEDHHCELIMCHART,2,FALSE) -> 0 | AR17: =VLOOKUP(K19,MEDHHCELIMCHART,2,FALSE) -> 0 | AS17: HHC Elim? | AT17: =VLOOKUP(N19,SLHHCECHART,2,FALSE) -> 0 | AU17: =VLOOKUP(O19,SLHHCECHART,2,FALSE) -> 0 | AV17: HHC Elim? | AW17: =VLOOKUP(P19,MANHHCECHART,2,FALSE) -> 0 | AX17: =VLOOKUP(Q19,MANHHCECHART,2,FALSE) -> 0
A18: HHC Ben. Period: | B18: 52 Weeks | C18: 52 Weeks | D18: 180 Visits | E18: 180 Visits | F18: =VLOOKUP($F$6,HNLSTHHCSTATECHART,2,FALSE) -> 360 Day | G18: =VLOOKUP($F$6,HNLSTHHCSTATECHART,2,FALSE) -> 360 Day | H18: =VLOOKUP($H$6,GTLSTHHCSTATECHART,2,FALSE) -> 360 Day | I18: =VLOOKUP($H$6,GTLSTHHCSTATECHART,2,FALSE) -> 360 Day | J18: 360 Day | K18: 360 Day | L18: 52 Weeks | M18: 26 Weeks | N18: 360 Day | O18: 180 Day | P18: 360 Day (w/5%) | Q18: 360 Day (w/5%) | R18: 18 | Y18: Depend #: | Z18: =IF(Z17="Yes",B18,0) -> 0 | AC18: HHC Visits? | AD18: =VLOOKUP(D18,GTLHHCCHART,2,FALSE) -> 180 | AE18: =VLOOKUP(E18,GTLHHCCHART,2,FALSE) -> 180 | AG18: HHC Visits: | AH18: =VLOOKUP(L18,HHCPLUSWEEKSCHART,2,FALSE) -> 52 | AI18: =VLOOKUP(M18,HHCPLUSWEEKSCHART,2,FALSE) -> 26 | AM18: HHC Visits: | AN18: =VLOOKUP(J18,MED2HHCCHART,2,FALSE) -> 360 | AO18: =VLOOKUP(K18,MED2HHCCHART,2,FALSE) -> 360 | AP18: HHC Visits: | AQ18: =VLOOKUP(J18,MEDHHCCHART,2,FALSE) -> 360 | AR18: =VLOOKUP(K18,MEDHHCCHART,2,FALSE) -> 360 | AS18: HHC Visits: | AT18: =VLOOKUP(N18,SLHHCCHART,2,FALSE) -> 360 | AU18: =VLOOKUP(O18,SLHHCCHART,2,FALSE) -> 180 | AV18: HHC Visits: | AW18: =VLOOKUP(P18,MANHHCCHART,2,FALSE) -> 360+ | AX18: =VLOOKUP(Q18,MANHHCCHART,2,FALSE) -> 360+
A19: HHC Elimination: | B19: Zero Day | C19: Always 0-Day | D19: 0 | E19: 0 | F19: Zero Day | G19: Zero Day | H19: Zero Day | I19: Always 0 Day | J19: 0 Day | K19: 0 Day | L19: Zero Day | M19: Zero Day | N19: Zero Day | O19: Zero Day | P19: Zero Day | Q19: Zero Day | R19: 19 | Y19: Dpend Plan: | Z19: =VLOOKUP(B19,PLANCHART,2,0) ->  | AC19: HHC-Code: | AD19: =CONCATENATE(AD17,"-",AD18,"-",D19,"-",AD8) -> 3-180-0-1 | AE19: =CONCATENATE(AE17,"-",AE18,"-",E19,"-",AE8) -> 3-180-0-1 | AG19: HHC-Elim: | AH19: =VLOOKUP(L19,HHCPLUSELIMCHART,2,FALSE) -> 0 | AI19: =VLOOKUP(M19,HHCPLUSELIMCHART,2,FALSE) -> 0 | AM19: HHC-Code: | AN19: =CONCATENATE(AN2,"-",AN18,"-",AN17) -> F-360-0 | AO19: =CONCATENATE(AO2,"-",AO18,"-",AO17) -> F-360-0 | AP19: HHC-Code: | AQ19: =CONCATENATE(AQ2,"-",AQ18,"-",AQ17) -> F-360-0 | AR19: =CONCATENATE(AR2,"-",AR18,"-",AR17) -> F-360-0 | AS19: HHC-Code: | AT19: =CONCATENATE(AT18,"-",AT17) -> 360-0 | AU19: =CONCATENATE(AU18,"-",AU17) -> 180-0 | AV19: HHC-Code: | AW19: =CONCATENATE(AW18,"-",AW17) -> 360+-0 | AX19: =CONCATENATE(AX18,"-",AX17) -> 360+-0
A20: Daily Hospital Ind.: | B20: 50 | C20: 10 | D20: None | E20: None | F20: Annual | G20: Monthly | H20: Annual | I20: Monthly | J20: NO Adult DayCare Rider | K20: NO Adult DayCare Rider | L20: 10 | M20: 30 | N20: 0 | O20: 0 | P20: 100 | Q20: 100 | R20: 20 | Y20: Dpend Period: | Z20: =IF(Z17="Yes",(VLOOKUP(B20,BENPERCHART,2,0)),0) -> 0 | AG20: HHC-Code: | AH20: =CONCATENATE(AH18,"-",AH19) -> 52-0 | AI20: =CONCATENATE(AI18,"-",AI19) -> 26-0 | AM20: GI Rider Y? | AN20: =VLOOKUP($J$2,MED2GIRIDER,2,FALSE) -> 0-0 | AO20: =VLOOKUP($J$2,MED2GIRIDER,2,FALSE) -> 0-0 | AP20: Fac. Daily: | AQ20: =J12 -> 300 | AR20: =K12 -> 300
A21: Days Hospital Ind.: | B21: 20 Days | C21: 20 Days | D21: None | E21: None | F21: =VLOOKUP(F17,HNLSTHHCOPTIONCHART,6,FALSE) -> (w/Rx - $1080/Yr.) | G21: =VLOOKUP(G17,HNLSTHHCOPTIONCHART,6,FALSE) -> (w/Rx - $1080/Yr.) | H21: =VLOOKUP(H17,GTLSTHHCOPTIONCHART,6,FALSE) -> (w/Rx - $600/Yr.) | I21: =VLOOKUP(I17,GTLSTHHCOPTIONCHART,6,FALSE) -> (w/Rx - $600/Yr.) | J21: NO ROP Rider | K21: NO ROP Rider | L21: 20 Days | M21: 20 Days | N21: 0 Days | O21: 0 Days | P21: 20 Days | Q21: 20 Days | R21: 21 | AG21: HI- Fact.: | AH21: =L20/10 -> 1 | AI21: =M20/10 -> 3 | AM21: GI Rider $? | AN21: =VLOOKUP($J$11,MED2GIDAILYCHART,2,FALSE) -> 0 | AO21: =VLOOKUP($K$11,MED2GIDAILYCHART,2,FALSE) -> 0 | AP21: HHC Daily: | AQ21: =J17 -> 200 | AR21: =K17 -> 200
B22: Aetna Fac. Bens | C22: Aetna HHC Bens | D22: GTL Fac. Bens | E22: GTL HHC Bens | F22: StdLife Fac Bens | G22: StdLife HHC Bens | H22: GTL HHC Bens | I22: GTL Aide Bens | J22: Medico Fac Bens | K22: Medico HHC Bens | L22: Aetna HHC+ Bens | M22: Aetna HHC+ Bens | N22: StdLife5 Fac Bens | O22: StdLife5 HHC Bens | P22: OmniFlex Fac Bens | Q22: OmniFlex HHC Bens | R22: 22 | Y22: Dep Mos: | Z22: =IF(Z17="Yes",500,0) -> 0 | AG22: F50 Yes | AH22: =VLOOKUP(F$18,SL50YESCHART,2,FALSE) -> 360+ | AI22: =VLOOKUP(G$18,SL50YESCHART,2,FALSE) -> 360+ | AM22: F50 Yes | AN22: =VLOOKUP(J$18,SL50YESCHART,2,FALSE) -> 360+ | AO22: =VLOOKUP(K$18,SL50YESCHART,2,FALSE) -> 360+ | AP22: F50 Yes | AQ22: =VLOOKUP(L$18,SL50YESCHART,2,FALSE) ->  | AR22: =VLOOKUP(M$18,SL50YESCHART,2,FALSE) ->  | AS22: F50 Yes | AT22: =VLOOKUP(N$18,SL50YESCHART,2,FALSE) -> 360+ | AU22: =VLOOKUP(O$18,SL50YESCHART,2,FALSE) -> 180+ | AV22: F50 Yes | AW22: =VLOOKUP(P$18,MAN50YESCHART,2,FALSE) -> 360+ | AX22: =VLOOKUP(Q$18,MAN50YESCHART,2,FALSE) -> 360+
A23: =CONCATENATE("Ann.Yr/Age"," = ",C61) -> Ann.Yr/Age = 0-61 | B23: =B12 -> 200 | C23: =B17 -> $1,200/Week | D23: =D12 -> 50 | E23: =D17 -> $75/Visit | F23: =IF(($F$13="0 Day"),0,(F12*0.5)) ->  | G23: =IF($F$18="0 Day",0,(F17*0.5)) ->  | H23: =AK6 -> 450 | I23: =AK7 -> 120 | J23: =J12 -> 300 | K23: =J17 -> 200 | L23: =IF($L$13="0 Day",0,($L$12*0.5)) ->  | M23: =IF($L$18="0 Day",0,(L17*0.5)) ->  | N23: =IF($N$13="0 Day",0,($N$12*0.5)) -> 100 | O23: =IF($N$18="0 Day",0,(N17*0.5)) -> 75 | P23: =IF($P$13="0 Day",0,($P$12*0.5)) -> 200 | Q23: =IF($P$18="0 Day",0,(P17*0.5)) -> 150 | R23: 23 | Y23: St Code: | Z23: =VLOOKUP(Z6,STATECHART,3,0) -> 50 | AA23: =VLOOKUP(AA6,STATECHART,3,0) -> 50 | AB23: =AA23 -> 50 | AG23: F50 No | AH23: =VLOOKUP(F$18,SL50NOCHART,2,FALSE) -> 360 | AI23: =VLOOKUP(G$18,SL50NOCHART,2,FALSE) -> 360 | AJ23: =$AB$23 -> 50 | AM23: F50 No | AN23: =VLOOKUP(J$18,SL50NOCHART,2,FALSE) -> 360 | AO23: =VLOOKUP(K$18,SL50NOCHART,2,FALSE) -> 360 | AP23: F50 No | AQ23: =VLOOKUP(L$18,SL50NOCHART,2,FALSE) ->  | AR23: =VLOOKUP(M$18,SL50NOCHART,2,FALSE) ->  | AS23: F50 No | AT23: =VLOOKUP(N$18,SL50NOCHART,2,FALSE) -> 360 | AU23: =VLOOKUP(O$18,SL50NOCHART,2,FALSE) -> 180 | AV23: F50 No | AW23: =VLOOKUP(P$18,MAN50NOCHART,2,FALSE) -> 360 | AX23: =VLOOKUP(Q$18,MAN50NOCHART,2,FALSE) -> 360
A24: =CONCATENATE("Ann.Yr/Age"," = ",C62) -> Ann.Yr/Age = 1-62 | B24: =B23 -> 200 | C24: =C23 -> $1,200/Week | D24: =IF(AD$7="A",D23,(IF(AD$7="B",(D23+(D$23*0.05)),(IF(AD$7="C",(D23+(D23*0.05)),"Check!"))))) -> 50 | E24: =E23 -> $75/Visit | F24: =IF(($F$13="0 Day"),0,(F23+(F$12*0.1))) ->  | G24: =IF($F$18="0 Day",0,(G23+(F$17*0.1))) ->  | H24: =H23 -> 450 | I24: =I23 -> 120 | J24: =IF(AN$7="N",J23,(IF(AN$7="Y",(J23+(J$23*0.05)),"Check!"))) -> 300 | K24: =IF(AN$6="N",K23,(IF(AN$6="Y",(K23+(K$23*0.05)),"Check!"))) -> 200 | L24: =IF($L$13="0 Day",0,(L23+(L$12*0.1))) ->  | M24: =IF($L$18="0 Day",0,(M23+(L$17*0.1))) ->  | N24: =IF($N$13="0 Day",0,(N23+(N$12*0.1))) -> 120 | O24: =IF($N$18="0 Day",0,(O23+(N$17*0.1))) -> 90 | P24: =IF($P$13="0 Day",0,(P23+(P$12*0.1))) -> 240 | Q24: =IF($P$18="0 Day",0,(Q23+(P$17*0.1))) -> 180 | R24: 24 | AG24: F50-Y-Con | AH24: =CONCATENATE(AH22,"-",AH17) -> 360+-8 | AI24: =CONCATENATE(AI22,"-",AI17) -> 360+-5 | AM24: F50-Y-Con | AN24: =CONCATENATE(AN22,"-",AN17) -> 360+-0 | AO24: =CONCATENATE(AO22,"-",AO17) -> 360+-0 | AP24: F50-Y-Con | AQ24: =CONCATENATE(AQ22,"-",AQ17) ->  | AR24: =CONCATENATE(AR22,"-",AR17) ->  | AS24: F50-Y-Con | AT24: =CONCATENATE(AT22,"-",AT17) -> 360+-0 | AU24: =CONCATENATE(AU22,"-",AU17) -> 180+-0 | AV24: F50-Y-Con | AW24: =CONCATENATE(AW22,"-",AW17) -> 360+-0 | AX24: =CONCATENATE(AX22,"-",AX17) -> 360+-0
A25: Ann.Yr/Age = 2-63 | B25: =B24 -> 200 | C25: $1,200/Week | D25: 50 | E25: =E24 -> $75/Visit | F25: =IF(($F$13="0 Day"),0,(F24+(F$12*0.1))) ->  | G25: =IF($F$18="0 Day",0,(G24+(F$17*0.1))) ->  | H25: =H24 -> 450 | I25: =I24 -> 120 | J25: =IF(AN$7="N",J24,(IF(AN$7="Y",(J24+(J$23*0.05)),"Check!"))) -> 300 | K25: =IF(AN$6="N",K24,(IF(AN$6="Y",(K24+(K$23*0.05)),"Check!"))) -> 200 | L25: =IF($L$13="0 Day",0,(L24+(L$12*0.1))) ->  | M25: =IF($L$18="0 Day",0,(M24+(L$17*0.1))) ->  | N25: =IF($N$13="0 Day",0,(N24+(N$12*0.1))) -> 140 | O25: =IF($N$18="0 Day",0,(O24+(N$17*0.1))) -> 105 | P25: =IF($P$13="0 Day",0,(P24+(P$12*0.1))) -> 280 | Q25: =IF($P$18="0 Day",0,(Q24+(P$17*0.1))) -> 210 | AG25: F50-N-Con | AH25: =CONCATENATE(AH23,"-",AH17) -> 360-8 | AI25: =CONCATENATE(AI23,"-",AI17) -> 360-5 | AM25: F50-N-Con | AN25: =CONCATENATE(AN23,"-",AN17) -> 360-0 | AO25: =CONCATENATE(AO23,"-",AO17) -> 360-0 | AP25: F50-N-Con | AQ25: =CONCATENATE(AQ23,"-",AQ17) ->  | AR25: =CONCATENATE(AR23,"-",AR17) ->  | AS25: F50-N-Con | AT25: =CONCATENATE(AT23,"-",AT17) -> 360-0 | AU25: =CONCATENATE(AU23,"-",AU17) -> 180-0 | AV25: F50-N-Con | AW25: =CONCATENATE(AW23,"-",AW17) -> 360-0 | AX25: =CONCATENATE(AX23,"-",AX17) -> 360-0
A26: Ann.Yr/Age = 3-64 | B26: 200 | C26: $1,200/Week | D26: 50 | E26: $75/Visit | F26: =IF(($F$13="0 Day"),0,(F25+(F$12*0.1))) ->  | G26: =IF($F$18="0 Day",0,(G25+(F$17*0.1))) ->  | H26: 450 | I26: 120 | J26: 300 | K26: 200 | N26: 160 | O26: 120 | P26: 320 | Q26: 240 | AM26: GI Rider Code | AN26: =CONCATENATE("G-",AN20) -> G-0-0 | AO26: =CONCATENATE("G-",AO20) -> G-0-0
A27: Ann.Yr/Age = 4-65 | B27: 200 | C27: $1,200/Week | D27: 50 | E27: $75/Visit | F27: =IF(($F$13="0 Day"),0,(F26+(F$12*0.1))) ->  | G27: =IF($F$18="0 Day",0,(G26+(F$17*0.1))) ->  | H27: 450 | I27: 120 | J27: 300 | K27: 200 | N27: 180 | O27: 135 | P27: 360 | Q27: 270
A28: Ann.Yr/Age = 5-66 | B28: 200 | C28: $1,200/Week | D28: 50 | E28: $75/Visit | F28: =IF(($F$13="0 Day"),0,(F27+(F$12*0.1))) ->  | G28: =IF($F$18="0 Day",0,(G27+(F$17*0.1))) ->  | H28: 450 | I28: 120 | J28: 300 | K28: 200 | N28: 200 | O28: 150 | P28: 400 | Q28: 300
A29: Ann.Yr/Age = 6-67 | B29: 200 | C29: $1,200/Week | D29: 50 | E29: $75/Visit | F29: =IF(AH$10="N",(F28),(F28+($F$28*0.05))) ->  | G29: =IF(AH$11="N",(G28),(G28+($G$28*0.05))) ->  | H29: 450 | I29: 120 | J29: 300 | K29: 200 | L29: =IF(AQ$10="N",(L28),(L28+($L$28*0.05))) ->  | M29: =IF(AQ$11="N",(M28),(M28+($M$28*0.05))) ->  | N29: =IF(AT$10="N",(N28),(N28+($N$28*0.05))) -> 200 | O29: =IF(AT$11="N",(O28),(O28+($O$28*0.05))) -> 150 | P29: =IF(AW$10="N",(P28),(P28+($P$28*0.05))) -> 420 | Q29: =IF(AW$11="N",(Q28),(Q28+($Q$28*0.05))) -> 315
A30: Ann.Yr/Age = 7-68 | B30: 200 | C30: $1,200/Week | D30: 50 | E30: $75/Visit | H30: 450 | I30: 120 | J30: 300 | K30: 200 | L30: =IF(AQ$10="N",(L29),(L29+($L$28*0.05))) ->  | M30: =IF(AQ$11="N",(M29),(M29+($M$28*0.05))) ->  | N30: =IF(AT$10="N",(N29),(N29+($N$28*0.05))) -> 200 | O30: =IF(AT$11="N",(O29),(O29+($O$28*0.05))) -> 150 | P30: =IF(AW$10="N",(P29),(P29+($P$28*0.05))) -> 440 | Q30: =IF(AW$11="N",(Q29),(Q29+($Q$28*0.05))) -> 330
A31: Ann.Yr/Age = 8-69 | B31: 200 | C31: $1,200/Week | D31: 50 | E31: $75/Visit | H31: 450 | I31: 120 | J31: 300 | K31: 200 | N31: 200 | O31: 150 | P31: 460 | Q31: 345
A32: Ann.Yr/Age = 9-70 | B32: 200 | C32: $1,200/Week | D32: 50 | E32: $75/Visit | H32: 450 | I32: 120 | J32: 300 | K32: 200 | N32: 200 | O32: 150 | P32: 480 | Q32: 360
A33: Ann.Yr/Age = 10-71 | B33: 200 | C33: $1,200/Week | D33: 50 | E33: $75/Visit | H33: 450 | I33: 120 | J33: 300 | K33: 200 | N33: 200 | O33: 150 | P33: 500 | Q33: 375
A34: Ann.Yr/Age = 11-72 | B34: =B33 -> 200 | C34: =C33 -> $1,200/Week | D34: 50 | E34: $75/Visit | H34: 450 | I34: 120 | J34: 300 | K34: 200 | N34: 200 | O34: 150 | P34: 520 | Q34: 390 | Y34: Plan Code: | Z34: =IF(Z11="D","A",Z11) -> 360 | AA34: =IF(AA11="D","A",AA11) -> 360 | AB34: =Z19 ->  | AG34: Plan Code: | AH34: A | AI34: A | AJ34: A | AO34: Plan Code: | AP34: B | AQ34: B | AR34: B | AY34: C | AZ34: C
A35: Ann.Yr/Age = 12-73 | B35: 200 | C35: $1,200/Week | D35: 50 | E35: $75/Visit | H35: 450 | I35: 120 | J35: 300 | K35: 200 | N35: 200 | O35: 150 | P35: 540 | Q35: 405 | Y35: Per Code: | Z35: =Z13 -> 35.95 | AA35: =AA13 -> 34.8 | AB35: =Z20 -> 0 | AG35: Per Code: | AH35: =$Z$35 -> 35.95 | AI35: =$AA$35 -> 34.8 | AJ35: =$AB$35 -> 0 | AO35: Per Code: | AP35: =$Z$35 -> 35.95 | AQ35: =$AA$35 -> 34.8 | AR35: =$AB$35 -> 0 | AY35: =$AA$35 -> 34.8 | AZ35: =$AB$35 -> 0
A36: Ann.Yr/Age = 13-74 | B36: 200 | C36: $1,200/Week | D36: 50 | E36: $75/Visit | H36: 450 | I36: 120 | J36: 300 | K36: 200 | N36: 200 | O36: 150 | P36: 560 | Q36: 420 | Y36: Age Code: | Z36: =Z9 -> 60-64 | AA36: =AA9 -> 60-64 | AB36: D | AG36: Age Code: | AH36: =$Z$36 -> 60-64 | AI36: =$AA$36 -> 60-64 | AJ36: =$AB$36 -> D | AO36: Age Code: | AP36: =$Z$36 -> 60-64 | AQ36: =$AA$36 -> 60-64 | AR36: =$AB$36 -> D | AY36: =$AA$36 -> 60-64 | AZ36: =$AB$36 -> D
A37: Ann.Yr/Age = 14-75 | B37: 200 | C37: $1,200/Week | D37: 50 | E37: $75/Visit | H37: 450 | I37: 120 | J37: 300 | K37: 200 | N37: 200 | O37: 150 | P37: 580 | Q37: 435 | Y37: ConCan: | Z37: =CONCATENATE(Z34,"-",Z35,"-",Z36) -> 360-35.95-60-64 | AA37: =CONCATENATE(AA34,"-",AA35,"-",AA36) -> 360-34.8-60-64 | AB37: =CONCATENATE(AB34,"-",AB35,"-",AB36) ->  | AG37: ConCan: | AH37: =CONCATENATE(AH34,"-",AH35,"-",AH36) -> A-35.95-60-64 | AI37: =CONCATENATE(AI34,"-",AI35,"-",AI36) -> A-34.8-60-64 | AJ37: =CONCATENATE(AJ34,"-",AJ35,"-",AJ36) -> A-0-D | AO37: ConCan: | AP37: =CONCATENATE(AP34,"-",AP35,"-",AP36) -> B-35.95-60-64 | AQ37: =CONCATENATE(AQ34,"-",AQ35,"-",AQ36) -> B-34.8-60-64 | AR37: =CONCATENATE(AR34,"-",AR35,"-",AR36) -> B-0-D | AY37: =CONCATENATE(AY34,"-",AY35,"-",AY36) -> C-34.8-60-64 | AZ37: =CONCATENATE(AZ34,"-",AZ35,"-",AZ36) -> C-0-D
A38: Ann.Yr/Age = 15-76 | B38: 200 | C38: $1,200/Week | D38: 50 | E38: $75/Visit | H38: 450 | I38: 120 | J38: 300 | K38: 200 | N38: 200 | O38: 150 | P38: 600 | Q38: 450
A39: Ann.Yr/Age = 16-77 | B39: 200 | C39: $1,200/Week | D39: 50 | E39: $75/Visit | H39: 450 | I39: 120 | J39: 300 | K39: 200 | N39: 200 | O39: 150 | P39: 620 | Q39: 465 | Y39: Plan Annuals-50: | Z39: =VLOOKUP(Z$37,CHART50,MATCH(Z$12,BENS50,0),FALSE) ->  | AA39: =VLOOKUP(AA$37,CHART50,MATCH(AA$12,BENS50,0),FALSE) ->  | AB39: =IF($AB$35=0,0,VLOOKUP(AB$37,CHART50,MATCH(AB$12,BENS50,0),FALSE)) -> 0 | AC39: =AB39*$Z$18 -> 0 | AG39: Plan Annuals-50: | AH39: =VLOOKUP(AH$37,CHART50,MATCH(Z$12,BENS50,0),FALSE) ->  | AI39: =VLOOKUP(AI$37,CHART50,MATCH(AA$12,BENS50,0),FALSE) ->  | AJ39: =VLOOKUP(AJ$37,CHART50,MATCH(AB$12,BENS50,0),FALSE) ->  | AK39: =AJ39*$Z$18 ->  | AO39: Plan Annuals-50: | AP39: =VLOOKUP(AP$37,CHART50,MATCH(Z$12,BENS50,0),FALSE) ->  | AQ39: =VLOOKUP(AQ$37,CHART50,MATCH(AA$12,BENS50,0),FALSE) ->  | AR39: =VLOOKUP(AR$37,CHART50,MATCH(AB$12,BENS50,0),FALSE) ->  | AS39: =AR39*$Z$18 ->  | AW39: Plan Annuals-50: | AX39: =VLOOKUP(AX$37,CHART50,MATCH(Z$12,BENS50,0),FALSE) ->  | AY39: =VLOOKUP(AY$37,CHART50,MATCH(AA$12,BENS50,0),FALSE) ->  | AZ39: =VLOOKUP(AZ$37,CHART50,MATCH(AB$12,BENS50,0),FALSE) ->  | BA39: =AZ39*$Z$18 -> 
A40: Ann.Yr/Age = 17-78 | B40: 200 | C40: $1,200/Week | D40: 50 | E40: $75/Visit | H40: 450 | I40: 120 | J40: 300 | K40: 200 | N40: 200 | O40: 150 | P40: 640 | Q40: 480 | Y40: Plan Annuals-55: | Z40: =VLOOKUP(Z$37,CHART55,MATCH(Z$12,BENS55,0),FALSE) ->  | AA40: =VLOOKUP(AA$37,CHART55,MATCH(AA$12,BENS55,0),FALSE) ->  | AB40: =IF($AB$35=0,0,VLOOKUP(AB$37,CHART55,MATCH(AB$12,BENS55,0),FALSE)) -> 0 | AC40: 0 | AG40: Plan Annuals-55: | AH40: =VLOOKUP(AH$37,CHART55,MATCH(Z$12,BENS55,0),FALSE) ->  | AI40: =VLOOKUP(AI$37,CHART55,MATCH(AA$12,BENS55,0),FALSE) ->  | AJ40: =VLOOKUP(AJ$37,CHART55,MATCH(AB$12,BENS55,0),FALSE) ->  | AO40: Plan Annuals-55: | AP40: =VLOOKUP(AP$37,CHART55,MATCH(Z$12,BENS55,0),FALSE) ->  | AQ40: =VLOOKUP(AQ$37,CHART55,MATCH(AA$12,BENS55,0),FALSE) ->  | AR40: =VLOOKUP(AR$37,CHART55,MATCH(AB$12,BENS55,0),FALSE) ->  | AW40: Plan Annuals-55: | AX40: =VLOOKUP(AX$37,CHART55,MATCH(Z$12,BENS55,0),FALSE) ->  | AY40: =VLOOKUP(AY$37,CHART55,MATCH(AA$12,BENS55,0),FALSE) ->  | AZ40: =VLOOKUP(AZ$37,CHART55,MATCH(AB$12,BENS55,0),FALSE) -> 
A41: Ann.Yr/Age = 18-79 | B41: 200 | C41: $1,200/Week | D41: 50 | E41: $75/Visit | H41: 450 | I41: 120 | J41: 300 | K41: 200 | N41: 200 | O41: 150 | P41: 660 | Q41: 495 | Y41: Plan Annuals-60: | Z41: =VLOOKUP(Z$37,CHART60,MATCH(Z$12,BENS60,0),FALSE) ->  | AA41: =VLOOKUP(AA$37,CHART60,MATCH(AA$12,BENS60,0),FALSE) ->  | AB41: =IF($AB$35=0,0,VLOOKUP(AB$37,CHART60,MATCH(AB$12,BENS60,0),FALSE)) -> 0 | AC41: 0 | AG41: Plan Annuals-60: | AH41: =VLOOKUP(AH$37,CHART60,MATCH(Z$12,BENS60,0),FALSE) ->  | AI41: =VLOOKUP(AI$37,CHART60,MATCH(AA$12,BENS60,0),FALSE) ->  | AJ41: =VLOOKUP(AJ$37,CHART60,MATCH(AB$12,BENS60,0),FALSE) ->  | AO41: Plan Annuals-60: | AP41: =VLOOKUP(AP$37,CHART60,MATCH(Z$12,BENS60,0),FALSE) ->  | AQ41: =VLOOKUP(AQ$37,CHART60,MATCH(AA$12,BENS60,0),FALSE) ->  | AR41: =VLOOKUP(AR$37,CHART60,MATCH(AB$12,BENS60,0),FALSE) ->  | AW41: Plan Annuals-60: | AX41: =VLOOKUP(AX$37,CHART60,MATCH(Z$12,BENS60,0),FALSE) ->  | AY41: =VLOOKUP(AY$37,CHART60,MATCH(AA$12,BENS60,0),FALSE) ->  | AZ41: =VLOOKUP(AZ$37,CHART60,MATCH(AB$12,BENS60,0),FALSE) -> 
A42: Ann.Yr/Age = 19-80 | B42: 200 | C42: $1,200/Week | D42: 50 | E42: $75/Visit | H42: 450 | I42: 120 | J42: 300 | K42: 200 | N42: 200 | O42: 150 | P42: 680 | Q42: 510 | Y42: Plan Annuals-65: | Z42: =VLOOKUP(Z$37,CHART65,MATCH(Z$12,BENS65,0),FALSE) ->  | AA42: =VLOOKUP(AA$37,CHART65,MATCH(AA$12,BENS65,0),FALSE) ->  | AB42: =IF($AB$35=0,0,VLOOKUP(AB$37,CHART65,MATCH(AB$12,BENS65,0),FALSE)) -> 0 | AC42: 0 | AG42: Plan Annuals-65: | AH42: =VLOOKUP(AH$37,CHART65,MATCH(Z$12,BENS65,0),FALSE) ->  | AI42: =VLOOKUP(AI$37,CHART65,MATCH(AA$12,BENS65,0),FALSE) ->  | AJ42: =VLOOKUP(AJ$37,CHART65,MATCH(AB$12,BENS65,0),FALSE) ->  | AO42: Plan Annuals-65: | AP42: =VLOOKUP(AP$37,CHART65,MATCH(Z$12,BENS65,0),FALSE) ->  | AQ42: =VLOOKUP(AQ$37,CHART65,MATCH(AA$12,BENS65,0),FALSE) ->  | AR42: =VLOOKUP(AR$37,CHART65,MATCH(AB$12,BENS65,0),FALSE) ->  | AW42: Plan Annuals-65: | AX42: =VLOOKUP(AX$37,CHART65,MATCH(Z$12,BENS65,0),FALSE) ->  | AY42: =VLOOKUP(AY$37,CHART65,MATCH(AA$12,BENS65,0),FALSE) ->  | AZ42: =VLOOKUP(AZ$37,CHART65,MATCH(AB$12,BENS65,0),FALSE) -> 
A43: Ann.Yr/Age = 20-81 | B43: 200 | C43: $1,200/Week | D43: 50 | E43: $75/Visit | H43: 450 | I43: 120 | J43: 300 | K43: 200 | N43: 200 | O43: 150 | P43: 700 | Q43: 525 | Y43: Plan Annuals-SD: | Z43: =VLOOKUP(Z$37,CHARTSD,MATCH(Z$12,BENSSD,0),FALSE) ->  | AA43: =VLOOKUP(AA$37,CHARTSD,MATCH(AA$12,BENSSD,0),FALSE) ->  | AB43: =IF($AB$35=0,0,VLOOKUP(AB$37,CHARTSD,MATCH(AB$12,BENSSD,0),FALSE)) -> 0 | AC43: 0 | AG43: Plan Annuals-SD: | AH43: =VLOOKUP(AH$37,CHARTSD,MATCH(Z$12,BENSSD,0),FALSE) ->  | AI43: =VLOOKUP(AI$37,CHARTSD,MATCH(AA$12,BENSSD,0),FALSE) ->  | AJ43: =VLOOKUP(AJ$37,CHARTSD,MATCH(AB$12,BENSSD,0),FALSE) ->  | AO43: Plan Annuals-SD: | AP43: =VLOOKUP(AP$37,CHARTSD,MATCH(Z$12,BENSSD,0),FALSE) ->  | AQ43: =VLOOKUP(AQ$37,CHARTSD,MATCH(AA$12,BENSSD,0),FALSE) ->  | AR43: =VLOOKUP(AR$37,CHARTSD,MATCH(AB$12,BENSSD,0),FALSE) ->  | AW43: Plan Annuals-SD: | AX43: =VLOOKUP(AX$37,CHARTSD,MATCH(Z$12,BENSSD,0),FALSE) ->  | AY43: =VLOOKUP(AY$37,CHARTSD,MATCH(AA$12,BENSSD,0),FALSE) ->  | AZ43: =VLOOKUP(AZ$37,CHARTSD,MATCH(AB$12,BENSSD,0),FALSE) -> 
A44: Ann.Yr/Age = 21-82 | B44: 200 | C44: $1,200/Week | D44: 50 | E44: $75/Visit | H44: 450 | I44: 120 | J44: 300 | K44: 200 | N44: 200 | O44: 150 | P44: 720 | Q44: 540 | Y44: Plan Annuals-IN: | Z44: =VLOOKUP(Z$37,CHARTIN,MATCH(Z$12,BENSIN,0),FALSE) ->  | AA44: =VLOOKUP(AA$37,CHARTIN,MATCH(AA$12,BENSIN,0),FALSE) ->  | AB44: =IF($AB$35=0,0,VLOOKUP(AB$37,CHARTIN,MATCH(AB$12,BENSIN,0),FALSE)) -> 0 | AC44: 0 | AG44: Plan Annuals-IN: | AH44: =VLOOKUP(AH$37,CHARTIN,MATCH(Z$12,BENSIN,0),FALSE) ->  | AI44: =VLOOKUP(AI$37,CHARTIN,MATCH(AA$12,BENSIN,0),FALSE) ->  | AJ44: =VLOOKUP(AJ$37,CHARTIN,MATCH(AB$12,BENSIN,0),FALSE) ->  | AO44: Plan Annuals-IN: | AP44: =VLOOKUP(AP$37,CHARTIN,MATCH(Z$12,BENSIN,0),FALSE) ->  | AQ44: =VLOOKUP(AQ$37,CHARTIN,MATCH(AA$12,BENSIN,0),FALSE) ->  | AR44: =VLOOKUP(AR$37,CHARTIN,MATCH(AB$12,BENSIN,0),FALSE) ->  | AW44: Plan Annuals-IN: | AX44: =VLOOKUP(AX$37,CHARTIN,MATCH(Z$12,BENSIN,0),FALSE) ->  | AY44: =VLOOKUP(AY$37,CHARTIN,MATCH(AA$12,BENSIN,0),FALSE) ->  | AZ44: =VLOOKUP(AZ$37,CHARTIN,MATCH(AB$12,BENSIN,0),FALSE) -> 
A45: Ann.Yr/Age = 22-83 | B45: 200 | C45: $1,200/Week | D45: 50 | E45: $75/Visit | H45: 450 | I45: 120 | J45: 300 | K45: 200 | N45: 200 | O45: 150 | P45: 740 | Q45: 555 | AA45: times ROP | AB45: new ttl | AC45: after $25 fee | AD45: modal fact. | AI45: times ROP | AJ45: new ttl | AK45: after $25 fee | AL45: modal fact. | AQ45: times ROP | AR45: new ttl | AS45: after $25 fee | AT45: modal fact. | AY45: times ROP | AZ45: new ttl | BA45: after $25 fee | BB45: modal fact.
A46: Ann.Yr/Age = 23-84 | B46: 200 | C46: $1,200/Week | D46: 50 | E46: $75/Visit | H46: 450 | I46: 120 | J46: 300 | K46: 200 | N46: 200 | O46: 150 | P46: 760 | Q46: 570 | Y46: Plan Annuals-50: | Z46: =Z39+IF($B$16="Yes",$AA39,0)+IF($B$17="Yes",$AC39,0) ->  | AA46: =IF($Z$14="Yes",(IF($Z$6="NJ",0,(IF($Z$6="MD",0,(IF($Z$6="MN",0,(IF($Z$6="TX",VLOOKUP($Z$60,TXROPFACTORS,2,0),(VLOOKUP($Z$36,ROPFACTORS,2,0)))))))))),1) -> 1 | AB46: =Z46*AA46 ->  | AC46: =AB46+25 ->  | AD46: =$Z$15 -> 1 | AG46: Plan Annuals-50: | AH46: =AH39+IF($B$16="Yes",$AI39,0)+IF($B$17="Yes",$AK39,0) ->  | AI46: =IF($Z$14="Yes",VLOOKUP($Z$36,ROPFACTORS,2,0),1) -> 1 | AJ46: =AH46*AI46 ->  | AK46: =AJ46+25 ->  | AL46: =$Z$15 -> 1 | AO46: Plan Annuals-50: | AP46: =AP39+IF($B$16="Yes",$AQ39,0)+IF($B$17="Yes",$AS39,0) ->  | AQ46: =IF($Z$14="Yes",VLOOKUP($Z$36,ROPFACTORS,2,0),1) -> 1 | AR46: =AP46*AQ46 ->  | AS46: =AR46+25 ->  | AT46: =$Z$15 -> 1 | AW46: Plan Annuals-50: | AX46: =AX39+IF($B$16="Yes",$AY39,0)+IF($B$17="Yes",$BA39,0) ->  | AY46: =IF($Z$14="Yes",VLOOKUP($Z$36,ROPFACTORS,2,0),1) -> 1 | AZ46: =AX46*AY46 ->  | BA46: =AZ46+25 ->  | BB46: =$Z$15 -> 1
A47: Ann.Yr/Age = 24-85 | B47: 200 | C47: $1,200/Week | D47: 50 | E47: $75/Visit | H47: 450 | I47: 120 | J47: 300 | K47: 200 | N47: 200 | O47: 150 | P47: 780 | Q47: 585 | Y47: Plan Annuals-55: | AA47: =IF($Z$14="Yes",VLOOKUP($Z$36,ROPFACTORS,2,0),1) -> 1 | AD47: 1 | AG47: Plan Annuals-55: | AI47: 1 | AL47: 1 | AO47: Plan Annuals-55: | AQ47: 1 | AT47: 1 | AW47: Plan Annuals-55: | AY47: 1 | BB47: 1
A48: Ann.Yr/Age = 25-86 | B48: 200 | C48: $1,200/Week | D48: 50 | E48: $75/Visit | H48: 450 | I48: 120 | J48: 300 | K48: 200 | N48: 200 | O48: 150 | P48: 800 | Q48: 600 | Y48: Plan Annuals-60: | AA48: =IF($Z$14="Yes",VLOOKUP($Z$36,ROPFACTORS,2,0),1) -> 1 | AD48: 1 | AG48: Plan Annuals-60: | AI48: 1 | AL48: 1 | AO48: Plan Annuals-60: | AQ48: 1 | AT48: 1 | AW48: Plan Annuals-60: | AY48: 1 | BB48: 1
A49: Ann.Yr/Age = 26-87 | B49: 200 | C49: $1,200/Week | D49: 50 | E49: $75/Visit | H49: 450 | I49: 120 | J49: 300 | K49: 200 | N49: 200 | O49: 150 | P49: 820 | Q49: 615 | Y49: Plan Annuals-65: | AA49: =IF($Z$14="Yes",VLOOKUP($Z$36,ROPFACTORS,2,0),1) -> 1 | AD49: 1 | AG49: Plan Annuals-65: | AI49: 1 | AL49: 1 | AO49: Plan Annuals-65: | AQ49: 1 | AT49: 1 | AW49: Plan Annuals-65: | AY49: 1 | BB49: 1
A50: Ann.Yr/Age = 27-88 | B50: 200 | C50: $1,200/Week | D50: 50 | E50: $75/Visit | H50: 450 | I50: 120 | J50: 300 | K50: 200 | N50: 200 | O50: 150 | P50: 840 | Q50: 630 | Y50: Plan Annuals-SD: | AA50: =IF($Z$14="Yes",VLOOKUP($Z$36,ROPFACTORS,2,0),1) -> 1 | AD50: 1 | AG50: Plan Annuals-SD: | AI50: 1 | AL50: 1 | AO50: Plan Annuals-SD: | AQ50: 1 | AT50: 1 | AW50: Plan Annuals-SD: | AY50: 1 | BB50: 1
A51: Ann.Yr/Age = 28-89 | B51: 200 | C51: $1,200/Week | D51: 50 | E51: $75/Visit | H51: 450 | I51: 120 | J51: 300 | K51: 200 | N51: 200 | O51: 150 | P51: 860 | Q51: 645 | Y51: Plan Annuals-IN: | AA51: =IF($Z$14="Yes",VLOOKUP($Z$36,ROPFACTORS,2,0),1) -> 1 | AD51: 1 | AG51: Plan Annuals-IN: | AI51: 1 | AL51: 1 | AO51: Plan Annuals-IN: | AQ51: 1 | AT51: 1 | AW51: Plan Annuals-IN: | AY51: 1 | BB51: 1
A52: Ann.Yr/Age = 29-90 | B52: 200 | C52: $1,200/Week | D52: 50 | E52: $75/Visit | H52: 450 | I52: 120 | J52: 300 | K52: 200 | N52: 200 | O52: 150 | P52: 880 | Q52: 660 | AP52: modal prem | AX52: modal prem
A53: Ann.Yr/Age = 30-91 | B53: 200 | C53: $1,200/Week | D53: 50 | E53: $75/Visit | H53: 450 | I53: 120 | J53: 300 | K53: 200 | N53: 200 | O53: 150 | P53: 900 | Q53: 675 | W53: these are new: | Y53: Plan Annuals-KY: | Z53: =VLOOKUP(Z$37,CHARTKY,MATCH(Z$12,BENSKY,0),FALSE) ->  | AA53: =VLOOKUP(AA$37,CHARTKY,MATCH(AA$12,BENSKY,0),FALSE) ->  | AB53: =IF($AB$35=0,0,VLOOKUP(AB$37,CHARTKY,MATCH(AB$12,BENSKY,0),FALSE)) -> 0 | AC53: =AB53*$Z$18 -> 0 | AG53: Plan Annuals-KY: | AH53: =VLOOKUP(AH$37,CHARTKY,MATCH(Z$12,BENSKY,0),FALSE) ->  | AI53: =VLOOKUP(AI$37,CHARTKY,MATCH(AA$12,BENSKY,0),FALSE) ->  | AJ53: =VLOOKUP(AJ$37,CHARTKY,MATCH(AB$12,BENSKY,0),FALSE) ->  | AK53: =AJ53*$Z$18 ->  | AO53: Plan Annuals-KY: | AP53: =VLOOKUP(AP$37,CHARTKY,MATCH(Z$12,BENSKY,0),FALSE) ->  | AQ53: =VLOOKUP(AQ$37,CHARTKY,MATCH(AA$12,BENSKY,0),FALSE) ->  | AR53: =VLOOKUP(AR$37,CHARTKY,MATCH(AB$12,BENSKY,0),FALSE) ->  | AS53: =AR53*$Z$18 ->  | AW53: Plan Annuals-KY: | AX53: =VLOOKUP(AX$37,CHARTKY,MATCH(Z$12,BENSKY,0),FALSE) ->  | AY53: =VLOOKUP(AY$37,CHARTKY,MATCH(AA$12,BENSKY,0),FALSE) ->  | AZ53: =VLOOKUP(AZ$37,CHARTKY,MATCH(AB$12,BENSKY,0),FALSE) ->  | BA53: =AZ53*$Z$18 -> 
A54: Ann.Yr/Age = 31-92 | B54: 200 | C54: $1,200/Week | D54: 50 | E54: $75/Visit | H54: 450 | I54: 120 | J54: 300 | K54: 200 | N54: 200 | O54: 150 | P54: 920 | Q54: 690 | Y54: Plan Annuals-KS-LA: | Z54: =VLOOKUP(Z$37,CHARTKS,MATCH(Z$12,BENSKS,0),FALSE) ->  | AA54: =VLOOKUP(AA$37,CHARTKS,MATCH(AA$12,BENSKS,0),FALSE) ->  | AB54: =IF($AB$35=0,0,VLOOKUP(AB$37,CHARTKS,MATCH(AB$12,BENSKS,0),FALSE)) -> 0 | AC54: 0 | AG54: Plan Annuals-KS-LA: | AH54: =VLOOKUP(AH$37,CHARTKS,MATCH(Z$12,BENSKS,0),FALSE) ->  | AI54: =VLOOKUP(AI$37,CHARTKS,MATCH(AA$12,BENSKS,0),FALSE) ->  | AJ54: =VLOOKUP(AJ$37,CHARTKS,MATCH(AB$12,BENSKS,0),FALSE) ->  | AO54: Plan Annuals-KS-LA: | AP54: =VLOOKUP(AP$37,CHARTKS,MATCH(Z$12,BENSKS,0),FALSE) ->  | AQ54: =VLOOKUP(AQ$37,CHARTKS,MATCH(AA$12,BENSKS,0),FALSE) ->  | AR54: =VLOOKUP(AR$37,CHARTKS,MATCH(AB$12,BENSKS,0),FALSE) ->  | AW54: Plan Annuals-KS-LA: | AX54: =VLOOKUP(AX$37,CHARTKS,MATCH(Z$12,BENSKS,0),FALSE) ->  | AY54: =VLOOKUP(AY$37,CHARTKS,MATCH(AA$12,BENSKS,0),FALSE) ->  | AZ54: =VLOOKUP(AZ$37,CHARTKS,MATCH(AB$12,BENSKS,0),FALSE) -> 
A55: Ann.Yr/Age = 32-93 | B55: 200 | C55: $1,200/Week | D55: 50 | E55: $75/Visit | H55: 450 | I55: 120 | J55: 300 | K55: 200 | N55: 200 | O55: 150 | P55: 940 | Q55: 705 | Y55: Plan Annuals-HI: | Z55: =VLOOKUP(Z$37,CHARTHI,MATCH(Z$12,BENSHI,0),FALSE) ->  | AA55: =VLOOKUP(AA$37,CHARTHI,MATCH(AA$12,BENSHI,0),FALSE) ->  | AB55: =IF($AB$35=0,0,VLOOKUP(AB$37,CHARTHI,MATCH(AB$12,BENSHI,0),FALSE)) -> 0 | AC55: 0 | AG55: Plan Annuals-HI: | AH55: =VLOOKUP(AH$37,CHARTHI,MATCH(Z$12,BENSHI,0),FALSE) ->  | AI55: =VLOOKUP(AI$37,CHARTHI,MATCH(AA$12,BENSHI,0),FALSE) ->  | AJ55: =VLOOKUP(AJ$37,CHARTHI,MATCH(AB$12,BENSHI,0),FALSE) ->  | AO55: Plan Annuals-HI: | AP55: =VLOOKUP(AP$37,CHARTHI,MATCH(Z$12,BENSHI,0),FALSE) ->  | AQ55: =VLOOKUP(AQ$37,CHARTHI,MATCH(AA$12,BENSHI,0),FALSE) ->  | AR55: =VLOOKUP(AR$37,CHARTHI,MATCH(AB$12,BENSHI,0),FALSE) ->  | AW55: Plan Annuals-HI: | AX55: =VLOOKUP(AX$37,CHARTHI,MATCH(Z$12,BENSHI,0),FALSE) ->  | AY55: =VLOOKUP(AY$37,CHARTHI,MATCH(AA$12,BENSHI,0),FALSE) ->  | AZ55: =VLOOKUP(AZ$37,CHARTHI,MATCH(AB$12,BENSHI,0),FALSE) -> 
A56: Ann.Yr/Age = 33-94 | B56: 200 | C56: $1,200/Week | D56: 50 | E56: $75/Visit | H56: 450 | I56: 120 | J56: 300 | K56: 200 | N56: 200 | O56: 150 | P56: 960 | Q56: 720 | Y56: Plan Annuals-MN: | Z56: =VLOOKUP(Z$37,CHARTMN,MATCH(Z$12,BENSMN,0),FALSE) ->  | AA56: =VLOOKUP(AA$37,CHARTMN,MATCH(AA$12,BENSMN,0),FALSE) ->  | AB56: =IF($AB$35=0,0,VLOOKUP(AB$37,CHARTMN,MATCH(AB$12,BENSMN,0),FALSE)) -> 0 | AC56: 0 | AG56: Plan Annuals-MN: | AH56: =VLOOKUP(AH$37,CHARTMN,MATCH(Z$12,BENSMN,0),FALSE) ->  | AI56: =VLOOKUP(AI$37,CHARTMN,MATCH(AA$12,BENSMN,0),FALSE) ->  | AJ56: =VLOOKUP(AJ$37,CHART50,MATCH(AB$12,BENS50,0),FALSE) ->  | AO56: Plan Annuals-MN: | AP56: =VLOOKUP(AP$37,CHARTMN,MATCH(Z$12,BENSMN,0),FALSE) ->  | AQ56: =VLOOKUP(AQ$37,CHARTMN,MATCH(AA$12,BENSMN,0),FALSE) ->  | AR56: =VLOOKUP(AR$37,CHART50,MATCH(AB$12,BENS50,0),FALSE) ->  | AW56: Plan Annuals-MN | AX56: =VLOOKUP(AX$37,CHARTMN,MATCH(Z$12,BENSMN,0),FALSE) ->  | AY56: =VLOOKUP(AY$37,CHARTMN,MATCH(AA$12,BENSMN,0),FALSE) ->  | AZ56: =VLOOKUP(AZ$37,CHART50,MATCH(AB$12,BENS50,0),FALSE) -> 
A57: Ann.Yr/Age = 34-95 | B57: 200 | C57: $1,200/Week | D57: 50 | E57: $75/Visit | H57: 450 | I57: 120 | J57: 300 | K57: 200 | N57: 200 | O57: 150 | P57: 980 | Q57: 735 | Y57: Plan Annuals-XX: | Z57: =VLOOKUP(Z$37,CHART50,MATCH(Z$12,BENS50,0),FALSE) ->  | AA57: =VLOOKUP(AA$37,CHART50,MATCH(AA$12,BENS50,0),FALSE) ->  | AB57: =IF($AB$35=0,0,VLOOKUP(AB$37,CHART50,MATCH(AB$12,BENS50,0),FALSE)) -> 0 | AC57: 0 | AG57: Plan Annuals-XX: | AH57: =VLOOKUP(AH$37,CHART50,MATCH(Z$12,BENS50,0),FALSE) ->  | AI57: =VLOOKUP(AI$37,CHART50,MATCH(AA$12,BENS50,0),FALSE) ->  | AJ57: =VLOOKUP(AJ$37,CHART50,MATCH(AB$12,BENS50,0),FALSE) ->  | AO57: Plan Annuals-XX: | AP57: =VLOOKUP(AP$37,CHART50,MATCH(Z$12,BENS50,0),FALSE) ->  | AQ57: =VLOOKUP(AQ$37,CHART50,MATCH(AA$12,BENS50,0),FALSE) ->  | AR57: =VLOOKUP(AR$37,CHART50,MATCH(AB$12,BENS50,0),FALSE) ->  | AW57: Plan Annuals-XX: | AX57: =VLOOKUP(AX$37,CHART50,MATCH(Z$12,BENS50,0),FALSE) ->  | AY57: =VLOOKUP(AY$37,CHART50,MATCH(AA$12,BENS50,0),FALSE) ->  | AZ57: =VLOOKUP(AZ$37,CHART50,MATCH(AB$12,BENS50,0),FALSE) -> 
A58: Ann.Yr/Age = 35-96 | B58: 200 | C58: $1,200/Week | D58: 50 | E58: $75/Visit | H58: 450 | I58: 120 | J58: 300 | K58: 200 | N58: 200 | O58: 150 | P58: 1000 | Q58: 750 | Y58: Plan Annuals-XX: | Z58: =VLOOKUP(Z$37,CHART50,MATCH(Z$12,BENS50,0),FALSE) ->  | AA58: =VLOOKUP(AA$37,CHART50,MATCH(AA$12,BENS50,0),FALSE) ->  | AB58: =IF($AB$35=0,0,VLOOKUP(AB$37,CHART50,MATCH(AB$12,BENS50,0),FALSE)) -> 0 | AC58: 0 | AG58: Plan Annuals-XX: | AH58: =VLOOKUP(AH$37,CHART50,MATCH(Z$12,BENS50,0),FALSE) ->  | AI58: =VLOOKUP(AI$37,CHART50,MATCH(AA$12,BENS50,0),FALSE) ->  | AJ58: =VLOOKUP(AJ$37,CHART50,MATCH(AB$12,BENS50,0),FALSE) ->  | AO58: Plan Annuals-XX: | AP58: =VLOOKUP(AP$37,CHART50,MATCH(Z$12,BENS50,0),FALSE) ->  | AQ58: =VLOOKUP(AQ$37,CHART50,MATCH(AA$12,BENS50,0),FALSE) ->  | AR58: =VLOOKUP(AR$37,CHART50,MATCH(AB$12,BENS50,0),FALSE) ->  | AW58: Plan Annuals-XX: | AX58: =VLOOKUP(AX$37,CHART50,MATCH(Z$12,BENS50,0),FALSE) ->  | AY58: =VLOOKUP(AY$37,CHART50,MATCH(AA$12,BENS50,0),FALSE) ->  | AZ58: =VLOOKUP(AZ$37,CHART50,MATCH(AB$12,BENS50,0),FALSE) -> 
A59: Ann.Yr/Age = 36-97 | B59: 200 | C59: $1,200/Week | D59: 50 | E59: $75/Visit | H59: 450 | I59: 120 | J59: 300 | K59: 200 | N59: 200 | O59: 150 | P59: 1020 | Q59: 765
A60: Ann.Yr/Age = 37-98 | Y60: TX-ROP-AGE-BAND: | Z60: =VLOOKUP(B9,TXAGERANGE,2,0) -> 60-64
A61: 0 | B61: =B9 -> 61 | C61: =CONCATENATE(A61,"-",B61) -> 0-61 | D61: =C9 -> 60 | E61: =CONCATENATE(A61,"-",D61) -> 0-60 | F61: =D9 -> 70 | G61: =CONCATENATE(A61,"-",F61) -> 0-70 | J61: =E9 -> 61 | K61: =CONCATENATE(A61,"-",J61) -> 0-61 | R61: =F9 -> 64 | S61: =CONCATENATE(A61,"-",R61) -> 0-64 | T61: =G9 -> 65 | U61: =CONCATENATE(A61,"-",T61) -> 0-65
A62: 1 | B62: =B61+1 -> 62 | C62: =CONCATENATE(A62,"-",B62) -> 1-62 | D62: =D61+1 -> 61 | E62: 1-61 | F62: =F61+1 -> 71 | G62: 1-71 | J62: =J61+1 -> 62 | K62: 1-62 | R62: =R61+1 -> 65 | S62: 1-65 | T62: =T61+1 -> 66 | U62: 1-66 | W62: these are new: | Y62: This is "FIRSTANNPREM" | AA62: col counts on this line… | AC62: 5 | AD62: 6 | AE62: 7 | AF62: 8 | AG62: 9 | AH62: 10 | AI62: 11 | AJ62: 12 | AK62: 13 | AL62: 14 | AM62: 15 | AN62: 16 | AO62: 17 | AP62: 18 | AQ62: 19 | AR62: 20 | AS62: 21 | AT62: 22 | AU62: 23 | AV62: 24 | AW62: 25 | AX62: 26 | AY62: 27 | AZ62: 28 | BA62: 29
A63: =A62+1 -> 2 | B63: =B62+1 -> 63 | C63: 2-63 | D63: =D62+1 -> 62 | E63: 2-62 | F63: =F62+1 -> 72 | G63: 2-72 | J63: =J62+1 -> 63 | K63: 2-63 | R63: =R62+1 -> 66 | S63: 2-66 | T63: =T62+1 -> 67 | U63: 2-67 | Y63: 50 | Z63: =Z39 ->  | AA63: =AA39 ->  | AB63: =AB39 -> 0 | AC63: =AC39 -> 0 | AH63: =AH39 ->  | AP63: =AP39 ->  | AX63: =AX39 -> 
A64: =A63+1 -> 3 | B64: 64 | C64: 3-64 | D64: 63 | E64: 3-63 | F64: 73 | G64: 3-73 | J64: 64 | K64: 3-64 | R64: 67 | S64: 3-67 | T64: 68 | U64: 3-68 | Y64: 55 | Z64: =Z40 ->  | AB64: 0 | AC64: 0
A65: 4 | B65: 65 | C65: 4-65 | D65: 64 | E65: 4-64 | F65: 74 | G65: 4-74 | J65: 65 | K65: 4-65 | R65: 68 | S65: 4-68 | T65: 69 | U65: 4-69 | Y65: 60 | AB65: 0 | AC65: 0
A66: 5 | B66: 66 | C66: 5-66 | D66: 65 | E66: 5-65 | F66: 75 | G66: 5-75 | J66: 66 | K66: 5-66 | R66: 69 | S66: 5-69 | T66: 70 | U66: 5-70 | Y66: 65 | AB66: 0 | AC66: 0
A67: 6 | B67: 67 | C67: 6-67 | D67: 66 | E67: 6-66 | F67: 76 | G67: 6-76 | J67: 67 | K67: 6-67 | R67: 70 | S67: 6-70 | T67: 71 | U67: 6-71 | Y67: SD | AB67: 0 | AC67: 0
A68: 7 | B68: 68 | C68: 7-68 | D68: 67 | E68: 7-67 | F68: 77 | G68: 7-77 | J68: 68 | K68: 7-68 | R68: 71 | S68: 7-71 | T68: 72 | U68: 7-72 | Y68: IN | AB68: 0 | AC68: 0
A69: 8 | B69: 69 | C69: 8-69 | D69: 68 | E69: 8-68 | F69: 78 | G69: 8-78 | J69: 69 | K69: 8-69 | R69: 72 | S69: 8-72 | T69: 73 | U69: 8-73 | Y69: KY | Z69: =Z53 ->  | AB69: 0 | AC69: 0 | AH69: =AH53 ->  | AP69: =AP53 ->  | AX69: =AX53 -> 
A70: 9 | B70: 70 | C70: 9-70 | D70: 69 | E70: 9-69 | F70: 79 | G70: 9-79 | J70: 70 | K70: 9-70 | R70: 73 | S70: 9-73 | T70: 74 | U70: 9-74 | Y70: KS | AB70: 0 | AC70: 0
A71: 10 | B71: 71 | C71: 10-71 | D71: 70 | E71: 10-70 | F71: 80 | G71: 10-80 | J71: =J70+1 -> 71 | K71: 10-71 | R71: 74 | S71: 10-74 | T71: 75 | U71: 10-75 | Y71: LA | Z71: =Z54 ->  | AB71: 0 | AC71: 0 | AH71: =AH54 ->  | AP71: =AP54 ->  | AX71: =AX54 -> 
A72: 11 | B72: 72 | C72: 11-72 | D72: 71 | E72: 11-71 | F72: =F71+1 -> 81 | G72: 11-81 | J72: 72 | K72: 11-72 | R72: 75 | S72: 11-75 | T72: 76 | U72: 11-76 | Y72: HI | AB72: 0 | AC72: 0
A73: 12 | B73: 73 | C73: 12-73 | D73: =D72+1 -> 72 | E73: 12-72 | F73: 82 | G73: 12-82 | J73: 73 | K73: 12-73 | R73: 76 | S73: 12-76 | T73: 77 | U73: 12-77 | Y73: MN | Z73: =Z56 ->  | AB73: 0 | AC73: 0
A74: 13 | B74: 74 | C74: 13-74 | D74: 73 | E74: 13-73 | F74: 83 | G74: 13-83 | J74: 74 | K74: 13-74 | R74: 77 | S74: 13-77 | T74: 78 | U74: 13-78
A75: 14 | B75: 75 | C75: 14-75 | D75: 74 | E75: 14-74 | F75: 84 | G75: 14-84 | J75: 75 | K75: 14-75 | R75: 78 | S75: 14-78 | T75: 79 | U75: 14-79
A76: 15 | B76: 76 | C76: 15-76 | D76: 75 | E76: 15-75 | F76: 85 | G76: 15-85 | J76: 76 | K76: 15-76 | R76: 79 | S76: 15-79 | T76: 80 | U76: 15-80
A77: 16 | B77: 77 | C77: 16-77 | D77: 76 | E77: 16-76 | F77: 86 | G77: 16-86 | J77: 77 | K77: 16-77 | R77: 80 | S77: 16-80 | T77: 81 | U77: 16-81
A78: 17 | B78: 78 | C78: 17-78 | D78: 77 | E78: 17-77 | F78: 87 | G78: 17-87 | J78: 78 | K78: 17-78 | R78: 81 | S78: 17-81 | T78: 82 | U78: 17-82
A79: 18 | B79: 79 | C79: 18-79 | D79: 78 | E79: 18-78 | F79: 88 | G79: 18-88 | J79: 79 | K79: 18-79 | R79: 82 | S79: 18-82 | T79: 83 | U79: 18-83
A80: 19 | B80: 80 | C80: 19-80 | D80: 79 | E80: 19-79 | F80: 89 | G80: 19-89 | J80: 80 | K80: 19-80 | R80: 83 | S80: 19-83 | T80: 84 | U80: 19-84
A81: 20 | B81: 81 | C81: 20-81 | D81: 80 | E81: 20-80 | F81: 90 | G81: 20-90 | J81: 81 | K81: 20-81 | R81: 84 | S81: 20-84 | T81: 85 | U81: 20-85
A82: 21 | B82: 82 | C82: 21-82 | D82: 81 | E82: 21-81 | F82: 91 | G82: 21-91 | J82: 82 | K82: 21-82 | R82: 85 | S82: 21-85 | T82: 86 | U82: 21-86
A83: 22 | B83: 83 | C83: 22-83 | D83: 82 | E83: 22-82 | F83: 92 | G83: 22-92 | J83: 83 | K83: 22-83 | R83: 86 | S83: 22-86 | T83: 87 | U83: 22-87
A84: 23 | B84: 84 | C84: 23-84 | D84: 83 | E84: 23-83 | F84: 93 | G84: 23-93 | J84: 84 | K84: 23-84 | R84: 87 | S84: 23-87 | T84: 88 | U84: 23-88
A85: 24 | B85: 85 | C85: 24-85 | D85: 84 | E85: 24-84 | F85: 94 | G85: 24-94 | J85: 85 | K85: 24-85 | R85: 88 | S85: 24-88 | T85: 89 | U85: 24-89
A86: 25 | B86: 86 | C86: 25-86 | D86: 85 | E86: 25-85 | F86: 95 | G86: 25-95 | J86: 86 | K86: 25-86 | R86: 89 | S86: 25-89 | T86: 90 | U86: 25-90
A87: 26 | B87: 87 | C87: 26-87 | D87: 86 | E87: 26-86 | F87: 96 | G87: 26-96 | J87: 87 | K87: 26-87 | R87: 90 | S87: 26-90 | T87: 91 | U87: 26-91
A88: 27 | B88: 88 | C88: 27-88 | D88: 87 | E88: 27-87 | F88: 97 | G88: 27-97 | J88: 88 | K88: 27-88 | R88: 91 | S88: 27-91 | T88: 92 | U88: 27-92
A89: 28 | B89: 89 | C89: 28-89 | D89: 88 | E89: 28-88 | F89: 98 | G89: 28-98 | J89: 89 | K89: 28-89 | R89: 92 | S89: 28-92 | T89: 93 | U89: 28-93
A90: 29 | B90: 90 | C90: 29-90 | D90: 89 | E90: 29-89 | F90: 99 | G90: 29-99 | J90: 90 | K90: 29-90 | R90: 93 | S90: 29-93 | T90: 94 | U90: 29-94
A91: 30 | B91: 91 | C91: 30-91 | D91: 90 | E91: 30-90 | F91: 100 | G91: 30-100 | J91: 91 | K91: 30-91 | R91: 94 | S91: 30-94 | T91: 95 | U91: 30-95
A92: 31 | B92: 92 | C92: 31-92 | D92: 91 | E92: 31-91 | F92: 101 | G92: 31-101 | J92: 92 | K92: 31-92 | R92: 95 | S92: 31-95 | T92: 96 | U92: 31-96
A93: 32 | B93: 93 | C93: 32-93 | D93: 92 | E93: =CONCATENATE(A93,"-",D93) -> 32-92 | F93: 102 | G93: =CONCATENATE(A93,"-",F93) -> 32-102 | J93: 93 | K93: =CONCATENATE(A93,"-",J93) -> 32-93 | R93: 96 | S93: =CONCATENATE(A93,"-",R93) -> 32-96 | T93: 97 | U93: =CONCATENATE(A93,"-",T93) -> 32-97
A94: 33 | B94: 94 | C94: 33-94 | D94: 93 | E94: 33-93 | F94: 103 | G94: 33-103 | J94: 94 | K94: 33-94 | R94: 97 | S94: 33-97 | T94: 98 | U94: 33-98
A95: 34 | B95: 95 | C95: 34-95 | D95: 94 | E95: 34-94 | F95: 104 | G95: 34-104 | J95: 95 | K95: 34-95 | R95: 98 | S95: 34-98 | T95: 99 | U95: 34-99
A96: 35 | B96: 96 | C96: 35-96 | D96: 95 | E96: 35-95 | F96: 105 | G96: 35-105 | J96: 96 | K96: 35-96 | R96: 99 | S96: 35-99 | T96: 100 | U96: 35-100
A97: 36 | B97: 97 | C97: 36-97 | D97: 96 | E97: 36-96 | F97: 106 | G97: 36-106 | J97: 97 | K97: 36-97 | R97: 100 | S97: 36-100 | T97: 101 | U97: 36-101
A98: 37 | B98: 98 | C98: 37-98 | D98: 97 | E98: 37-97 | F98: 107 | G98: 37-107 | J98: 98 | K98: 37-98 | R98: 101 | S98: 37-101 | T98: 102 | U98: 37-102
A99: 38 | B99: 99 | C99: 38-99 | D99: 98 | E99: 38-98 | F99: 108 | G99: 38-108 | J99: 99 | K99: 38-99 | R99: 102 | S99: 38-102 | T99: 103 | U99: 38-103
A100: 39 | B100: 100 | C100: 39-100 | D100: 99 | E100: 39-99 | F100: 109 | G100: 39-109 | J100: 100 | K100: 39-100 | R100: 103 | S100: 39-103 | T100: 104 | U100: 39-104
A101: 40 | B101: 101 | C101: 40-101 | D101: 100 | E101: 40-100 | F101: 110 | G101: 40-110 | J101: 101 | K101: 40-101 | R101: 104 | S101: 40-104 | T101: 105 | U101: 40-105
A102: 41 | B102: 102 | C102: 41-102 | D102: 101 | E102: 41-101 | F102: 111 | G102: 41-111 | J102: 102 | K102: 41-102 | R102: 105 | S102: 41-105 | T102: 106 | U102: 41-106
A103: 42 | B103: 103 | C103: 42-103 | D103: 102 | E103: 42-102 | F103: 112 | G103: 42-112 | J103: 103 | K103: 42-103 | R103: 106 | S103: 42-106 | T103: 107 | U103: 42-107
A104: 43 | B104: 104 | C104: 43-104 | D104: 103 | E104: 43-103 | F104: 113 | G104: 43-113 | J104: 104 | K104: 43-104 | R104: 107 | S104: 43-107 | T104: 108 | U104: 43-108
A105: 44 | B105: 105 | C105: 44-105 | D105: 104 | E105: 44-104 | F105: 114 | G105: 44-114 | J105: 105 | K105: 44-105 | R105: 108 | S105: 44-108 | T105: 109 | U105: 44-109
A106: 45 | B106: 106 | C106: 45-106 | D106: 105 | E106: 45-105 | F106: 115 | G106: 45-115 | J106: 106 | K106: 45-106 | R106: 109 | S106: 45-109 | T106: 110 | U106: 45-110
A107: 46 | B107: 107 | C107: 46-107 | D107: 106 | E107: 46-106 | F107: 116 | G107: 46-116 | J107: 107 | K107: 46-107 | R107: 110 | S107: 46-110 | T107: 111 | U107: 46-111
A108: 47 | B108: 108 | C108: 47-108 | D108: 107 | E108: 47-107 | F108: 117 | G108: 47-117 | J108: 108 | K108: 47-108 | R108: 111 | S108: 47-111 | T108: 112 | U108: 47-112
A109: 48 | B109: 109 | C109: 48-109 | D109: 108 | E109: 48-108 | F109: 118 | G109: 48-118 | J109: 109 | K109: 48-109 | R109: 112 | S109: 48-112 | T109: 113 | U109: 48-113
A110: 49 | B110: 110 | C110: 49-110 | D110: 109 | E110: 49-109 | F110: 119 | G110: 49-119 | J110: 110 | K110: 49-110 | R110: 113 | S110: 49-113 | T110: 114 | U110: 49-114
A111: 50 | B111: 111 | C111: 50-111 | D111: 110 | E111: 50-110 | F111: 120 | G111: 50-120 | J111: 111 | K111: 50-111 | R111: 114 | S111: 50-114 | T111: 115 | U111: 50-115
A112: 51 | B112: 112 | C112: 51-112 | D112: 111 | E112: 51-111 | F112: 121 | G112: 51-121 | J112: 112 | K112: 51-112 | R112: 115 | S112: 51-115 | T112: 116 | U112: 51-116
A113: 52 | B113: 113 | C113: 52-113 | D113: 112 | E113: 52-112 | F113: 122 | G113: 52-122 | J113: 113 | K113: 52-113 | R113: 116 | S113: 52-116 | T113: 117 | U113: 52-117
A114: 53 | B114: 114 | C114: 53-114 | D114: 113 | E114: 53-113 | F114: 123 | G114: 53-123 | J114: 114 | K114: 53-114 | R114: 117 | S114: 53-117 | T114: 118 | U114: 53-118
A115: 54 | B115: 115 | C115: 54-115 | D115: 114 | E115: 54-114 | F115: 124 | G115: 54-124 | J115: 115 | K115: 54-115 | R115: 118 | S115: 54-118 | T115: 119 | U115: 54-119
A116: 55 | B116: 116 | C116: 55-116 | D116: 115 | E116: 55-115 | F116: 125 | G116: 55-125 | J116: 116 | K116: 55-116 | R116: 119 | S116: 55-119 | T116: 120 | U116: 55-120
A117: 56 | B117: 117 | C117: 56-117 | D117: 116 | E117: 56-116 | F117: 126 | G117: 56-126 | J117: 117 | K117: 56-117 | R117: 120 | S117: 56-120 | T117: 121 | U117: 56-121
A118: 57 | B118: 118 | C118: 57-118 | D118: 117 | E118: 57-117 | F118: 127 | G118: 57-127 | J118: 118 | K118: 57-118 | R118: 121 | S118: 57-121 | T118: 122 | U118: 57-122
A119: 58 | B119: 119 | C119: 58-119 | D119: 118 | E119: 58-118 | F119: 128 | G119: 58-128 | J119: 119 | K119: 58-119 | R119: 122 | S119: 58-122 | T119: 123 | U119: 58-123
A120: 59 | B120: 120 | C120: 59-120 | D120: 119 | E120: 59-119 | F120: 129 | G120: 59-129 | J120: 120 | K120: 59-120 | R120: 123 | S120: 59-123 | T120: 124 | U120: 59-124
A121: 60 | B121: 121 | C121: 60-121 | D121: 120 | E121: 60-120 | F121: 130 | G121: 60-130 | J121: 121 | K121: 60-121 | R121: 124 | S121: 60-124 | T121: 125 | U121: 60-125
A122: 61 | B122: 122 | C122: 61-122 | D122: 121 | E122: 61-121 | F122: 131 | G122: 61-131 | J122: 122 | K122: 61-122 | R122: 125 | S122: 61-125 | T122: 126 | U122: 61-126
A123: 62 | B123: 123 | C123: 62-123 | D123: 122 | E123: 62-122 | F123: 132 | G123: 62-132 | J123: 123 | K123: 62-123 | R123: 126 | S123: 62-126 | T123: 127 | U123: 62-127
A124: 63 | B124: 124 | C124: 63-124 | D124: 123 | E124: 63-123 | F124: 133 | G124: 63-133 | J124: 124 | K124: 63-124 | R124: 127 | S124: 63-127 | T124: 128 | U124: 63-128
A125: 64 | B125: 125 | C125: 64-125 | D125: 124 | E125: =CONCATENATE(A125,"-",D125) -> 64-124 | F125: 134 | G125: =CONCATENATE(A125,"-",F125) -> 64-134 | J125: 125 | K125: =CONCATENATE(A125,"-",J125) -> 64-125 | R125: 128 | S125: =CONCATENATE(A125,"-",R125) -> 64-128 | T125: 129 | U125: =CONCATENATE(A125,"-",T125) -> 64-129
A126: 65 | B126: 126 | C126: =CONCATENATE(A126,"-",B126) -> 65-126 | D126: 125 | E126: 65-125 | F126: 135 | G126: 65-135 | J126: 126 | K126: 65-126 | R126: 129 | S126: 65-129 | T126: 130 | U126: 65-130
A127: 66 | B127: =B126+1 -> 127 | C127: 66-127 | D127: 126 | E127: 66-126 | F127: 136 | G127: 66-136 | J127: 127 | K127: 66-127 | R127: =R126+1 -> 130 | S127: 66-130 | T127: =T126+1 -> 131 | U127: 66-131
A128: =A127+1 -> 67 | B128: 128 | C128: 67-128 | D128: 127 | E128: 67-127 | F128: 137 | G128: 67-137 | J128: 128 | K128: 67-128 | R128: 131 | S128: 67-131 | T128: 132 | U128: 67-132
A129: 68 | B129: 129 | C129: 68-129 | D129: 128 | E129: 68-128 | F129: 138 | G129: 68-138 | J129: 129 | K129: 68-129 | R129: 132 | S129: 68-132 | T129: 133 | U129: 68-133
A130: 69 | B130: 130 | C130: 69-130 | D130: 129 | E130: 69-129 | F130: 139 | G130: 69-139 | J130: 130 | K130: 69-130 | R130: 133 | S130: 69-133 | T130: 134 | U130: 69-134
A131: 70 | B131: 131 | C131: 70-131 | D131: 130 | E131: 70-130 | F131: 140 | G131: 70-140 | J131: 131 | K131: 70-131 | R131: 134 | S131: 70-134 | T131: 135 | U131: 70-135
A132: 71 | B132: 132 | C132: 71-132 | D132: 131 | E132: 71-131 | F132: 141 | G132: 71-141 | J132: 132 | K132: 71-132 | R132: 135 | S132: 71-135 | T132: 136 | U132: 71-136

Sheet Quote-1or2Same
S3: Today's Date: | T3: =TODAY() -> 2023-01-14
A6: Underwritten by: Standard Life and Casualty Insurance Company | R6: AGENT- TYPE IN THE VALUES BELOW!
S7: 5
S8: ALTERNATE DATE?:
S9: AGENT NAME?: | T9: Tom Agent | AA9: ManhattanLife Lighthouse Series
A10: Benefit & Premium Illustration | AA10: OmniFlexTM Short-Term Care Plan
AA11: Underwritten by: Standard Life and Casualty Insurance Company
B13: Prepared by: | E13: Prepared for: | I13: Prepared On:
B14: =$T$9 -> Tom Agent | E14: =CONCATENATE(Input2!P7," ",Input2!P8) -> Bob Smith | G14: =IF(Input2!$P$16="Yes",(CONCATENATE(Input2!Q7," ",Input2!Q8)),"") -> Betty Smith | I14: =IF($T$8=0,$T$3,$T$8) -> 2023-01-14
E15: Age: | F15: =Input2!$P$9 -> 58 | G15: =IF(Input2!$P$16="Yes",Input2!$Q$9,"") -> 60
E16: State: | F16: =VLOOKUP(Input2!$P$6,OMNISTATECHART,2,FALSE) -> AL
A21: FACILITY CARE COVERAGE DETAILS
V22: OMNI
C23: t Description of Facility Benefits: | D23: =CONCATENATE("$",$V$35," Daily / ",$V$36," Benefit Period / ",$V$37," Elim. Period / Restoration") -> $400 Daily / 360 Day (w/5%) Benefit Period / 60 Day Elim. Period / Restoration | V23: AL
D24: of Benefits / 10 Days Bed Reservation (Lifetime Max. 20 Days)
V25: John
C26: On | D26: On 1st | E26: On 2nd | F26: On 3rd | G26: On 4th | H26: On 5th | I26: =IF($V$54="Yes","On 25th","On 10th") -> On 25th | V26: Prospect
C27: Effective | D27: Policy | E27: Policy | F27: Policy | G27: Policy | H27: Policy | I27: Policy
C28: Date | D28: Anniv. | E28: Anniv. | F28: Anniv. | G28: Anniv. | H28: Anniv. | I28: Anniv. | V28: OMNI
B29: Daily Indemnity Benefit: | C29: =VLOOKUP(($F$15+0),AetnaSTCCompare,4,FALSE) -> 200 | D29: =VLOOKUP(($F$15+1),AetnaSTCCompare,4,FALSE) -> 240 | E29: =VLOOKUP(($F$15+2),AetnaSTCCompare,4,FALSE) -> 280 | F29: =VLOOKUP(($F$15+3),AetnaSTCCompare,4,FALSE) -> 320 | G29: =VLOOKUP(($F$15+4),AetnaSTCCompare,4,FALSE) -> 360 | H29: =VLOOKUP(($F$15+5),AetnaSTCCompare,4,FALSE) -> 400 | I29: =IF($V$54="Yes",VLOOKUP(($F$15+25),AetnaSTCCompare,4,FALSE),VLOOKUP(($F$15+10),AetnaSTCCompare,4,FALSE)) -> 800 | V29: =Input2!P6 -> AL
V30: =Input2!P7 -> Bob
B31: Per Period Pool of Money: | C31: =VLOOKUP(($F$15+0),AetnaSTCCompare,5,FALSE) -> 72000 | D31: =VLOOKUP(($F$15+1),AetnaSTCCompare,5,FALSE) -> 86400 | E31: =VLOOKUP(($F$15+2),AetnaSTCCompare,5,FALSE) -> 100800 | F31: =VLOOKUP(($F$15+3),AetnaSTCCompare,5,FALSE) -> 115200 | G31: =VLOOKUP(($F$15+4),AetnaSTCCompare,5,FALSE) -> 129600 | H31: =VLOOKUP(($F$15+5),AetnaSTCCompare,5,FALSE) -> 144000 | I31: =IF($V$54="Yes",VLOOKUP(($F$15+25),AetnaSTCCompare,5,FALSE),VLOOKUP(($F$15+10),AetnaSTCCompare,5,FALSE)) -> 288000 | V31: =Input2!P8 -> Smith
V32: =Input2!P9 -> 58
V33: =Input2!P10 -> No
V34: =Input2!P11 -> 5%-FAC&HHC
B35: Lifetime Max. Facility Period: | C35: =CONCATENATE($V$48," Days -") -> 720 Days - | D35: =CONCATENATE("(Max. Lifetime Facility Pool of Money = ",$X$35,")") -> (Max. Lifetime Facility Pool of Money = $576,000) | V35: =Input2!P12 -> 400 | W35: =I31*2 -> 576000 | X35: =TEXT($W$35,"$#,##0;") -> $576,000
B36: Prescription Drug Benefit: | C36: $10 Generic / $25 Brand ($300 Per Policy Year Max.) | V36: =Input2!P13 -> 360 Day (w/5%)
B37: Fast-50TM Benefit: | C37: Waives Elimination Period & pays a first-day cash benefit equal to 50% | V37: =Input2!P14 -> 60 Day
C38: of your accumulated Daily Benefit. While it can be used for anything, | V38: =Input2!P15 -> Annual
C39: Fast-50TM is perfect for times when spouse, family or friends help out. | V39: =Input2!P16 -> Yes
B40: Bed Reservation Benefit: | C40: 10 Days (Lifetime Max. 20 Days) | V40: =Input2!P17 -> 300 | W40: =I57*2 -> 432000 | X40: =TEXT($W$40,"$#,##0;") -> $432,000
B41: Restoration of Benefits: | C41: Restores Facility Care or Home Health Care Benefits after the 180 day | V41: =Input2!P18 -> 360 Day (w/5%) | W41: =SUBSTITUTE(V41,"+","") -> 360 Day (w/5%)
C42: out of care need is satified (up to the lifetime max. benefit period) | V42: =Input2!P19 -> Zero Day
V43: =Input2!P20 -> 100
V44: =Input2!P21 -> 20 Days
A45: OPTIONAL BENEFIT DETAILS | V45: =VLOOKUP(Input2!P13,MANFACCHART,2,FALSE) -> 360+ | W45: =SUBSTITUTE(V45,"+","") -> 360
C47: t 5% Simple Inflation Protection?: | D47: =IF(AND($V$49="Yes",$V$54="Yes"),"Included for both Facility & Home Health Care Benefits",IF(AND($V$49="No",$V$54="Yes"),"Included for Facility Benefits",IF(AND($V$49="Yes",$V$54="No"),"5% Simple Inflation Protection Not Elected","Check"))) -> Included for both Facility & Home Health Care Benefits
V48: =W45*2 -> 720
C49: t Home Health Care Rider: | D49: =IF($V$49="No","No Home Health Care Rider Elected",CONCATENATE("$",$V$40," Daily / ",$V$41," Benefit Period / ",$V$42," Elim. Period / Restoration")) -> $300 Daily / 360 Day (w/5%) Benefit Period / Zero Day Elim. Period / Restoration | V49: =IF(OR($V$40<50,V41="0 Day"),"No","Yes") -> Yes | W49: HHC?
D50: of Benefits / Fast-50TM Benefit Included
C52: On | D52: On 1st | E52: On 2nd | F52: On 3rd | G52: On 4th | H52: On 5th | I52: =IF($V$54="Yes","On 25th","On 10th") -> On 25th | V52: =VLOOKUP(Input2!P18,MANFACCHART,2,FALSE) -> 360+ | W52: =SUBSTITUTE(V52,"+","") -> 360
C53: Effective | D53: Policy | E53: Policy | F53: Policy | G53: Policy | H53: Policy | I53: Policy | V53: =W52*2 -> 720
C54: Date | D54: Anniv. | E54: Anniv. | F54: Anniv. | G54: Anniv. | H54: Anniv. | I54: Anniv. | V54: =VsAetna1!E5 -> Yes | W54: Inflate?
B55: Daily Indemnity Benefit: | C55: =VLOOKUP(($F$15+0),AetnaSTCCompare,6,FALSE) -> 150 | D55: =VLOOKUP(($F$15+1),AetnaSTCCompare,6,FALSE) -> 180 | E55: =VLOOKUP(($F$15+2),AetnaSTCCompare,6,FALSE) -> 210 | F55: =VLOOKUP(($F$15+3),AetnaSTCCompare,6,FALSE) -> 240 | G55: =VLOOKUP(($F$15+4),AetnaSTCCompare,6,FALSE) -> 270 | H55: =VLOOKUP(($F$15+5),AetnaSTCCompare,6,FALSE) -> 300 | I55: =IF($V$54="Yes",VLOOKUP(($F$15+25),AetnaSTCCompare,6,FALSE),VLOOKUP(($F$15+10),AetnaSTCCompare,6,FALSE)) -> 600
B57: Per Period Pool of Money: | C57: =VLOOKUP(($F$15+0),AetnaSTCCompare,7,FALSE) -> 54000 | D57: =VLOOKUP(($F$15+1),AetnaSTCCompare,7,FALSE) -> 64800 | E57: =VLOOKUP(($F$15+2),AetnaSTCCompare,7,FALSE) -> 75600 | F57: =VLOOKUP(($F$15+3),AetnaSTCCompare,7,FALSE) -> 86400 | G57: =VLOOKUP(($F$15+4),AetnaSTCCompare,7,FALSE) -> 97200 | H57: =VLOOKUP(($F$15+5),AetnaSTCCompare,7,FALSE) -> 108000 | I57: =IF($V$54="Yes",VLOOKUP(($F$15+25),AetnaSTCCompare,7,FALSE),VLOOKUP(($F$15+10),AetnaSTCCompare,7,FALSE)) -> 216000 | V57: =IF(OR($V$43<50,$V44="0 Day"),"No","Yes") -> Yes | W57: HI Rider?
B60: Lifetime Max. HHC Period: | C60: =IF($V$49="No","No Home ",CONCATENATE($V$53," Days -")) -> 720 Days - | D60: =IF($V$49="No","Health Care Rider Elected",CONCATENATE("(Max. Lifetime HHC Pool of Money = ",$X$40,")")) -> (Max. Lifetime HHC Pool of Money = $432,000)
C62: t Hospital Indemnity Benefit Rider: | D62: =IF($V$57="No","No Hospital Indemnity Rider Elected",CONCATENATE("$",$V$43," Daily / ",$V$44," Benefit Period / ","Zero Day Elim. Period")) -> $100 Daily / 20 Days Benefit Period / Zero Day Elim. Period
B64: Lifetime Max. HI Period: | C64: =IF($V$57="No","No Hospital Indemnity Rider Elected","180 Days") -> 180 Days
A67: MODAL PREMIUM FOR THESE CHOICES*: | F67: =Input2!P4 -> 2136.51 | G67: =Input2!P15 -> Annual | H67: =IF(Input2!$P$16="Yes",STCRate7!$G$98,"") -> 4595.76 | I67: =IF(Input2!$P$16="Yes","With Partner","") -> With Partner
A68: * Premium shown does not include a one-time $25 policy fee per insured. | H68: =IF(Input2!$P$16="Yes",(CONCATENATE("(Partner Premium is $",STCRate7!$G$97,")")),"") -> (Partner Premium is $2459.25)
A71: IMPORTANT: This illustration does not constitute coverage & only provides a brief overview of the available benefits of the OmniFlexTM Short-Term
A72: Care insurance plan. Your agent/producer will provide you with an outline of coverage that includes complete details.

Sheet Notes
B1: THIS PAGE SHOWS NOTES FOR SPECIAL SITUATIONS. FOR SPECIFIC NOTES FROM QUOTES ON "Input2," LOOK FOR RED FILL BELOW.
B2: AETNA RECOVERY CARE | F2: GTL RECOVER CASH | J2: GTL ST HHC | N2: OMNIFLEX STC
A3: =Input2!B6 -> GA | B3: =LEFT(A3,2) -> GA | F3: =LEFT(G3,2) -> FL | G3: =Input2!D6 -> FL-None | J3: =LEFT(K3,2) -> DE | K3: =Input2!H6 -> DE-Note | N3: =LEFT(O3,2) -> AL | O3: =Input2!P6 -> AL
B4: STATE | C4: PLAN | D4: NOTE(S) | F4: STATE | G4: PLAN | H4: NOTE(S) | J4: STATE | K4: PLAN | L4: NOTE(S) | N4: STATE | O4: PLAN | P4: NOTE(S)
B5: AL | C5: AETNA STC | D5: No 100 day Elim. | F5: AZ | G5: GTL STC | H5: No Product Available | J5: CA | K5: GTL ST HHC | L5: No Product Available | N5: AK | O5: OmniFlex | P5: No Prod. as of 12/31/22
B6: AK | C6: AETNA STC | D6: No Product Available | F6: CA | G6: GTL STC | H6: No Product Available | J6: CO | K6: GTL ST HHC | L6: No Crit. Accident Rider; No D/V Rider | N6: CA | O6: OmniFlex | P6: No Prod. as of 12/31/22
B7: AZ | C7: AETNA STC | D7: 0,13,26,39 &52 Wks HHC | F7: CO | G7: GTL STC | H7: No Product Available | J7: CT | K7: GTL ST HHC | L7: No Product Available | N7: CO | O7: OmniFlex | P7: Approved, but not avail. as of 12/31/22
B8: CA | C8: AETNA STC | D8: No Product Available | F8: CT | G8: GTL STC | H8: Diff. Rates; 1 Ben. ($50-$300) & 1 Ben. Period (100, 200 or 300 Days); No ROB; | J8: DE | K8: GTL ST HHC | L8: No Crit. Accident Rider; | N8: CT | O8: OmniFlex | P8: No Prod. as of 12/31/22
B9: CT | C9: AETNA STC | D9: No Product Available | F9: FL | G9: GTL STC | H9: No Product Available | J9: DC | K9: GTL ST HHC | L9: No D/V Rider | N9: DE | O9: OmniFlex | P9: No Prod. as of 12/31/22
B10: DE | C10: AETNA STC | D10: 0,13,26,39 &52 Wks HHC | F10: HI | G10: GTL STC | H10: No Product Available | J10: FL | K10: GTL ST HHC | L10: No Product Available | N10: DC | O10: OmniFlex | P10: No Prod. as of 12/31/22
B11: DC | C11: AETNA STC | D11: Not listed…MD maybe? | F11: ID | G11: GTL STC | H11: Max. of 180 Days; No Inflation Avail. | J11: GA | K11: GTL ST HHC | L11: No D/V Rider | N11: FL | O11: OmniFlex | P11: No Prod. as of 12/31/22
B12: FL | C12: AETNA STC | D12: No Product Available | F12: IN | G12: GTL STC | H12: No Product Available | J12: ID | K12: GTL ST HHC | L12: 280 Day Max. Ben.; 100 Day Aide; No D/V Rider; Acc/Sick has Addn'l $40/day for remain of 31 days. | N12: HI | O12: OmniFlex | P12: No Prod. as of 12/31/22
B13: HI | C13: AETNA STC | D13: No Product Available | F13: KS | G13: GTL STC | H13: No Product Available | J13: KY | K13: GTL ST HHC | L13: Plan B & C Only; No Rx Ben.; ONLY ROP Rider Avail. | N13: ID | O13: OmniFlex | P13: No Prod. as of 12/31/22
B14: ID | C14: AETNA STC | D14: 0 Elim. On ALL; FAC= 90, 180, & 270 Day; HHC = 0,13,26,39 Wks; 31 Days HI/Period (365 ttl) | F14: KY | G14: GTL STC | H14: Diff. Rates (60% Loss Ratio), rates about 91-92% of rates shown. | J14: ME | K14: GTL ST HHC | L14: No Product Available | N14: IL | O14: OmniFlex | P14: No Prod. as of 12/31/22
B15: IN | C15: AETNA STC | D15: 0,13,26,39 &52 Wks HHC | F15: ME | G15: GTL STC | H15: No Product Available | J15: MD | K15: GTL ST HHC | L15: No Crit. Accident, D/V, or ROP Riders Avail. | N15: IN | O15: OmniFlex | P15: No Prod. as of 12/31/22
B16: KS | C16: AETNA STC | D16: No Product Available | F16: MD | G16: GTL STC | H16: No Product Available | J16: MA | K16: GTL ST HHC | L16: No Product Available | N16: IA | O16: OmniFlex | P16: No Prod. as of 12/31/22
B17: ME | C17: AETNA STC | D17: No Product Available | F17: MA | G17: GTL STC | H17: No Product Available | J17: MN | K17: GTL ST HHC | L17: No Product Available | N17: KS | O17: OmniFlex | P17: No Prod. as of 12/31/22
B18: MA | C18: AETNA STC | D18: No Product Available | F18: MN | G18: GTL STC | H18: No Product Available | J18: MO | K18: GTL ST HHC | L18: No D/V Rider | N18: KY | O18: OmniFlex | P18: No Prod. as of 12/31/22
B19: MN | C19: AETNA STC | D19: No Product Available | F19: MO | G19: GTL STC | H19: Max. of 340 Days (uses 360 Day Rates) | J19: MT | K19: GTL ST HHC | L19: No Crit. Accident Rider | N19: ME | O19: OmniFlex | P19: No Prod. as of 12/31/22
B20: MO | C20: AETNA STC | D20: No Hospital Indemnity | F20: NH | G20: GTL STC | H20: Max. of 180 Days. | J20: NH | K20: GTL ST HHC | L20: No Product Available | N20: MD | O20: OmniFlex | P20: No Prod. as of 12/31/22
B21: NH | C21: AETNA STC | D21: No Product Available | F21: NJ | G21: GTL STC | H21: No Product Available | J21: NJ | K21: GTL ST HHC | L21: No Product Available | N21: MA | O21: OmniFlex | P21: No Prod. as of 12/31/22
B22: NJ | C22: AETNA STC | D22: No Product Available | F22: NC | G22: GTL STC | H22: Diff. Rates - about 105% of rates shown. | J22: NM | K22: GTL ST HHC | L22: No Product Available | N22: MI | O22: OmniFlex | P22: No Prod. as of 12/31/22
B23: NM | C23: AETNA STC | D23: No Product Available | F23: ND | G23: GTL STC | H23: No Product Available | J23: NY | K23: GTL ST HHC | L23: No Product Available | N23: MN | O23: OmniFlex | P23: No Prod. as of 12/31/22
B24: NY | C24: AETNA STC | D24: No Product Available | F24: NY | G24: GTL STC | H24: No Product Available | J24: NC | K24: GTL ST HHC | L24: No Pre-Existing Cond. Age 65+ | N24: MO | O24: OmniFlex | P24: Approved, but not avail. as of 12/31/22
B25: ND | C25: AETNA STC | D25: No Product Available | F25: PA | G25: GTL STC | H25: No Restoration of Benefits | J25: ND | K25: GTL ST HHC | L25: No Product Available | N25: MT | O25: OmniFlex | P25: No Prod. as of 12/31/22
B26: OH | C26: AETNA STC | D26: 0,13,26 & 51 Wks HHC | F26: SD | G26: GTL STC | H26: No Product Available | J26: OR | K26: GTL ST HHC | L26: No D/V Rider | N26: NE | O26: OmniFlex | P26: Approved, but not avail. as of 12/31/22
B27: PA | C27: AETNA STC | D27: No Product Available | F27: TN | G27: GTL STC | H27: No Restoration of Benefits | J27: PA | K27: GTL ST HHC | L27: No ROP Rider; Acc/Sick has Addn'l $15/day for remain of 31 days | N27: NV | O27: OmniFlex | P27: No Prod. as of 12/31/22
B28: SC | C28: AETNA STC | D28: 0,13,26,39 &52 Wks HHC | F28: TX | G28: GTL STC | H28: No Product Available | J28: TN | K28: GTL ST HHC | L28: No Crit. Accident, D/V, or ROP Riders Avail. | N28: NH | O28: OmniFlex | P28: No Prod. as of 12/31/22
B29: TX | C29: AETNA STC | D29: No HHC; At least $20 HI; 31 Days HI/Period (365 ttl) | F29: VT | G29: GTL STC | H29: No Product Available | J29: TX | K29: GTL ST HHC | L29: No Restoration; No ROP Rider; Acc/Sick has Addn'l $15/day for remain of 31 days | N29: NJ | O29: OmniFlex | P29: No Prod. as of 12/31/22
B30: UT | C30: AETNA STC | D30: Min $50 HI Daily, 31 Days HI (365 Ttl HI) | F30: WA | G30: GTL STC | H30: No Product Available | J30: UT | K30: GTL ST HHC | L30: Acc/Sick Rider has ONLY 10 Day option | N30: NM | O30: OmniFlex | P30: No Prod. as of 12/31/22
B31: VT | C31: AETNA STC | D31: No Product Available | F31: WI | G31: GTL STC | H31: No Product Available | J31: VT | K31: GTL ST HHC | L31: No Product Available | N31: NY | O31: OmniFlex | P31: No Prod. as of 12/31/22
B32: VA | C32: AETNA STC | D32: No Product Available | J32: VA | K32: GTL ST HHC | L32: No Product Available | N32: ND | O32: OmniFlex | P32: Approved, but not avail. as of 12/31/22
B33: WA | C33: AETNA STC | D33: No Product Available | J33: WA | K33: GTL ST HHC | L33: No Product Available | N33: OH | O33: OmniFlex | P33: Approved, but not avail. as of 1/02/23
J34: WI | K34: GTL ST HHC | L34: No Product Available | N34: OR | O34: OmniFlex | P34: No Prod. as of 12/31/22
J35: WY | K35: GTL ST HHC | L35: No Crit. Accident Rider | N35: PA | O35: OmniFlex | P35: No Prod. as of 12/31/22
N36: RI | O36: OmniFlex | P36: No Prod. as of 12/31/22
N37: TX | O37: OmniFlex | P37: Special HI Rates
N38: UT | O38: OmniFlex | P38: No Prod. as of 12/31/22
N39: VT | O39: OmniFlex | P39: No Prod. as of 12/31/22
N40: VA | O40: OmniFlex | P40: No Prod. as of 12/31/22
N41: WA | O41: OmniFlex | P41: No Prod. as of 12/31/22
N42: WV | O42: OmniFlex | P42: No Prod. as of 12/31/22
N43: WI | O43: OmniFlex | P43: No Prod. as of 12/31/22

Sheet Compare (hidden)
C3: Aetna Recover Cash STC | D3: GTL Recovery Cash STC - EXISTING | E3: GTL Recovery Cash STC - NEW | F3: ManhattanLife (Std Life) Omni-Flex STC | G3: New Medico STC | H3: GTL Critical Cash | I3: GTL Home Care Secure | J3: Aetna HHC+ | K3: GTL Short-Term HHC | L3: True Freedom Home Care Plans
B4: Issue Ages | C4: 50-89 | D4: 40-84 | F4: 45-89 | G4: 50-85 | H4: 18-84 | I4: 45-89 | J4: 50-89 | K4: 61-85 | L4: 18-99
B5: Top Comp
B6: Current State Avail. | C6: AL, AZ, AR, CO, DE, GA, ID, IL, IN, IA, KY, LA, MD, MI, MS, MO, MT, NE, NV, NC, OH, OK, OR, RI, SC, TN, TX, UT, WV, WI, WY | D6: AL, AK, AR, CT, DE, DC, GA, ID, IL, IA, KY, LA, MI, MS, MO, MT, NE, NV, NH, NM, NC, OH, OK, OR, PA, RI, SC, TN, VA, WV, WY | E6: TBD - Probably Same | F6: As of 12/28/2022: AL, AZ, AR, GA, LA, MS, NC, OK, SC, SD, TN, TX, WY (*CO, NE very soon… MO & ND soon, then more to come) | G6: TBD | H6: AL, AK, AZ, AR, CO, DE, DC, HI, ID, IL, IN, IA, KS, KY, LA, ME, MD, MI, MN, MS, MO, MT, NE, NV, NJ, NM, NC, ND, OH, OK, OR, SC, SD, TN, TX, WA, WV, WI, WY | I6: AL, AZ, AR, CO, GA, IL, IN, IA, KS, KY, LA, MI, MS, MO, NE, NC, OH, OK, PA, SC, TN, TX | J6: AL, AZ, AR, DE, GA, ID, IL, IN, IA, KY, LA, MI, MS, MO, MT, NE, NV, NM, NC, OH, OK, OR, PA, RI, SC, TN, TX, UT, WV, WI, WY | K6: AL, AK, AZ, AR, CO, DE, DC, GA, HI, ID, IL, IN, IA, KS, KY, LA, MD, MI, MS, MO, MT, NE, NV, NC, OH, OK, OR, PA, RI, SC, SD, TN, TX, WV, WY | L6: All 50 States
B7: Broad Design Format | C7: Facility & HI, with HHC Rider | D7: Facility with HHC Rider | E7: Facility with HHC Rider | F7: Facility with HHC Rider | G7: HHC with Facility Rider | H7: Critical Illness - Lump Sum HHC, with Facility too | I7: Home Care Only | J7: Home Care & HI with Riders | K7: Home Care Only, with Riders | L7: Basically a non-underwritten pre-paid Home Care Plan
B8: Facility Benefits
B9: Hospital Indemnity Benefits
B10: Medical Home Health Benefits
B11: Non-Medical (HH Aide-type) Benefits
B12: Inflation Protection
B13: Cash for Spouse, Family, Friends?
B14: Other Riders Avail.
B15: Restoration?
B17: Underwriting Leniency
B21: Important Design Notes

Sheet Omni Quote2 (hidden)
S3: Today's Date: | T3: =TODAY() -> 2023-01-14
A6: Underwritten by: Standard Life and Casualty Insurance Company | R6: AGENT- TYPE IN THE VALUES BELOW!
S7: 5
S8: ALTERNATE DATE?:
S9: AGENT NAME?: | T9: Michael Johnson | AA9: ManhattanLife Lighthouse Series
A10: Benefit & Premium Illustration | AA10: OmniFlexTM Short-Term Care Plan
AA11: Underwritten by: Standard Life and Casualty Insurance Company
B13: Prepared by: | E13: Prepared for: | I13: Prepared On:
B14: =$T$9 -> Michael Johnson | E14: =CONCATENATE(Input2!P7," ",Input2!P8) -> Bob Smith | I14: =IF($T$8=0,$T$3,$T$8) -> 2023-01-14
E15: Age: | F15: =Input2!P9 -> 58
E16: State: | F16: =Input2!P6 -> AL
A21: FACILITY CARE COVERAGE DETAILS
V22: OMNI
C23: Description of Facility Benefits: | D23: =CONCATENATE("$",$V$34," Daily / ",$V$35," Benefit Period / ",$V$36," Elim. Period") -> $400 Daily / 360 Day (w/5%) Benefit Period / 60 Day Elim. Period | V23: AL
V24: John
C25: On | D25: On 1st | E25: On 2nd | F25: On 3rd | G25: On 4th | H25: On 5th | I25: =IF($V$52="Yes","On 25th","On 10th") -> On 25th | V25: Prospect
C26: Effective | D26: Policy | E26: Policy | F26: Policy | G26: Policy | H26: Policy | I26: Policy
C27: Date | D27: Anniv. | E27: Anniv. | F27: Anniv. | G27: Anniv. | H27: Anniv. | I27: Anniv. | V27: OMNI
B28: Daily Indemnity Benefit: | C28: =VLOOKUP(($F$15+0),AetnaSTCCompare,4,FALSE) -> 200 | D28: =VLOOKUP(($F$15+1),AetnaSTCCompare,4,FALSE) -> 240 | E28: =VLOOKUP(($F$15+2),AetnaSTCCompare,4,FALSE) -> 280 | F28: =VLOOKUP(($F$15+3),AetnaSTCCompare,4,FALSE) -> 320 | G28: =VLOOKUP(($F$15+4),AetnaSTCCompare,4,FALSE) -> 360 | H28: =VLOOKUP(($F$15+5),AetnaSTCCompare,4,FALSE) -> 400 | I28: =IF($V$52="Yes",VLOOKUP(($F$15+25),AetnaSTCCompare,4,FALSE),VLOOKUP(($F$15+10),AetnaSTCCompare,4,FALSE)) -> 800 | V28: =Input2!P6 -> AL
V29: =Input2!P7 -> Bob
B30: Per Period Pool of Money: | C30: =VLOOKUP(($F$15+0),AetnaSTCCompare,5,FALSE) -> 72000 | D30: =VLOOKUP(($F$15+1),AetnaSTCCompare,5,FALSE) -> 86400 | E30: =VLOOKUP(($F$15+2),AetnaSTCCompare,5,FALSE) -> 100800 | F30: =VLOOKUP(($F$15+3),AetnaSTCCompare,5,FALSE) -> 115200 | G30: =VLOOKUP(($F$15+4),AetnaSTCCompare,5,FALSE) -> 129600 | H30: =VLOOKUP(($F$15+5),AetnaSTCCompare,5,FALSE) -> 144000 | I30: =IF($V$52="Yes",VLOOKUP(($F$15+25),AetnaSTCCompare,5,FALSE),VLOOKUP(($F$15+10),AetnaSTCCompare,5,FALSE)) -> 288000 | V30: =Input2!P8 -> Smith
V31: =Input2!P9 -> 58
V32: =Input2!P10 -> No
V33: =Input2!P11 -> 5%-FAC&HHC
B34: Lifetime Max. Facility Period: | C34: =CONCATENATE($V$47," Days -") -> 720 Days - | D34: =CONCATENATE("(Max. Lifetime Facility Pool of Money = ",$X$34,")") -> (Max. Lifetime Facility Pool of Money = $576,000) | V34: =Input2!P12 -> 400 | W34: =I30*2 -> 576000 | X34: =TEXT($W$34,"$#,##0;") -> $576,000
B35: Prescription Drug Benefit: | C35: $10 Generic / $25 Brand ($300 Per Policy Year Max.) | V35: =Input2!P13 -> 360 Day (w/5%)
B36: Fast-50TM Benefit: | C36: Waives Elimination Period & pays a first-day cash benefit equal to 50% | V36: =Input2!P14 -> 60 Day
C37: of your accumulated Daily Benefit. While it can be used for anything, | V37: =Input2!P15 -> Annual
C38: Fast-50TM is perfect for times when spouse, family or friends help out. | V38: =Input2!P16 -> Yes
B39: Bed Reservation Benefit: | C39: 10 Days (Lifetime Max. 20 Days) | V39: =Input2!P17 -> 300 | W39: =I55*2 -> 432000 | X39: =TEXT($W$39,"$#,##0;") -> $432,000
B40: Restoration of Benefits: | C40: Restores Facility Care or Home Health Care Benefits after the 180 day | V40: =Input2!P18 -> 360 Day (w/5%) | W40: =SUBSTITUTE(V40,"+","") -> 360 Day (w/5%)
C41: out of care need is satified (up to the lifetime max. benefit period) | V41: =Input2!P19 -> Zero Day
V42: =Input2!P20 -> 100
V43: =Input2!P21 -> 20 Days
A44: OPTIONAL BENEFIT DETAILS | V44: =VLOOKUP(Input2!P13,MANFACCHART,2,FALSE) -> 360+ | W44: =SUBSTITUTE(V44,"+","") -> 360
C46: 5% Simple Inflation Protection?: | D46: =IF(AND($V$48="Yes",$V$52="Yes"),"Included for both Facility & Home Health Care Benefits",IF(AND($V$48="No",$V$52="Yes"),"Included for Facility Benefits",IF(AND($V$48="Yes",$V$52="No"),"5% Simple Inflation Protection Not Elected","Check"))) -> Included for both Facility & Home Health Care Benefits
V47: =W44*2 -> 720
C48: Home Health Care Rider: | D48: =IF($V$48="No","No Home Health Care Rider Elected",CONCATENATE("$",$V$39," Daily / ",$V$40," Benefit Period / ",$V$41," Elim. Period")) -> $300 Daily / 360 Day (w/5%) Benefit Period / Zero Day Elim. Period | V48: =IF(OR($V$39<50,V40="0 Day"),"No","Yes") -> Yes | W48: HHC?
C50: On | D50: On 1st | E50: On 2nd | F50: On 3rd | G50: On 4th | H50: On 5th | I50: =IF($V$52="Yes","On 25th","On 10th") -> On 25th | V50: =VLOOKUP(Input2!P18,MANFACCHART,2,FALSE) -> 360+ | W50: =SUBSTITUTE(V50,"+","") -> 360
C51: Effective | D51: Policy | E51: Policy | F51: Policy | G51: Policy | H51: Policy | I51: Policy | V51: =W50*2 -> 720
C52: Date | D52: Anniv. | E52: Anniv. | F52: Anniv. | G52: Anniv. | H52: Anniv. | I52: Anniv. | V52: =VsAetna1!E5 -> Yes | W52: Inflate?
B53: Daily Indemnity Benefit: | C53: =VLOOKUP(($F$15+0),AetnaSTCCompare,6,FALSE) -> 150 | D53: =VLOOKUP(($F$15+1),AetnaSTCCompare,6,FALSE) -> 180 | E53: =VLOOKUP(($F$15+2),AetnaSTCCompare,6,FALSE) -> 210 | F53: =VLOOKUP(($F$15+3),AetnaSTCCompare,6,FALSE) -> 240 | G53: =VLOOKUP(($F$15+4),AetnaSTCCompare,6,FALSE) -> 270 | H53: =VLOOKUP(($F$15+5),AetnaSTCCompare,6,FALSE) -> 300 | I53: =IF($V$52="Yes",VLOOKUP(($F$15+25),AetnaSTCCompare,6,FALSE),VLOOKUP(($F$15+10),AetnaSTCCompare,6,FALSE)) -> 600
B55: Per Period Pool of Money: | C55: =VLOOKUP(($F$15+0),AetnaSTCCompare,7,FALSE) -> 54000 | D55: =VLOOKUP(($F$15+1),AetnaSTCCompare,7,FALSE) -> 64800 | E55: =VLOOKUP(($F$15+2),AetnaSTCCompare,7,FALSE) -> 75600 | F55: =VLOOKUP(($F$15+3),AetnaSTCCompare,7,FALSE) -> 86400 | G55: =VLOOKUP(($F$15+4),AetnaSTCCompare,7,FALSE) -> 97200 | H55: =VLOOKUP(($F$15+5),AetnaSTCCompare,7,FALSE) -> 108000 | I55: =IF($V$52="Yes",VLOOKUP(($F$15+25),AetnaSTCCompare,7,FALSE),VLOOKUP(($F$15+10),AetnaSTCCompare,7,FALSE)) -> 216000 | V55: =IF(OR($V$42<50,$V43="0 Day"),"No","Yes") -> Yes | W55: HI Rider?
B58: Lifetime Max. HHC Period: | C58: =IF($V$48="No","No Home ",CONCATENATE($V$51," Days -")) -> 720 Days - | D58: =IF($V$48="No","Health Care Rider Elected",CONCATENATE("(Max. Lifetime HHC Pool of Money = ",$X$39,")")) -> (Max. Lifetime HHC Pool of Money = $432,000)
B59: Fast-50TM Benefit: | C59: =IF($V$48="No","No Home Health Care Rider Elected","Included") -> Included
C61: Hospital Indemnity Benefit Rider: | D61: =IF($V$55="No","No Hospital Indemnity Rider Elected",CONCATENATE("$",$V$42," Daily / ",$V$43," Benefit Period / ","Zero Day Elim. Period")) -> $100 Daily / 20 Days Benefit Period / Zero Day Elim. Period
B63: Lifetime Max. HI Period: | C63: =IF($V$55="No","No Hospital Indemnity Rider Elected","180 Days") -> 180 Days
A66: MODAL PREMIUM FOR THESE CHOICES*: | F66: =Input2!P4 -> 2136.51 | G66: =Input2!P15 -> Annual
A67: * Premium does not include a one-time $25 policy fee.
A70: IMPORTANT: This illustration does not constitute coverage & only provides a brief overview of the available benefits of the OmniFlexTM Short-Term
A71: Care insurance plan. Your agent/producer will provide you with an outline of coverage that includes complete details.

Sheet STCCALC1 (hidden)
A1: This Is "STCSTATE" and "STCSTATECHART" | F1: This Is "STCAGE" and "STCAGERANGE" | J1: This Is "STCTOBACCO" | P1: This is "FACELIM" and "FACELIMCHART" | U1: This Is "STCPLANS" and "STCPLANSCHART"
A2: AL | B2: GoldenCare USA | C2: 50 | D2: YES | F2: 18 | G2: 18-29 | J2: No | P2: Zero Day | Q2: 0
A3: AK | B3: AIM | C3: 50 | D3: YES | F3: =F2+1 -> 19 | G3: 18-29 | J3: Yes | P3: 20 Day | Q3: 20 | U3: A - 5%S-(200%) | V3: A
A4: AR | B4: AIM | C4: 65 | D4: YES | F4: =F3+1 -> 20 | G4: 18-29 | P4: 30 Day | Q4: 30
A5: AZ | B5: AIM | C5: 55 | D5: YES | F5: 21 | G5: 18-29 | P5: 60 Day | Q5: 60 | U5: D - No Extend | V5: D
A6: CA | B6: AIM | C6: 60 | D6: YES | F6: 22 | G6: 18-29 | P6: 90 Day | Q6: 90
A7: CO | B7: AIM | C7: 60 | D7: YES | F7: 23 | G7: 18-29 | J7: This is "DAYBENS" and "DAYBENSCHART" | P7: 100 Day | Q7: 100
A8: CT | B8: GoldenCare USA | C8: TBD | D8: YES | F8: 24 | G8: 18-29 | J8: 0 | K8: 0 | L8: 0 | M8: 0 | N8: 0
A9: DE | B9: GoldenCare USA | C9: 50 | D9: YES | F9: 25 | G9: 18-29 | J9: 10 | K9: 10 | L9: =K9*0.5 -> 5 | M9: =K9+L9 -> 15 | N9: =K9*2 -> 20 | P9: This is "HHCELIM" and "HHCELIMCHART"
A10: DC | B10: GoldenCare USA | C10: 50 | D10: YES | F10: 26 | G10: 18-29 | J10: =J9+10 -> 20 | K10: =K9+10 -> 20 | L10: =K10*0.5 -> 10 | M10: =K10+L10 -> 30 | N10: =K10*2 -> 40 | P10: Zero Day | Q10: 0
A11: FL | B11: GoldenCare USA | C11: 60 | D11: YES | F11: 27 | G11: 18-29 | J11: =J10+10 -> 30 | K11: 30 | L11: 15 | M11: 45 | N11: 60 | P11: 20 Day | Q11: 20
A12: GA | B12: GoldenCare USA | C12: 50 | D12: YES | F12: 28 | G12: 18-29 | J12: 40 | K12: 40 | L12: 20 | M12: 60 | N12: 80 | P12: 30 Day | Q12: 30
A13: HI | B13: AIM | C13: HI | D13: YES | F13: 29 | G13: 18-29 | J13: 50 | K13: 50 | L13: 25 | M13: 75 | N13: 100 | P13: 60 Day | Q13: 60 | U13: This is "MODE" and "MODECHART"
A14: ID | B14: AIM | C14: 50 | D14: YES | F14: 30 | G14: 30-39 | J14: 60 | K14: 60 | L14: 30 | M14: 90 | N14: 120 | P14: 90 Day | Q14: 90 | U14: Monthly | V14: 0.09 | W14: 0.08333
A15: IL | B15: GoldenCare USA | C15: 50 | D15: YES | F15: 31 | G15: 30-39 | J15: 70 | K15: 70 | L15: 35 | M15: 105 | N15: 140 | U15: Quarterly | V15: 0.265 | W15: 0.25
A16: IN | B16: GoldenCare USA | C16: IN | D16: YES | F16: 32 | G16: 30-39 | J16: 80 | K16: 80 | L16: 40 | M16: 120 | N16: 160 | U16: Semi-Annual | V16: 0.52 | W16: 0.5
A17: IA | B17: GoldenCare USA | C17: 50 | D17: YES | F17: 33 | G17: 30-39 | J17: 90 | K17: 90 | L17: 45 | M17: 135 | N17: 180 | P17: This is "STCFAC" and "STCFACCHART" | U17: Annual | V17: 1 | W17: 1
A18: KS | B18: AIM | C18: KS | D18: YES | F18: 34 | G18: 30-39 | J18: 100 | K18: 100 | L18: 50 | M18: 150 | N18: 200 | P18: 60 Day | Q18: 60 | R18: 2 Months
A19: KY | B19: GoldenCare USA | C19: KY | D19: YES | F19: 35 | G19: 30-39 | J19: 110 | K19: 110 | L19: 55 | M19: 165 | N19: 220 | P19: 90 Day | Q19: 90 | R19: 3 Months
A20: LA | B20: AIM | C20: LA | D20: YES | F20: 36 | G20: 30-39 | J20: 120 | K20: 120 | L20: 60 | M20: 180 | N20: 240 | P20: 180 Day | Q20: 180 | R20: 6 Months | U20: This is "DEPEND" and "DEPENDCHART"
A21: ME | B21: AIM | C21: 65 | D21: YES | F21: 37 | G21: 30-39 | J21: 130 | K21: 130 | L21: 65 | M21: 195 | N21: 260 | P21: 270 Day | Q21: 270 | R21: 9 Months | U21: 1 | V21: 1
A22: MD | B22: GoldenCare USA | C22: 60 | D22: YES | F22: 38 | G22: 30-39 | J22: 140 | K22: 140 | L22: 70 | M22: 210 | N22: 280 | P22: 360 Day | Q22: 360 | R22: 12 Months | U22: 2 | V22: 2
A23: MA | B23: GoldenCare USA | C23: TBD | D23: YES | F23: 39 | G23: 30-39 | J23: 150 | K23: 150 | L23: 75 | M23: 225 | N23: 300 | P23: 450 Day | Q23: 450 | R23: 15 Months | U23: 3 | V23: 3
A24: MI | B24: AIM | C24: 55 | D24: YES | F24: 40 | G24: 40-49 | J24: 160 | K24: 160 | L24: 80 | M24: 240 | N24: 320 | P24: 540 Day | Q24: 540 | R24: 18 Months | U24: 4 | V24: 4
A25: MN | B25: GoldenCare USA | C25: MN | D25: YES | F25: 41 | G25: 40-49 | J25: 170 | K25: 170 | L25: 85 | M25: 255 | N25: 340 | P25: 630 Day | Q25: 630 | R25: 21 Months | U25: 5 | V25: 5
A26: MS | B26: GoldenCare USA | C26: 50 | D26: YES | F26: 42 | G26: 40-49 | J26: 180 | K26: 180 | L26: 90 | M26: 270 | N26: 360
A27: MO | B27: GoldenCare USA | C27: 50 | D27: YES | F27: 43 | G27: 40-49 | J27: 190 | K27: 190 | L27: 95 | M27: 285 | N27: 380 | P27: This is "HHCPERS" and "HHCPERSCHART" | U27: This is "ROPFACTORS"
A28: MT | B28: AIM | C28: 50 | D28: YES | F28: 44 | G28: 40-49 | J28: 200 | K28: 200 | L28: 100 | M28: 300 | N28: 400 | P28: 0 Days | Q28: 0 | R28: 0 Months | U28: D | V28: 1.1
A29: NE | B29: AIM | C29: 50 | D29: YES | F29: 45 | G29: 40-49 | J29: 210 | K29: 210 | L29: 105 | M29: 315 | N29: 420 | P29: 60 Day | Q29: 60 | R29: 2 Months | U29: 18-29 | V29: 1.1
A30: NV | B30: AIM | C30: 50 | D30: YES | F30: 46 | G30: 40-49 | J30: 220 | K30: 220 | L30: 110 | M30: 330 | N30: 440 | P30: 90 Day | Q30: 90 | R30: 3 Months | U30: 30-39 | V30: 1.1
A31: NH | B31: AIM | C31: 60 | D31: YES | F31: 47 | G31: 40-49 | J31: 230 | K31: 230 | L31: 115 | M31: 345 | N31: 460 | P31: 180 Day | Q31: 180 | R31: 6 Months | U31: 40-49 | V31: 1.15
A32: NJ | B32: GoldenCare USA | C32: 60 | D32: YES | F32: 48 | G32: 40-49 | J32: 240 | K32: 240 | L32: 120 | M32: 360 | N32: 480 | P32: 270 Day | Q32: 270 | R32: 9 Months | U32: 50-54 | V32: 1.15
A33: NM | B33: AIM | C33: 50 | D33: YES | F33: 49 | G33: 40-49 | J33: 250 | K33: 250 | L33: 125 | M33: 375 | N33: 500 | P33: 360 Day | Q33: 360 | R33: 12 Months | U33: 55-59 | V33: 1.2
A34: NY | B34: AIM | C34: TBD | D34: YES | F34: 50 | G34: 50-54 | J34: 260 | K34: 260 | L34: 130 | M34: 390 | N34: 520 | P34: 450 Day | Q34: 450 | R34: 15 Months | U34: 60-64 | V34: 1.25
A35: NC | B35: GoldenCare USA | C35: 55 | D35: YES | F35: 51 | G35: 50-54 | J35: 270 | K35: 270 | L35: 135 | M35: 405 | N35: 540 | P35: 540 Day | Q35: 540 | R35: 18 Months | U35: 65-69 | V35: 1.25
A36: ND | B36: GoldenCare USA | C36: 55 | D36: YES | F36: 52 | G36: 50-54 | J36: 280 | K36: 280 | L36: 140 | M36: 420 | N36: 560 | P36: 630 Day | Q36: 630 | R36: 21 Months | U36: 70-74 | V36: 0
A37: OH | B37: GoldenCare USA | C37: 55 | D37: YES | F37: 53 | G37: 50-54 | J37: 290 | K37: 290 | L37: 145 | M37: 435 | N37: 580 | U37: 75-79 | V37: 0
A38: OK | B38: AIM | C38: 50 | D38: YES | F38: 54 | G38: 50-54 | J38: 300 | K38: 300 | L38: 150 | M38: 450 | N38: 600 | U38: 80-84 | V38: 0
A39: OR | B39: AIM | C39: 50 | D39: YES | F39: 55 | G39: 55-59
A40: PA | B40: GoldenCare USA | C40: 50 | D40: YES | F40: 56 | G40: 55-59
A41: RI | B41: GoldenCare USA | C41: 50 | D41: YES | F41: 57 | G41: 55-59 | J41: This is "STCHIBEN" and "STCHIBENCHART" | U41: This is "TXROPFACTORS"
A42: SC | B42: GoldenCare USA | C42: 55 | D42: YES | F42: 58 | G42: 55-59 | I42: see | J42: 0 | K42: 0 | M42: This is "STCFACCODE" | P42: This is "STCHHCCODE" | S42: This is "HHCPLUSCODE" | U42: D | V42: 1.65
A43: SD | B43: GoldenCare USA | C43: SD | D43: YES | F43: 59 | G43: 55-59 | I43: further | J43: 10 | K43: 1 | M43: 60-0 | N43: 2 | P43: 60-0 | Q43: 2 | S43: 13-0 | T43: 2 | U43: 18-29 | V43: 1.65
A44: TN | B44: GoldenCare USA | C44: 50 | D44: YES | F44: 60 | G44: 60-64 | I44: down | J44: =J43+10 -> 20 | K44: =K43+1 -> 2 | M44: 90-0 | N44: =N43+1 -> 3 | P44: 90-0 | Q44: =Q43+1 -> 3 | S44: 13-20 | T44: =T43+1 -> 3 | U44: 30-39 | V44: 1.65
A45: TX | B45: AIM | C45: 50 | D45: YES | F45: 61 | G45: 60-64 | I45: for Omni | J45: =J44+10 -> 30 | K45: =K44+1 -> 3 | M45: 180-0 | N45: =N44+1 -> 4 | P45: 180-0 | Q45: =Q44+1 -> 4 | S45: 26-0 | T45: =T44+1 -> 4 | U45: 40-44 | V45: 1.65
A46: UT | B46: AIM | C46: TBD | D46: YES | F46: 62 | G46: 60-64 | J46: 40 | K46: 4 | M46: 270-0 | N46: 5 | P46: 270-0 | Q46: 5 | S46: 26-20 | T46: 5 | U46: 45-49 | V46: 1.85
A47: VT | B47: AIM | C47: 55 | D47: YES | F47: 63 | G47: 60-64 | J47: 50 | K47: 5 | M47: 360-0 | N47: 6 | P47: 360-0 | Q47: 6 | S47: 39-0 | T47: 6 | U47: 50-54 | V47: 2.98
A48: VA | B48: GoldenCare USA | C48: 50 | D48: YES | F48: 64 | G48: 60-64 | J48: 60 | K48: 6 | M48: 450-0 | N48: 7 | P48: 450-0 | Q48: 7 | S48: 39-20 | T48: 7 | U48: 55-59 | V48: 0
A49: WA | B49: AIM | C49: 60 | D49: YES | F49: 65 | G49: 65-69 | J49: 70 | K49: 7 | M49: 540-0 | N49: 8 | P49: 540-0 | Q49: 8 | S49: 52-0 | T49: 8 | U49: 60-64 | V49: 0
A50: WV | B50: GoldenCare USA | C50: 50 | D50: YES | F50: 66 | G50: 65-69 | J50: 80 | K50: 8 | M50: 630-0 | N50: 9 | P50: 630-0 | Q50: 9 | S50: 52-20 | T50: 9 | U50: 65-69 | V50: 0
A51: WI | B51: GoldenCare USA | C51: 50 | D51: YES | F51: 67 | G51: 65-69 | J51: 90 | K51: 9 | M51: A | N51: 10 | P51: A | Q51: 10 | S51: AMB | T51: 10 | U51: 70-74 | V51: 0
A52: WY | B52: AIM | C52: 50 | D52: YES | F52: 68 | G52: 65-69 | J52: 100 | K52: 10 | M52: B | N52: 11 | P52: B | Q52: 11 | S52: HI | T52: 11 | U52: 75-79 | V52: 0
F53: 69 | G53: 65-69 | J53: 110 | K53: 11 | M53: C | N53: 12 | P53: C | Q53: 12 | S53: CAN | T53: 12 | U53: 80-84 | V53: 0
F54: 70 | G54: 70-74 | J54: 120 | K54: 12 | M54: D | N54: 13 | P54: D | Q54: 13 | S54: NONE | T54: 13
F55: 71 | G55: 70-74 | J55: 130 | K55: 13 | M55: E | N55: 14 | P55: E | Q55: 14 | U55: This Is "TXAGERANGE"
F56: 72 | G56: 70-74 | J56: 140 | K56: 14 | M56: F | N56: 15 | P56: F | Q56: 15 | U56: 18 | V56: 18-29
F57: 73 | G57: 70-74 | J57: 150 | K57: 15 | M57: 60-20 | N57: 16 | P57: 60-20 | Q57: 16 | U57: =U56+1 -> 19 | V57: 18-29
F58: 74 | G58: 70-74 | J58: 160 | K58: 16 | M58: 90-20 | N58: 17 | P58: 90-20 | Q58: 17 | U58: =U57+1 -> 20 | V58: 18-29
F59: 75 | G59: 75-79 | J59: 170 | K59: 17 | M59: 180-20 | N59: 18 | P59: 180-20 | Q59: 18 | U59: 21 | V59: 18-29
F60: 76 | G60: 75-79 | J60: 180 | K60: 18 | M60: 270-20 | N60: 19 | P60: 270-20 | Q60: 19 | U60: 22 | V60: 18-29
F61: 77 | G61: 75-79 | J61: 190 | K61: 19 | M61: 360-20 | N61: 20 | P61: 360-20 | Q61: 20 | U61: 23 | V61: 18-29
F62: 78 | G62: 75-79 | J62: 200 | K62: 20 | M62: 450-20 | N62: 21 | P62: 450-20 | Q62: 21 | U62: 24 | V62: 18-29
F63: 79 | G63: 75-79 | J63: 210 | K63: 21 | M63: 540-20 | N63: 22 | P63: 540-20 | Q63: 22 | U63: 25 | V63: 18-29
F64: 80 | G64: 80-84 | J64: 220 | K64: 22 | M64: 630-20 | N64: 23 | P64: 630-20 | Q64: 23 | U64: 26 | V64: 18-29
F65: 81 | G65: 80-84 | J65: 230 | K65: 23 | M65: G | N65: 24 | P65: G | Q65: 24 | U65: 27 | V65: 18-29
F66: 82 | G66: 80-84 | J66: 240 | K66: 24 | M66: H | N66: 25 | P66: H | Q66: 25 | U66: 28 | V66: 18-29
F67: 83 | G67: 80-84 | J67: 250 | K67: 25 | M67: I | N67: 26 | P67: I | Q67: 26 | U67: 29 | V67: 18-29
F68: =F67+1 -> 84 | G68: 80-84 | J68: 260 | K68: 26 | M68: J | N68: 27 | P68: J | Q68: 27 | U68: 30 | V68: 30-39
F69: 85 | G69: 85-89 | J69: 270 | K69: 27 | M69: K | N69: 28 | P69: K | Q69: 28 | U69: 31 | V69: 30-39
F70: 86 | G70: 85-89 | J70: 280 | K70: 28 | M70: L | N70: 29 | P70: L | Q70: 29 | U70: 32 | V70: 30-39
F71: 87 | G71: 85-89 | J71: 290 | K71: 29 | M71: 60-30 | N71: 30 | P71: 60-30 | Q71: 30 | U71: 33 | V71: 30-39
F72: 88 | G72: 85-89 | J72: 300 | K72: 30 | M72: 90-30 | N72: 31 | P72: 90-30 | Q72: 31 | U72: 34 | V72: 30-39
F73: 89 | G73: 85-89 | J73: 310 | K73: 31 | M73: 180-30 | N73: 32 | P73: 180-30 | Q73: 32 | U73: 35 | V73: 30-39
J74: 320 | K74: 32 | M74: 270-30 | N74: 33 | P74: 270-30 | Q74: 33 | U74: 36 | V74: 30-39
A75: 60-0 | B75: 90-0 | C75: 180-0 | D75: 270-0 | E75: 360-0 | F75: 60+0 | G75: 90+0 | H75: 180+0 | I75: 270+0 | J75: 330 | K75: 33 | M75: 360-30 | N75: 34 | P75: 360-30 | Q75: 34 | U75: 37 | V75: 30-39
A76: This is "SLFACCODE" | F76: This is "SLFAC" and "SLFACCHART" | J76: 340 | K76: 34 | M76: 450-30 | N76: 35 | P76: 450-30 | Q76: 35 | U76: 38 | V76: 30-39
A77: 60-0 | B77: 2 | F77: 0 Day | G77: 0 | H77: 0 | J77: 350 | K77: 35 | M77: 540-30 | N77: 36 | P77: 540-30 | Q77: 36 | U77: 39 | V77: 30-39
A78: 90-0 | B78: =B77+1 -> 3 | F78: 90 Day | G78: 90 | H78: 90 | J78: 360 | K78: 36 | M78: 630-30 | N78: 37 | P78: 630-30 | Q78: 37 | U78: 40 | V78: 40-44
A79: 180-0 | B79: =B78+1 -> 4 | F79: 90 Day (w/5%) | G79: 90+ | H79: 90 | J79: 370 | K79: 37 | M79: M | N79: 38 | P79: M | Q79: 38 | U79: 41 | V79: 40-44
A80: 270-0 | B80: 5 | F80: 180 Day | G80: 180 | H80: 180 | J80: 380 | K80: 38 | M80: N | N80: 39 | P80: N | Q80: 39 | U80: 42 | V80: 40-44
A81: 360-0 | B81: 6 | F81: 180 Day (w/5%) | G81: 180+ | H81: 180 | J81: 390 | K81: 39 | M81: O | N81: 40 | P81: O | Q81: 40 | U81: 43 | V81: 40-44
A82: 60+-0 | B82: 7 | F82: 360 Day | G82: 360 | H82: 360 | J82: 400 | K82: 40 | M82: P | N82: 41 | P82: P | Q82: 41 | U82: 44 | V82: 40-44
A83: 90+-0 | B83: 8 | F83: 360 Day (w/5%) | G83: 360+ | H83: 360 | M83: Q | N83: 42 | P83: Q | Q83: 42 | U83: 45 | V83: 45-49
A84: 180+-0 | B84: 9 | M84: R | N84: 43 | P84: R | Q84: 43 | U84: 46 | V84: 45-49
A85: 270+-0 | B85: 10 | M85: 60-60 | N85: 44 | P85: 60-60 | Q85: 44 | U85: 47 | V85: 45-49
A86: 360+-0 | B86: 11 | M86: 90-60 | N86: 45 | P86: 90-60 | Q86: 45 | U86: 48 | V86: 45-49
A87: 0-0 | B87: 12 | F87: This is "SLHHC" and "SLHHCCHART" | M87: 180-60 | N87: 46 | P87: 180-60 | Q87: 46 | U87: 49 | V87: 45-49
A88: 0-20 | B88: 12 | F88: 0 Day | G88: 0 | H88: 0 Months | M88: 270-60 | N88: 47 | P88: 270-60 | Q88: 47 | U88: 50 | V88: 50-54
A89: 0-30 | B89: 12 | F89: 90 Day | G89: 90 | H89: 3 Months | M89: 360-60 | N89: 48 | P89: 360-60 | Q89: 48 | U89: 51 | V89: 50-54
A90: 0-60 | B90: 12 | F90: 90 Day (w/5%) | G90: 90+ | H90: 3 Mos (w/5%) | M90: 450-60 | N90: 49 | P90: 450-60 | Q90: 49 | U90: 52 | V90: 50-54
A91: 0-90 | B91: 12 | F91: 180 Day | G91: 180 | H91: 6 Months | M91: 540-60 | N91: 50 | P91: 540-60 | Q91: 50 | U91: 53 | V91: 50-54
A92: 0-100 | B92: 12 | F92: 180 Day (w/5%) | G92: 180+ | H92: 6 Mos (w/5%) | M92: 630-60 | N92: 51 | P92: 630-60 | Q92: 51 | U92: 54 | V92: 50-54
A93: 60-20 | B93: 16 | F93: 360 Day | G93: 360 | H93: 12 Months | M93: S | N93: 52 | P93: S | Q93: 52 | U93: 55 | V93: 55-59
A94: 90-20 | B94: 17 | F94: 360 Day (w/5%) | G94: 360+ | H94: 12 Mos (w/5%) | M94: T | N94: 53 | P94: T | Q94: 53 | U94: 56 | V94: 55-59
A95: 180-20 | B95: 18 | M95: U | N95: 54 | P95: U | Q95: 54 | U95: 57 | V95: 55-59
A96: 270-20 | B96: 19 | M96: V | N96: 55 | P96: V | Q96: 55 | U96: 58 | V96: 55-59
A97: 360-20 | B97: 20 | F97: This is "SL50CODE" | I97: This is "SL50YES" and "SL50YESCHART" | M97: W | N97: 56 | P97: W | Q97: 56 | U97: 59 | V97: 55-59
A98: 60+-20 | B98: 21 | F98: 60-0 | G98: 100 | I98: 0 Day | J98: 0 | K98: 0 Months | M98: X | N98: 57 | P98: X | Q98: 57 | U98: 60 | V98: 60-64
A99: 90+-20 | B99: 22 | F99: 90-0 | G99: =G98+1 -> 101 | I99: 90 Day | J99: 90+ | K99: 3 Months | M99: 60-90 | N99: 58 | P99: 60-90 | Q99: 58 | U99: 61 | V99: 60-64
A100: 180+-20 | B100: 23 | F100: 180-0 | G100: =G99+1 -> 102 | I100: 90 Day (w/5%) | J100: 90+ | K100: 3 Mos (w/5%) | M100: 90-90 | N100: 59 | P100: 90-90 | Q100: 59 | U100: 62 | V100: 60-64
A101: 270+-20 | B101: 24 | F101: 270-0 | G101: 103 | I101: 180 Day | J101: 180+ | K101: 6 Months | M101: 180-90 | N101: 60 | P101: 180-90 | Q101: 60 | U101: 63 | V101: 60-64
A102: 360+-20 | B102: 25 | F102: 360-0 | G102: 104 | I102: 180 Day (w/5%) | J102: 180+ | K102: 6 Mos (w/5%) | M102: 270-90 | N102: 61 | P102: 270-90 | Q102: 61 | U102: 64 | V102: 60-64
A103: G | B103: 26 | F103: 60+-0 | G103: 105 | I103: 360 Day | J103: 360+ | K103: 12 Months | M103: 360-90 | N103: 62 | P103: 360-90 | Q103: 62 | U103: 65 | V103: 65-69
A104: H | B104: 27 | F104: 90+-0 | G104: 106 | I104: 360 Day (w/5%) | J104: 360+ | K104: 12 Mos (w/5%) | M104: 450-90 | N104: 63 | P104: 450-90 | Q104: 63 | U104: 66 | V104: 65-69
A105: I | B105: 28 | F105: 180+-0 | G105: 107 | M105: 540-90 | N105: 64 | P105: 540-90 | Q105: 64 | U105: 67 | V105: 65-69
A106: J | B106: 29 | F106: 270+-0 | G106: 108 | I106: This is "SL50NO" and "SL50NOCHART" | M106: 630-90 | N106: 65 | P106: 630-90 | Q106: 65 | U106: 68 | V106: 65-69
A107: 60-100 | B107: 30 | F107: 360+-0 | G107: 109 | I107: 0 Day | J107: 0 | K107: 0 Months | M107: Y | N107: 66 | P107: Y | Q107: 66 | U107: 69 | V107: 65-69
A108: 90-100 | B108: 31 | F108: 0-0 | G108: 110 | I108: 90 Day | J108: 90 | K108: 3 Months | M108: Z | N108: 67 | P108: Z | Q108: 67 | U108: 70 | V108: 70-74
A109: 180-100 | B109: 32 | F109: 0-20 | G109: 110 | I109: 90 Day (w/5%) | J109: 90 | K109: 3 Mos (w/5%) | M109: AA | N109: =N108+1 -> 68 | P109: AA | Q109: =Q108+1 -> 68 | U109: 71 | V109: 70-74
A110: 270-100 | B110: 33 | F110: 0-100 | G110: 110 | I110: 180 Day | J110: 180 | K110: 6 Months | M110: BB | N110: 69 | P110: BB | Q110: 69 | U110: 72 | V110: 70-74
A111: 360-100 | B111: 34 | F111: D | G111: 113 | I111: 180 Day (w/5%) | J111: 180 | K111: 6 Mos (w/5%) | M111: CC | N111: 70 | P111: CC | Q111: 70 | U111: 73 | V111: 70-74
A112: 60+-100 | B112: 35 | F112: 60-20 | G112: 114 | I112: 360 Day | J112: 360 | K112: 12 Months | M112: DD | N112: 71 | P112: DD | Q112: 71 | U112: 74 | V112: 70-74
A113: 90+-100 | B113: 36 | F113: 90-20 | G113: 115 | I113: 360 Day (w/5%) | J113: 360 | K113: 12 Mos (w/5%) | M113: 60-100 | N113: 72 | P113: 60-100 | Q113: 72 | U113: 75 | V113: 75-79
A114: 180+-100 | B114: 37 | F114: 180-20 | G114: 116 | M114: 90-100 | N114: 73 | P114: 90-100 | Q114: 73 | U114: 76 | V114: 75-79
A115: 270+-100 | B115: 38 | F115: 270-20 | G115: 117 | I115: This is "HHCPLUSAMB" and "HHCPLUSAMBCHART" | M115: 180-100 | N115: 74 | P115: 180-100 | Q115: 74 | U115: 77 | V115: 75-79
A116: 360+-100 | B116: 39 | F116: 360-20 | G116: 118 | I116: No AMB/ER Rider | J116: 0 | M116: 270-100 | N116: 75 | P116: 270-100 | Q116: 75 | U116: 78 | V116: 75-79
A117: K | B117: 40 | F117: 60+-20 | G117: 119 | I117: $200/2x/Yr AMB/ER | J117: 200 | M117: 360-100 | N117: 76 | P117: 360-100 | Q117: 76 | U117: 79 | V117: 75-79
A118: L | B118: 41 | F118: 90+-20 | G118: 120 | M118: 450-100 | N118: 77 | P118: 450-100 | Q118: 77 | U118: 80 | V118: 80-84
A119: M | B119: 42 | F119: 180+-20 | G119: 121 | I119: This is "HHCPLUSCAN" and "HHCPLUSCANCHART" | M119: 540-100 | N119: 78 | P119: 540-100 | Q119: 78 | U119: 81 | V119: 80-84
A120: N | B120: 43 | F120: 270+-20 | G120: 122 | I120: No Cancer Rider | J120: 0 | K120: 0 | M120: 630-100 | N120: 79 | P120: 630-100 | Q120: 79 | U120: 82 | V120: 80-84
A121: 60-30 | B121: 44 | F121: 360+-20 | G121: 123 | I121: $2,500 Cancer | J121: 2500 | K121: 1 | M121: EE | N121: 80 | P121: EE | Q121: 80 | U121: 83 | V121: 80-84
A122: 90-30 | B122: 45 | F122: E | G122: 124 | I122: $5,000 Cancer | J122: 5000 | K122: 2 | M122: FF | N122: 81 | P122: FF | Q122: 81 | U122: =U121+1 -> 84 | V122: 80-84
A123: 180-30 | B123: 46 | F123: F | G123: 125 | I123: $10,000 Cancer | J123: 10000 | K123: 3 | M123: GG | N123: 82 | P123: GG | Q123: 82
A124: 270-30 | B124: 47 | F124: G | G124: 126 | M124: HH | N124: 83 | P124: HH | Q124: 83
A125: 360-30 | B125: 48 | F125: H | G125: 127 | I125: This is "HHCPLUSHHC" and "HHCPLUSHHCCHART" | P125: 0-0 | Q125: 14
A126: 60+-30 | B126: 49 | F126: 60-100 | G126: 128 | I126: $150/Week | J126: 150 | K126: 1 | P126: 0-20 | Q126: 14
A127: 90+-30 | B127: 50 | F127: 90-100 | G127: 129 | I127: $300/Week | J127: 300 | K127: 2 | P127: 0-30 | Q127: 14
A128: 180+-30 | B128: 51 | F128: 180-100 | G128: 130 | I128: $450/Week | J128: 450 | K128: 3 | P128: 0-60 | Q128: 14
A129: 270+-30 | B129: 52 | F129: 270-100 | G129: 131 | I129: $600/Week | J129: 600 | K129: 4 | P129: 0-90 | Q129: 14
A130: 360+-30 | B130: 53 | F130: 360-100 | G130: 132 | I130: $750/Week | J130: 750 | K130: 5 | P130: 0-100 | Q130: 14
A131: O | B131: 54 | F131: 60+-100 | G131: 133 | I131: $900/Week | J131: 900 | K131: 6 | P131: 60-0 | Q131: 14
A132: P | B132: 55 | F132: 90+-100 | G132: 134 | I132: $1,050/Week | J132: 1050 | K132: 7 | P132: 90-0 | Q132: 14
A133: Q | B133: 56 | F133: 180+-100 | G133: 135 | I133: $1,200/Week | J133: 1200 | K133: 8 | P133: 180-0 | Q133: 14
A134: R | B134: 57 | F134: 270+-100 | G134: 136 | P134: 270-0 | Q134: 14
A135: 60-60 | B135: 58 | F135: 360+-100 | G135: 137 | I135: This is "HHCPLUSWEEKS" and "HHCPLUSWEEKSCHART" | P135: 360-0 | Q135: 14
A136: 90-60 | B136: 59 | F136: I | G136: 138 | I136: 13 Weeks | J136: 13 | K136: 91 | P136: 450-0 | Q136: 14
A137: 180-60 | B137: 60 | F137: J | G137: 139 | I137: 26 Weeks | J137: 26 | K137: 182 | P137: 540-0 | Q137: 14
A138: 270-60 | B138: 61 | F138: K | G138: 140 | I138: 39 Weeks | J138: 39 | K138: 273 | P138: 630-0 | Q138: 14
A139: 360-60 | B139: 62 | F139: L | G139: 141 | I139: 52 Weeks | J139: 52 | K139: 364
A140: 60+-60 | B140: 63 | F140: 60-60 | G140: 142
A141: 90+-60 | B141: 64 | F141: 90-60 | G141: 143 | I141: This is "HHCPLUSELIM" and "HHCPLUSELIMCHART"
A142: 180+-60 | B142: 65 | F142: 180-60 | G142: 144 | I142: Zero Day | J142: 0 | K142: 0
A143: 270+-60 | B143: =B142+1 -> 66 | F143: 270-60 | G143: 145 | I143: 20 Day | J143: 20 | K143: 20
A144: 360+-60 | B144: 67 | F144: 360-60 | G144: 146
A145: U | B145: 68 | F145: 450-60 | G145: 147
A146: V | B146: 69 | F146: 540-60 | G146: 148
A147: W | B147: 70 | F147: 630-60 | G147: 149 | I147: This is "SLFACE" and "SLFACECHART"
A148: X | B148: 71 | F148: M | G148: 150 | I148: Zero Day | J148: 0
A149: 60-90 | B149: 72 | F149: N | G149: 151 | I149: 20 Day | J149: 20
A150: 90-90 | B150: 73 | F150: O | G150: 152 | I150: 100 Day | J150: 100
A151: 180-90 | B151: 74 | F151: P | G151: 153
A152: 270-90 | B152: 75 | F152: Q | G152: 154
A153: 360-90 | B153: 76 | F153: R | G153: 155 | I153: This is "SLHHCE" and "SLHHCECHART"
A154: 60+-90 | B154: 77 | F154: 60-90 | G154: 156 | I154: Zero Day | J154: 0
A155: 90+-90 | B155: 78 | F155: 90-90 | G155: 157 | I155: 20 Day | J155: 20
A156: 180+-90 | B156: 79 | F156: 180-90 | G156: 158 | I156: 100 Day | J156: 100
A157: 270+-90 | B157: 80 | F157: 270-90 | G157: 159
A158: 360+-90 | B158: 81 | F158: 360-90 | G158: 160
A159: Y | B159: 82 | F159: 450-90 | G159: 161 | I159: This is "SLINFL" and "SLINFLCHART"
A160: Z | B160: 83 | F160: 540-90 | G160: 162 | I160: 0% on Fast50 | J160: N | K160: A
F161: 630-90 | G161: 163 | I161: 5%S on Fast50 | J161: Y | K161: B
F162: S | G162: 164
F163: This is "SLFACCODE" | G163: 165 | I163: This is "OMNIFAC" and "OMNIFACCHART" | M163: This is "OMNIHHC" and "OMNIHHCCHART" | R163: This is "OMNIHIBEN" and "OMNIHIBENCHART"
F164: U | G164: =G163+1 -> 166 | I164: 50 | J164: 5 | M164: 0 | N164: 0 | R164: 0 | S164: 0
F165: V | G165: 167 | I165: =I164+10 -> 60 | J165: =J164+1 -> 6 | M165: 50 | N165: 5 | R165: 50 | S165: 5
F166: W | G166: 168 | I166: =I165+10 -> 70 | J166: =J165+1 -> 7 | M166: =M165+10 -> 60 | N166: =N165+1 -> 6 | R166: =R165+10 -> 60 | S166: =S165+1 -> 6
F167: X | G167: 169 | I167: 80 | J167: 8 | M167: =M166+10 -> 70 | N167: =N166+1 -> 7 | R167: =R166+10 -> 70 | S167: =S166+1 -> 7
F168: 60-1000 | G168: 170 | I168: 90 | J168: 9 | M168: 80 | N168: 8 | R168: 80 | S168: 8
F169: 90-1000 | G169: 171 | I169: 100 | J169: 10 | M169: 90 | N169: 9 | R169: 90 | S169: 9
F170: 180-1000 | G170: 172 | I170: 110 | J170: 11 | M170: 100 | N170: 10 | R170: 100 | S170: 10
F171: 270-1000 | G171: 173 | I171: 120 | J171: 12 | M171: 110 | N171: 11 | R171: 110 | S171: 11
F172: 360-1000 | G172: 174 | I172: 130 | J172: 13 | M172: 120 | N172: 12 | R172: 120 | S172: 12
F173: 450-1000 | G173: 175 | I173: 140 | J173: 14 | M173: 130 | N173: 13 | R173: 130 | S173: 13
F174: 540-1000 | G174: 176 | I174: 150 | J174: 15 | M174: 140 | N174: 14 | R174: 140 | S174: 14
F175: 630-1000 | G175: 177 | I175: 160 | J175: 16 | M175: 150 | N175: 15 | R175: 150 | S175: 15
F176: EE | G176: 178 | I176: 170 | J176: 17 | M176: 160 | N176: 16 | R176: 160 | S176: 16
F177: FF | G177: 179 | I177: 180 | J177: 18 | M177: 170 | N177: 17 | R177: 170 | S177: 17
F178: GG | G178: 180 | I178: 190 | J178: 19 | M178: 180 | N178: 18 | R178: 180 | S178: 18
F179: HH | G179: 181 | I179: 200 | J179: 20 | M179: 190 | N179: 19 | R179: 190 | S179: 19
I180: 210 | J180: 21 | M180: 200 | N180: 20 | R180: 200 | S180: 20
I181: 220 | J181: 22 | M181: 210 | N181: 21 | R181: 210 | S181: 21
I182: 230 | J182: 23 | M182: 220 | N182: 22 | R182: 220 | S182: 22
A183: This is "OMNISTATE" and "OMNISTATECHART" | I183: 240 | J183: 24 | M183: 230 | N183: 23 | R183: 230 | S183: 23
A184: AL | B184: AL | C184: 50 | D184: YES | I184: 250 | J184: 25 | M184: 240 | N184: 24 | R184: 240 | S184: 24
A185: AK-None | B185: AK | C185: 0 | D185: NO | I185: 260 | J185: 26 | M185: 250 | N185: 25 | R185: 250 | S185: 25
A186: AR | B186: AR | C186: 50 | D186: YES | I186: 270 | J186: 27 | M186: 260 | N186: 26 | R186: 260 | S186: 26
A187: AZ | B187: AZ | C187: 55 | D187: YES | I187: 280 | J187: 28 | M187: 270 | N187: 27 | R187: 270 | S187: 27
A188: CA-None | B188: CA | C188: 0 | D188: NO | I188: 290 | J188: 29 | M188: 280 | N188: 28 | R188: 280 | S188: 28
A189: CO-Check | B189: CO | C189: 60 | D189: YES* | I189: 300 | J189: 30 | M189: 290 | N189: 29 | R189: 290 | S189: 29
A190: CT-None | B190: CT | C190: 0 | D190: NO | I190: 310 | J190: 31 | M190: =M189+10 -> 300 | N190: =N189+1 -> 30 | R190: 300 | S190: 30
A191: DE-None | B191: DE | C191: 0 | D191: NO | I191: 320 | J191: 32
A192: DC-None | B192: DC | C192: 0 | D192: NO | I192: 330 | J192: 33
A193: FL-None | B193: FL | C193: 0 | D193: NO | I193: 340 | J193: 34
A194: GA | B194: GA | C194: 50 | D194: YES | I194: 350 | J194: 35
A195: HI-None | B195: HI | C195: 0 | D195: NO | I195: 360 | J195: 36
A196: ID-None | B196: ID | C196: 0 | D196: NO | I196: 370 | J196: 37
A197: IL-None | B197: IL | C197: 0 | D197: NO | I197: 380 | J197: 38
A198: IN-None | B198: IN | C198: 0 | D198: NO | I198: 390 | J198: 39
A199: IA-None | B199: IA | C199: 0 | D199: NO | I199: 400 | J199: 40
A200: KS-None | B200: KS | C200: 0 | D200: NO
... 432 more rows

Sheet STCRate7 (hidden)
E1: 1 | F1: =E1+1 -> 2 | G1: =F1+1 -> 3 | H1: 4 | I1: 5 | J1: 6 | K1: 7 | L1: 8 | M1: 9 | N1: 10 | O1: 11 | P1: 12 | Q1: 13 | R1: 14 | S1: 15 | T1: 16 | U1: 17 | V1: 18 | W1: 19 | X1: 20 | Y1: 21 | Z1: 22 | AA1: 23 | AB1: 24 | AC1: 25 | AD1: 26 | AE1: 27 | AF1: 28 | AG1: 29 | AH1: 30 | AI1: 31 | AJ1: 32 | AK1: 33 | AL1: 34 | AM1: 35 | AN1: 36 | AO1: 37 | AP1: 38 | AQ1: 39 | AR1: 40 | AS1: 41 | AT1: 42 | AU1: 43 | AV1: 44 | AW1: 45 | AX1: 46 | AY1: 47 | AZ1: 48 | BA1: 49 | BB1: 50 | BC1: 51 | BD1: 52 | BE1: 53 | BF1: 54 | BG1: 55 | BH1: 56 | BI1: 57 | BJ1: 58 | BK1: 59 | BL1: 60 | BM1: 61 | BN1: 62 | BO1: 63 | BP1: 64 | BQ1: 65 | BR1: 66 | BS1: =BR1+1 -> 67 | BT1: 68 | BU1: 69 | BV1: 70 | BW1: 71 | BX1: 72 | BY1: 73 | BZ1: 74 | CA1: 75 | CB1: 76 | CC1: 77 | CD1: 78 | CE1: 79 | CF1: 80 | CG1: 81 | CH1: 82 | CI1: 83 | CJ1: 84 | CK1: 85 | CL1: 86 | CM1: 87 | CN1: 88 | CO1: 89 | CP1: 90 | CQ1: 91 | CR1: 92 | CS1: 93 | CT1: 94 | CU1: 95 | CV1: 96 | CW1: 97 | CX1: 98 | CY1: 99 | CZ1: 100 | DA1: 101 | DB1: 102 | DC1: 103 | DD1: 104 | DE1: 105 | DF1: 106 | DG1: 107 | DH1: 108 | DI1: 109 | DJ1: 110 | DK1: 111 | DL1: 112 | DM1: 113 | DN1: 114 | DO1: 115 | DP1: 116 | DQ1: 117 | DR1: 118 | DS1: 119 | DT1: 120 | DU1: 121 | DV1: 122 | DW1: 123 | DX1: 124 | DY1: 125 | DZ1: 126 | EA1: 127 | EB1: 128 | EC1: 129 | ED1: 130 | EE1: =ED1+1 -> 131 | EF1: 132 | EG1: 133 | EH1: 134 | EI1: 135 | EJ1: 136 | EK1: 137 | EL1: 138 | EM1: 139 | EN1: 140 | EO1: 141 | EP1: 142 | EQ1: 143 | ER1: 144 | ES1: 145 | ET1: 146 | EU1: 147 | EV1: 148 | EW1: 149 | EX1: 150 | EY1: 151 | EZ1: 152 | FA1: 153 | FB1: 154 | FC1: 155 | FD1: 156 | FE1: 157 | FF1: 158 | FG1: 159 | FH1: 160 | FI1: 161 | FJ1: 162 | FK1: 163 | FL1: 164 | FM1: 165 | FN1: 166 | FO1: 167 | FP1: 168 | FQ1: 169 | FR1: 170 | FS1: 171 | FT1: 172 | FU1: 173 | FV1: 174 | FW1: 175 | FX1: 176 | FY1: 177 | FZ1: 178 | GA1: 179 | GB1: 180 | GC1: 181 | GD1: 182 | GE1: 183 | GF1: 184 | GG1: =GF1+1 -> 185 | GH1: =GG1+1 -> 186 | GI1: =GH1+1 -> 187 | GJ1: =GI1+1 -> 188 | GK1: =GJ1+1 -> 189 | GL1: =GK1+1 -> 190 | GM1: =GL1+1 -> 191 | GN1: =GM1+1 -> 192 | GO1: =GN1+1 -> 193 | GP1: =GO1+1 -> 194 | GQ1: =GP1+1 -> 195 | GR1: =GQ1+1 -> 196 | GS1: =GR1+1 -> 197 | GT1: =GS1+1 -> 198 | GU1: =GT1+1 -> 199 | GV1: =GU1+1 -> 200 | GW1: =GV1+1 -> 201 | GX1: =GW1+1 -> 202 | GY1: =GX1+1 -> 203 | GZ1: =GY1+1 -> 204 | HA1: =GZ1+1 -> 205 | HB1: =HA1+1 -> 206 | HC1: =HB1+1 -> 207 | HD1: =HC1+1 -> 208 | HE1: =HD1+1 -> 209 | HF1: =HE1+1 -> 210 | HG1: =HF1+1 -> 211 | HH1: =HG1+1 -> 212 | HI1: =HH1+1 -> 213 | HJ1: =HI1+1 -> 214 | HK1: =HJ1+1 -> 215 | HL1: =HK1+1 -> 216 | HM1: =HL1+1 -> 217 | HN1: =HM1+1 -> 218 | HO1: =HN1+1 -> 219 | HP1: =HO1+1 -> 220 | HQ1: =HP1+1 -> 221 | HR1: =HQ1+1 -> 222 | HS1: =HR1+1 -> 223 | HT1: =HS1+1 -> 224 | HU1: =HT1+1 -> 225 | HV1: =HU1+1 -> 226 | HW1: =HV1+1 -> 227 | HX1: =HW1+1 -> 228 | HY1: =HX1+1 -> 229 | HZ1: =HY1+1 -> 230 | IA1: =HZ1+1 -> 231 | IB1: =IA1+1 -> 232 | IC1: =IB1+1 -> 233 | ID1: =IC1+1 -> 234 | IE1: =ID1+1 -> 235 | IF1: =IE1+1 -> 236 | IG1: =IF1+1 -> 237 | IH1: =IG1+1 -> 238 | II1: =IH1+1 -> 239 | IJ1: =II1+1 -> 240 | IK1: =IJ1+1 -> 241 | IL1: =IK1+1 -> 242 | IM1: =IL1+1 -> 243 | IN1: =IM1+1 -> 244 | IO1: =IN1+1 -> 245 | IP1: =IO1+1 -> 246 | IQ1: =IP1+1 -> 247 | IR1: =IQ1+1 -> 248 | IS1: =IR1+1 -> 249 | IT1: =IS1+1 -> 250 | IU1: =IT1+1 -> 251 | IV1: =IU1+1 -> 252 | IW1: =IV1+1 -> 253 | IX1: =IW1+1 -> 254 | IY1: =IX1+1 -> 255 | IZ1: =IY1+1 -> 256 | JA1: =IZ1+1 -> 257 | JB1: =JA1+1 -> 258 | JC1: =JB1+1 -> 259 | JD1: =JC1+1 -> 260 | JE1: =JD1+1 -> 261 | JF1: =JE1+1 -> 262 | JG1: =JF1+1 -> 263 | JH1: =JG1+1 -> 264 | JI1: =JH1+1 -> 265 | JJ1: =JI1+1 -> 266 | JK1: =JJ1+1 -> 267 | JL1: =JK1+1 -> 268 | JM1: =JL1+1 -> 269 | JN1: =JM1+1 -> 270 | JO1: =JN1+1 -> 271 | JP1: =JO1+1 -> 272 | JQ1: =JP1+1 -> 273 | JR1: =JQ1+1 -> 274 | JS1: =JR1+1 -> 275 | JT1: =JS1+1 -> 276 | JU1: =JT1+1 -> 277 | JV1: =JU1+1 -> 278 | JW1: =JV1+1 -> 279 | JX1: =JW1+1 -> 280 | JY1: =JX1+1 -> 281 | JZ1: =JY1+1 -> 282 | KA1: =JZ1+1 -> 283 | KB1: =KA1+1 -> 284 | KC1: =KB1+1 -> 285 | KD1: =KC1+1 -> 286 | KE1: =KD1+1 -> 287 | KF1: =KE1+1 -> 288 | KG1: =KF1+1 -> 289 | KH1: =KG1+1 -> 290 | KI1: =KH1+1 -> 291 | KJ1: =KI1+1 -> 292 | KK1: =KJ1+1 -> 293 | KL1: =KK1+1 -> 294 | KM1: =KL1+1 -> 295 | KN1: =KM1+1 -> 296 | KO1: =KN1+1 -> 297 | KP1: =KO1+1 -> 298 | KQ1: =KP1+1 -> 299 | KR1: =KQ1+1 -> 300 | KS1: =KR1+1 -> 301 | KT1: =KS1+1 -> 302 | KU1: =KT1+1 -> 303 | KV1: =KU1+1 -> 304 | KW1: =KV1+1 -> 305 | KX1: =KW1+1 -> 306 | KY1: =KX1+1 -> 307 | KZ1: =KY1+1 -> 308 | LA1: =KZ1+1 -> 309 | LB1: =LA1+1 -> 310 | LC1: =LB1+1 -> 311 | LD1: =LC1+1 -> 312 | LE1: =LD1+1 -> 313 | LF1: =LE1+1 -> 314 | LG1: =LF1+1 -> 315 | LH1: =LG1+1 -> 316 | LI1: =LH1+1 -> 317 | LJ1: =LI1+1 -> 318 | LK1: =LJ1+1 -> 319 | LL1: =LK1+1 -> 320 | LM1: =LL1+1 -> 321 | LN1: =LM1+1 -> 322 | LO1: =LN1+1 -> 323 | LP1: =LO1+1 -> 324 | LQ1: =LP1+1 -> 325 | LR1: =LQ1+1 -> 326 | LS1: =LR1+1 -> 327 | LT1: =LS1+1 -> 328 | LU1: =LT1+1 -> 329 | LV1: =LU1+1 -> 330 | LW1: =LV1+1 -> 331 | LX1: =LW1+1 -> 332 | LY1: =LX1+1 -> 333 | LZ1: =LY1+1 -> 334 | MA1: =LZ1+1 -> 335 | MB1: =MA1+1 -> 336 | MC1: =MB1+1 -> 337 | MD1: =MC1+1 -> 338 | ME1: =MD1+1 -> 339 | MF1: =ME1+1 -> 340 | MG1: =MF1+1 -> 341 | MH1: =MG1+1 -> 342 | MI1: =MH1+1 -> 343 | MJ1: =MI1+1 -> 344 | MK1: =MJ1+1 -> 345 | ML1: =MK1+1 -> 346 | MM1: =ML1+1 -> 347 | MN1: =MM1+1 -> 348 | MO1: =MN1+1 -> 349 | MP1: =MO1+1 -> 350 | MQ1: =MP1+1 -> 351 | MR1: =MQ1+1 -> 352 | MS1: =MR1+1 -> 353 | MT1: =MS1+1 -> 354 | MU1: =MT1+1 -> 355 | MV1: =MU1+1 -> 356 | MW1: =MV1+1 -> 357 | MX1: =MW1+1 -> 358 | MY1: =MX1+1 -> 359 | MZ1: =MY1+1 -> 360 | NA1: =MZ1+1 -> 361 | NB1: =NA1+1 -> 362 | NC1: =NB1+1 -> 363 | ND1: =NC1+1 -> 364 | NE1: =ND1+1 -> 365 | NF1: =NE1+1 -> 366 | NG1: =NF1+1 -> 367 | NH1: =NG1+1 -> 368 | NI1: =NH1+1 -> 369 | NJ1: =NI1+1 -> 370 | NK1: =NJ1+1 -> 371 | NL1: =NK1+1 -> 372 | NM1: =NL1+1 -> 373 | NN1: =NM1+1 -> 374 | NO1: =NN1+1 -> 375 | NP1: =NO1+1 -> 376 | NQ1: =NP1+1 -> 377 | NR1: =NQ1+1 -> 378 | NS1: =NR1+1 -> 379 | NT1: =NS1+1 -> 380 | NU1: =NT1+1 -> 381 | NV1: =NU1+1 -> 382 | NW1: =NV1+1 -> 383 | NX1: =NW1+1 -> 384 | NY1: =NX1+1 -> 385 | NZ1: =NY1+1 -> 386 | OA1: =NZ1+1 -> 387 | OB1: =OA1+1 -> 388 | OC1: =OB1+1 -> 389 | OD1: =OC1+1 -> 390 | OE1: =OD1+1 -> 391 | OF1: =OE1+1 -> 392 | OG1: =OF1+1 -> 393 | OH1: =OG1+1 -> 394 | OI1: =OH1+1 -> 395 | OJ1: =OI1+1 -> 396 | OK1: =OJ1+1 -> 397 | OL1: =OK1+1 -> 398 | OM1: =OL1+1 -> 399 | ON1: =OM1+1 -> 400 | OO1: =ON1+1 -> 401 | OP1: =OO1+1 -> 402 | OQ1: =OP1+1 -> 403 | OR1: =OQ1+1 -> 404 | OS1: =OR1+1 -> 405 | OT1: =OS1+1 -> 406 | OU1: =OT1+1 -> 407 | OV1: =OU1+1 -> 408 | OW1: =OV1+1 -> 409 | OX1: =OW1+1 -> 410 | OY1: =OX1+1 -> 411 | OZ1: =OY1+1 -> 412 | PA1: =OZ1+1 -> 413 | PB1: =PA1+1 -> 414 | PC1: =PB1+1 -> 415 | PD1: =PC1+1 -> 416 | PE1: =PD1+1 -> 417 | PF1: =PE1+1 -> 418 | PG1: =PF1+1 -> 419
A2: This is from New Std Life Rates | E2: This is 50% Loss Ratio | H2: AL, AR, GA, LA, MO, MS, NC, TX, WY | S2: This is 50% Loss Ratio | V2: AL, AR, GA, LA, MO, MS, NC, TX, WY | AG2: This is 50% Loss Ratio | AJ2: AL, AR, GA, LA, MO, MS, NC, TX, WY | AU2: This is 50% Loss Ratio | AX2: AL, AR, GA, LA, MO, MS, NC, TX, WY | BI2: This is 50% Loss Ratio | BL2: AL, AR, GA, LA, MO, MS, NC, TX, WY | BW2: This is 50% Loss Ratio | BZ2: AL, AR, GA, LA, MO, MS, NC, TX, WY | CK2: This is 55% Loss Ratio | CN2: AZ, NE, OH, OK, SC, TN | CY2: This is 55% Loss Ratio | DB2: AZ, NE, OH, OK, SC, TN | DM2: This is 55% Loss Ratio | DP2: AZ, NE, OH, OK, SC, TN | EA2: This is 55% Loss Ratio | ED2: AZ, NE, OH, OK, SC, TN | EO2: This is 55% Loss Ratio | ER2: AZ, NE, OH, OK, SC, TN | FC2: This is 55% Loss Ratio | FF2: AZ, NE, OH, OK, SC, TN | FQ2: This is 60% Loss Ratio | FT2: CO, SD | GE2: This is 60% Loss Ratio | GH2: CO, SD | GS2: This is 60% Loss Ratio | GV2: CO, SD | HG2: This is 60% Loss Ratio | HJ2: CO, SD | HU2: This is 60% Loss Ratio | HX2: CO, SD | II2: This is 60% Loss Ratio | IL2: CO, SD | IW2: This is 65% Loss Ratio | IZ2: ??, ?? | JK2: This is 65% Loss Ratio | JN2: ??, ?? | JY2: This is 65% Loss Ratio | KB2: ??, ?? | KM2: This is 65% Loss Ratio | KP2: ??, ?? | LA2: This is 65% Loss Ratio | LD2: ??, ?? | LO2: This is 65% Loss Ratio | LR2: ??, ?? | MC2: This is 70% Loss Ratio | MF2: ND, ?? | MQ2: This is 70% Loss Ratio | MT2: ND, ?? | NE2: This is 70% Loss Ratio | NH2: ND, ?? | NS2: This is 70% Loss Ratio | NV2: ND, ?? | OG2: This is 70% Loss Ratio | OJ2: ND, ?? | OU2: This is 70% Loss Ratio | OX2: ND, ??
A3: Sent 12/20/22 | E3: Facility Rates | K3: Facility Rates | S3: Facility Rates | Y3: Facility Rates | AG3: Facility Rates | AM3: Facility Rates | AU3: Facility Rates | BA3: Facility Rates | BI3: Facility Rates | BO3: Facility Rates | BW3: Facility Rates | CC3: Facility Rates | CK3: Facility Rates | CQ3: Facility Rates | CY3: Facility Rates | DE3: Facility Rates | DM3: Facility Rates | DS3: Facility Rates | EA3: Facility Rates | EG3: Facility Rates | EO3: Facility Rates | EU3: Facility Rates | FC3: Facility Rates | FI3: Facility Rates | FQ3: Facility Rates | FW3: Facility Rates | GE3: Facility Rates | GK3: Facility Rates | GS3: Facility Rates | GY3: Facility Rates | HG3: Facility Rates | HM3: Facility Rates | HU3: Facility Rates | IA3: Facility Rates | II3: Facility Rates | IO3: Facility Rates | IW3: Facility Rates | JC3: Facility Rates | JK3: Facility Rates | JQ3: Facility Rates | JY3: Facility Rates | KE3: Facility Rates | KM3: Facility Rates | KS3: Facility Rates | LA3: Facility Rates | LG3: Facility Rates | LO3: Facility Rates | LU3: Facility Rates | MC3: Facility Rates | MI3: Facility Rates | MQ3: Facility Rates | MW3: Facility Rates | NE3: Facility Rates | NK3: Facility Rates | NS3: Facility Rates | NY3: Facility Rates | OG3: Facility Rates | OM3: Facility Rates | OU3: Facility Rates | PA3: Facility Rates
C4: Full Chart is | E4: Non-Tobacco-Facility-0 Elim.-NO INFL | K4: Non-Tobacco-Facility-0 Elim. WITH INFLATION | S4: Non-Tobacco-Facility-20 Elim.-NO INFL | Y4: Non-Tobacco-Facility-20 Elim.-WITH INFLATION | AG4: Non-Tobacco-Facility-100 Elim.-NO INFL | AM4: Non-Tobacco-Facility-100 Elim.-WITH INFLATION | AU4: Non-Tobacco-Facility-30 Elim.-NO INFL | BA4: Non-Tobacco-Facility-30 Elim.-WITH INFLATION | BI4: Non-Tobacco-Facility-60 Elim.-NO INFL | BO4: Non-Tobacco-Facility-60 Elim.-WITH INFLATION | BW4: Non-Tobacco-Facility-90 Elim.-NO INFL | CC4: Non-Tobacco-Facility-90 Elim.-WITH INFLATION | CK4: Non-Tobacco-Facility-0 Elim.-NO INFL | CQ4: Non-Tobacco-Facility-0 Elim. WITH INFLATION | CY4: Non-Tobacco-Facility-20 Elim.-NO INFL | DE4: Non-Tobacco-Facility-20 Elim.-WITH INFLATION | DM4: Non-Tobacco-Facility-100 Elim.-NO INFL | DS4: Non-Tobacco-Facility-100 Elim.-WITH INFLATION | EA4: Non-Tobacco-Facility-30 Elim.-NO INFL | EG4: Non-Tobacco-Facility-30 Elim.-WITH INFLATION | EO4: Non-Tobacco-Facility-60 Elim.-NO INFL | EU4: Non-Tobacco-Facility-60 Elim.-WITH INFLATION | FC4: Non-Tobacco-Facility-90 Elim.-NO INFL | FI4: Non-Tobacco-Facility-90 Elim.-WITH INFLATION | FQ4: Non-Tobacco-Facility-0 Elim.-NO INFL | FW4: Non-Tobacco-Facility-0 Elim. WITH INFLATION | GE4: Non-Tobacco-Facility-20 Elim.-NO INFL | GK4: Non-Tobacco-Facility-20 Elim.-WITH INFLATION | GS4: Non-Tobacco-Facility-100 Elim.-NO INFL | GY4: Non-Tobacco-Facility-100 Elim.-WITH INFLATION | HG4: Non-Tobacco-Facility-30 Elim.-NO INFL | HM4: Non-Tobacco-Facility-30 Elim.-WITH INFLATION | HU4: Non-Tobacco-Facility-60 Elim.-NO INFL | IA4: Non-Tobacco-Facility-60 Elim.-WITH INFLATION | II4: Non-Tobacco-Facility-90 Elim.-NO INFL | IO4: Non-Tobacco-Facility-90 Elim.-WITH INFLATION | IW4: Non-Tobacco-Facility-0 Elim.-NO INFL | JC4: Non-Tobacco-Facility-0 Elim. WITH INFLATION | JK4: Non-Tobacco-Facility-20 Elim.-NO INFL | JQ4: Non-Tobacco-Facility-20 Elim.-WITH INFLATION | JY4: Non-Tobacco-Facility-100 Elim.-NO INFL | KE4: Non-Tobacco-Facility-100 Elim.-WITH INFLATION | KM4: Non-Tobacco-Facility-30 Elim.-NO INFL | KS4: Non-Tobacco-Facility-30 Elim.-WITH INFLATION | LA4: Non-Tobacco-Facility-60 Elim.-NO INFL | LG4: Non-Tobacco-Facility-60 Elim.-WITH INFLATION | LO4: Non-Tobacco-Facility-90 Elim.-NO INFL | LU4: Non-Tobacco-Facility-90 Elim.-WITH INFLATION | MC4: Non-Tobacco-Facility-0 Elim.-NO INFL | MI4: Non-Tobacco-Facility-0 Elim. WITH INFLATION | MQ4: Non-Tobacco-Facility-20 Elim.-NO INFL | MW4: Non-Tobacco-Facility-20 Elim.-WITH INFLATION | NE4: Non-Tobacco-Facility-100 Elim.-NO INFL | NK4: Non-Tobacco-Facility-100 Elim.-WITH INFLATION | NS4: Non-Tobacco-Facility-30 Elim.-NO INFL | NY4: Non-Tobacco-Facility-30 Elim.-WITH INFLATION | OG4: Non-Tobacco-Facility-60 Elim.-NO INFL | OM4: Non-Tobacco-Facility-60 Elim.-WITH INFLATION | OU4: Non-Tobacco-Facility-90 Elim.-NO INFL | PA4: Non-Tobacco-Facility-90 Elim.-WITH INFLATION
C5: "OMNIFACRATESALL" | F5: 60 | G5: 90 | H5: 180 | I5: 270 | J5: 360 | K5: 60+ | L5: 90+ | M5: 180+ | N5: 270+ | O5: 360+ | P5: No | Q5: No | T5: 60 | U5: 90 | V5: 180 | W5: 270 | X5: 360 | Y5: 60+ | Z5: 90+ | AA5: 180+ | AB5: 270+ | AC5: 360+ | AD5: No | AE5: No | AH5: 60 | AI5: 90 | AJ5: 180 | AK5: 270 | AL5: 360 | AM5: 60+ | AN5: 90+ | AO5: 180+ | AP5: 270+ | AQ5: 360+ | AR5: No | AS5: No | AV5: 60 | AW5: 90 | AX5: 180 | AY5: 270 | AZ5: 360 | BA5: 60+ | BB5: 90+ | BC5: 180+ | BD5: 270+ | BE5: 360+ | BF5: No | BG5: No | BJ5: 60 | BK5: 90 | BL5: 180 | BM5: 270 | BN5: 360 | BO5: 60+ | BP5: 90+ | BQ5: 180+ | BR5: 270+ | BS5: 360+ | BT5: No | BU5: No | BX5: 60 | BY5: 90 | BZ5: 180 | CA5: 270 | CB5: 360 | CC5: 60+ | CD5: 90+ | CE5: 180+ | CF5: 270+ | CG5: 360+ | CH5: No | CI5: No | CL5: 60 | CM5: 90 | CN5: 180 | CO5: 270 | CP5: 360 | CQ5: 60+ | CR5: 90+ | CS5: 180+ | CT5: 270+ | CU5: 360+ | CV5: No | CW5: No | CZ5: 60 | DA5: 90 | DB5: 180 | DC5: 270 | DD5: 360 | DE5: 60+ | DF5: 90+ | DG5: 180+ | DH5: 270+ | DI5: 360+ | DJ5: No | DK5: No | DN5: 60 | DO5: 90 | DP5: 180 | DQ5: 270 | DR5: 360 | DS5: 60+ | DT5: 90+ | DU5: 180+ | DV5: 270+ | DW5: 360+ | DX5: No | DY5: No | EB5: 60 | EC5: 90 | ED5: 180 | EE5: 270 | EF5: 360 | EG5: 60+ | EH5: 90+ | EI5: 180+ | EJ5: 270+ | EK5: 360+ | EL5: No | EM5: No | EP5: 60 | EQ5: 90 | ER5: 180 | ES5: 270 | ET5: 360 | EU5: 60+ | EV5: 90+ | EW5: 180+ | EX5: 270+ | EY5: 360+ | EZ5: No | FA5: No | FD5: 60 | FE5: 90 | FF5: 180 | FG5: 270 | FH5: 360 | FI5: 60+ | FJ5: 90+ | FK5: 180+ | FL5: 270+ | FM5: 360+ | FN5: No | FO5: No | FR5: 60 | FS5: 90 | FT5: 180 | FU5: 270 | FV5: 360 | FW5: 60+ | FX5: 90+ | FY5: 180+ | FZ5: 270+ | GA5: 360+ | GB5: No | GC5: No | GF5: 60 | GG5: 90 | GH5: 180 | GI5: 270 | GJ5: 360 | GK5: 60+ | GL5: 90+ | GM5: 180+ | GN5: 270+ | GO5: 360+ | GP5: No | GQ5: No | GT5: 60 | GU5: 90 | GV5: 180 | GW5: 270 | GX5: 360 | GY5: 60+ | GZ5: 90+ | HA5: 180+ | HB5: 270+ | HC5: 360+ | HD5: No | HE5: No | HH5: 60 | HI5: 90 | HJ5: 180 | HK5: 270 | HL5: 360 | HM5: 60+ | HN5: 90+ | HO5: 180+ | HP5: 270+ | HQ5: 360+ | HR5: No | HS5: No | HV5: 60 | HW5: 90 | HX5: 180 | HY5: 270 | HZ5: 360 | IA5: 60+ | IB5: 90+ | IC5: 180+ | ID5: 270+ | IE5: 360+ | IF5: No | IG5: No | IJ5: 60 | IK5: 90 | IL5: 180 | IM5: 270 | IN5: 360 | IO5: 60+ | IP5: 90+ | IQ5: 180+ | IR5: 270+ | IS5: 360+ | IT5: No | IU5: No | IX5: 60 | IY5: 90 | IZ5: 180 | JA5: 270 | JB5: 360 | JC5: 60+ | JD5: 90+ | JE5: 180+ | JF5: 270+ | JG5: 360+ | JH5: No | JI5: No | JL5: 60 | JM5: 90 | JN5: 180 | JO5: 270 | JP5: 360 | JQ5: 60+ | JR5: 90+ | JS5: 180+ | JT5: 270+ | JU5: 360+ | JV5: No | JW5: No | JZ5: 60 | KA5: 90 | KB5: 180 | KC5: 270 | KD5: 360 | KE5: 60+ | KF5: 90+ | KG5: 180+ | KH5: 270+ | KI5: 360+ | KJ5: No | KK5: No | KN5: 60 | KO5: 90 | KP5: 180 | KQ5: 270 | KR5: 360 | KS5: 60+ | KT5: 90+ | KU5: 180+ | KV5: 270+ | KW5: 360+ | KX5: No | KY5: No | LB5: 60 | LC5: 90 | LD5: 180 | LE5: 270 | LF5: 360 | LG5: 60+ | LH5: 90+ | LI5: 180+ | LJ5: 270+ | LK5: 360+ | LL5: No | LM5: No | LP5: 60 | LQ5: 90 | LR5: 180 | LS5: 270 | LT5: 360 | LU5: 60+ | LV5: 90+ | LW5: 180+ | LX5: 270+ | LY5: 360+ | LZ5: No | MA5: No | MD5: 60 | ME5: 90 | MF5: 180 | MG5: 270 | MH5: 360 | MI5: 60+ | MJ5: 90+ | MK5: 180+ | ML5: 270+ | MM5: 360+ | MN5: No | MO5: No | MR5: 60 | MS5: 90 | MT5: 180 | MU5: 270 | MV5: 360 | MW5: 60+ | MX5: 90+ | MY5: 180+ | MZ5: 270+ | NA5: 360+ | NB5: No | NC5: No | NF5: 60 | NG5: 90 | NH5: 180 | NI5: 270 | NJ5: 360 | NK5: 60+ | NL5: 90+ | NM5: 180+ | NN5: 270+ | NO5: 360+ | NP5: No | NQ5: No | NT5: 60 | NU5: 90 | NV5: 180 | NW5: 270 | NX5: 360 | NY5: 60+ | NZ5: 90+ | OA5: 180+ | OB5: 270+ | OC5: 360+ | OD5: No | OE5: No | OH5: 60 | OI5: 90 | OJ5: 180 | OK5: 270 | OL5: 360 | OM5: 60+ | ON5: 90+ | OO5: 180+ | OP5: 270+ | OQ5: 360+ | OR5: No | OS5: No | OV5: 60 | OW5: 90 | OX5: 180 | OY5: 270 | OZ5: 360 | PA5: 60+ | PB5: 90+ | PC5: 180+ | PD5: 270+ | PE5: 360+ | PF5: No | PG5: No
F6: 60-0 | G6: 90-0 | H6: 180-0 | I6: 270-0 | J6: 360-0 | K6: 60+0 | L6: 90+0 | M6: 180+0 | N6: 270+0 | O6: 360+0 | T6: 60-20 | U6: 90-20 | V6: 180-20 | W6: 270-20 | X6: 360-20 | Y6: 60+20 | Z6: 90+20 | AA6: 180+20 | AB6: 270+20 | AC6: 360+20 | AH6: 60-100 | AI6: 90-100 | AJ6: 180-100 | AK6: 270-100 | AL6: 360-100 | AM6: 60+100 | AN6: 90+100 | AO6: 180+100 | AP6: 270+100 | AQ6: 360+100 | AV6: 60-30 | AW6: 90-30 | AX6: 180-30 | AY6: 270-30 | AZ6: 360-30 | BA6: 60+30 | BB6: 90+30 | BC6: 180+30 | BD6: 270+30 | BE6: 360+30 | BJ6: 60-60 | BK6: 90-60 | BL6: 180-60 | BM6: 270-60 | BN6: 360-60 | BO6: 60+60 | BP6: 90+60 | BQ6: 180+60 | BR6: 270+60 | BS6: 360+60 | BX6: 60-90 | BY6: 90-90 | BZ6: 180-90 | CA6: 270-90 | CB6: 360-90 | CC6: 60+90 | CD6: 90+90 | CE6: 180+90 | CF6: 270+90 | CG6: 360+90 | CL6: 60-0 | CM6: 90-0 | CN6: 180-0 | CO6: 270-0 | CP6: 360-0 | CQ6: 60+0 | CR6: 90+0 | CS6: 180+0 | CT6: 270+0 | CU6: 360+0 | CZ6: 60-20 | DA6: 90-20 | DB6: 180-20 | DC6: 270-20 | DD6: 360-20 | DE6: 60+20 | DF6: 90+20 | DG6: 180+20 | DH6: 270+20 | DI6: 360+20 | DN6: 60-100 | DO6: 90-100 | DP6: 180-100 | DQ6: 270-100 | DR6: 360-100 | DS6: 60+100 | DT6: 90+100 | DU6: 180+100 | DV6: 270+100 | DW6: 360+100 | EB6: 60-30 | EC6: 90-30 | ED6: 180-30 | EE6: 270-30 | EF6: 360-30 | EG6: 60+30 | EH6: 90+30 | EI6: 180+30 | EJ6: 270+30 | EK6: 360+30 | EP6: 60-60 | EQ6: 90-60 | ER6: 180-60 | ES6: 270-60 | ET6: 360-60 | EU6: 60+60 | EV6: 90+60 | EW6: 180+60 | EX6: 270+60 | EY6: 360+60 | FD6: 60-90 | FE6: 90-90 | FF6: 180-90 | FG6: 270-90 | FH6: 360-90 | FI6: 60+90 | FJ6: 90+90 | FK6: 180+90 | FL6: 270+90 | FM6: 360+90 | FR6: 60-0 | FS6: 90-0 | FT6: 180-0 | FU6: 270-0 | FV6: 360-0 | FW6: 60+0 | FX6: 90+0 | FY6: 180+0 | FZ6: 270+0 | GA6: 360+0 | GF6: 60-20 | GG6: 90-20 | GH6: 180-20 | GI6: 270-20 | GJ6: 360-20 | GK6: 60+20 | GL6: 90+20 | GM6: 180+20 | GN6: 270+20 | GO6: 360+20 | GT6: 60-100 | GU6: 90-100 | GV6: 180-100 | GW6: 270-100 | GX6: 360-100 | GY6: 60+100 | GZ6: 90+100 | HA6: 180+100 | HB6: 270+100 | HC6: 360+100 | HH6: 60-30 | HI6: 90-30 | HJ6: 180-30 | HK6: 270-30 | HL6: 360-30 | HM6: 60+30 | HN6: 90+30 | HO6: 180+30 | HP6: 270+30 | HQ6: 360+30 | HV6: 60-60 | HW6: 90-60 | HX6: 180-60 | HY6: 270-60 | HZ6: 360-60 | IA6: 60+60 | IB6: 90+60 | IC6: 180+60 | ID6: 270+60 | IE6: 360+60 | IJ6: 60-90 | IK6: 90-90 | IL6: 180-90 | IM6: 270-90 | IN6: 360-90 | IO6: 60+90 | IP6: 90+90 | IQ6: 180+90 | IR6: 270+90 | IS6: 360+90 | IX6: 60-0 | IY6: 90-0 | IZ6: 180-0 | JA6: 270-0 | JB6: 360-0 | JC6: 60+0 | JD6: 90+0 | JE6: 180+0 | JF6: 270+0 | JG6: 360+0 | JL6: 60-20 | JM6: 90-20 | JN6: 180-20 | JO6: 270-20 | JP6: 360-20 | JQ6: 60+20 | JR6: 90+20 | JS6: 180+20 | JT6: 270+20 | JU6: 360+20 | JZ6: 60-100 | KA6: 90-100 | KB6: 180-100 | KC6: 270-100 | KD6: 360-100 | KE6: 60+100 | KF6: 90+100 | KG6: 180+100 | KH6: 270+100 | KI6: 360+100 | KN6: 60-30 | KO6: 90-30 | KP6: 180-30 | KQ6: 270-30 | KR6: 360-30 | KS6: 60+30 | KT6: 90+30 | KU6: 180+30 | KV6: 270+30 | KW6: 360+30 | LB6: 60-60 | LC6: 90-60 | LD6: 180-60 | LE6: 270-60 | LF6: 360-60 | LG6: 60+60 | LH6: 90+60 | LI6: 180+60 | LJ6: 270+60 | LK6: 360+60 | LP6: 60-90 | LQ6: 90-90 | LR6: 180-90 | LS6: 270-90 | LT6: 360-90 | LU6: 60+90 | LV6: 90+90 | LW6: 180+90 | LX6: 270+90 | LY6: 360+90 | MD6: 60-0 | ME6: 90-0 | MF6: 180-0 | MG6: 270-0 | MH6: 360-0 | MI6: 60+0 | MJ6: 90+0 | MK6: 180+0 | ML6: 270+0 | MM6: 360+0 | MR6: 60-20 | MS6: 90-20 | MT6: 180-20 | MU6: 270-20 | MV6: 360-20 | MW6: 60+20 | MX6: 90+20 | MY6: 180+20 | MZ6: 270+20 | NA6: 360+20 | NF6: 60-100 | NG6: 90-100 | NH6: 180-100 | NI6: 270-100 | NJ6: 360-100 | NK6: 60+100 | NL6: 90+100 | NM6: 180+100 | NN6: 270+100 | NO6: 360+100 | NT6: 60-30 | NU6: 90-30 | NV6: 180-30 | NW6: 270-30 | NX6: 360-30 | NY6: 60+30 | NZ6: 90+30 | OA6: 180+30 | OB6: 270+30 | OC6: 360+30 | OH6: 60-60 | OI6: 90-60 | OJ6: 180-60 | OK6: 270-60 | OL6: 360-60 | OM6: 60+60 | ON6: 90+60 | OO6: 180+60 | OP6: 270+60 | OQ6: 360+60 | OV6: 60-90 | OW6: 90-90 | OX6: 180-90 | OY6: 270-90 | OZ6: 360-90 | PA6: 60+90 | PB6: 90+90 | PC6: 180+90 | PD6: 270+90 | PE6: 360+90
A7: PLEASE BE CAREFUL | F7: 1 | G7: 2 | H7: 3 | I7: 4 | J7: 5 | K7: 6 | L7: 7 | M7: 8 | N7: 9 | O7: 10 | P7: 11 | Q7: 12 | T7: 1 | U7: 2 | V7: 3 | W7: 4 | X7: 5 | Y7: 6 | Z7: 7 | AA7: 8 | AB7: 9 | AC7: 10 | AD7: 11 | AE7: 12 | AH7: 1 | AI7: 2 | AJ7: 3 | AK7: 4 | AL7: 5 | AM7: 6 | AN7: 7 | AO7: 8 | AP7: 9 | AQ7: 10 | AR7: 11 | AS7: 12 | AV7: 1 | AW7: 2 | AX7: 3 | AY7: 4 | AZ7: 5 | BA7: 6 | BB7: 7 | BC7: 8 | BD7: 9 | BE7: 10 | BF7: 11 | BG7: 12 | BJ7: 1 | BK7: 2 | BL7: 3 | BM7: 4 | BN7: 5 | BO7: 6 | BP7: 7 | BQ7: 8 | BR7: 9 | BS7: 10 | BT7: 11 | BU7: 12 | BX7: 1 | BY7: 2 | BZ7: 3 | CA7: 4 | CB7: 5 | CC7: 6 | CD7: 7 | CE7: 8 | CF7: 9 | CG7: 10 | CH7: 11 | CI7: 12 | CL7: 1 | CM7: 2 | CN7: 3 | CO7: 4 | CP7: 5 | CQ7: 6 | CR7: 7 | CS7: 8 | CT7: 9 | CU7: 10 | CV7: 11 | CW7: 12 | CZ7: 1 | DA7: 2 | DB7: 3 | DC7: 4 | DD7: 5 | DE7: 6 | DF7: 7 | DG7: 8 | DH7: 9 | DI7: 10 | DJ7: 11 | DK7: 12 | DN7: 1 | DO7: 2 | DP7: 3 | DQ7: 4 | DR7: 5 | DS7: 6 | DT7: 7 | DU7: 8 | DV7: 9 | DW7: 10 | DX7: 11 | DY7: 12 | EB7: 1 | EC7: 2 | ED7: 3 | EE7: 4 | EF7: 5 | EG7: 6 | EH7: 7 | EI7: 8 | EJ7: 9 | EK7: 10 | EL7: 11 | EM7: 12 | EP7: 1 | EQ7: 2 | ER7: 3 | ES7: 4 | ET7: 5 | EU7: 6 | EV7: 7 | EW7: 8 | EX7: 9 | EY7: 10 | EZ7: 11 | FA7: 12 | FD7: 1 | FE7: 2 | FF7: 3 | FG7: 4 | FH7: 5 | FI7: 6 | FJ7: 7 | FK7: 8 | FL7: 9 | FM7: 10 | FN7: 11 | FO7: 12 | FR7: 1 | FS7: 2 | FT7: 3 | FU7: 4 | FV7: 5 | FW7: 6 | FX7: 7 | FY7: 8 | FZ7: 9 | GA7: 10 | GB7: 11 | GC7: 12 | GF7: 1 | GG7: 2 | GH7: 3 | GI7: 4 | GJ7: 5 | GK7: 6 | GL7: 7 | GM7: 8 | GN7: 9 | GO7: 10 | GP7: 11 | GQ7: 12 | GT7: 1 | GU7: 2 | GV7: 3 | GW7: 4 | GX7: 5 | GY7: 6 | GZ7: 7 | HA7: 8 | HB7: 9 | HC7: 10 | HD7: 11 | HE7: 12 | HH7: 1 | HI7: 2 | HJ7: 3 | HK7: 4 | HL7: 5 | HM7: 6 | HN7: 7 | HO7: 8 | HP7: 9 | HQ7: 10 | HR7: 11 | HS7: 12 | HV7: 1 | HW7: 2 | HX7: 3 | HY7: 4 | HZ7: 5 | IA7: 6 | IB7: 7 | IC7: 8 | ID7: 9 | IE7: 10 | IF7: 11 | IG7: 12 | IJ7: 1 | IK7: 2 | IL7: 3 | IM7: 4 | IN7: 5 | IO7: 6 | IP7: 7 | IQ7: 8 | IR7: 9 | IS7: 10 | IT7: 11 | IU7: 12 | IX7: 1 | IY7: 2 | IZ7: 3 | JA7: 4 | JB7: 5 | JC7: 6 | JD7: 7 | JE7: 8 | JF7: 9 | JG7: 10 | JH7: 11 | JI7: 12 | JL7: 1 | JM7: 2 | JN7: 3 | JO7: 4 | JP7: 5 | JQ7: 6 | JR7: 7 | JS7: 8 | JT7: 9 | JU7: 10 | JV7: 11 | JW7: 12 | JZ7: 1 | KA7: 2 | KB7: 3 | KC7: 4 | KD7: 5 | KE7: 6 | KF7: 7 | KG7: 8 | KH7: 9 | KI7: 10 | KJ7: 11 | KK7: 12 | KN7: 1 | KO7: 2 | KP7: 3 | KQ7: 4 | KR7: 5 | KS7: 6 | KT7: 7 | KU7: 8 | KV7: 9 | KW7: 10 | KX7: 11 | KY7: 12 | LB7: 1 | LC7: 2 | LD7: 3 | LE7: 4 | LF7: 5 | LG7: 6 | LH7: 7 | LI7: 8 | LJ7: 9 | LK7: 10 | LL7: 11 | LM7: 12 | LP7: 1 | LQ7: 2 | LR7: 3 | LS7: 4 | LT7: 5 | LU7: 6 | LV7: 7 | LW7: 8 | LX7: 9 | LY7: 10 | LZ7: 11 | MA7: 12 | MD7: 1 | ME7: 2 | MF7: 3 | MG7: 4 | MH7: 5 | MI7: 6 | MJ7: 7 | MK7: 8 | ML7: 9 | MM7: 10 | MN7: 11 | MO7: 12 | MR7: 1 | MS7: 2 | MT7: 3 | MU7: 4 | MV7: 5 | MW7: 6 | MX7: 7 | MY7: 8 | MZ7: 9 | NA7: 10 | NB7: 11 | NC7: 12 | NF7: 1 | NG7: 2 | NH7: 3 | NI7: 4 | NJ7: 5 | NK7: 6 | NL7: 7 | NM7: 8 | NN7: 9 | NO7: 10 | NP7: 11 | NQ7: 12 | NT7: 1 | NU7: 2 | NV7: 3 | NW7: 4 | NX7: 5 | NY7: 6 | NZ7: 7 | OA7: 8 | OB7: 9 | OC7: 10 | OD7: 11 | OE7: 12 | OH7: 1 | OI7: 2 | OJ7: 3 | OK7: 4 | OL7: 5 | OM7: 6 | ON7: 7 | OO7: 8 | OP7: 9 | OQ7: 10 | OR7: 11 | OS7: 12 | OV7: 1 | OW7: 2 | OX7: 3 | OY7: 4 | OZ7: 5 | PA7: 6 | PB7: 7 | PC7: 8 | PD7: 9 | PE7: 10 | PF7: 11 | PG7: 12
E8: 18 | F8: 9999 | G8: =RawStdLife7!$B$6 -> 3.75 | H8: =RawStdLife7!$C$6 -> 9.83 | I8: =RawStdLife7!$D$6 -> 13.38 | J8: =RawStdLife7!$E$6 -> 16.92 | K8: 9999 | L8: =RawStdLife7!$B$53 -> 6.19 | M8: =RawStdLife7!$C$53 -> 16.22 | N8: =RawStdLife7!$D$53 -> 22.08 | O8: =RawStdLife7!$E$53 -> 27.92 | P8: 0 | S8: 18 | T8: 9999 | U8: =RawStdLife7!$G$6 -> 3 | V8: =RawStdLife7!$H$6 -> 8.75 | W8: =RawStdLife7!$I$6 -> 11.75 | X8: =RawStdLife7!$J$6 -> 14.75 | Y8: 9999 | Z8: =RawStdLife7!$G$53 -> 4.95 | AA8: =RawStdLife7!$H$53 -> 14.44 | AB8: =RawStdLife7!$I$53 -> 19.39 | AC8: =RawStdLife7!$J$53 -> 24.34 | AD8: 9999 | AE8: 9999 | AG8: 18 | AH8: 9999 | AI8: =RawStdLife7!$AA$6 -> 2.58 | AJ8: =RawStdLife7!$AB$6 -> 6.83 | AK8: =RawStdLife7!$AC$6 -> 8.67 | AL8: =RawStdLife7!$AD$6 -> 10.5 | AM8: 9999 | AN8: =RawStdLife7!$AA$53 -> 4.26 | AO8: =RawStdLife7!$AB$53 -> 11.27 | AP8: =RawStdLife7!$AC$53 -> 14.31 | AQ8: =RawStdLife7!$AD$53 -> 17.33 | AR8: 9999 | AS8: 9999 | AU8: 18 | AV8: 9999 | AW8: =RawStdLife7!$L$6 -> 2.95 | AX8: =RawStdLife7!$M$6 -> 8.51 | AY8: =RawStdLife7!$N$6 -> 11.36 | AZ8: =RawStdLife7!$O$6 -> 14.22 | BA8: 9999 | BB8: =RawStdLife7!$L$53 -> 4.87 | BC8: =RawStdLife7!$M$53 -> 14.04 | BD8: =RawStdLife7!$N$53 -> 18.74 | BE8: =RawStdLife7!$O$53 -> 23.46 | BF8: 9999 | BG8: 9999 | BI8: 18 | BJ8: 9999 | BK8: =RawStdLife7!$Q$6 -> 2.71 | BL8: =RawStdLife7!$R$6 -> 7.79 | BM8: =RawStdLife7!$S$6 -> 10.21 | BN8: =RawStdLife7!$T$6 -> 12.63 | BO8: 9999 | BP8: =RawStdLife7!$Q$53 -> 4.47 | BQ8: =RawStdLife7!$R$53 -> 12.85 | BR8: =RawStdLife7!$S$53 -> 16.85 | BS8: =RawStdLife7!$T$53 -> 20.84 | BT8: 9999 | BU8: 9999 | BW8: 18 | BX8: 9999 | BY8: =RawStdLife7!$V$6 -> 2.48 | BZ8: =RawStdLife7!$W$6 -> 7 | CA8: =RawStdLife7!$X$6 -> 9.02 | CB8: =RawStdLife7!$Y$6 -> 11.03 | CC8: 9999 | CD8: =RawStdLife7!$V$53 -> 4.09 | CE8: =RawStdLife7!$W$53 -> 11.55 | CF8: =RawStdLife7!$X$53 -> 14.88 | CG8: =RawStdLife7!$Y$53 -> 18.2 | CH8: 9999 | CI8: 9999 | CK8: 18 | CL8: 9999 | CM8: 3.6 | CN8: 9.44 | CO8: 12.84 | CP8: 16.24 | CQ8: 9999 | CR8: 5.94 | CS8: 15.58 | CT8: 21.19 | CU8: 26.8 | CV8: 0 | CY8: 18 | CZ8: 9999 | DA8: 2.88 | DB8: 8.4 | DC8: 11.28 | DD8: 14.16 | DE8: 9999 | DF8: 4.75 | DG8: 13.86 | DH8: 18.61 | DI8: 23.36 | DJ8: 9999 | DK8: 9999 | DM8: 18 | DN8: 9999 | DO8: 2.48 | DP8: 6.56 | DQ8: 8.32 | DR8: 10.08 | DS8: 9999 | DT8: 4.09 | DU8: 10.82 | DV8: 13.73 | DW8: 16.63 | DX8: 9999 | DY8: 9999 | EA8: 18 | EB8: 9999 | EC8: 2.83 | ED8: 8.17 | EE8: 10.91 | EF8: 13.65 | EG8: 9999 | EH8: 4.67 | EI8: 13.48 | EJ8: 18 | EK8: 22.52 | EL8: 9999 | EM8: 9999 | EO8: 18 | EP8: 9999 | EQ8: 2.6 | ER8: 7.48 | ES8: 9.8 | ET8: 12.12 | EU8: 9999 | EV8: 4.29 | EW8: 12.34 | EX8: 16.17 | EY8: 20 | EZ8: 9999 | FA8: 9999 | FC8: 18 | FD8: 9999 | FE8: 2.5 | FF8: 6.72 | FG8: 8.66 | FH8: 10.59 | FI8: 9999 | FJ8: 4.13 | FK8: 11.09 | FL8: 14.29 | FM8: 17.47 | FN8: 9999 | FO8: 9999 | FQ8: 18 | FR8: 9999 | FS8: 3.43 | FT8: 9 | FU8: 12.24 | FV8: 15.48 | FW8: 9999 | FX8: 5.66 | FY8: 14.85 | FZ8: 20.2 | GA8: 25.54 | GB8: 0 | GE8: 18 | GF8: 9999 | GG8: 2.75 | GH8: 8.01 | GI8: 10.75 | GJ8: 13.5 | GK8: 9999 | GL8: 4.54 | GM8: 13.22 | GN8: 17.74 | GO8: 22.28 | GP8: 9999 | GQ8: 9999 | GS8: 18 | GT8: 9999 | GU8: 2.36 | GV8: 6.25 | GW8: 7.93 | GX8: 9.61 | GY8: 9999 | GZ8: 3.89 | HA8: 10.31 | HB8: 13.08 | HC8: 15.86 | HD8: 9999 | HE8: 9999 | HG8: 18 | HH8: 9999 | HI8: 2.7 | HJ8: 7.79 | HK8: 10.4 | HL8: 13.01 | HM8: 9999 | HN8: 4.46 | HO8: 12.85 | HP8: 17.16 | HQ8: 21.47 | HR8: 9999 | HS8: 9999 | HU8: 18 | HV8: 9999 | HW8: 2.48 | HX8: 7.13 | HY8: 9.34 | HZ8: 11.55 | IA8: 9999 | IB8: 4.09 | IC8: 11.76 | ID8: 15.41 | IE8: 19.06 | IF8: 9999 | IG8: 9999 | II8: 18 | IJ8: 9999 | IK8: 2.39 | IL8: 6.41 | IM8: 8.25 | IN8: 10.1 | IO8: 9999 | IP8: 3.94 | IQ8: 10.58 | IR8: 13.61 | IS8: 16.67 | IT8: 9999 | IU8: 9999 | IW8: 18 | IX8: 9999 | IY8: 9999 | IZ8: 9999 | JA8: 9999 | JB8: 9999 | JC8: 9999 | JD8: 9999 | JE8: 9999 | JF8: 9999 | JG8: 9999 | JH8: 0 | JK8: 18 | JL8: 9999 | JM8: 9999 | JN8: 9999 | JO8: 9999 | JP8: 9999 | JQ8: 9999 | JR8: 9999 | JS8: 9999 | JT8: 9999 | JU8: 9999 | JV8: 9999 | JW8: 9999 | JY8: 18 | JZ8: 9999 | KA8: 9999 | KB8: 9999 | KC8: 9999 | KD8: 9999 | KE8: 9999 | KF8: 9999 | KG8: 9999 | KH8: 9999 | KI8: 9999 | KJ8: 9999 | KK8: 9999 | KM8: 18 | KN8: 9999 | KO8: 9999 | KP8: 9999 | KQ8: 9999 | KR8: 9999 | KS8: 9999 | KT8: 9999 | KU8: 9999 | KV8: 9999 | KW8: 9999 | KX8: 9999 | KY8: 9999 | LA8: 18 | LB8: 9999 | LC8: 9999 | LD8: 9999 | LE8: 9999 | LF8: 9999 | LG8: 9999 | LH8: 9999 | LI8: 9999 | LJ8: 9999 | LK8: 9999 | LL8: 9999 | LM8: 9999 | LO8: 18 | LP8: 9999 | LQ8: 9999 | LR8: 9999 | LS8: 9999 | LT8: 9999 | LU8: 9999 | LV8: 9999 | LW8: 9999 | LX8: 9999 | LY8: 9999 | LZ8: 9999 | MA8: 9999 | MC8: 18 | MD8: 9999 | ME8: 3.08 | MF8: 8.06 | MG8: 10.97 | MH8: 13.87 | MI8: 9999 | MJ8: 5.08 | MK8: 13.3 | ML8: 18.1 | MM8: 22.89 | MN8: 0 | MQ8: 18 | MR8: 9999 | MS8: 2.46 | MT8: 7.18 | MU8: 9.64 | MV8: 12.1 | MW8: 9999 | MX8: 4.06 | MY8: 11.85 | MZ8: 15.91 | NA8: 19.97 | NB8: 9999 | NC8: 9999 | NE8: 18 | NF8: 9999 | NG8: 2.12 | NH8: 5.6 | NI8: 7.11 | NJ8: 8.61 | NK8: 9999 | NL8: 3.5 | NM8: 9.24 | NN8: 11.73 | NO8: 14.21 | NP8: 9999 | NQ8: 9999 | NS8: 18 | NT8: 9999 | NU8: 2.42 | NV8: 6.98 | NW8: 9.32 | NX8: 11.66 | NY8: 9999 | NZ8: 3.99 | OA8: 11.52 | OB8: 15.38 | OC8: 19.24 | OD8: 9999 | OE8: 9999 | OG8: 18 | OH8: 9999 | OI8: 2.22 | OJ8: 6.39 | OK8: 8.37 | OL8: 10.35 | OM8: 9999 | ON8: 3.66 | OO8: 10.54 | OP8: 13.81 | OQ8: 17.08 | OR8: 9999 | OS8: 9999 | OU8: 18 | OV8: 9999 | OW8: 2.14 | OX8: 5.74 | OY8: 7.39 | OZ8: 9.05 | PA8: 9999 | PB8: 3.53 | PC8: 9.47 | PD8: 12.19 | PE8: 14.93 | PF8: 9999 | PG8: 9999
A9: NOT TO EDIT OR CHANGE | E9: =E8+1 -> 19 | F9: 9999 | G9: =RawStdLife7!$B$6 -> 3.75 | H9: =RawStdLife7!$C$6 -> 9.83 | I9: =RawStdLife7!$D$6 -> 13.38 | J9: =RawStdLife7!$E$6 -> 16.92 | K9: 9999 | L9: =RawStdLife7!$B$53 -> 6.19 | M9: =RawStdLife7!$C$53 -> 16.22 | N9: =RawStdLife7!$D$53 -> 22.08 | O9: =RawStdLife7!$E$53 -> 27.92 | P9: 0 | S9: =S8+1 -> 19 | T9: 9999 | U9: =RawStdLife7!$G$6 -> 3 | V9: =RawStdLife7!$H$6 -> 8.75 | W9: =RawStdLife7!$I$6 -> 11.75 | X9: =RawStdLife7!$J$6 -> 14.75 | Y9: 9999 | Z9: =RawStdLife7!$G$53 -> 4.95 | AA9: =RawStdLife7!$H$53 -> 14.44 | AB9: =RawStdLife7!$I$53 -> 19.39 | AC9: =RawStdLife7!$J$53 -> 24.34 | AD9: 9999 | AE9: 9999 | AG9: =AG8+1 -> 19 | AH9: 9999 | AI9: =RawStdLife7!$AA$6 -> 2.58 | AJ9: =RawStdLife7!$AB$6 -> 6.83 | AK9: =RawStdLife7!$AC$6 -> 8.67 | AL9: =RawStdLife7!$AD$6 -> 10.5 | AM9: 9999 | AN9: =RawStdLife7!$AA$53 -> 4.26 | AO9: =RawStdLife7!$AB$53 -> 11.27 | AP9: =RawStdLife7!$AC$53 -> 14.31 | AQ9: =RawStdLife7!$AD$53 -> 17.33 | AR9: 9999 | AS9: 9999 | AU9: =AU8+1 -> 19 | AV9: 9999 | AW9: =RawStdLife7!$L$6 -> 2.95 | AX9: =RawStdLife7!$M$6 -> 8.51 | AY9: =RawStdLife7!$N$6 -> 11.36 | AZ9: =RawStdLife7!$O$6 -> 14.22 | BA9: 9999 | BB9: =RawStdLife7!$L$53 -> 4.87 | BC9: =RawStdLife7!$M$53 -> 14.04 | BD9: =RawStdLife7!$N$53 -> 18.74 | BE9: =RawStdLife7!$O$53 -> 23.46 | BF9: 9999 | BG9: 9999 | BI9: =BI8+1 -> 19 | BJ9: 9999 | BK9: =RawStdLife7!$Q$6 -> 2.71 | BL9: =RawStdLife7!$R$6 -> 7.79 | BM9: =RawStdLife7!$S$6 -> 10.21 | BN9: =RawStdLife7!$T$6 -> 12.63 | BO9: 9999 | BP9: =RawStdLife7!$Q$53 -> 4.47 | BQ9: =RawStdLife7!$R$53 -> 12.85 | BR9: =RawStdLife7!$S$53 -> 16.85 | BS9: =RawStdLife7!$T$53 -> 20.84 | BT9: 9999 | BU9: 9999 | BW9: =BW8+1 -> 19 | BX9: 9999 | BY9: =RawStdLife7!$V$6 -> 2.48 | BZ9: =RawStdLife7!$W$6 -> 7 | CA9: =RawStdLife7!$X$6 -> 9.02 | CB9: =RawStdLife7!$Y$6 -> 11.03 | CC9: 9999 | CD9: =RawStdLife7!$V$53 -> 4.09 | CE9: =RawStdLife7!$W$53 -> 11.55 | CF9: =RawStdLife7!$X$53 -> 14.88 | CG9: =RawStdLife7!$Y$53 -> 18.2 | CH9: 9999 | CI9: 9999 | CK9: =CK8+1 -> 19 | CL9: 9999 | CM9: 3.6 | CN9: 9.44 | CO9: 12.84 | CP9: 16.24 | CQ9: 9999 | CR9: 5.94 | CS9: 15.58 | CT9: 21.19 | CU9: 26.8 | CV9: 0 | CY9: =CY8+1 -> 19 | CZ9: 9999 | DA9: 2.88 | DB9: 8.4 | DC9: 11.28 | DD9: 14.16 | DE9: 9999 | DF9: 4.75 | DG9: 13.86 | DH9: 18.61 | DI9: 23.36 | DJ9: 9999 | DK9: 9999 | DM9: =DM8+1 -> 19 | DN9: 9999 | DO9: 2.48 | DP9: 6.56 | DQ9: 8.32 | DR9: 10.08 | DS9: 9999 | DT9: 4.09 | DU9: 10.82 | DV9: 13.73 | DW9: 16.63 | DX9: 9999 | DY9: 9999 | EA9: =EA8+1 -> 19 | EB9: 9999 | EC9: 2.83 | ED9: 8.17 | EE9: 10.91 | EF9: 13.65 | EG9: 9999 | EH9: 4.67 | EI9: 13.48 | EJ9: 18 | EK9: 22.52 | EL9: 9999 | EM9: 9999 | EO9: =EO8+1 -> 19 | EP9: 9999 | EQ9: 2.6 | ER9: 7.48 | ES9: 9.8 | ET9: 12.12 | EU9: 9999 | EV9: 4.29 | EW9: 12.34 | EX9: 16.17 | EY9: 20 | EZ9: 9999 | FA9: 9999 | FC9: =FC8+1 -> 19 | FD9: 9999 | FE9: 2.5 | FF9: 6.72 | FG9: 8.66 | FH9: 10.59 | FI9: 9999 | FJ9: 4.13 | FK9: 11.09 | FL9: 14.29 | FM9: 17.47 | FN9: 9999 | FO9: 9999 | FQ9: =FQ8+1 -> 19 | FR9: 9999 | FS9: 3.43 | FT9: 9 | FU9: 12.24 | FV9: 15.48 | FW9: 9999 | FX9: 5.66 | FY9: 14.85 | FZ9: 20.2 | GA9: 25.54 | GB9: 0 | GE9: =GE8+1 -> 19 | GF9: 9999 | GG9: 2.75 | GH9: 8.01 | GI9: 10.75 | GJ9: 13.5 | GK9: 9999 | GL9: 4.54 | GM9: 13.22 | GN9: 17.74 | GO9: 22.28 | GP9: 9999 | GQ9: 9999 | GS9: =GS8+1 -> 19 | GT9: 9999 | GU9: 2.36 | GV9: 6.25 | GW9: 7.93 | GX9: 9.61 | GY9: 9999 | GZ9: 3.89 | HA9: 10.31 | HB9: 13.08 | HC9: 15.86 | HD9: 9999 | HE9: 9999 | HG9: =HG8+1 -> 19 | HH9: 9999 | HI9: 2.7 | HJ9: 7.79 | HK9: 10.4 | HL9: 13.01 | HM9: 9999 | HN9: 4.46 | HO9: 12.85 | HP9: 17.16 | HQ9: 21.47 | HR9: 9999 | HS9: 9999 | HU9: =HU8+1 -> 19 | HV9: 9999 | HW9: 2.48 | HX9: 7.13 | HY9: 9.34 | HZ9: 11.55 | IA9: 9999 | IB9: 4.09 | IC9: 11.76 | ID9: 15.41 | IE9: 19.06 | IF9: 9999 | IG9: 9999 | II9: =II8+1 -> 19 | IJ9: 9999 | IK9: 2.39 | IL9: 6.41 | IM9: 8.25 | IN9: 10.1 | IO9: 9999 | IP9: 3.94 | IQ9: 10.58 | IR9: 13.61 | IS9: 16.67 | IT9: 9999 | IU9: 9999 | IW9: =IW8+1 -> 19 | IX9: 9999 | IY9: 9999 | IZ9: 9999 | JA9: 9999 | JB9: 9999 | JC9: 9999 | JD9: 9999 | JE9: 9999 | JF9: 9999 | JG9: 9999 | JH9: 0 | JK9: =JK8+1 -> 19 | JL9: 9999 | JM9: 9999 | JN9: 9999 | JO9: 9999 | JP9: 9999 | JQ9: 9999 | JR9: 9999 | JS9: 9999 | JT9: 9999 | JU9: 9999 | JV9: 9999 | JW9: 9999 | JY9: =JY8+1 -> 19 | JZ9: 9999 | KA9: 9999 | KB9: 9999 | KC9: 9999 | KD9: 9999 | KE9: 9999 | KF9: 9999 | KG9: 9999 | KH9: 9999 | KI9: 9999 | KJ9: 9999 | KK9: 9999 | KM9: =KM8+1 -> 19 | KN9: 9999 | KO9: 9999 | KP9: 9999 | KQ9: 9999 | KR9: 9999 | KS9: 9999 | KT9: 9999 | KU9: 9999 | KV9: 9999 | KW9: 9999 | KX9: 9999 | KY9: 9999 | LA9: =LA8+1 -> 19 | LB9: 9999 | LC9: 9999 | LD9: 9999 | LE9: 9999 | LF9: 9999 | LG9: 9999 | LH9: 9999 | LI9: 9999 | LJ9: 9999 | LK9: 9999 | LL9: 9999 | LM9: 9999 | LO9: =LO8+1 -> 19 | LP9: 9999 | LQ9: 9999 | LR9: 9999 | LS9: 9999 | LT9: 9999 | LU9: 9999 | LV9: 9999 | LW9: 9999 | LX9: 9999 | LY9: 9999 | LZ9: 9999 | MA9: 9999 | MC9: =MC8+1 -> 19 | MD9: 9999 | ME9: 3.08 | MF9: 8.06 | MG9: 10.97 | MH9: 13.87 | MI9: 9999 | MJ9: 5.08 | MK9: 13.3 | ML9: 18.1 | MM9: 22.89 | MN9: 0 | MQ9: =MQ8+1 -> 19 | MR9: 9999 | MS9: 2.46 | MT9: 7.18 | MU9: 9.64 | MV9: 12.1 | MW9: 9999 | MX9: 4.06 | MY9: 11.85 | MZ9: 15.91 | NA9: 19.97 | NB9: 9999 | NC9: 9999 | NE9: =NE8+1 -> 19 | NF9: 9999 | NG9: 2.12 | NH9: 5.6 | NI9: 7.11 | NJ9: 8.61 | NK9: 9999 | NL9: 3.5 | NM9: 9.24 | NN9: 11.73 | NO9: 14.21 | NP9: 9999 | NQ9: 9999 | NS9: =NS8+1 -> 19 | NT9: 9999 | NU9: 2.42 | NV9: 6.98 | NW9: 9.32 | NX9: 11.66 | NY9: 9999 | NZ9: 3.99 | OA9: 11.52 | OB9: 15.38 | OC9: 19.24 | OD9: 9999 | OE9: 9999 | OG9: =OG8+1 -> 19 | OH9: 9999 | OI9: 2.22 | OJ9: 6.39 | OK9: 8.37 | OL9: 10.35 | OM9: 9999 | ON9: 3.66 | OO9: 10.54 | OP9: 13.81 | OQ9: 17.08 | OR9: 9999 | OS9: 9999 | OU9: =OU8+1 -> 19 | OV9: 9999 | OW9: 2.14 | OX9: 5.74 | OY9: 7.39 | OZ9: 9.05 | PA9: 9999 | PB9: 3.53 | PC9: 9.47 | PD9: 12.19 | PE9: 14.93 | PF9: 9999 | PG9: 9999
E10: =E9+1 -> 20 | F10: 9999 | G10: =RawStdLife7!$B$6 -> 3.75 | H10: =RawStdLife7!$C$6 -> 9.83 | I10: =RawStdLife7!$D$6 -> 13.38 | J10: =RawStdLife7!$E$6 -> 16.92 | K10: 9999 | L10: =RawStdLife7!$B$53 -> 6.19 | M10: =RawStdLife7!$C$53 -> 16.22 | N10: =RawStdLife7!$D$53 -> 22.08 | O10: =RawStdLife7!$E$53 -> 27.92 | P10: 0 | S10: =S9+1 -> 20 | T10: 9999 | U10: =RawStdLife7!$G$6 -> 3 | V10: =RawStdLife7!$H$6 -> 8.75 | W10: =RawStdLife7!$I$6 -> 11.75 | X10: =RawStdLife7!$J$6 -> 14.75 | Y10: 9999 | Z10: =RawStdLife7!$G$53 -> 4.95 | AA10: =RawStdLife7!$H$53 -> 14.44 | AB10: =RawStdLife7!$I$53 -> 19.39 | AC10: =RawStdLife7!$J$53 -> 24.34 | AD10: 9999 | AE10: 9999 | AG10: =AG9+1 -> 20 | AH10: 9999 | AI10: =RawStdLife7!$AA$6 -> 2.58 | AJ10: =RawStdLife7!$AB$6 -> 6.83 | AK10: =RawStdLife7!$AC$6 -> 8.67 | AL10: =RawStdLife7!$AD$6 -> 10.5 | AM10: 9999 | AN10: =RawStdLife7!$AA$53 -> 4.26 | AO10: =RawStdLife7!$AB$53 -> 11.27 | AP10: =RawStdLife7!$AC$53 -> 14.31 | AQ10: =RawStdLife7!$AD$53 -> 17.33 | AR10: 9999 | AS10: 9999 | AU10: =AU9+1 -> 20 | AV10: 9999 | AW10: =RawStdLife7!$L$6 -> 2.95 | AX10: =RawStdLife7!$M$6 -> 8.51 | AY10: =RawStdLife7!$N$6 -> 11.36 | AZ10: =RawStdLife7!$O$6 -> 14.22 | BA10: 9999 | BB10: =RawStdLife7!$L$53 -> 4.87 | BC10: =RawStdLife7!$M$53 -> 14.04 | BD10: =RawStdLife7!$N$53 -> 18.74 | BE10: =RawStdLife7!$O$53 -> 23.46 | BF10: 9999 | BG10: 9999 | BI10: =BI9+1 -> 20 | BJ10: 9999 | BK10: =RawStdLife7!$Q$6 -> 2.71 | BL10: =RawStdLife7!$R$6 -> 7.79 | BM10: =RawStdLife7!$S$6 -> 10.21 | BN10: =RawStdLife7!$T$6 -> 12.63 | BO10: 9999 | BP10: =RawStdLife7!$Q$53 -> 4.47 | BQ10: =RawStdLife7!$R$53 -> 12.85 | BR10: =RawStdLife7!$S$53 -> 16.85 | BS10: =RawStdLife7!$T$53 -> 20.84 | BT10: 9999 | BU10: 9999 | BW10: =BW9+1 -> 20 | BX10: 9999 | BY10: =RawStdLife7!$V$6 -> 2.48 | BZ10: =RawStdLife7!$W$6 -> 7 | CA10: =RawStdLife7!$X$6 -> 9.02 | CB10: =RawStdLife7!$Y$6 -> 11.03 | CC10: 9999 | CD10: =RawStdLife7!$V$53 -> 4.09 | CE10: =RawStdLife7!$W$53 -> 11.55 | CF10: =RawStdLife7!$X$53 -> 14.88 | CG10: =RawStdLife7!$Y$53 -> 18.2 | CH10: 9999 | CI10: 9999 | CK10: =CK9+1 -> 20 | CL10: 9999 | CM10: 3.6 | CN10: 9.44 | CO10: 12.84 | CP10: 16.24 | CQ10: 9999 | CR10: 5.94 | CS10: 15.58 | CT10: 21.19 | CU10: 26.8 | CV10: 0 | CY10: =CY9+1 -> 20 | CZ10: 9999 | DA10: 2.88 | DB10: 8.4 | DC10: 11.28 | DD10: 14.16 | DE10: 9999 | DF10: 4.75 | DG10: 13.86 | DH10: 18.61 | DI10: 23.36 | DJ10: 9999 | DK10: 9999 | DM10: =DM9+1 -> 20 | DN10: 9999 | DO10: 2.48 | DP10: 6.56 | DQ10: 8.32 | DR10: 10.08 | DS10: 9999 | DT10: 4.09 | DU10: 10.82 | DV10: 13.73 | DW10: 16.63 | DX10: 9999 | DY10: 9999 | EA10: =EA9+1 -> 20 | EB10: 9999 | EC10: 2.83 | ED10: 8.17 | EE10: 10.91 | EF10: 13.65 | EG10: 9999 | EH10: 4.67 | EI10: 13.48 | EJ10: 18 | EK10: 22.52 | EL10: 9999 | EM10: 9999 | EO10: =EO9+1 -> 20 | EP10: 9999 | EQ10: 2.6 | ER10: 7.48 | ES10: 9.8 | ET10: 12.12 | EU10: 9999 | EV10: 4.29 | EW10: 12.34 | EX10: 16.17 | EY10: 20 | EZ10: 9999 | FA10: 9999 | FC10: =FC9+1 -> 20 | FD10: 9999 | FE10: 2.5 | FF10: 6.72 | FG10: 8.66 | FH10: 10.59 | FI10: 9999 | FJ10: 4.13 | FK10: 11.09 | FL10: 14.29 | FM10: 17.47 | FN10: 9999 | FO10: 9999 | FQ10: =FQ9+1 -> 20 | FR10: 9999 | FS10: 3.43 | FT10: 9 | FU10: 12.24 | FV10: 15.48 | FW10: 9999 | FX10: 5.66 | FY10: 14.85 | FZ10: 20.2 | GA10: 25.54 | GB10: 0 | GE10: =GE9+1 -> 20 | GF10: 9999 | GG10: 2.75 | GH10: 8.01 | GI10: 10.75 | GJ10: 13.5 | GK10: 9999 | GL10: 4.54 | GM10: 13.22 | GN10: 17.74 | GO10: 22.28 | GP10: 9999 | GQ10: 9999 | GS10: =GS9+1 -> 20 | GT10: 9999 | GU10: 2.36 | GV10: 6.25 | GW10: 7.93 | GX10: 9.61 | GY10: 9999 | GZ10: 3.89 | HA10: 10.31 | HB10: 13.08 | HC10: 15.86 | HD10: 9999 | HE10: 9999 | HG10: =HG9+1 -> 20 | HH10: 9999 | HI10: 2.7 | HJ10: 7.79 | HK10: 10.4 | HL10: 13.01 | HM10: 9999 | HN10: 4.46 | HO10: 12.85 | HP10: 17.16 | HQ10: 21.47 | HR10: 9999 | HS10: 9999 | HU10: =HU9+1 -> 20 | HV10: 9999 | HW10: 2.48 | HX10: 7.13 | HY10: 9.34 | HZ10: 11.55 | IA10: 9999 | IB10: 4.09 | IC10: 11.76 | ID10: 15.41 | IE10: 19.06 | IF10: 9999 | IG10: 9999 | II10: =II9+1 -> 20 | IJ10: 9999 | IK10: 2.39 | IL10: 6.41 | IM10: 8.25 | IN10: 10.1 | IO10: 9999 | IP10: 3.94 | IQ10: 10.58 | IR10: 13.61 | IS10: 16.67 | IT10: 9999 | IU10: 9999 | IW10: =IW9+1 -> 20 | IX10: 9999 | IY10: 9999 | IZ10: 9999 | JA10: 9999 | JB10: 9999 | JC10: 9999 | JD10: 9999 | JE10: 9999 | JF10: 9999 | JG10: 9999 | JH10: 0 | JK10: =JK9+1 -> 20 | JL10: 9999 | JM10: 9999 | JN10: 9999 | JO10: 9999 | JP10: 9999 | JQ10: 9999 | JR10: 9999 | JS10: 9999 | JT10: 9999 | JU10: 9999 | JV10: 9999 | JW10: 9999 | JY10: =JY9+1 -> 20 | JZ10: 9999 | KA10: 9999 | KB10: 9999 | KC10: 9999 | KD10: 9999 | KE10: 9999 | KF10: 9999 | KG10: 9999 | KH10: 9999 | KI10: 9999 | KJ10: 9999 | KK10: 9999 | KM10: =KM9+1 -> 20 | KN10: 9999 | KO10: 9999 | KP10: 9999 | KQ10: 9999 | KR10: 9999 | KS10: 9999 | KT10: 9999 | KU10: 9999 | KV10: 9999 | KW10: 9999 | KX10: 9999 | KY10: 9999 | LA10: =LA9+1 -> 20 | LB10: 9999 | LC10: 9999 | LD10: 9999 | LE10: 9999 | LF10: 9999 | LG10: 9999 | LH10: 9999 | LI10: 9999 | LJ10: 9999 | LK10: 9999 | LL10: 9999 | LM10: 9999 | LO10: =LO9+1 -> 20 | LP10: 9999 | LQ10: 9999 | LR10: 9999 | LS10: 9999 | LT10: 9999 | LU10: 9999 | LV10: 9999 | LW10: 9999 | LX10: 9999 | LY10: 9999 | LZ10: 9999 | MA10: 9999 | MC10: =MC9+1 -> 20 | MD10: 9999 | ME10: 3.08 | MF10: 8.06 | MG10: 10.97 | MH10: 13.87 | MI10: 9999 | MJ10: 5.08 | MK10: 13.3 | ML10: 18.1 | MM10: 22.89 | MN10: 0 | MQ10: =MQ9+1 -> 20 | MR10: 9999 | MS10: 2.46 | MT10: 7.18 | MU10: 9.64 | MV10: 12.1 | MW10: 9999 | MX10: 4.06 | MY10: 11.85 | MZ10: 15.91 | NA10: 19.97 | NB10: 9999 | NC10: 9999 | NE10: =NE9+1 -> 20 | NF10: 9999 | NG10: 2.12 | NH10: 5.6 | NI10: 7.11 | NJ10: 8.61 | NK10: 9999 | NL10: 3.5 | NM10: 9.24 | NN10: 11.73 | NO10: 14.21 | NP10: 9999 | NQ10: 9999 | NS10: =NS9+1 -> 20 | NT10: 9999 | NU10: 2.42 | NV10: 6.98 | NW10: 9.32 | NX10: 11.66 | NY10: 9999 | NZ10: 3.99 | OA10: 11.52 | OB10: 15.38 | OC10: 19.24 | OD10: 9999 | OE10: 9999 | OG10: =OG9+1 -> 20 | OH10: 9999 | OI10: 2.22 | OJ10: 6.39 | OK10: 8.37 | OL10: 10.35 | OM10: 9999 | ON10: 3.66 | OO10: 10.54 | OP10: 13.81 | OQ10: 17.08 | OR10: 9999 | OS10: 9999 | OU10: =OU9+1 -> 20 | OV10: 9999 | OW10: 2.14 | OX10: 5.74 | OY10: 7.39 | OZ10: 9.05 | PA10: 9999 | PB10: 3.53 | PC10: 9.47 | PD10: 12.19 | PE10: 14.93 | PF10: 9999 | PG10: 9999
A11: ANY OF THE HEADINGS | E11: =E10+1 -> 21 | F11: 9999 | G11: =RawStdLife7!$B$6 -> 3.75 | H11: =RawStdLife7!$C$6 -> 9.83 | I11: =RawStdLife7!$D$6 -> 13.38 | J11: =RawStdLife7!$E$6 -> 16.92 | K11: 9999 | L11: =RawStdLife7!$B$53 -> 6.19 | M11: =RawStdLife7!$C$53 -> 16.22 | N11: =RawStdLife7!$D$53 -> 22.08 | O11: =RawStdLife7!$E$53 -> 27.92 | P11: 0 | S11: =S10+1 -> 21 | T11: 9999 | U11: =RawStdLife7!$G$6 -> 3 | V11: =RawStdLife7!$H$6 -> 8.75 | W11: =RawStdLife7!$I$6 -> 11.75 | X11: =RawStdLife7!$J$6 -> 14.75 | Y11: 9999 | Z11: =RawStdLife7!$G$53 -> 4.95 | AA11: =RawStdLife7!$H$53 -> 14.44 | AB11: =RawStdLife7!$I$53 -> 19.39 | AC11: =RawStdLife7!$J$53 -> 24.34 | AD11: 9999 | AE11: 9999 | AG11: =AG10+1 -> 21 | AH11: 9999 | AI11: =RawStdLife7!$AA$6 -> 2.58 | AJ11: =RawStdLife7!$AB$6 -> 6.83 | AK11: =RawStdLife7!$AC$6 -> 8.67 | AL11: =RawStdLife7!$AD$6 -> 10.5 | AM11: 9999 | AN11: =RawStdLife7!$AA$53 -> 4.26 | AO11: =RawStdLife7!$AB$53 -> 11.27 | AP11: =RawStdLife7!$AC$53 -> 14.31 | AQ11: =RawStdLife7!$AD$53 -> 17.33 | AR11: 9999 | AS11: 9999 | AU11: =AU10+1 -> 21 | AV11: 9999 | AW11: =RawStdLife7!$L$6 -> 2.95 | AX11: =RawStdLife7!$M$6 -> 8.51 | AY11: =RawStdLife7!$N$6 -> 11.36 | AZ11: =RawStdLife7!$O$6 -> 14.22 | BA11: 9999 | BB11: =RawStdLife7!$L$53 -> 4.87 | BC11: =RawStdLife7!$M$53 -> 14.04 | BD11: =RawStdLife7!$N$53 -> 18.74 | BE11: =RawStdLife7!$O$53 -> 23.46 | BF11: 9999 | BG11: 9999 | BI11: =BI10+1 -> 21 | BJ11: 9999 | BK11: =RawStdLife7!$Q$6 -> 2.71 | BL11: =RawStdLife7!$R$6 -> 7.79 | BM11: =RawStdLife7!$S$6 -> 10.21 | BN11: =RawStdLife7!$T$6 -> 12.63 | BO11: 9999 | BP11: =RawStdLife7!$Q$53 -> 4.47 | BQ11: =RawStdLife7!$R$53 -> 12.85 | BR11: =RawStdLife7!$S$53 -> 16.85 | BS11: =RawStdLife7!$T$53 -> 20.84 | BT11: 9999 | BU11: 9999 | BW11: =BW10+1 -> 21 | BX11: 9999 | BY11: =RawStdLife7!$V$6 -> 2.48 | BZ11: =RawStdLife7!$W$6 -> 7 | CA11: =RawStdLife7!$X$6 -> 9.02 | CB11: =RawStdLife7!$Y$6 -> 11.03 | CC11: 9999 | CD11: =RawStdLife7!$V$53 -> 4.09 | CE11: =RawStdLife7!$W$53 -> 11.55 | CF11: =RawStdLife7!$X$53 -> 14.88 | CG11: =RawStdLife7!$Y$53 -> 18.2 | CH11: 9999 | CI11: 9999 | CK11: =CK10+1 -> 21 | CL11: 9999 | CM11: 3.6 | CN11: 9.44 | CO11: 12.84 | CP11: 16.24 | CQ11: 9999 | CR11: 5.94 | CS11: 15.58 | CT11: 21.19 | CU11: 26.8 | CV11: 0 | CY11: =CY10+1 -> 21 | CZ11: 9999 | DA11: 2.88 | DB11: 8.4 | DC11: 11.28 | DD11: 14.16 | DE11: 9999 | DF11: 4.75 | DG11: 13.86 | DH11: 18.61 | DI11: 23.36 | DJ11: 9999 | DK11: 9999 | DM11: =DM10+1 -> 21 | DN11: 9999 | DO11: 2.48 | DP11: 6.56 | DQ11: 8.32 | DR11: 10.08 | DS11: 9999 | DT11: 4.09 | DU11: 10.82 | DV11: 13.73 | DW11: 16.63 | DX11: 9999 | DY11: 9999 | EA11: =EA10+1 -> 21 | EB11: 9999 | EC11: 2.83 | ED11: 8.17 | EE11: 10.91 | EF11: 13.65 | EG11: 9999 | EH11: 4.67 | EI11: 13.48 | EJ11: 18 | EK11: 22.52 | EL11: 9999 | EM11: 9999 | EO11: =EO10+1 -> 21 | EP11: 9999 | EQ11: 2.6 | ER11: 7.48 | ES11: 9.8 | ET11: 12.12 | EU11: 9999 | EV11: 4.29 | EW11: 12.34 | EX11: 16.17 | EY11: 20 | EZ11: 9999 | FA11: 9999 | FC11: =FC10+1 -> 21 | FD11: 9999 | FE11: 2.5 | FF11: 6.72 | FG11: 8.66 | FH11: 10.59 | FI11: 9999 | FJ11: 4.13 | FK11: 11.09 | FL11: 14.29 | FM11: 17.47 | FN11: 9999 | FO11: 9999 | FQ11: =FQ10+1 -> 21 | FR11: 9999 | FS11: 3.43 | FT11: 9 | FU11: 12.24 | FV11: 15.48 | FW11: 9999 | FX11: 5.66 | FY11: 14.85 | FZ11: 20.2 | GA11: 25.54 | GB11: 0 | GE11: =GE10+1 -> 21 | GF11: 9999 | GG11: 2.75 | GH11: 8.01 | GI11: 10.75 | GJ11: 13.5 | GK11: 9999 | GL11: 4.54 | GM11: 13.22 | GN11: 17.74 | GO11: 22.28 | GP11: 9999 | GQ11: 9999 | GS11: =GS10+1 -> 21 | GT11: 9999 | GU11: 2.36 | GV11: 6.25 | GW11: 7.93 | GX11: 9.61 | GY11: 9999 | GZ11: 3.89 | HA11: 10.31 | HB11: 13.08 | HC11: 15.86 | HD11: 9999 | HE11: 9999 | HG11: =HG10+1 -> 21 | HH11: 9999 | HI11: 2.7 | HJ11: 7.79 | HK11: 10.4 | HL11: 13.01 | HM11: 9999 | HN11: 4.46 | HO11: 12.85 | HP11: 17.16 | HQ11: 21.47 | HR11: 9999 | HS11: 9999 | HU11: =HU10+1 -> 21 | HV11: 9999 | HW11: 2.48 | HX11: 7.13 | HY11: 9.34 | HZ11: 11.55 | IA11: 9999 | IB11: 4.09 | IC11: 11.76 | ID11: 15.41 | IE11: 19.06 | IF11: 9999 | IG11: 9999 | II11: =II10+1 -> 21 | IJ11: 9999 | IK11: 2.39 | IL11: 6.41 | IM11: 8.25 | IN11: 10.1 | IO11: 9999 | IP11: 3.94 | IQ11: 10.58 | IR11: 13.61 | IS11: 16.67 | IT11: 9999 | IU11: 9999 | IW11: =IW10+1 -> 21 | IX11: 9999 | IY11: 9999 | IZ11: 9999 | JA11: 9999 | JB11: 9999 | JC11: 9999 | JD11: 9999 | JE11: 9999 | JF11: 9999 | JG11: 9999 | JH11: 0 | JK11: =JK10+1 -> 21 | JL11: 9999 | JM11: 9999 | JN11: 9999 | JO11: 9999 | JP11: 9999 | JQ11: 9999 | JR11: 9999 | JS11: 9999 | JT11: 9999 | JU11: 9999 | JV11: 9999 | JW11: 9999 | JY11: =JY10+1 -> 21 | JZ11: 9999 | KA11: 9999 | KB11: 9999 | KC11: 9999 | KD11: 9999 | KE11: 9999 | KF11: 9999 | KG11: 9999 | KH11: 9999 | KI11: 9999 | KJ11: 9999 | KK11: 9999 | KM11: =KM10+1 -> 21 | KN11: 9999 | KO11: 9999 | KP11: 9999 | KQ11: 9999 | KR11: 9999 | KS11: 9999 | KT11: 9999 | KU11: 9999 | KV11: 9999 | KW11: 9999 | KX11: 9999 | KY11: 9999 | LA11: =LA10+1 -> 21 | LB11: 9999 | LC11: 9999 | LD11: 9999 | LE11: 9999 | LF11: 9999 | LG11: 9999 | LH11: 9999 | LI11: 9999 | LJ11: 9999 | LK11: 9999 | LL11: 9999 | LM11: 9999 | LO11: =LO10+1 -> 21 | LP11: 9999 | LQ11: 9999 | LR11: 9999 | LS11: 9999 | LT11: 9999 | LU11: 9999 | LV11: 9999 | LW11: 9999 | LX11: 9999 | LY11: 9999 | LZ11: 9999 | MA11: 9999 | MC11: =MC10+1 -> 21 | MD11: 9999 | ME11: 3.08 | MF11: 8.06 | MG11: 10.97 | MH11: 13.87 | MI11: 9999 | MJ11: 5.08 | MK11: 13.3 | ML11: 18.1 | MM11: 22.89 | MN11: 0 | MQ11: =MQ10+1 -> 21 | MR11: 9999 | MS11: 2.46 | MT11: 7.18 | MU11: 9.64 | MV11: 12.1 | MW11: 9999 | MX11: 4.06 | MY11: 11.85 | MZ11: 15.91 | NA11: 19.97 | NB11: 9999 | NC11: 9999 | NE11: =NE10+1 -> 21 | NF11: 9999 | NG11: 2.12 | NH11: 5.6 | NI11: 7.11 | NJ11: 8.61 | NK11: 9999 | NL11: 3.5 | NM11: 9.24 | NN11: 11.73 | NO11: 14.21 | NP11: 9999 | NQ11: 9999 | NS11: =NS10+1 -> 21 | NT11: 9999 | NU11: 2.42 | NV11: 6.98 | NW11: 9.32 | NX11: 11.66 | NY11: 9999 | NZ11: 3.99 | OA11: 11.52 | OB11: 15.38 | OC11: 19.24 | OD11: 9999 | OE11: 9999 | OG11: =OG10+1 -> 21 | OH11: 9999 | OI11: 2.22 | OJ11: 6.39 | OK11: 8.37 | OL11: 10.35 | OM11: 9999 | ON11: 3.66 | OO11: 10.54 | OP11: 13.81 | OQ11: 17.08 | OR11: 9999 | OS11: 9999 | OU11: =OU10+1 -> 21 | OV11: 9999 | OW11: 2.14 | OX11: 5.74 | OY11: 7.39 | OZ11: 9.05 | PA11: 9999 | PB11: 3.53 | PC11: 9.47 | PD11: 12.19 | PE11: 14.93 | PF11: 9999 | PG11: 9999
E12: =E11+1 -> 22 | F12: 9999 | G12: =RawStdLife7!$B$6 -> 3.75 | H12: =RawStdLife7!$C$6 -> 9.83 | I12: =RawStdLife7!$D$6 -> 13.38 | J12: =RawStdLife7!$E$6 -> 16.92 | K12: 9999 | L12: =RawStdLife7!$B$53 -> 6.19 | M12: =RawStdLife7!$C$53 -> 16.22 | N12: =RawStdLife7!$D$53 -> 22.08 | O12: =RawStdLife7!$E$53 -> 27.92 | P12: 0 | S12: =S11+1 -> 22 | T12: 9999 | U12: =RawStdLife7!$G$6 -> 3 | V12: =RawStdLife7!$H$6 -> 8.75 | W12: =RawStdLife7!$I$6 -> 11.75 | X12: =RawStdLife7!$J$6 -> 14.75 | Y12: 9999 | Z12: =RawStdLife7!$G$53 -> 4.95 | AA12: =RawStdLife7!$H$53 -> 14.44 | AB12: =RawStdLife7!$I$53 -> 19.39 | AC12: =RawStdLife7!$J$53 -> 24.34 | AD12: 9999 | AE12: 9999 | AG12: =AG11+1 -> 22 | AH12: 9999 | AI12: =RawStdLife7!$AA$6 -> 2.58 | AJ12: =RawStdLife7!$AB$6 -> 6.83 | AK12: =RawStdLife7!$AC$6 -> 8.67 | AL12: =RawStdLife7!$AD$6 -> 10.5 | AM12: 9999 | AN12: =RawStdLife7!$AA$53 -> 4.26 | AO12: =RawStdLife7!$AB$53 -> 11.27 | AP12: =RawStdLife7!$AC$53 -> 14.31 | AQ12: =RawStdLife7!$AD$53 -> 17.33 | AR12: 9999 | AS12: 9999 | AU12: =AU11+1 -> 22 | AV12: 9999 | AW12: =RawStdLife7!$L$6 -> 2.95 | AX12: =RawStdLife7!$M$6 -> 8.51 | AY12: =RawStdLife7!$N$6 -> 11.36 | AZ12: =RawStdLife7!$O$6 -> 14.22 | BA12: 9999 | BB12: =RawStdLife7!$L$53 -> 4.87 | BC12: =RawStdLife7!$M$53 -> 14.04 | BD12: =RawStdLife7!$N$53 -> 18.74 | BE12: =RawStdLife7!$O$53 -> 23.46 | BF12: 9999 | BG12: 9999 | BI12: =BI11+1 -> 22 | BJ12: 9999 | BK12: =RawStdLife7!$Q$6 -> 2.71 | BL12: =RawStdLife7!$R$6 -> 7.79 | BM12: =RawStdLife7!$S$6 -> 10.21 | BN12: =RawStdLife7!$T$6 -> 12.63 | BO12: 9999 | BP12: =RawStdLife7!$Q$53 -> 4.47 | BQ12: =RawStdLife7!$R$53 -> 12.85 | BR12: =RawStdLife7!$S$53 -> 16.85 | BS12: =RawStdLife7!$T$53 -> 20.84 | BT12: 9999 | BU12: 9999 | BW12: =BW11+1 -> 22 | BX12: 9999 | BY12: =RawStdLife7!$V$6 -> 2.48 | BZ12: =RawStdLife7!$W$6 -> 7 | CA12: =RawStdLife7!$X$6 -> 9.02 | CB12: =RawStdLife7!$Y$6 -> 11.03 | CC12: 9999 | CD12: =RawStdLife7!$V$53 -> 4.09 | CE12: =RawStdLife7!$W$53 -> 11.55 | CF12: =RawStdLife7!$X$53 -> 14.88 | CG12: =RawStdLife7!$Y$53 -> 18.2 | CH12: 9999 | CI12: 9999 | CK12: =CK11+1 -> 22 | CL12: 9999 | CM12: 3.6 | CN12: 9.44 | CO12: 12.84 | CP12: 16.24 | CQ12: 9999 | CR12: 5.94 | CS12: 15.58 | CT12: 21.19 | CU12: 26.8 | CV12: 0 | CY12: =CY11+1 -> 22 | CZ12: 9999 | DA12: 2.88 | DB12: 8.4 | DC12: 11.28 | DD12: 14.16 | DE12: 9999 | DF12: 4.75 | DG12: 13.86 | DH12: 18.61 | DI12: 23.36 | DJ12: 9999 | DK12: 9999 | DM12: =DM11+1 -> 22 | DN12: 9999 | DO12: 2.48 | DP12: 6.56 | DQ12: 8.32 | DR12: 10.08 | DS12: 9999 | DT12: 4.09 | DU12: 10.82 | DV12: 13.73 | DW12: 16.63 | DX12: 9999 | DY12: 9999 | EA12: =EA11+1 -> 22 | EB12: 9999 | EC12: 2.83 | ED12: 8.17 | EE12: 10.91 | EF12: 13.65 | EG12: 9999 | EH12: 4.67 | EI12: 13.48 | EJ12: 18 | EK12: 22.52 | EL12: 9999 | EM12: 9999 | EO12: =EO11+1 -> 22 | EP12: 9999 | EQ12: 2.6 | ER12: 7.48 | ES12: 9.8 | ET12: 12.12 | EU12: 9999 | EV12: 4.29 | EW12: 12.34 | EX12: 16.17 | EY12: 20 | EZ12: 9999 | FA12: 9999 | FC12: =FC11+1 -> 22 | FD12: 9999 | FE12: 2.5 | FF12: 6.72 | FG12: 8.66 | FH12: 10.59 | FI12: 9999 | FJ12: 4.13 | FK12: 11.09 | FL12: 14.29 | FM12: 17.47 | FN12: 9999 | FO12: 9999 | FQ12: =FQ11+1 -> 22 | FR12: 9999 | FS12: 3.43 | FT12: 9 | FU12: 12.24 | FV12: 15.48 | FW12: 9999 | FX12: 5.66 | FY12: 14.85 | FZ12: 20.2 | GA12: 25.54 | GB12: 0 | GE12: =GE11+1 -> 22 | GF12: 9999 | GG12: 2.75 | GH12: 8.01 | GI12: 10.75 | GJ12: 13.5 | GK12: 9999 | GL12: 4.54 | GM12: 13.22 | GN12: 17.74 | GO12: 22.28 | GP12: 9999 | GQ12: 9999 | GS12: =GS11+1 -> 22 | GT12: 9999 | GU12: 2.36 | GV12: 6.25 | GW12: 7.93 | GX12: 9.61 | GY12: 9999 | GZ12: 3.89 | HA12: 10.31 | HB12: 13.08 | HC12: 15.86 | HD12: 9999 | HE12: 9999 | HG12: =HG11+1 -> 22 | HH12: 9999 | HI12: 2.7 | HJ12: 7.79 | HK12: 10.4 | HL12: 13.01 | HM12: 9999 | HN12: 4.46 | HO12: 12.85 | HP12: 17.16 | HQ12: 21.47 | HR12: 9999 | HS12: 9999 | HU12: =HU11+1 -> 22 | HV12: 9999 | HW12: 2.48 | HX12: 7.13 | HY12: 9.34 | HZ12: 11.55 | IA12: 9999 | IB12: 4.09 | IC12: 11.76 | ID12: 15.41 | IE12: 19.06 | IF12: 9999 | IG12: 9999 | II12: =II11+1 -> 22 | IJ12: 9999 | IK12: 2.39 | IL12: 6.41 | IM12: 8.25 | IN12: 10.1 | IO12: 9999 | IP12: 3.94 | IQ12: 10.58 | IR12: 13.61 | IS12: 16.67 | IT12: 9999 | IU12: 9999 | IW12: =IW11+1 -> 22 | IX12: 9999 | IY12: 9999 | IZ12: 9999 | JA12: 9999 | JB12: 9999 | JC12: 9999 | JD12: 9999 | JE12: 9999 | JF12: 9999 | JG12: 9999 | JH12: 0 | JK12: =JK11+1 -> 22 | JL12: 9999 | JM12: 9999 | JN12: 9999 | JO12: 9999 | JP12: 9999 | JQ12: 9999 | JR12: 9999 | JS12: 9999 | JT12: 9999 | JU12: 9999 | JV12: 9999 | JW12: 9999 | JY12: =JY11+1 -> 22 | JZ12: 9999 | KA12: 9999 | KB12: 9999 | KC12: 9999 | KD12: 9999 | KE12: 9999 | KF12: 9999 | KG12: 9999 | KH12: 9999 | KI12: 9999 | KJ12: 9999 | KK12: 9999 | KM12: =KM11+1 -> 22 | KN12: 9999 | KO12: 9999 | KP12: 9999 | KQ12: 9999 | KR12: 9999 | KS12: 9999 | KT12: 9999 | KU12: 9999 | KV12: 9999 | KW12: 9999 | KX12: 9999 | KY12: 9999 | LA12: =LA11+1 -> 22 | LB12: 9999 | LC12: 9999 | LD12: 9999 | LE12: 9999 | LF12: 9999 | LG12: 9999 | LH12: 9999 | LI12: 9999 | LJ12: 9999 | LK12: 9999 | LL12: 9999 | LM12: 9999 | LO12: =LO11+1 -> 22 | LP12: 9999 | LQ12: 9999 | LR12: 9999 | LS12: 9999 | LT12: 9999 | LU12: 9999 | LV12: 9999 | LW12: 9999 | LX12: 9999 | LY12: 9999 | LZ12: 9999 | MA12: 9999 | MC12: =MC11+1 -> 22 | MD12: 9999 | ME12: 3.08 | MF12: 8.06 | MG12: 10.97 | MH12: 13.87 | MI12: 9999 | MJ12: 5.08 | MK12: 13.3 | ML12: 18.1 | MM12: 22.89 | MN12: 0 | MQ12: =MQ11+1 -> 22 | MR12: 9999 | MS12: 2.46 | MT12: 7.18 | MU12: 9.64 | MV12: 12.1 | MW12: 9999 | MX12: 4.06 | MY12: 11.85 | MZ12: 15.91 | NA12: 19.97 | NB12: 9999 | NC12: 9999 | NE12: =NE11+1 -> 22 | NF12: 9999 | NG12: 2.12 | NH12: 5.6 | NI12: 7.11 | NJ12: 8.61 | NK12: 9999 | NL12: 3.5 | NM12: 9.24 | NN12: 11.73 | NO12: 14.21 | NP12: 9999 | NQ12: 9999 | NS12: =NS11+1 -> 22 | NT12: 9999 | NU12: 2.42 | NV12: 6.98 | NW12: 9.32 | NX12: 11.66 | NY12: 9999 | NZ12: 3.99 | OA12: 11.52 | OB12: 15.38 | OC12: 19.24 | OD12: 9999 | OE12: 9999 | OG12: =OG11+1 -> 22 | OH12: 9999 | OI12: 2.22 | OJ12: 6.39 | OK12: 8.37 | OL12: 10.35 | OM12: 9999 | ON12: 3.66 | OO12: 10.54 | OP12: 13.81 | OQ12: 17.08 | OR12: 9999 | OS12: 9999 | OU12: =OU11+1 -> 22 | OV12: 9999 | OW12: 2.14 | OX12: 5.74 | OY12: 7.39 | OZ12: 9.05 | PA12: 9999 | PB12: 3.53 | PC12: 9.47 | PD12: 12.19 | PE12: 14.93 | PF12: 9999 | PG12: 9999
A13: OR NOTES ON THIS PAGE. | E13: 23 | F13: 9999 | G13: =RawStdLife7!$B$6 -> 3.75 | H13: =RawStdLife7!$C$6 -> 9.83 | I13: =RawStdLife7!$D$6 -> 13.38 | J13: =RawStdLife7!$E$6 -> 16.92 | K13: 9999 | L13: =RawStdLife7!$B$53 -> 6.19 | M13: =RawStdLife7!$C$53 -> 16.22 | N13: =RawStdLife7!$D$53 -> 22.08 | O13: =RawStdLife7!$E$53 -> 27.92 | P13: 0 | S13: 23 | T13: 9999 | U13: =RawStdLife7!$G$6 -> 3 | V13: =RawStdLife7!$H$6 -> 8.75 | W13: =RawStdLife7!$I$6 -> 11.75 | X13: =RawStdLife7!$J$6 -> 14.75 | Y13: 9999 | Z13: =RawStdLife7!$G$53 -> 4.95 | AA13: =RawStdLife7!$H$53 -> 14.44 | AB13: =RawStdLife7!$I$53 -> 19.39 | AC13: =RawStdLife7!$J$53 -> 24.34 | AD13: 9999 | AE13: 9999 | AG13: 23 | AH13: 9999 | AI13: =RawStdLife7!$AA$6 -> 2.58 | AJ13: =RawStdLife7!$AB$6 -> 6.83 | AK13: =RawStdLife7!$AC$6 -> 8.67 | AL13: =RawStdLife7!$AD$6 -> 10.5 | AM13: 9999 | AN13: =RawStdLife7!$AA$53 -> 4.26 | AO13: =RawStdLife7!$AB$53 -> 11.27 | AP13: =RawStdLife7!$AC$53 -> 14.31 | AQ13: =RawStdLife7!$AD$53 -> 17.33 | AR13: 9999 | AS13: 9999 | AU13: 23 | AV13: 9999 | AW13: =RawStdLife7!$L$6 -> 2.95 | AX13: =RawStdLife7!$M$6 -> 8.51 | AY13: =RawStdLife7!$N$6 -> 11.36 | AZ13: =RawStdLife7!$O$6 -> 14.22 | BA13: 9999 | BB13: =RawStdLife7!$L$53 -> 4.87 | BC13: =RawStdLife7!$M$53 -> 14.04 | BD13: =RawStdLife7!$N$53 -> 18.74 | BE13: =RawStdLife7!$O$53 -> 23.46 | BF13: 9999 | BG13: 9999 | BI13: 23 | BJ13: 9999 | BK13: =RawStdLife7!$Q$6 -> 2.71 | BL13: =RawStdLife7!$R$6 -> 7.79 | BM13: =RawStdLife7!$S$6 -> 10.21 | BN13: =RawStdLife7!$T$6 -> 12.63 | BO13: 9999 | BP13: =RawStdLife7!$Q$53 -> 4.47 | BQ13: =RawStdLife7!$R$53 -> 12.85 | BR13: =RawStdLife7!$S$53 -> 16.85 | BS13: =RawStdLife7!$T$53 -> 20.84 | BT13: 9999 | BU13: 9999 | BW13: 23 | BX13: 9999 | BY13: =RawStdLife7!$V$6 -> 2.48 | BZ13: =RawStdLife7!$W$6 -> 7 | CA13: =RawStdLife7!$X$6 -> 9.02 | CB13: =RawStdLife7!$Y$6 -> 11.03 | CC13: 9999 | CD13: =RawStdLife7!$V$53 -> 4.09 | CE13: =RawStdLife7!$W$53 -> 11.55 | CF13: =RawStdLife7!$X$53 -> 14.88 | CG13: =RawStdLife7!$Y$53 -> 18.2 | CH13: 9999 | CI13: 9999 | CK13: 23 | CL13: 9999 | CM13: 3.6 | CN13: 9.44 | CO13: 12.84 | CP13: 16.24 | CQ13: 9999 | CR13: 5.94 | CS13: 15.58 | CT13: 21.19 | CU13: 26.8 | CV13: 0 | CY13: 23 | CZ13: 9999 | DA13: 2.88 | DB13: 8.4 | DC13: 11.28 | DD13: 14.16 | DE13: 9999 | DF13: 4.75 | DG13: 13.86 | DH13: 18.61 | DI13: 23.36 | DJ13: 9999 | DK13: 9999 | DM13: 23 | DN13: 9999 | DO13: 2.48 | DP13: 6.56 | DQ13: 8.32 | DR13: 10.08 | DS13: 9999 | DT13: 4.09 | DU13: 10.82 | DV13: 13.73 | DW13: 16.63 | DX13: 9999 | DY13: 9999 | EA13: 23 | EB13: 9999 | EC13: 2.83 | ED13: 8.17 | EE13: 10.91 | EF13: 13.65 | EG13: 9999 | EH13: 4.67 | EI13: 13.48 | EJ13: 18 | EK13: 22.52 | EL13: 9999 | EM13: 9999 | EO13: 23 | EP13: 9999 | EQ13: 2.6 | ER13: 7.48 | ES13: 9.8 | ET13: 12.12 | EU13: 9999 | EV13: 4.29 | EW13: 12.34 | EX13: 16.17 | EY13: 20 | EZ13: 9999 | FA13: 9999 | FC13: 23 | FD13: 9999 | FE13: 2.5 | FF13: 6.72 | FG13: 8.66 | FH13: 10.59 | FI13: 9999 | FJ13: 4.13 | FK13: 11.09 | FL13: 14.29 | FM13: 17.47 | FN13: 9999 | FO13: 9999 | FQ13: 23 | FR13: 9999 | FS13: 3.43 | FT13: 9 | FU13: 12.24 | FV13: 15.48 | FW13: 9999 | FX13: 5.66 | FY13: 14.85 | FZ13: 20.2 | GA13: 25.54 | GB13: 0 | GE13: 23 | GF13: 9999 | GG13: 2.75 | GH13: 8.01 | GI13: 10.75 | GJ13: 13.5 | GK13: 9999 | GL13: 4.54 | GM13: 13.22 | GN13: 17.74 | GO13: 22.28 | GP13: 9999 | GQ13: 9999 | GS13: 23 | GT13: 9999 | GU13: 2.36 | GV13: 6.25 | GW13: 7.93 | GX13: 9.61 | GY13: 9999 | GZ13: 3.89 | HA13: 10.31 | HB13: 13.08 | HC13: 15.86 | HD13: 9999 | HE13: 9999 | HG13: 23 | HH13: 9999 | HI13: 2.7 | HJ13: 7.79 | HK13: 10.4 | HL13: 13.01 | HM13: 9999 | HN13: 4.46 | HO13: 12.85 | HP13: 17.16 | HQ13: 21.47 | HR13: 9999 | HS13: 9999 | HU13: 23 | HV13: 9999 | HW13: 2.48 | HX13: 7.13 | HY13: 9.34 | HZ13: 11.55 | IA13: 9999 | IB13: 4.09 | IC13: 11.76 | ID13: 15.41 | IE13: 19.06 | IF13: 9999 | IG13: 9999 | II13: 23 | IJ13: 9999 | IK13: 2.39 | IL13: 6.41 | IM13: 8.25 | IN13: 10.1 | IO13: 9999 | IP13: 3.94 | IQ13: 10.58 | IR13: 13.61 | IS13: 16.67 | IT13: 9999 | IU13: 9999 | IW13: 23 | IX13: 9999 | IY13: 9999 | IZ13: 9999 | JA13: 9999 | JB13: 9999 | JC13: 9999 | JD13: 9999 | JE13: 9999 | JF13: 9999 | JG13: 9999 | JH13: 0 | JK13: 23 | JL13: 9999 | JM13: 9999 | JN13: 9999 | JO13: 9999 | JP13: 9999 | JQ13: 9999 | JR13: 9999 | JS13: 9999 | JT13: 9999 | JU13: 9999 | JV13: 9999 | JW13: 9999 | JY13: 23 | JZ13: 9999 | KA13: 9999 | KB13: 9999 | KC13: 9999 | KD13: 9999 | KE13: 9999 | KF13: 9999 | KG13: 9999 | KH13: 9999 | KI13: 9999 | KJ13: 9999 | KK13: 9999 | KM13: 23 | KN13: 9999 | KO13: 9999 | KP13: 9999 | KQ13: 9999 | KR13: 9999 | KS13: 9999 | KT13: 9999 | KU13: 9999 | KV13: 9999 | KW13: 9999 | KX13: 9999 | KY13: 9999 | LA13: 23 | LB13: 9999 | LC13: 9999 | LD13: 9999 | LE13: 9999 | LF13: 9999 | LG13: 9999 | LH13: 9999 | LI13: 9999 | LJ13: 9999 | LK13: 9999 | LL13: 9999 | LM13: 9999 | LO13: 23 | LP13: 9999 | LQ13: 9999 | LR13: 9999 | LS13: 9999 | LT13: 9999 | LU13: 9999 | LV13: 9999 | LW13: 9999 | LX13: 9999 | LY13: 9999 | LZ13: 9999 | MA13: 9999 | MC13: 23 | MD13: 9999 | ME13: 3.08 | MF13: 8.06 | MG13: 10.97 | MH13: 13.87 | MI13: 9999 | MJ13: 5.08 | MK13: 13.3 | ML13: 18.1 | MM13: 22.89 | MN13: 0 | MQ13: 23 | MR13: 9999 | MS13: 2.46 | MT13: 7.18 | MU13: 9.64 | MV13: 12.1 | MW13: 9999 | MX13: 4.06 | MY13: 11.85 | MZ13: 15.91 | NA13: 19.97 | NB13: 9999 | NC13: 9999 | NE13: 23 | NF13: 9999 | NG13: 2.12 | NH13: 5.6 | NI13: 7.11 | NJ13: 8.61 | NK13: 9999 | NL13: 3.5 | NM13: 9.24 | NN13: 11.73 | NO13: 14.21 | NP13: 9999 | NQ13: 9999 | NS13: 23 | NT13: 9999 | NU13: 2.42 | NV13: 6.98 | NW13: 9.32 | NX13: 11.66 | NY13: 9999 | NZ13: 3.99 | OA13: 11.52 | OB13: 15.38 | OC13: 19.24 | OD13: 9999 | OE13: 9999 | OG13: 23 | OH13: 9999 | OI13: 2.22 | OJ13: 6.39 | OK13: 8.37 | OL13: 10.35 | OM13: 9999 | ON13: 3.66 | OO13: 10.54 | OP13: 13.81 | OQ13: 17.08 | OR13: 9999 | OS13: 9999 | OU13: 23 | OV13: 9999 | OW13: 2.14 | OX13: 5.74 | OY13: 7.39 | OZ13: 9.05 | PA13: 9999 | PB13: 3.53 | PC13: 9.47 | PD13: 12.19 | PE13: 14.93 | PF13: 9999 | PG13: 9999
E14: 24 | F14: 9999 | G14: =RawStdLife7!$B$6 -> 3.75 | H14: =RawStdLife7!$C$6 -> 9.83 | I14: =RawStdLife7!$D$6 -> 13.38 | J14: =RawStdLife7!$E$6 -> 16.92 | K14: 9999 | L14: =RawStdLife7!$B$53 -> 6.19 | M14: =RawStdLife7!$C$53 -> 16.22 | N14: =RawStdLife7!$D$53 -> 22.08 | O14: =RawStdLife7!$E$53 -> 27.92 | P14: 0 | S14: 24 | T14: 9999 | U14: =RawStdLife7!$G$6 -> 3 | V14: =RawStdLife7!$H$6 -> 8.75 | W14: =RawStdLife7!$I$6 -> 11.75 | X14: =RawStdLife7!$J$6 -> 14.75 | Y14: 9999 | Z14: =RawStdLife7!$G$53 -> 4.95 | AA14: =RawStdLife7!$H$53 -> 14.44 | AB14: =RawStdLife7!$I$53 -> 19.39 | AC14: =RawStdLife7!$J$53 -> 24.34 | AD14: 9999 | AE14: 9999 | AG14: 24 | AH14: 9999 | AI14: =RawStdLife7!$AA$6 -> 2.58 | AJ14: =RawStdLife7!$AB$6 -> 6.83 | AK14: =RawStdLife7!$AC$6 -> 8.67 | AL14: =RawStdLife7!$AD$6 -> 10.5 | AM14: 9999 | AN14: =RawStdLife7!$AA$53 -> 4.26 | AO14: =RawStdLife7!$AB$53 -> 11.27 | AP14: =RawStdLife7!$AC$53 -> 14.31 | AQ14: =RawStdLife7!$AD$53 -> 17.33 | AR14: 9999 | AS14: 9999 | AU14: 24 | AV14: 9999 | AW14: =RawStdLife7!$L$6 -> 2.95 | AX14: =RawStdLife7!$M$6 -> 8.51 | AY14: =RawStdLife7!$N$6 -> 11.36 | AZ14: =RawStdLife7!$O$6 -> 14.22 | BA14: 9999 | BB14: =RawStdLife7!$L$53 -> 4.87 | BC14: =RawStdLife7!$M$53 -> 14.04 | BD14: =RawStdLife7!$N$53 -> 18.74 | BE14: =RawStdLife7!$O$53 -> 23.46 | BF14: 9999 | BG14: 9999 | BI14: 24 | BJ14: 9999 | BK14: =RawStdLife7!$Q$6 -> 2.71 | BL14: =RawStdLife7!$R$6 -> 7.79 | BM14: =RawStdLife7!$S$6 -> 10.21 | BN14: =RawStdLife7!$T$6 -> 12.63 | BO14: 9999 | BP14: =RawStdLife7!$Q$53 -> 4.47 | BQ14: =RawStdLife7!$R$53 -> 12.85 | BR14: =RawStdLife7!$S$53 -> 16.85 | BS14: =RawStdLife7!$T$53 -> 20.84 | BT14: 9999 | BU14: 9999 | BW14: 24 | BX14: 9999 | BY14: =RawStdLife7!$V$6 -> 2.48 | BZ14: =RawStdLife7!$W$6 -> 7 | CA14: =RawStdLife7!$X$6 -> 9.02 | CB14: =RawStdLife7!$Y$6 -> 11.03 | CC14: 9999 | CD14: =RawStdLife7!$V$53 -> 4.09 | CE14: =RawStdLife7!$W$53 -> 11.55 | CF14: =RawStdLife7!$X$53 -> 14.88 | CG14: =RawStdLife7!$Y$53 -> 18.2 | CH14: 9999 | CI14: 9999 | CK14: 24 | CL14: 9999 | CM14: 3.6 | CN14: 9.44 | CO14: 12.84 | CP14: 16.24 | CQ14: 9999 | CR14: 5.94 | CS14: 15.58 | CT14: 21.19 | CU14: 26.8 | CV14: 0 | CY14: 24 | CZ14: 9999 | DA14: 2.88 | DB14: 8.4 | DC14: 11.28 | DD14: 14.16 | DE14: 9999 | DF14: 4.75 | DG14: 13.86 | DH14: 18.61 | DI14: 23.36 | DJ14: 9999 | DK14: 9999 | DM14: 24 | DN14: 9999 | DO14: 2.48 | DP14: 6.56 | DQ14: 8.32 | DR14: 10.08 | DS14: 9999 | DT14: 4.09 | DU14: 10.82 | DV14: 13.73 | DW14: 16.63 | DX14: 9999 | DY14: 9999 | EA14: 24 | EB14: 9999 | EC14: 2.83 | ED14: 8.17 | EE14: 10.91 | EF14: 13.65 | EG14: 9999 | EH14: 4.67 | EI14: 13.48 | EJ14: 18 | EK14: 22.52 | EL14: 9999 | EM14: 9999 | EO14: 24 | EP14: 9999 | EQ14: 2.6 | ER14: 7.48 | ES14: 9.8 | ET14: 12.12 | EU14: 9999 | EV14: 4.29 | EW14: 12.34 | EX14: 16.17 | EY14: 20 | EZ14: 9999 | FA14: 9999 | FC14: 24 | FD14: 9999 | FE14: 2.5 | FF14: 6.72 | FG14: 8.66 | FH14: 10.59 | FI14: 9999 | FJ14: 4.13 | FK14: 11.09 | FL14: 14.29 | FM14: 17.47 | FN14: 9999 | FO14: 9999 | FQ14: 24 | FR14: 9999 | FS14: 3.43 | FT14: 9 | FU14: 12.24 | FV14: 15.48 | FW14: 9999 | FX14: 5.66 | FY14: 14.85 | FZ14: 20.2 | GA14: 25.54 | GB14: 0 | GE14: 24 | GF14: 9999 | GG14: 2.75 | GH14: 8.01 | GI14: 10.75 | GJ14: 13.5 | GK14: 9999 | GL14: 4.54 | GM14: 13.22 | GN14: 17.74 | GO14: 22.28 | GP14: 9999 | GQ14: 9999 | GS14: 24 | GT14: 9999 | GU14: 2.36 | GV14: 6.25 | GW14: 7.93 | GX14: 9.61 | GY14: 9999 | GZ14: 3.89 | HA14: 10.31 | HB14: 13.08 | HC14: 15.86 | HD14: 9999 | HE14: 9999 | HG14: 24 | HH14: 9999 | HI14: 2.7 | HJ14: 7.79 | HK14: 10.4 | HL14: 13.01 | HM14: 9999 | HN14: 4.46 | HO14: 12.85 | HP14: 17.16 | HQ14: 21.47 | HR14: 9999 | HS14: 9999 | HU14: 24 | HV14: 9999 | HW14: 2.48 | HX14: 7.13 | HY14: 9.34 | HZ14: 11.55 | IA14: 9999 | IB14: 4.09 | IC14: 11.76 | ID14: 15.41 | IE14: 19.06 | IF14: 9999 | IG14: 9999 | II14: 24 | IJ14: 9999 | IK14: 2.39 | IL14: 6.41 | IM14: 8.25 | IN14: 10.1 | IO14: 9999 | IP14: 3.94 | IQ14: 10.58 | IR14: 13.61 | IS14: 16.67 | IT14: 9999 | IU14: 9999 | IW14: 24 | IX14: 9999 | IY14: 9999 | IZ14: 9999 | JA14: 9999 | JB14: 9999 | JC14: 9999 | JD14: 9999 | JE14: 9999 | JF14: 9999 | JG14: 9999 | JH14: 0 | JK14: 24 | JL14: 9999 | JM14: 9999 | JN14: 9999 | JO14: 9999 | JP14: 9999 | JQ14: 9999 | JR14: 9999 | JS14: 9999 | JT14: 9999 | JU14: 9999 | JV14: 9999 | JW14: 9999 | JY14: 24 | JZ14: 9999 | KA14: 9999 | KB14: 9999 | KC14: 9999 | KD14: 9999 | KE14: 9999 | KF14: 9999 | KG14: 9999 | KH14: 9999 | KI14: 9999 | KJ14: 9999 | KK14: 9999 | KM14: 24 | KN14: 9999 | KO14: 9999 | KP14: 9999 | KQ14: 9999 | KR14: 9999 | KS14: 9999 | KT14: 9999 | KU14: 9999 | KV14: 9999 | KW14: 9999 | KX14: 9999 | KY14: 9999 | LA14: 24 | LB14: 9999 | LC14: 9999 | LD14: 9999 | LE14: 9999 | LF14: 9999 | LG14: 9999 | LH14: 9999 | LI14: 9999 | LJ14: 9999 | LK14: 9999 | LL14: 9999 | LM14: 9999 | LO14: 24 | LP14: 9999 | LQ14: 9999 | LR14: 9999 | LS14: 9999 | LT14: 9999 | LU14: 9999 | LV14: 9999 | LW14: 9999 | LX14: 9999 | LY14: 9999 | LZ14: 9999 | MA14: 9999 | MC14: 24 | MD14: 9999 | ME14: 3.08 | MF14: 8.06 | MG14: 10.97 | MH14: 13.87 | MI14: 9999 | MJ14: 5.08 | MK14: 13.3 | ML14: 18.1 | MM14: 22.89 | MN14: 0 | MQ14: 24 | MR14: 9999 | MS14: 2.46 | MT14: 7.18 | MU14: 9.64 | MV14: 12.1 | MW14: 9999 | MX14: 4.06 | MY14: 11.85 | MZ14: 15.91 | NA14: 19.97 | NB14: 9999 | NC14: 9999 | NE14: 24 | NF14: 9999 | NG14: 2.12 | NH14: 5.6 | NI14: 7.11 | NJ14: 8.61 | NK14: 9999 | NL14: 3.5 | NM14: 9.24 | NN14: 11.73 | NO14: 14.21 | NP14: 9999 | NQ14: 9999 | NS14: 24 | NT14: 9999 | NU14: 2.42 | NV14: 6.98 | NW14: 9.32 | NX14: 11.66 | NY14: 9999 | NZ14: 3.99 | OA14: 11.52 | OB14: 15.38 | OC14: 19.24 | OD14: 9999 | OE14: 9999 | OG14: 24 | OH14: 9999 | OI14: 2.22 | OJ14: 6.39 | OK14: 8.37 | OL14: 10.35 | OM14: 9999 | ON14: 3.66 | OO14: 10.54 | OP14: 13.81 | OQ14: 17.08 | OR14: 9999 | OS14: 9999 | OU14: 24 | OV14: 9999 | OW14: 2.14 | OX14: 5.74 | OY14: 7.39 | OZ14: 9.05 | PA14: 9999 | PB14: 3.53 | PC14: 9.47 | PD14: 12.19 | PE14: 14.93 | PF14: 9999 | PG14: 9999
A15: I DID LEAVE IT UNLOCKED | E15: 25 | F15: 9999 | G15: =RawStdLife7!$B$6 -> 3.75 | H15: =RawStdLife7!$C$6 -> 9.83 | I15: =RawStdLife7!$D$6 -> 13.38 | J15: =RawStdLife7!$E$6 -> 16.92 | K15: 9999 | L15: =RawStdLife7!$B$53 -> 6.19 | M15: =RawStdLife7!$C$53 -> 16.22 | N15: =RawStdLife7!$D$53 -> 22.08 | O15: =RawStdLife7!$E$53 -> 27.92 | P15: 0 | S15: 25 | T15: 9999 | U15: =RawStdLife7!$G$6 -> 3 | V15: =RawStdLife7!$H$6 -> 8.75 | W15: =RawStdLife7!$I$6 -> 11.75 | X15: =RawStdLife7!$J$6 -> 14.75 | Y15: 9999 | Z15: =RawStdLife7!$G$53 -> 4.95 | AA15: =RawStdLife7!$H$53 -> 14.44 | AB15: =RawStdLife7!$I$53 -> 19.39 | AC15: =RawStdLife7!$J$53 -> 24.34 | AD15: 9999 | AE15: 9999 | AG15: 25 | AH15: 9999 | AI15: =RawStdLife7!$AA$6 -> 2.58 | AJ15: =RawStdLife7!$AB$6 -> 6.83 | AK15: =RawStdLife7!$AC$6 -> 8.67 | AL15: =RawStdLife7!$AD$6 -> 10.5 | AM15: 9999 | AN15: =RawStdLife7!$AA$53 -> 4.26 | AO15: =RawStdLife7!$AB$53 -> 11.27 | AP15: =RawStdLife7!$AC$53 -> 14.31 | AQ15: =RawStdLife7!$AD$53 -> 17.33 | AR15: 9999 | AS15: 9999 | AU15: 25 | AV15: 9999 | AW15: =RawStdLife7!$L$6 -> 2.95 | AX15: =RawStdLife7!$M$6 -> 8.51 | AY15: =RawStdLife7!$N$6 -> 11.36 | AZ15: =RawStdLife7!$O$6 -> 14.22 | BA15: 9999 | BB15: =RawStdLife7!$L$53 -> 4.87 | BC15: =RawStdLife7!$M$53 -> 14.04 | BD15: =RawStdLife7!$N$53 -> 18.74 | BE15: =RawStdLife7!$O$53 -> 23.46 | BF15: 9999 | BG15: 9999 | BI15: 25 | BJ15: 9999 | BK15: =RawStdLife7!$Q$6 -> 2.71 | BL15: =RawStdLife7!$R$6 -> 7.79 | BM15: =RawStdLife7!$S$6 -> 10.21 | BN15: =RawStdLife7!$T$6 -> 12.63 | BO15: 9999 | BP15: =RawStdLife7!$Q$53 -> 4.47 | BQ15: =RawStdLife7!$R$53 -> 12.85 | BR15: =RawStdLife7!$S$53 -> 16.85 | BS15: =RawStdLife7!$T$53 -> 20.84 | BT15: 9999 | BU15: 9999 | BW15: 25 | BX15: 9999 | BY15: =RawStdLife7!$V$6 -> 2.48 | BZ15: =RawStdLife7!$W$6 -> 7 | CA15: =RawStdLife7!$X$6 -> 9.02 | CB15: =RawStdLife7!$Y$6 -> 11.03 | CC15: 9999 | CD15: =RawStdLife7!$V$53 -> 4.09 | CE15: =RawStdLife7!$W$53 -> 11.55 | CF15: =RawStdLife7!$X$53 -> 14.88 | CG15: =RawStdLife7!$Y$53 -> 18.2 | CH15: 9999 | CI15: 9999 | CK15: 25 | CL15: 9999 | CM15: 3.6 | CN15: 9.44 | CO15: 12.84 | CP15: 16.24 | CQ15: 9999 | CR15: 5.94 | CS15: 15.58 | CT15: 21.19 | CU15: 26.8 | CV15: 0 | CY15: 25 | CZ15: 9999 | DA15: 2.88 | DB15: 8.4 | DC15: 11.28 | DD15: 14.16 | DE15: 9999 | DF15: 4.75 | DG15: 13.86 | DH15: 18.61 | DI15: 23.36 | DJ15: 9999 | DK15: 9999 | DM15: 25 | DN15: 9999 | DO15: 2.48 | DP15: 6.56 | DQ15: 8.32 | DR15: 10.08 | DS15: 9999 | DT15: 4.09 | DU15: 10.82 | DV15: 13.73 | DW15: 16.63 | DX15: 9999 | DY15: 9999 | EA15: 25 | EB15: 9999 | EC15: 2.83 | ED15: 8.17 | EE15: 10.91 | EF15: 13.65 | EG15: 9999 | EH15: 4.67 | EI15: 13.48 | EJ15: 18 | EK15: 22.52 | EL15: 9999 | EM15: 9999 | EO15: 25 | EP15: 9999 | EQ15: 2.6 | ER15: 7.48 | ES15: 9.8 | ET15: 12.12 | EU15: 9999 | EV15: 4.29 | EW15: 12.34 | EX15: 16.17 | EY15: 20 | EZ15: 9999 | FA15: 9999 | FC15: 25 | FD15: 9999 | FE15: 2.5 | FF15: 6.72 | FG15: 8.66 | FH15: 10.59 | FI15: 9999 | FJ15: 4.13 | FK15: 11.09 | FL15: 14.29 | FM15: 17.47 | FN15: 9999 | FO15: 9999 | FQ15: 25 | FR15: 9999 | FS15: 3.43 | FT15: 9 | FU15: 12.24 | FV15: 15.48 | FW15: 9999 | FX15: 5.66 | FY15: 14.85 | FZ15: 20.2 | GA15: 25.54 | GB15: 0 | GE15: 25 | GF15: 9999 | GG15: 2.75 | GH15: 8.01 | GI15: 10.75 | GJ15: 13.5 | GK15: 9999 | GL15: 4.54 | GM15: 13.22 | GN15: 17.74 | GO15: 22.28 | GP15: 9999 | GQ15: 9999 | GS15: 25 | GT15: 9999 | GU15: 2.36 | GV15: 6.25 | GW15: 7.93 | GX15: 9.61 | GY15: 9999 | GZ15: 3.89 | HA15: 10.31 | HB15: 13.08 | HC15: 15.86 | HD15: 9999 | HE15: 9999 | HG15: 25 | HH15: 9999 | HI15: 2.7 | HJ15: 7.79 | HK15: 10.4 | HL15: 13.01 | HM15: 9999 | HN15: 4.46 | HO15: 12.85 | HP15: 17.16 | HQ15: 21.47 | HR15: 9999 | HS15: 9999 | HU15: 25 | HV15: 9999 | HW15: 2.48 | HX15: 7.13 | HY15: 9.34 | HZ15: 11.55 | IA15: 9999 | IB15: 4.09 | IC15: 11.76 | ID15: 15.41 | IE15: 19.06 | IF15: 9999 | IG15: 9999 | II15: 25 | IJ15: 9999 | IK15: 2.39 | IL15: 6.41 | IM15: 8.25 | IN15: 10.1 | IO15: 9999 | IP15: 3.94 | IQ15: 10.58 | IR15: 13.61 | IS15: 16.67 | IT15: 9999 | IU15: 9999 | IW15: 25 | IX15: 9999 | IY15: 9999 | IZ15: 9999 | JA15: 9999 | JB15: 9999 | JC15: 9999 | JD15: 9999 | JE15: 9999 | JF15: 9999 | JG15: 9999 | JH15: 0 | JK15: 25 | JL15: 9999 | JM15: 9999 | JN15: 9999 | JO15: 9999 | JP15: 9999 | JQ15: 9999 | JR15: 9999 | JS15: 9999 | JT15: 9999 | JU15: 9999 | JV15: 9999 | JW15: 9999 | JY15: 25 | JZ15: 9999 | KA15: 9999 | KB15: 9999 | KC15: 9999 | KD15: 9999 | KE15: 9999 | KF15: 9999 | KG15: 9999 | KH15: 9999 | KI15: 9999 | KJ15: 9999 | KK15: 9999 | KM15: 25 | KN15: 9999 | KO15: 9999 | KP15: 9999 | KQ15: 9999 | KR15: 9999 | KS15: 9999 | KT15: 9999 | KU15: 9999 | KV15: 9999 | KW15: 9999 | KX15: 9999 | KY15: 9999 | LA15: 25 | LB15: 9999 | LC15: 9999 | LD15: 9999 | LE15: 9999 | LF15: 9999 | LG15: 9999 | LH15: 9999 | LI15: 9999 | LJ15: 9999 | LK15: 9999 | LL15: 9999 | LM15: 9999 | LO15: 25 | LP15: 9999 | LQ15: 9999 | LR15: 9999 | LS15: 9999 | LT15: 9999 | LU15: 9999 | LV15: 9999 | LW15: 9999 | LX15: 9999 | LY15: 9999 | LZ15: 9999 | MA15: 9999 | MC15: 25 | MD15: 9999 | ME15: 3.08 | MF15: 8.06 | MG15: 10.97 | MH15: 13.87 | MI15: 9999 | MJ15: 5.08 | MK15: 13.3 | ML15: 18.1 | MM15: 22.89 | MN15: 0 | MQ15: 25 | MR15: 9999 | MS15: 2.46 | MT15: 7.18 | MU15: 9.64 | MV15: 12.1 | MW15: 9999 | MX15: 4.06 | MY15: 11.85 | MZ15: 15.91 | NA15: 19.97 | NB15: 9999 | NC15: 9999 | NE15: 25 | NF15: 9999 | NG15: 2.12 | NH15: 5.6 | NI15: 7.11 | NJ15: 8.61 | NK15: 9999 | NL15: 3.5 | NM15: 9.24 | NN15: 11.73 | NO15: 14.21 | NP15: 9999 | NQ15: 9999 | NS15: 25 | NT15: 9999 | NU15: 2.42 | NV15: 6.98 | NW15: 9.32 | NX15: 11.66 | NY15: 9999 | NZ15: 3.99 | OA15: 11.52 | OB15: 15.38 | OC15: 19.24 | OD15: 9999 | OE15: 9999 | OG15: 25 | OH15: 9999 | OI15: 2.22 | OJ15: 6.39 | OK15: 8.37 | OL15: 10.35 | OM15: 9999 | ON15: 3.66 | OO15: 10.54 | OP15: 13.81 | OQ15: 17.08 | OR15: 9999 | OS15: 9999 | OU15: 25 | OV15: 9999 | OW15: 2.14 | OX15: 5.74 | OY15: 7.39 | OZ15: 9.05 | PA15: 9999 | PB15: 3.53 | PC15: 9.47 | PD15: 12.19 | PE15: 14.93 | PF15: 9999 | PG15: 9999
E16: 26 | F16: 9999 | G16: =RawStdLife7!$B$6 -> 3.75 | H16: =RawStdLife7!$C$6 -> 9.83 | I16: =RawStdLife7!$D$6 -> 13.38 | J16: =RawStdLife7!$E$6 -> 16.92 | K16: 9999 | L16: =RawStdLife7!$B$53 -> 6.19 | M16: =RawStdLife7!$C$53 -> 16.22 | N16: =RawStdLife7!$D$53 -> 22.08 | O16: =RawStdLife7!$E$53 -> 27.92 | P16: 0 | S16: 26 | T16: 9999 | U16: =RawStdLife7!$G$6 -> 3 | V16: =RawStdLife7!$H$6 -> 8.75 | W16: =RawStdLife7!$I$6 -> 11.75 | X16: =RawStdLife7!$J$6 -> 14.75 | Y16: 9999 | Z16: =RawStdLife7!$G$53 -> 4.95 | AA16: =RawStdLife7!$H$53 -> 14.44 | AB16: =RawStdLife7!$I$53 -> 19.39 | AC16: =RawStdLife7!$J$53 -> 24.34 | AD16: 9999 | AE16: 9999 | AG16: 26 | AH16: 9999 | AI16: =RawStdLife7!$AA$6 -> 2.58 | AJ16: =RawStdLife7!$AB$6 -> 6.83 | AK16: =RawStdLife7!$AC$6 -> 8.67 | AL16: =RawStdLife7!$AD$6 -> 10.5 | AM16: 9999 | AN16: =RawStdLife7!$AA$53 -> 4.26 | AO16: =RawStdLife7!$AB$53 -> 11.27 | AP16: =RawStdLife7!$AC$53 -> 14.31 | AQ16: =RawStdLife7!$AD$53 -> 17.33 | AR16: 9999 | AS16: 9999 | AU16: 26 | AV16: 9999 | AW16: =RawStdLife7!$L$6 -> 2.95 | AX16: =RawStdLife7!$M$6 -> 8.51 | AY16: =RawStdLife7!$N$6 -> 11.36 | AZ16: =RawStdLife7!$O$6 -> 14.22 | BA16: 9999 | BB16: =RawStdLife7!$L$53 -> 4.87 | BC16: =RawStdLife7!$M$53 -> 14.04 | BD16: =RawStdLife7!$N$53 -> 18.74 | BE16: =RawStdLife7!$O$53 -> 23.46 | BF16: 9999 | BG16: 9999 | BI16: 26 | BJ16: 9999 | BK16: =RawStdLife7!$Q$6 -> 2.71 | BL16: =RawStdLife7!$R$6 -> 7.79 | BM16: =RawStdLife7!$S$6 -> 10.21 | BN16: =RawStdLife7!$T$6 -> 12.63 | BO16: 9999 | BP16: =RawStdLife7!$Q$53 -> 4.47 | BQ16: =RawStdLife7!$R$53 -> 12.85 | BR16: =RawStdLife7!$S$53 -> 16.85 | BS16: =RawStdLife7!$T$53 -> 20.84 | BT16: 9999 | BU16: 9999 | BW16: 26 | BX16: 9999 | BY16: =RawStdLife7!$V$6 -> 2.48 | BZ16: =RawStdLife7!$W$6 -> 7 | CA16: =RawStdLife7!$X$6 -> 9.02 | CB16: =RawStdLife7!$Y$6 -> 11.03 | CC16: 9999 | CD16: =RawStdLife7!$V$53 -> 4.09 | CE16: =RawStdLife7!$W$53 -> 11.55 | CF16: =RawStdLife7!$X$53 -> 14.88 | CG16: =RawStdLife7!$Y$53 -> 18.2 | CH16: 9999 | CI16: 9999 | CK16: 26 | CL16: 9999 | CM16: 3.6 | CN16: 9.44 | CO16: 12.84 | CP16: 16.24 | CQ16: 9999 | CR16: 5.94 | CS16: 15.58 | CT16: 21.19 | CU16: 26.8 | CV16: 0 | CY16: 26 | CZ16: 9999 | DA16: 2.88 | DB16: 8.4 | DC16: 11.28 | DD16: 14.16 | DE16: 9999 | DF16: 4.75 | DG16: 13.86 | DH16: 18.61 | DI16: 23.36 | DJ16: 9999 | DK16: 9999 | DM16: 26 | DN16: 9999 | DO16: 2.48 | DP16: 6.56 | DQ16: 8.32 | DR16: 10.08 | DS16: 9999 | DT16: 4.09 | DU16: 10.82 | DV16: 13.73 | DW16: 16.63 | DX16: 9999 | DY16: 9999 | EA16: 26 | EB16: 9999 | EC16: 2.83 | ED16: 8.17 | EE16: 10.91 | EF16: 13.65 | EG16: 9999 | EH16: 4.67 | EI16: 13.48 | EJ16: 18 | EK16: 22.52 | EL16: 9999 | EM16: 9999 | EO16: 26 | EP16: 9999 | EQ16: 2.6 | ER16: 7.48 | ES16: 9.8 | ET16: 12.12 | EU16: 9999 | EV16: 4.29 | EW16: 12.34 | EX16: 16.17 | EY16: 20 | EZ16: 9999 | FA16: 9999 | FC16: 26 | FD16: 9999 | FE16: 2.5 | FF16: 6.72 | FG16: 8.66 | FH16: 10.59 | FI16: 9999 | FJ16: 4.13 | FK16: 11.09 | FL16: 14.29 | FM16: 17.47 | FN16: 9999 | FO16: 9999 | FQ16: 26 | FR16: 9999 | FS16: 3.43 | FT16: 9 | FU16: 12.24 | FV16: 15.48 | FW16: 9999 | FX16: 5.66 | FY16: 14.85 | FZ16: 20.2 | GA16: 25.54 | GB16: 0 | GE16: 26 | GF16: 9999 | GG16: 2.75 | GH16: 8.01 | GI16: 10.75 | GJ16: 13.5 | GK16: 9999 | GL16: 4.54 | GM16: 13.22 | GN16: 17.74 | GO16: 22.28 | GP16: 9999 | GQ16: 9999 | GS16: 26 | GT16: 9999 | GU16: 2.36 | GV16: 6.25 | GW16: 7.93 | GX16: 9.61 | GY16: 9999 | GZ16: 3.89 | HA16: 10.31 | HB16: 13.08 | HC16: 15.86 | HD16: 9999 | HE16: 9999 | HG16: 26 | HH16: 9999 | HI16: 2.7 | HJ16: 7.79 | HK16: 10.4 | HL16: 13.01 | HM16: 9999 | HN16: 4.46 | HO16: 12.85 | HP16: 17.16 | HQ16: 21.47 | HR16: 9999 | HS16: 9999 | HU16: 26 | HV16: 9999 | HW16: 2.48 | HX16: 7.13 | HY16: 9.34 | HZ16: 11.55 | IA16: 9999 | IB16: 4.09 | IC16: 11.76 | ID16: 15.41 | IE16: 19.06 | IF16: 9999 | IG16: 9999 | II16: 26 | IJ16: 9999 | IK16: 2.39 | IL16: 6.41 | IM16: 8.25 | IN16: 10.1 | IO16: 9999 | IP16: 3.94 | IQ16: 10.58 | IR16: 13.61 | IS16: 16.67 | IT16: 9999 | IU16: 9999 | IW16: 26 | IX16: 9999 | IY16: 9999 | IZ16: 9999 | JA16: 9999 | JB16: 9999 | JC16: 9999 | JD16: 9999 | JE16: 9999 | JF16: 9999 | JG16: 9999 | JH16: 0 | JK16: 26 | JL16: 9999 | JM16: 9999 | JN16: 9999 | JO16: 9999 | JP16: 9999 | JQ16: 9999 | JR16: 9999 | JS16: 9999 | JT16: 9999 | JU16: 9999 | JV16: 9999 | JW16: 9999 | JY16: 26 | JZ16: 9999 | KA16: 9999 | KB16: 9999 | KC16: 9999 | KD16: 9999 | KE16: 9999 | KF16: 9999 | KG16: 9999 | KH16: 9999 | KI16: 9999 | KJ16: 9999 | KK16: 9999 | KM16: 26 | KN16: 9999 | KO16: 9999 | KP16: 9999 | KQ16: 9999 | KR16: 9999 | KS16: 9999 | KT16: 9999 | KU16: 9999 | KV16: 9999 | KW16: 9999 | KX16: 9999 | KY16: 9999 | LA16: 26 | LB16: 9999 | LC16: 9999 | LD16: 9999 | LE16: 9999 | LF16: 9999 | LG16: 9999 | LH16: 9999 | LI16: 9999 | LJ16: 9999 | LK16: 9999 | LL16: 9999 | LM16: 9999 | LO16: 26 | LP16: 9999 | LQ16: 9999 | LR16: 9999 | LS16: 9999 | LT16: 9999 | LU16: 9999 | LV16: 9999 | LW16: 9999 | LX16: 9999 | LY16: 9999 | LZ16: 9999 | MA16: 9999 | MC16: 26 | MD16: 9999 | ME16: 3.08 | MF16: 8.06 | MG16: 10.97 | MH16: 13.87 | MI16: 9999 | MJ16: 5.08 | MK16: 13.3 | ML16: 18.1 | MM16: 22.89 | MN16: 0 | MQ16: 26 | MR16: 9999 | MS16: 2.46 | MT16: 7.18 | MU16: 9.64 | MV16: 12.1 | MW16: 9999 | MX16: 4.06 | MY16: 11.85 | MZ16: 15.91 | NA16: 19.97 | NB16: 9999 | NC16: 9999 | NE16: 26 | NF16: 9999 | NG16: 2.12 | NH16: 5.6 | NI16: 7.11 | NJ16: 8.61 | NK16: 9999 | NL16: 3.5 | NM16: 9.24 | NN16: 11.73 | NO16: 14.21 | NP16: 9999 | NQ16: 9999 | NS16: 26 | NT16: 9999 | NU16: 2.42 | NV16: 6.98 | NW16: 9.32 | NX16: 11.66 | NY16: 9999 | NZ16: 3.99 | OA16: 11.52 | OB16: 15.38 | OC16: 19.24 | OD16: 9999 | OE16: 9999 | OG16: 26 | OH16: 9999 | OI16: 2.22 | OJ16: 6.39 | OK16: 8.37 | OL16: 10.35 | OM16: 9999 | ON16: 3.66 | OO16: 10.54 | OP16: 13.81 | OQ16: 17.08 | OR16: 9999 | OS16: 9999 | OU16: 26 | OV16: 9999 | OW16: 2.14 | OX16: 5.74 | OY16: 7.39 | OZ16: 9.05 | PA16: 9999 | PB16: 3.53 | PC16: 9.47 | PD16: 12.19 | PE16: 14.93 | PF16: 9999 | PG16: 9999
A17: IN CASE ONE WANTED TO | E17: 27 | F17: 9999 | G17: =RawStdLife7!$B$6 -> 3.75 | H17: =RawStdLife7!$C$6 -> 9.83 | I17: =RawStdLife7!$D$6 -> 13.38 | J17: =RawStdLife7!$E$6 -> 16.92 | K17: 9999 | L17: =RawStdLife7!$B$53 -> 6.19 | M17: =RawStdLife7!$C$53 -> 16.22 | N17: =RawStdLife7!$D$53 -> 22.08 | O17: =RawStdLife7!$E$53 -> 27.92 | P17: 0 | S17: 27 | T17: 9999 | U17: =RawStdLife7!$G$6 -> 3 | V17: =RawStdLife7!$H$6 -> 8.75 | W17: =RawStdLife7!$I$6 -> 11.75 | X17: =RawStdLife7!$J$6 -> 14.75 | Y17: 9999 | Z17: =RawStdLife7!$G$53 -> 4.95 | AA17: =RawStdLife7!$H$53 -> 14.44 | AB17: =RawStdLife7!$I$53 -> 19.39 | AC17: =RawStdLife7!$J$53 -> 24.34 | AD17: 9999 | AE17: 9999 | AG17: 27 | AH17: 9999 | AI17: =RawStdLife7!$AA$6 -> 2.58 | AJ17: =RawStdLife7!$AB$6 -> 6.83 | AK17: =RawStdLife7!$AC$6 -> 8.67 | AL17: =RawStdLife7!$AD$6 -> 10.5 | AM17: 9999 | AN17: =RawStdLife7!$AA$53 -> 4.26 | AO17: =RawStdLife7!$AB$53 -> 11.27 | AP17: =RawStdLife7!$AC$53 -> 14.31 | AQ17: =RawStdLife7!$AD$53 -> 17.33 | AR17: 9999 | AS17: 9999 | AU17: 27 | AV17: 9999 | AW17: =RawStdLife7!$L$6 -> 2.95 | AX17: =RawStdLife7!$M$6 -> 8.51 | AY17: =RawStdLife7!$N$6 -> 11.36 | AZ17: =RawStdLife7!$O$6 -> 14.22 | BA17: 9999 | BB17: =RawStdLife7!$L$53 -> 4.87 | BC17: =RawStdLife7!$M$53 -> 14.04 | BD17: =RawStdLife7!$N$53 -> 18.74 | BE17: =RawStdLife7!$O$53 -> 23.46 | BF17: 9999 | BG17: 9999 | BI17: 27 | BJ17: 9999 | BK17: =RawStdLife7!$Q$6 -> 2.71 | BL17: =RawStdLife7!$R$6 -> 7.79 | BM17: =RawStdLife7!$S$6 -> 10.21 | BN17: =RawStdLife7!$T$6 -> 12.63 | BO17: 9999 | BP17: =RawStdLife7!$Q$53 -> 4.47 | BQ17: =RawStdLife7!$R$53 -> 12.85 | BR17: =RawStdLife7!$S$53 -> 16.85 | BS17: =RawStdLife7!$T$53 -> 20.84 | BT17: 9999 | BU17: 9999 | BW17: 27 | BX17: 9999 | BY17: =RawStdLife7!$V$6 -> 2.48 | BZ17: =RawStdLife7!$W$6 -> 7 | CA17: =RawStdLife7!$X$6 -> 9.02 | CB17: =RawStdLife7!$Y$6 -> 11.03 | CC17: 9999 | CD17: =RawStdLife7!$V$53 -> 4.09 | CE17: =RawStdLife7!$W$53 -> 11.55 | CF17: =RawStdLife7!$X$53 -> 14.88 | CG17: =RawStdLife7!$Y$53 -> 18.2 | CH17: 9999 | CI17: 9999 | CK17: 27 | CL17: 9999 | CM17: 3.6 | CN17: 9.44 | CO17: 12.84 | CP17: 16.24 | CQ17: 9999 | CR17: 5.94 | CS17: 15.58 | CT17: 21.19 | CU17: 26.8 | CV17: 0 | CY17: 27 | CZ17: 9999 | DA17: 2.88 | DB17: 8.4 | DC17: 11.28 | DD17: 14.16 | DE17: 9999 | DF17: 4.75 | DG17: 13.86 | DH17: 18.61 | DI17: 23.36 | DJ17: 9999 | DK17: 9999 | DM17: 27 | DN17: 9999 | DO17: 2.48 | DP17: 6.56 | DQ17: 8.32 | DR17: 10.08 | DS17: 9999 | DT17: 4.09 | DU17: 10.82 | DV17: 13.73 | DW17: 16.63 | DX17: 9999 | DY17: 9999 | EA17: 27 | EB17: 9999 | EC17: 2.83 | ED17: 8.17 | EE17: 10.91 | EF17: 13.65 | EG17: 9999 | EH17: 4.67 | EI17: 13.48 | EJ17: 18 | EK17: 22.52 | EL17: 9999 | EM17: 9999 | EO17: 27 | EP17: 9999 | EQ17: 2.6 | ER17: 7.48 | ES17: 9.8 | ET17: 12.12 | EU17: 9999 | EV17: 4.29 | EW17: 12.34 | EX17: 16.17 | EY17: 20 | EZ17: 9999 | FA17: 9999 | FC17: 27 | FD17: 9999 | FE17: 2.5 | FF17: 6.72 | FG17: 8.66 | FH17: 10.59 | FI17: 9999 | FJ17: 4.13 | FK17: 11.09 | FL17: 14.29 | FM17: 17.47 | FN17: 9999 | FO17: 9999 | FQ17: 27 | FR17: 9999 | FS17: 3.43 | FT17: 9 | FU17: 12.24 | FV17: 15.48 | FW17: 9999 | FX17: 5.66 | FY17: 14.85 | FZ17: 20.2 | GA17: 25.54 | GB17: 0 | GE17: 27 | GF17: 9999 | GG17: 2.75 | GH17: 8.01 | GI17: 10.75 | GJ17: 13.5 | GK17: 9999 | GL17: 4.54 | GM17: 13.22 | GN17: 17.74 | GO17: 22.28 | GP17: 9999 | GQ17: 9999 | GS17: 27 | GT17: 9999 | GU17: 2.36 | GV17: 6.25 | GW17: 7.93 | GX17: 9.61 | GY17: 9999 | GZ17: 3.89 | HA17: 10.31 | HB17: 13.08 | HC17: 15.86 | HD17: 9999 | HE17: 9999 | HG17: 27 | HH17: 9999 | HI17: 2.7 | HJ17: 7.79 | HK17: 10.4 | HL17: 13.01 | HM17: 9999 | HN17: 4.46 | HO17: 12.85 | HP17: 17.16 | HQ17: 21.47 | HR17: 9999 | HS17: 9999 | HU17: 27 | HV17: 9999 | HW17: 2.48 | HX17: 7.13 | HY17: 9.34 | HZ17: 11.55 | IA17: 9999 | IB17: 4.09 | IC17: 11.76 | ID17: 15.41 | IE17: 19.06 | IF17: 9999 | IG17: 9999 | II17: 27 | IJ17: 9999 | IK17: 2.39 | IL17: 6.41 | IM17: 8.25 | IN17: 10.1 | IO17: 9999 | IP17: 3.94 | IQ17: 10.58 | IR17: 13.61 | IS17: 16.67 | IT17: 9999 | IU17: 9999 | IW17: 27 | IX17: 9999 | IY17: 9999 | IZ17: 9999 | JA17: 9999 | JB17: 9999 | JC17: 9999 | JD17: 9999 | JE17: 9999 | JF17: 9999 | JG17: 9999 | JH17: 0 | JK17: 27 | JL17: 9999 | JM17: 9999 | JN17: 9999 | JO17: 9999 | JP17: 9999 | JQ17: 9999 | JR17: 9999 | JS17: 9999 | JT17: 9999 | JU17: 9999 | JV17: 9999 | JW17: 9999 | JY17: 27 | JZ17: 9999 | KA17: 9999 | KB17: 9999 | KC17: 9999 | KD17: 9999 | KE17: 9999 | KF17: 9999 | KG17: 9999 | KH17: 9999 | KI17: 9999 | KJ17: 9999 | KK17: 9999 | KM17: 27 | KN17: 9999 | KO17: 9999 | KP17: 9999 | KQ17: 9999 | KR17: 9999 | KS17: 9999 | KT17: 9999 | KU17: 9999 | KV17: 9999 | KW17: 9999 | KX17: 9999 | KY17: 9999 | LA17: 27 | LB17: 9999 | LC17: 9999 | LD17: 9999 | LE17: 9999 | LF17: 9999 | LG17: 9999 | LH17: 9999 | LI17: 9999 | LJ17: 9999 | LK17: 9999 | LL17: 9999 | LM17: 9999 | LO17: 27 | LP17: 9999 | LQ17: 9999 | LR17: 9999 | LS17: 9999 | LT17: 9999 | LU17: 9999 | LV17: 9999 | LW17: 9999 | LX17: 9999 | LY17: 9999 | LZ17: 9999 | MA17: 9999 | MC17: 27 | MD17: 9999 | ME17: 3.08 | MF17: 8.06 | MG17: 10.97 | MH17: 13.87 | MI17: 9999 | MJ17: 5.08 | MK17: 13.3 | ML17: 18.1 | MM17: 22.89 | MN17: 0 | MQ17: 27 | MR17: 9999 | MS17: 2.46 | MT17: 7.18 | MU17: 9.64 | MV17: 12.1 | MW17: 9999 | MX17: 4.06 | MY17: 11.85 | MZ17: 15.91 | NA17: 19.97 | NB17: 9999 | NC17: 9999 | NE17: 27 | NF17: 9999 | NG17: 2.12 | NH17: 5.6 | NI17: 7.11 | NJ17: 8.61 | NK17: 9999 | NL17: 3.5 | NM17: 9.24 | NN17: 11.73 | NO17: 14.21 | NP17: 9999 | NQ17: 9999 | NS17: 27 | NT17: 9999 | NU17: 2.42 | NV17: 6.98 | NW17: 9.32 | NX17: 11.66 | NY17: 9999 | NZ17: 3.99 | OA17: 11.52 | OB17: 15.38 | OC17: 19.24 | OD17: 9999 | OE17: 9999 | OG17: 27 | OH17: 9999 | OI17: 2.22 | OJ17: 6.39 | OK17: 8.37 | OL17: 10.35 | OM17: 9999 | ON17: 3.66 | OO17: 10.54 | OP17: 13.81 | OQ17: 17.08 | OR17: 9999 | OS17: 9999 | OU17: 27 | OV17: 9999 | OW17: 2.14 | OX17: 5.74 | OY17: 7.39 | OZ17: 9.05 | PA17: 9999 | PB17: 3.53 | PC17: 9.47 | PD17: 12.19 | PE17: 14.93 | PF17: 9999 | PG17: 9999
E18: 28 | F18: 9999 | G18: =RawStdLife7!$B$6 -> 3.75 | H18: =RawStdLife7!$C$6 -> 9.83 | I18: =RawStdLife7!$D$6 -> 13.38 | J18: =RawStdLife7!$E$6 -> 16.92 | K18: 9999 | L18: =RawStdLife7!$B$53 -> 6.19 | M18: =RawStdLife7!$C$53 -> 16.22 | N18: =RawStdLife7!$D$53 -> 22.08 | O18: =RawStdLife7!$E$53 -> 27.92 | P18: 0 | S18: 28 | T18: 9999 | U18: =RawStdLife7!$G$6 -> 3 | V18: =RawStdLife7!$H$6 -> 8.75 | W18: =RawStdLife7!$I$6 -> 11.75 | X18: =RawStdLife7!$J$6 -> 14.75 | Y18: 9999 | Z18: =RawStdLife7!$G$53 -> 4.95 | AA18: =RawStdLife7!$H$53 -> 14.44 | AB18: =RawStdLife7!$I$53 -> 19.39 | AC18: =RawStdLife7!$J$53 -> 24.34 | AD18: 9999 | AE18: 9999 | AG18: 28 | AH18: 9999 | AI18: =RawStdLife7!$AA$6 -> 2.58 | AJ18: =RawStdLife7!$AB$6 -> 6.83 | AK18: =RawStdLife7!$AC$6 -> 8.67 | AL18: =RawStdLife7!$AD$6 -> 10.5 | AM18: 9999 | AN18: =RawStdLife7!$AA$53 -> 4.26 | AO18: =RawStdLife7!$AB$53 -> 11.27 | AP18: =RawStdLife7!$AC$53 -> 14.31 | AQ18: =RawStdLife7!$AD$53 -> 17.33 | AR18: 9999 | AS18: 9999 | AU18: 28 | AV18: 9999 | AW18: =RawStdLife7!$L$6 -> 2.95 | AX18: =RawStdLife7!$M$6 -> 8.51 | AY18: =RawStdLife7!$N$6 -> 11.36 | AZ18: =RawStdLife7!$O$6 -> 14.22 | BA18: 9999 | BB18: =RawStdLife7!$L$53 -> 4.87 | BC18: =RawStdLife7!$M$53 -> 14.04 | BD18: =RawStdLife7!$N$53 -> 18.74 | BE18: =RawStdLife7!$O$53 -> 23.46 | BF18: 9999 | BG18: 9999 | BI18: 28 | BJ18: 9999 | BK18: =RawStdLife7!$Q$6 -> 2.71 | BL18: =RawStdLife7!$R$6 -> 7.79 | BM18: =RawStdLife7!$S$6 -> 10.21 | BN18: =RawStdLife7!$T$6 -> 12.63 | BO18: 9999 | BP18: =RawStdLife7!$Q$53 -> 4.47 | BQ18: =RawStdLife7!$R$53 -> 12.85 | BR18: =RawStdLife7!$S$53 -> 16.85 | BS18: =RawStdLife7!$T$53 -> 20.84 | BT18: 9999 | BU18: 9999 | BW18: 28 | BX18: 9999 | BY18: =RawStdLife7!$V$6 -> 2.48 | BZ18: =RawStdLife7!$W$6 -> 7 | CA18: =RawStdLife7!$X$6 -> 9.02 | CB18: =RawStdLife7!$Y$6 -> 11.03 | CC18: 9999 | CD18: =RawStdLife7!$V$53 -> 4.09 | CE18: =RawStdLife7!$W$53 -> 11.55 | CF18: =RawStdLife7!$X$53 -> 14.88 | CG18: =RawStdLife7!$Y$53 -> 18.2 | CH18: 9999 | CI18: 9999 | CK18: 28 | CL18: 9999 | CM18: 3.6 | CN18: 9.44 | CO18: 12.84 | CP18: 16.24 | CQ18: 9999 | CR18: 5.94 | CS18: 15.58 | CT18: 21.19 | CU18: 26.8 | CV18: 0 | CY18: 28 | CZ18: 9999 | DA18: 2.88 | DB18: 8.4 | DC18: 11.28 | DD18: 14.16 | DE18: 9999 | DF18: 4.75 | DG18: 13.86 | DH18: 18.61 | DI18: 23.36 | DJ18: 9999 | DK18: 9999 | DM18: 28 | DN18: 9999 | DO18: 2.48 | DP18: 6.56 | DQ18: 8.32 | DR18: 10.08 | DS18: 9999 | DT18: 4.09 | DU18: 10.82 | DV18: 13.73 | DW18: 16.63 | DX18: 9999 | DY18: 9999 | EA18: 28 | EB18: 9999 | EC18: 2.83 | ED18: 8.17 | EE18: 10.91 | EF18: 13.65 | EG18: 9999 | EH18: 4.67 | EI18: 13.48 | EJ18: 18 | EK18: 22.52 | EL18: 9999 | EM18: 9999 | EO18: 28 | EP18: 9999 | EQ18: 2.6 | ER18: 7.48 | ES18: 9.8 | ET18: 12.12 | EU18: 9999 | EV18: 4.29 | EW18: 12.34 | EX18: 16.17 | EY18: 20 | EZ18: 9999 | FA18: 9999 | FC18: 28 | FD18: 9999 | FE18: 2.5 | FF18: 6.72 | FG18: 8.66 | FH18: 10.59 | FI18: 9999 | FJ18: 4.13 | FK18: 11.09 | FL18: 14.29 | FM18: 17.47 | FN18: 9999 | FO18: 9999 | FQ18: 28 | FR18: 9999 | FS18: 3.43 | FT18: 9 | FU18: 12.24 | FV18: 15.48 | FW18: 9999 | FX18: 5.66 | FY18: 14.85 | FZ18: 20.2 | GA18: 25.54 | GB18: 0 | GE18: 28 | GF18: 9999 | GG18: 2.75 | GH18: 8.01 | GI18: 10.75 | GJ18: 13.5 | GK18: 9999 | GL18: 4.54 | GM18: 13.22 | GN18: 17.74 | GO18: 22.28 | GP18: 9999 | GQ18: 9999 | GS18: 28 | GT18: 9999 | GU18: 2.36 | GV18: 6.25 | GW18: 7.93 | GX18: 9.61 | GY18: 9999 | GZ18: 3.89 | HA18: 10.31 | HB18: 13.08 | HC18: 15.86 | HD18: 9999 | HE18: 9999 | HG18: 28 | HH18: 9999 | HI18: 2.7 | HJ18: 7.79 | HK18: 10.4 | HL18: 13.01 | HM18: 9999 | HN18: 4.46 | HO18: 12.85 | HP18: 17.16 | HQ18: 21.47 | HR18: 9999 | HS18: 9999 | HU18: 28 | HV18: 9999 | HW18: 2.48 | HX18: 7.13 | HY18: 9.34 | HZ18: 11.55 | IA18: 9999 | IB18: 4.09 | IC18: 11.76 | ID18: 15.41 | IE18: 19.06 | IF18: 9999 | IG18: 9999 | II18: 28 | IJ18: 9999 | IK18: 2.39 | IL18: 6.41 | IM18: 8.25 | IN18: 10.1 | IO18: 9999 | IP18: 3.94 | IQ18: 10.58 | IR18: 13.61 | IS18: 16.67 | IT18: 9999 | IU18: 9999 | IW18: 28 | IX18: 9999 | IY18: 9999 | IZ18: 9999 | JA18: 9999 | JB18: 9999 | JC18: 9999 | JD18: 9999 | JE18: 9999 | JF18: 9999 | JG18: 9999 | JH18: 0 | JK18: 28 | JL18: 9999 | JM18: 9999 | JN18: 9999 | JO18: 9999 | JP18: 9999 | JQ18: 9999 | JR18: 9999 | JS18: 9999 | JT18: 9999 | JU18: 9999 | JV18: 9999 | JW18: 9999 | JY18: 28 | JZ18: 9999 | KA18: 9999 | KB18: 9999 | KC18: 9999 | KD18: 9999 | KE18: 9999 | KF18: 9999 | KG18: 9999 | KH18: 9999 | KI18: 9999 | KJ18: 9999 | KK18: 9999 | KM18: 28 | KN18: 9999 | KO18: 9999 | KP18: 9999 | KQ18: 9999 | KR18: 9999 | KS18: 9999 | KT18: 9999 | KU18: 9999 | KV18: 9999 | KW18: 9999 | KX18: 9999 | KY18: 9999 | LA18: 28 | LB18: 9999 | LC18: 9999 | LD18: 9999 | LE18: 9999 | LF18: 9999 | LG18: 9999 | LH18: 9999 | LI18: 9999 | LJ18: 9999 | LK18: 9999 | LL18: 9999 | LM18: 9999 | LO18: 28 | LP18: 9999 | LQ18: 9999 | LR18: 9999 | LS18: 9999 | LT18: 9999 | LU18: 9999 | LV18: 9999 | LW18: 9999 | LX18: 9999 | LY18: 9999 | LZ18: 9999 | MA18: 9999 | MC18: 28 | MD18: 9999 | ME18: 3.08 | MF18: 8.06 | MG18: 10.97 | MH18: 13.87 | MI18: 9999 | MJ18: 5.08 | MK18: 13.3 | ML18: 18.1 | MM18: 22.89 | MN18: 0 | MQ18: 28 | MR18: 9999 | MS18: 2.46 | MT18: 7.18 | MU18: 9.64 | MV18: 12.1 | MW18: 9999 | MX18: 4.06 | MY18: 11.85 | MZ18: 15.91 | NA18: 19.97 | NB18: 9999 | NC18: 9999 | NE18: 28 | NF18: 9999 | NG18: 2.12 | NH18: 5.6 | NI18: 7.11 | NJ18: 8.61 | NK18: 9999 | NL18: 3.5 | NM18: 9.24 | NN18: 11.73 | NO18: 14.21 | NP18: 9999 | NQ18: 9999 | NS18: 28 | NT18: 9999 | NU18: 2.42 | NV18: 6.98 | NW18: 9.32 | NX18: 11.66 | NY18: 9999 | NZ18: 3.99 | OA18: 11.52 | OB18: 15.38 | OC18: 19.24 | OD18: 9999 | OE18: 9999 | OG18: 28 | OH18: 9999 | OI18: 2.22 | OJ18: 6.39 | OK18: 8.37 | OL18: 10.35 | OM18: 9999 | ON18: 3.66 | OO18: 10.54 | OP18: 13.81 | OQ18: 17.08 | OR18: 9999 | OS18: 9999 | OU18: 28 | OV18: 9999 | OW18: 2.14 | OX18: 5.74 | OY18: 7.39 | OZ18: 9.05 | PA18: 9999 | PB18: 3.53 | PC18: 9.47 | PD18: 12.19 | PE18: 14.93 | PF18: 9999 | PG18: 9999
A19: EXPERIMENT WITH RATE | E19: 29 | F19: 9999 | G19: =RawStdLife7!$B$6 -> 3.75 | H19: =RawStdLife7!$C$6 -> 9.83 | I19: =RawStdLife7!$D$6 -> 13.38 | J19: =RawStdLife7!$E$6 -> 16.92 | K19: 9999 | L19: =RawStdLife7!$B$53 -> 6.19 | M19: =RawStdLife7!$C$53 -> 16.22 | N19: =RawStdLife7!$D$53 -> 22.08 | O19: =RawStdLife7!$E$53 -> 27.92 | P19: 0 | S19: 29 | T19: 9999 | U19: =RawStdLife7!$G$6 -> 3 | V19: =RawStdLife7!$H$6 -> 8.75 | W19: =RawStdLife7!$I$6 -> 11.75 | X19: =RawStdLife7!$J$6 -> 14.75 | Y19: 9999 | Z19: =RawStdLife7!$G$53 -> 4.95 | AA19: =RawStdLife7!$H$53 -> 14.44 | AB19: =RawStdLife7!$I$53 -> 19.39 | AC19: =RawStdLife7!$J$53 -> 24.34 | AD19: 9999 | AE19: 9999 | AG19: 29 | AH19: 9999 | AI19: =RawStdLife7!$AA$6 -> 2.58 | AJ19: =RawStdLife7!$AB$6 -> 6.83 | AK19: =RawStdLife7!$AC$6 -> 8.67 | AL19: =RawStdLife7!$AD$6 -> 10.5 | AM19: 9999 | AN19: =RawStdLife7!$AA$53 -> 4.26 | AO19: =RawStdLife7!$AB$53 -> 11.27 | AP19: =RawStdLife7!$AC$53 -> 14.31 | AQ19: =RawStdLife7!$AD$53 -> 17.33 | AR19: 9999 | AS19: 9999 | AU19: 29 | AV19: 9999 | AW19: =RawStdLife7!$L$6 -> 2.95 | AX19: =RawStdLife7!$M$6 -> 8.51 | AY19: =RawStdLife7!$N$6 -> 11.36 | AZ19: =RawStdLife7!$O$6 -> 14.22 | BA19: 9999 | BB19: =RawStdLife7!$L$53 -> 4.87 | BC19: =RawStdLife7!$M$53 -> 14.04 | BD19: =RawStdLife7!$N$53 -> 18.74 | BE19: =RawStdLife7!$O$53 -> 23.46 | BF19: 9999 | BG19: 9999 | BI19: 29 | BJ19: 9999 | BK19: =RawStdLife7!$Q$6 -> 2.71 | BL19: =RawStdLife7!$R$6 -> 7.79 | BM19: =RawStdLife7!$S$6 -> 10.21 | BN19: =RawStdLife7!$T$6 -> 12.63 | BO19: 9999 | BP19: =RawStdLife7!$Q$53 -> 4.47 | BQ19: =RawStdLife7!$R$53 -> 12.85 | BR19: =RawStdLife7!$S$53 -> 16.85 | BS19: =RawStdLife7!$T$53 -> 20.84 | BT19: 9999 | BU19: 9999 | BW19: 29 | BX19: 9999 | BY19: =RawStdLife7!$V$6 -> 2.48 | BZ19: =RawStdLife7!$W$6 -> 7 | CA19: =RawStdLife7!$X$6 -> 9.02 | CB19: =RawStdLife7!$Y$6 -> 11.03 | CC19: 9999 | CD19: =RawStdLife7!$V$53 -> 4.09 | CE19: =RawStdLife7!$W$53 -> 11.55 | CF19: =RawStdLife7!$X$53 -> 14.88 | CG19: =RawStdLife7!$Y$53 -> 18.2 | CH19: 9999 | CI19: 9999 | CK19: 29 | CL19: 9999 | CM19: 3.6 | CN19: 9.44 | CO19: 12.84 | CP19: 16.24 | CQ19: 9999 | CR19: 5.94 | CS19: 15.58 | CT19: 21.19 | CU19: 26.8 | CV19: 0 | CY19: 29 | CZ19: 9999 | DA19: 2.88 | DB19: 8.4 | DC19: 11.28 | DD19: 14.16 | DE19: 9999 | DF19: 4.75 | DG19: 13.86 | DH19: 18.61 | DI19: 23.36 | DJ19: 9999 | DK19: 9999 | DM19: 29 | DN19: 9999 | DO19: 2.48 | DP19: 6.56 | DQ19: 8.32 | DR19: 10.08 | DS19: 9999 | DT19: 4.09 | DU19: 10.82 | DV19: 13.73 | DW19: 16.63 | DX19: 9999 | DY19: 9999 | EA19: 29 | EB19: 9999 | EC19: 2.83 | ED19: 8.17 | EE19: 10.91 | EF19: 13.65 | EG19: 9999 | EH19: 4.67 | EI19: 13.48 | EJ19: 18 | EK19: 22.52 | EL19: 9999 | EM19: 9999 | EO19: 29 | EP19: 9999 | EQ19: 2.6 | ER19: 7.48 | ES19: 9.8 | ET19: 12.12 | EU19: 9999 | EV19: 4.29 | EW19: 12.34 | EX19: 16.17 | EY19: 20 | EZ19: 9999 | FA19: 9999 | FC19: 29 | FD19: 9999 | FE19: 2.5 | FF19: 6.72 | FG19: 8.66 | FH19: 10.59 | FI19: 9999 | FJ19: 4.13 | FK19: 11.09 | FL19: 14.29 | FM19: 17.47 | FN19: 9999 | FO19: 9999 | FQ19: 29 | FR19: 9999 | FS19: 3.43 | FT19: 9 | FU19: 12.24 | FV19: 15.48 | FW19: 9999 | FX19: 5.66 | FY19: 14.85 | FZ19: 20.2 | GA19: 25.54 | GB19: 0 | GE19: 29 | GF19: 9999 | GG19: 2.75 | GH19: 8.01 | GI19: 10.75 | GJ19: 13.5 | GK19: 9999 | GL19: 4.54 | GM19: 13.22 | GN19: 17.74 | GO19: 22.28 | GP19: 9999 | GQ19: 9999 | GS19: 29 | GT19: 9999 | GU19: 2.36 | GV19: 6.25 | GW19: 7.93 | GX19: 9.61 | GY19: 9999 | GZ19: 3.89 | HA19: 10.31 | HB19: 13.08 | HC19: 15.86 | HD19: 9999 | HE19: 9999 | HG19: 29 | HH19: 9999 | HI19: 2.7 | HJ19: 7.79 | HK19: 10.4 | HL19: 13.01 | HM19: 9999 | HN19: 4.46 | HO19: 12.85 | HP19: 17.16 | HQ19: 21.47 | HR19: 9999 | HS19: 9999 | HU19: 29 | HV19: 9999 | HW19: 2.48 | HX19: 7.13 | HY19: 9.34 | HZ19: 11.55 | IA19: 9999 | IB19: 4.09 | IC19: 11.76 | ID19: 15.41 | IE19: 19.06 | IF19: 9999 | IG19: 9999 | II19: 29 | IJ19: 9999 | IK19: 2.39 | IL19: 6.41 | IM19: 8.25 | IN19: 10.1 | IO19: 9999 | IP19: 3.94 | IQ19: 10.58 | IR19: 13.61 | IS19: 16.67 | IT19: 9999 | IU19: 9999 | IW19: 29 | IX19: 9999 | IY19: 9999 | IZ19: 9999 | JA19: 9999 | JB19: 9999 | JC19: 9999 | JD19: 9999 | JE19: 9999 | JF19: 9999 | JG19: 9999 | JH19: 0 | JK19: 29 | JL19: 9999 | JM19: 9999 | JN19: 9999 | JO19: 9999 | JP19: 9999 | JQ19: 9999 | JR19: 9999 | JS19: 9999 | JT19: 9999 | JU19: 9999 | JV19: 9999 | JW19: 9999 | JY19: 29 | JZ19: 9999 | KA19: 9999 | KB19: 9999 | KC19: 9999 | KD19: 9999 | KE19: 9999 | KF19: 9999 | KG19: 9999 | KH19: 9999 | KI19: 9999 | KJ19: 9999 | KK19: 9999 | KM19: 29 | KN19: 9999 | KO19: 9999 | KP19: 9999 | KQ19: 9999 | KR19: 9999 | KS19: 9999 | KT19: 9999 | KU19: 9999 | KV19: 9999 | KW19: 9999 | KX19: 9999 | KY19: 9999 | LA19: 29 | LB19: 9999 | LC19: 9999 | LD19: 9999 | LE19: 9999 | LF19: 9999 | LG19: 9999 | LH19: 9999 | LI19: 9999 | LJ19: 9999 | LK19: 9999 | LL19: 9999 | LM19: 9999 | LO19: 29 | LP19: 9999 | LQ19: 9999 | LR19: 9999 | LS19: 9999 | LT19: 9999 | LU19: 9999 | LV19: 9999 | LW19: 9999 | LX19: 9999 | LY19: 9999 | LZ19: 9999 | MA19: 9999 | MC19: 29 | MD19: 9999 | ME19: 3.08 | MF19: 8.06 | MG19: 10.97 | MH19: 13.87 | MI19: 9999 | MJ19: 5.08 | MK19: 13.3 | ML19: 18.1 | MM19: 22.89 | MN19: 0 | MQ19: 29 | MR19: 9999 | MS19: 2.46 | MT19: 7.18 | MU19: 9.64 | MV19: 12.1 | MW19: 9999 | MX19: 4.06 | MY19: 11.85 | MZ19: 15.91 | NA19: 19.97 | NB19: 9999 | NC19: 9999 | NE19: 29 | NF19: 9999 | NG19: 2.12 | NH19: 5.6 | NI19: 7.11 | NJ19: 8.61 | NK19: 9999 | NL19: 3.5 | NM19: 9.24 | NN19: 11.73 | NO19: 14.21 | NP19: 9999 | NQ19: 9999 | NS19: 29 | NT19: 9999 | NU19: 2.42 | NV19: 6.98 | NW19: 9.32 | NX19: 11.66 | NY19: 9999 | NZ19: 3.99 | OA19: 11.52 | OB19: 15.38 | OC19: 19.24 | OD19: 9999 | OE19: 9999 | OG19: 29 | OH19: 9999 | OI19: 2.22 | OJ19: 6.39 | OK19: 8.37 | OL19: 10.35 | OM19: 9999 | ON19: 3.66 | OO19: 10.54 | OP19: 13.81 | OQ19: 17.08 | OR19: 9999 | OS19: 9999 | OU19: 29 | OV19: 9999 | OW19: 2.14 | OX19: 5.74 | OY19: 7.39 | OZ19: 9.05 | PA19: 9999 | PB19: 3.53 | PC19: 9.47 | PD19: 12.19 | PE19: 14.93 | PF19: 9999 | PG19: 9999
E20: 30 | F20: 9999 | G20: =RawStdLife7!$B$6 -> 3.75 | H20: =RawStdLife7!$C$6 -> 9.83 | I20: =RawStdLife7!$D$6 -> 13.38 | J20: =RawStdLife7!$E$6 -> 16.92 | K20: 9999 | L20: =RawStdLife7!$B$53 -> 6.19 | M20: =RawStdLife7!$C$53 -> 16.22 | N20: =RawStdLife7!$D$53 -> 22.08 | O20: =RawStdLife7!$E$53 -> 27.92 | P20: 0 | S20: 30 | T20: 9999 | U20: =RawStdLife7!$G$6 -> 3 | V20: =RawStdLife7!$H$6 -> 8.75 | W20: =RawStdLife7!$I$6 -> 11.75 | X20: =RawStdLife7!$J$6 -> 14.75 | Y20: 9999 | Z20: =RawStdLife7!$G$53 -> 4.95 | AA20: =RawStdLife7!$H$53 -> 14.44 | AB20: =RawStdLife7!$I$53 -> 19.39 | AC20: =RawStdLife7!$J$53 -> 24.34 | AD20: 9999 | AE20: 9999 | AG20: 30 | AH20: 9999 | AI20: =RawStdLife7!$AA$6 -> 2.58 | AJ20: =RawStdLife7!$AB$6 -> 6.83 | AK20: =RawStdLife7!$AC$6 -> 8.67 | AL20: =RawStdLife7!$AD$6 -> 10.5 | AM20: 9999 | AN20: =RawStdLife7!$AA$53 -> 4.26 | AO20: =RawStdLife7!$AB$53 -> 11.27 | AP20: =RawStdLife7!$AC$53 -> 14.31 | AQ20: =RawStdLife7!$AD$53 -> 17.33 | AR20: 9999 | AS20: 9999 | AU20: 30 | AV20: 9999 | AW20: =RawStdLife7!$L$6 -> 2.95 | AX20: =RawStdLife7!$M$6 -> 8.51 | AY20: =RawStdLife7!$N$6 -> 11.36 | AZ20: =RawStdLife7!$O$6 -> 14.22 | BA20: 9999 | BB20: =RawStdLife7!$L$53 -> 4.87 | BC20: =RawStdLife7!$M$53 -> 14.04 | BD20: =RawStdLife7!$N$53 -> 18.74 | BE20: =RawStdLife7!$O$53 -> 23.46 | BF20: 9999 | BG20: 9999 | BI20: 30 | BJ20: 9999 | BK20: =RawStdLife7!$Q$6 -> 2.71 | BL20: =RawStdLife7!$R$6 -> 7.79 | BM20: =RawStdLife7!$S$6 -> 10.21 | BN20: =RawStdLife7!$T$6 -> 12.63 | BO20: 9999 | BP20: =RawStdLife7!$Q$53 -> 4.47 | BQ20: =RawStdLife7!$R$53 -> 12.85 | BR20: =RawStdLife7!$S$53 -> 16.85 | BS20: =RawStdLife7!$T$53 -> 20.84 | BT20: 9999 | BU20: 9999 | BW20: 30 | BX20: 9999 | BY20: =RawStdLife7!$V$6 -> 2.48 | BZ20: =RawStdLife7!$W$6 -> 7 | CA20: =RawStdLife7!$X$6 -> 9.02 | CB20: =RawStdLife7!$Y$6 -> 11.03 | CC20: 9999 | CD20: =RawStdLife7!$V$53 -> 4.09 | CE20: =RawStdLife7!$W$53 -> 11.55 | CF20: =RawStdLife7!$X$53 -> 14.88 | CG20: =RawStdLife7!$Y$53 -> 18.2 | CH20: 9999 | CI20: 9999 | CK20: 30 | CL20: 9999 | CM20: 3.6 | CN20: 9.44 | CO20: 12.84 | CP20: 16.24 | CQ20: 9999 | CR20: 5.94 | CS20: 15.58 | CT20: 21.19 | CU20: 26.8 | CV20: 0 | CY20: 30 | CZ20: 9999 | DA20: 2.88 | DB20: 8.4 | DC20: 11.28 | DD20: 14.16 | DE20: 9999 | DF20: 4.75 | DG20: 13.86 | DH20: 18.61 | DI20: 23.36 | DJ20: 9999 | DK20: 9999 | DM20: 30 | DN20: 9999 | DO20: 2.48 | DP20: 6.56 | DQ20: 8.32 | DR20: 10.08 | DS20: 9999 | DT20: 4.09 | DU20: 10.82 | DV20: 13.73 | DW20: 16.63 | DX20: 9999 | DY20: 9999 | EA20: 30 | EB20: 9999 | EC20: 2.83 | ED20: 8.17 | EE20: 10.91 | EF20: 13.65 | EG20: 9999 | EH20: 4.67 | EI20: 13.48 | EJ20: 18 | EK20: 22.52 | EL20: 9999 | EM20: 9999 | EO20: 30 | EP20: 9999 | EQ20: 2.6 | ER20: 7.48 | ES20: 9.8 | ET20: 12.12 | EU20: 9999 | EV20: 4.29 | EW20: 12.34 | EX20: 16.17 | EY20: 20 | EZ20: 9999 | FA20: 9999 | FC20: 30 | FD20: 9999 | FE20: 2.5 | FF20: 6.72 | FG20: 8.66 | FH20: 10.59 | FI20: 9999 | FJ20: 4.13 | FK20: 11.09 | FL20: 14.29 | FM20: 17.47 | FN20: 9999 | FO20: 9999 | FQ20: 30 | FR20: 9999 | FS20: 3.43 | FT20: 9 | FU20: 12.24 | FV20: 15.48 | FW20: 9999 | FX20: 5.66 | FY20: 14.85 | FZ20: 20.2 | GA20: 25.54 | GB20: 0 | GE20: 30 | GF20: 9999 | GG20: 2.75 | GH20: 8.01 | GI20: 10.75 | GJ20: 13.5 | GK20: 9999 | GL20: 4.54 | GM20: 13.22 | GN20: 17.74 | GO20: 22.28 | GP20: 9999 | GQ20: 9999 | GS20: 30 | GT20: 9999 | GU20: 2.36 | GV20: 6.25 | GW20: 7.93 | GX20: 9.61 | GY20: 9999 | GZ20: 3.89 | HA20: 10.31 | HB20: 13.08 | HC20: 15.86 | HD20: 9999 | HE20: 9999 | HG20: 30 | HH20: 9999 | HI20: 2.7 | HJ20: 7.79 | HK20: 10.4 | HL20: 13.01 | HM20: 9999 | HN20: 4.46 | HO20: 12.85 | HP20: 17.16 | HQ20: 21.47 | HR20: 9999 | HS20: 9999 | HU20: 30 | HV20: 9999 | HW20: 2.48 | HX20: 7.13 | HY20: 9.34 | HZ20: 11.55 | IA20: 9999 | IB20: 4.09 | IC20: 11.76 | ID20: 15.41 | IE20: 19.06 | IF20: 9999 | IG20: 9999 | II20: 30 | IJ20: 9999 | IK20: 2.39 | IL20: 6.41 | IM20: 8.25 | IN20: 10.1 | IO20: 9999 | IP20: 3.94 | IQ20: 10.58 | IR20: 13.61 | IS20: 16.67 | IT20: 9999 | IU20: 9999 | IW20: 30 | IX20: 9999 | IY20: 9999 | IZ20: 9999 | JA20: 9999 | JB20: 9999 | JC20: 9999 | JD20: 9999 | JE20: 9999 | JF20: 9999 | JG20: 9999 | JH20: 0 | JK20: 30 | JL20: 9999 | JM20: 9999 | JN20: 9999 | JO20: 9999 | JP20: 9999 | JQ20: 9999 | JR20: 9999 | JS20: 9999 | JT20: 9999 | JU20: 9999 | JV20: 9999 | JW20: 9999 | JY20: 30 | JZ20: 9999 | KA20: 9999 | KB20: 9999 | KC20: 9999 | KD20: 9999 | KE20: 9999 | KF20: 9999 | KG20: 9999 | KH20: 9999 | KI20: 9999 | KJ20: 9999 | KK20: 9999 | KM20: 30 | KN20: 9999 | KO20: 9999 | KP20: 9999 | KQ20: 9999 | KR20: 9999 | KS20: 9999 | KT20: 9999 | KU20: 9999 | KV20: 9999 | KW20: 9999 | KX20: 9999 | KY20: 9999 | LA20: 30 | LB20: 9999 | LC20: 9999 | LD20: 9999 | LE20: 9999 | LF20: 9999 | LG20: 9999 | LH20: 9999 | LI20: 9999 | LJ20: 9999 | LK20: 9999 | LL20: 9999 | LM20: 9999 | LO20: 30 | LP20: 9999 | LQ20: 9999 | LR20: 9999 | LS20: 9999 | LT20: 9999 | LU20: 9999 | LV20: 9999 | LW20: 9999 | LX20: 9999 | LY20: 9999 | LZ20: 9999 | MA20: 9999 | MC20: 30 | MD20: 9999 | ME20: 3.08 | MF20: 8.06 | MG20: 10.97 | MH20: 13.87 | MI20: 9999 | MJ20: 5.08 | MK20: 13.3 | ML20: 18.1 | MM20: 22.89 | MN20: 0 | MQ20: 30 | MR20: 9999 | MS20: 2.46 | MT20: 7.18 | MU20: 9.64 | MV20: 12.1 | MW20: 9999 | MX20: 4.06 | MY20: 11.85 | MZ20: 15.91 | NA20: 19.97 | NB20: 9999 | NC20: 9999 | NE20: 30 | NF20: 9999 | NG20: 2.12 | NH20: 5.6 | NI20: 7.11 | NJ20: 8.61 | NK20: 9999 | NL20: 3.5 | NM20: 9.24 | NN20: 11.73 | NO20: 14.21 | NP20: 9999 | NQ20: 9999 | NS20: 30 | NT20: 9999 | NU20: 2.42 | NV20: 6.98 | NW20: 9.32 | NX20: 11.66 | NY20: 9999 | NZ20: 3.99 | OA20: 11.52 | OB20: 15.38 | OC20: 19.24 | OD20: 9999 | OE20: 9999 | OG20: 30 | OH20: 9999 | OI20: 2.22 | OJ20: 6.39 | OK20: 8.37 | OL20: 10.35 | OM20: 9999 | ON20: 3.66 | OO20: 10.54 | OP20: 13.81 | OQ20: 17.08 | OR20: 9999 | OS20: 9999 | OU20: 30 | OV20: 9999 | OW20: 2.14 | OX20: 5.74 | OY20: 7.39 | OZ20: 9.05 | PA20: 9999 | PB20: 3.53 | PC20: 9.47 | PD20: 12.19 | PE20: 14.93 | PF20: 9999 | PG20: 9999
A21: FACTORS HEREIN. | E21: 31 | F21: 9999 | G21: =RawStdLife7!$B$6 -> 3.75 | H21: =RawStdLife7!$C$6 -> 9.83 | I21: =RawStdLife7!$D$6 -> 13.38 | J21: =RawStdLife7!$E$6 -> 16.92 | K21: 9999 | L21: =RawStdLife7!$B$53 -> 6.19 | M21: =RawStdLife7!$C$53 -> 16.22 | N21: =RawStdLife7!$D$53 -> 22.08 | O21: =RawStdLife7!$E$53 -> 27.92 | P21: 0 | S21: 31 | T21: 9999 | U21: =RawStdLife7!$G$6 -> 3 | V21: =RawStdLife7!$H$6 -> 8.75 | W21: =RawStdLife7!$I$6 -> 11.75 | X21: =RawStdLife7!$J$6 -> 14.75 | Y21: 9999 | Z21: =RawStdLife7!$G$53 -> 4.95 | AA21: =RawStdLife7!$H$53 -> 14.44 | AB21: =RawStdLife7!$I$53 -> 19.39 | AC21: =RawStdLife7!$J$53 -> 24.34 | AD21: 9999 | AE21: 9999 | AG21: 31 | AH21: 9999 | AI21: =RawStdLife7!$AA$6 -> 2.58 | AJ21: =RawStdLife7!$AB$6 -> 6.83 | AK21: =RawStdLife7!$AC$6 -> 8.67 | AL21: =RawStdLife7!$AD$6 -> 10.5 | AM21: 9999 | AN21: =RawStdLife7!$AA$53 -> 4.26 | AO21: =RawStdLife7!$AB$53 -> 11.27 | AP21: =RawStdLife7!$AC$53 -> 14.31 | AQ21: =RawStdLife7!$AD$53 -> 17.33 | AR21: 9999 | AS21: 9999 | AU21: 31 | AV21: 9999 | AW21: =RawStdLife7!$L$6 -> 2.95 | AX21: =RawStdLife7!$M$6 -> 8.51 | AY21: =RawStdLife7!$N$6 -> 11.36 | AZ21: =RawStdLife7!$O$6 -> 14.22 | BA21: 9999 | BB21: =RawStdLife7!$L$53 -> 4.87 | BC21: =RawStdLife7!$M$53 -> 14.04 | BD21: =RawStdLife7!$N$53 -> 18.74 | BE21: =RawStdLife7!$O$53 -> 23.46 | BF21: 9999 | BG21: 9999 | BI21: 31 | BJ21: 9999 | BK21: =RawStdLife7!$Q$6 -> 2.71 | BL21: =RawStdLife7!$R$6 -> 7.79 | BM21: =RawStdLife7!$S$6 -> 10.21 | BN21: =RawStdLife7!$T$6 -> 12.63 | BO21: 9999 | BP21: =RawStdLife7!$Q$53 -> 4.47 | BQ21: =RawStdLife7!$R$53 -> 12.85 | BR21: =RawStdLife7!$S$53 -> 16.85 | BS21: =RawStdLife7!$T$53 -> 20.84 | BT21: 9999 | BU21: 9999 | BW21: 31 | BX21: 9999 | BY21: =RawStdLife7!$V$6 -> 2.48 | BZ21: =RawStdLife7!$W$6 -> 7 | CA21: =RawStdLife7!$X$6 -> 9.02 | CB21: =RawStdLife7!$Y$6 -> 11.03 | CC21: 9999 | CD21: =RawStdLife7!$V$53 -> 4.09 | CE21: =RawStdLife7!$W$53 -> 11.55 | CF21: =RawStdLife7!$X$53 -> 14.88 | CG21: =RawStdLife7!$Y$53 -> 18.2 | CH21: 9999 | CI21: 9999 | CK21: 31 | CL21: 9999 | CM21: 3.6 | CN21: 9.44 | CO21: 12.84 | CP21: 16.24 | CQ21: 9999 | CR21: 5.94 | CS21: 15.58 | CT21: 21.19 | CU21: 26.8 | CV21: 0 | CY21: 31 | CZ21: 9999 | DA21: 2.88 | DB21: 8.4 | DC21: 11.28 | DD21: 14.16 | DE21: 9999 | DF21: 4.75 | DG21: 13.86 | DH21: 18.61 | DI21: 23.36 | DJ21: 9999 | DK21: 9999 | DM21: 31 | DN21: 9999 | DO21: 2.48 | DP21: 6.56 | DQ21: 8.32 | DR21: 10.08 | DS21: 9999 | DT21: 4.09 | DU21: 10.82 | DV21: 13.73 | DW21: 16.63 | DX21: 9999 | DY21: 9999 | EA21: 31 | EB21: 9999 | EC21: 2.83 | ED21: 8.17 | EE21: 10.91 | EF21: 13.65 | EG21: 9999 | EH21: 4.67 | EI21: 13.48 | EJ21: 18 | EK21: 22.52 | EL21: 9999 | EM21: 9999 | EO21: 31 | EP21: 9999 | EQ21: 2.6 | ER21: 7.48 | ES21: 9.8 | ET21: 12.12 | EU21: 9999 | EV21: 4.29 | EW21: 12.34 | EX21: 16.17 | EY21: 20 | EZ21: 9999 | FA21: 9999 | FC21: 31 | FD21: 9999 | FE21: 2.5 | FF21: 6.72 | FG21: 8.66 | FH21: 10.59 | FI21: 9999 | FJ21: 4.13 | FK21: 11.09 | FL21: 14.29 | FM21: 17.47 | FN21: 9999 | FO21: 9999 | FQ21: 31 | FR21: 9999 | FS21: 3.43 | FT21: 9 | FU21: 12.24 | FV21: 15.48 | FW21: 9999 | FX21: 5.66 | FY21: 14.85 | FZ21: 20.2 | GA21: 25.54 | GB21: 0 | GE21: 31 | GF21: 9999 | GG21: 2.75 | GH21: 8.01 | GI21: 10.75 | GJ21: 13.5 | GK21: 9999 | GL21: 4.54 | GM21: 13.22 | GN21: 17.74 | GO21: 22.28 | GP21: 9999 | GQ21: 9999 | GS21: 31 | GT21: 9999 | GU21: 2.36 | GV21: 6.25 | GW21: 7.93 | GX21: 9.61 | GY21: 9999 | GZ21: 3.89 | HA21: 10.31 | HB21: 13.08 | HC21: 15.86 | HD21: 9999 | HE21: 9999 | HG21: 31 | HH21: 9999 | HI21: 2.7 | HJ21: 7.79 | HK21: 10.4 | HL21: 13.01 | HM21: 9999 | HN21: 4.46 | HO21: 12.85 | HP21: 17.16 | HQ21: 21.47 | HR21: 9999 | HS21: 9999 | HU21: 31 | HV21: 9999 | HW21: 2.48 | HX21: 7.13 | HY21: 9.34 | HZ21: 11.55 | IA21: 9999 | IB21: 4.09 | IC21: 11.76 | ID21: 15.41 | IE21: 19.06 | IF21: 9999 | IG21: 9999 | II21: 31 | IJ21: 9999 | IK21: 2.39 | IL21: 6.41 | IM21: 8.25 | IN21: 10.1 | IO21: 9999 | IP21: 3.94 | IQ21: 10.58 | IR21: 13.61 | IS21: 16.67 | IT21: 9999 | IU21: 9999 | IW21: 31 | IX21: 9999 | IY21: 9999 | IZ21: 9999 | JA21: 9999 | JB21: 9999 | JC21: 9999 | JD21: 9999 | JE21: 9999 | JF21: 9999 | JG21: 9999 | JH21: 0 | JK21: 31 | JL21: 9999 | JM21: 9999 | JN21: 9999 | JO21: 9999 | JP21: 9999 | JQ21: 9999 | JR21: 9999 | JS21: 9999 | JT21: 9999 | JU21: 9999 | JV21: 9999 | JW21: 9999 | JY21: 31 | JZ21: 9999 | KA21: 9999 | KB21: 9999 | KC21: 9999 | KD21: 9999 | KE21: 9999 | KF21: 9999 | KG21: 9999 | KH21: 9999 | KI21: 9999 | KJ21: 9999 | KK21: 9999 | KM21: 31 | KN21: 9999 | KO21: 9999 | KP21: 9999 | KQ21: 9999 | KR21: 9999 | KS21: 9999 | KT21: 9999 | KU21: 9999 | KV21: 9999 | KW21: 9999 | KX21: 9999 | KY21: 9999 | LA21: 31 | LB21: 9999 | LC21: 9999 | LD21: 9999 | LE21: 9999 | LF21: 9999 | LG21: 9999 | LH21: 9999 | LI21: 9999 | LJ21: 9999 | LK21: 9999 | LL21: 9999 | LM21: 9999 | LO21: 31 | LP21: 9999 | LQ21: 9999 | LR21: 9999 | LS21: 9999 | LT21: 9999 | LU21: 9999 | LV21: 9999 | LW21: 9999 | LX21: 9999 | LY21: 9999 | LZ21: 9999 | MA21: 9999 | MC21: 31 | MD21: 9999 | ME21: 3.08 | MF21: 8.06 | MG21: 10.97 | MH21: 13.87 | MI21: 9999 | MJ21: 5.08 | MK21: 13.3 | ML21: 18.1 | MM21: 22.89 | MN21: 0 | MQ21: 31 | MR21: 9999 | MS21: 2.46 | MT21: 7.18 | MU21: 9.64 | MV21: 12.1 | MW21: 9999 | MX21: 4.06 | MY21: 11.85 | MZ21: 15.91 | NA21: 19.97 | NB21: 9999 | NC21: 9999 | NE21: 31 | NF21: 9999 | NG21: 2.12 | NH21: 5.6 | NI21: 7.11 | NJ21: 8.61 | NK21: 9999 | NL21: 3.5 | NM21: 9.24 | NN21: 11.73 | NO21: 14.21 | NP21: 9999 | NQ21: 9999 | NS21: 31 | NT21: 9999 | NU21: 2.42 | NV21: 6.98 | NW21: 9.32 | NX21: 11.66 | NY21: 9999 | NZ21: 3.99 | OA21: 11.52 | OB21: 15.38 | OC21: 19.24 | OD21: 9999 | OE21: 9999 | OG21: 31 | OH21: 9999 | OI21: 2.22 | OJ21: 6.39 | OK21: 8.37 | OL21: 10.35 | OM21: 9999 | ON21: 3.66 | OO21: 10.54 | OP21: 13.81 | OQ21: 17.08 | OR21: 9999 | OS21: 9999 | OU21: 31 | OV21: 9999 | OW21: 2.14 | OX21: 5.74 | OY21: 7.39 | OZ21: 9.05 | PA21: 9999 | PB21: 3.53 | PC21: 9.47 | PD21: 12.19 | PE21: 14.93 | PF21: 9999 | PG21: 9999
E22: 32 | F22: 9999 | G22: =RawStdLife7!$B$6 -> 3.75 | H22: =RawStdLife7!$C$6 -> 9.83 | I22: =RawStdLife7!$D$6 -> 13.38 | J22: =RawStdLife7!$E$6 -> 16.92 | K22: 9999 | L22: =RawStdLife7!$B$53 -> 6.19 | M22: =RawStdLife7!$C$53 -> 16.22 | N22: =RawStdLife7!$D$53 -> 22.08 | O22: =RawStdLife7!$E$53 -> 27.92 | P22: 0 | S22: 32 | T22: 9999 | U22: =RawStdLife7!$G$6 -> 3 | V22: =RawStdLife7!$H$6 -> 8.75 | W22: =RawStdLife7!$I$6 -> 11.75 | X22: =RawStdLife7!$J$6 -> 14.75 | Y22: 9999 | Z22: =RawStdLife7!$G$53 -> 4.95 | AA22: =RawStdLife7!$H$53 -> 14.44 | AB22: =RawStdLife7!$I$53 -> 19.39 | AC22: =RawStdLife7!$J$53 -> 24.34 | AD22: 9999 | AE22: 9999 | AG22: 32 | AH22: 9999 | AI22: =RawStdLife7!$AA$6 -> 2.58 | AJ22: =RawStdLife7!$AB$6 -> 6.83 | AK22: =RawStdLife7!$AC$6 -> 8.67 | AL22: =RawStdLife7!$AD$6 -> 10.5 | AM22: 9999 | AN22: =RawStdLife7!$AA$53 -> 4.26 | AO22: =RawStdLife7!$AB$53 -> 11.27 | AP22: =RawStdLife7!$AC$53 -> 14.31 | AQ22: =RawStdLife7!$AD$53 -> 17.33 | AR22: 9999 | AS22: 9999 | AU22: 32 | AV22: 9999 | AW22: =RawStdLife7!$L$6 -> 2.95 | AX22: =RawStdLife7!$M$6 -> 8.51 | AY22: =RawStdLife7!$N$6 -> 11.36 | AZ22: =RawStdLife7!$O$6 -> 14.22 | BA22: 9999 | BB22: =RawStdLife7!$L$53 -> 4.87 | BC22: =RawStdLife7!$M$53 -> 14.04 | BD22: =RawStdLife7!$N$53 -> 18.74 | BE22: =RawStdLife7!$O$53 -> 23.46 | BF22: 9999 | BG22: 9999 | BI22: 32 | BJ22: 9999 | BK22: =RawStdLife7!$Q$6 -> 2.71 | BL22: =RawStdLife7!$R$6 -> 7.79 | BM22: =RawStdLife7!$S$6 -> 10.21 | BN22: =RawStdLife7!$T$6 -> 12.63 | BO22: 9999 | BP22: =RawStdLife7!$Q$53 -> 4.47 | BQ22: =RawStdLife7!$R$53 -> 12.85 | BR22: =RawStdLife7!$S$53 -> 16.85 | BS22: =RawStdLife7!$T$53 -> 20.84 | BT22: 9999 | BU22: 9999 | BW22: 32 | BX22: 9999 | BY22: =RawStdLife7!$V$6 -> 2.48 | BZ22: =RawStdLife7!$W$6 -> 7 | CA22: =RawStdLife7!$X$6 -> 9.02 | CB22: =RawStdLife7!$Y$6 -> 11.03 | CC22: 9999 | CD22: =RawStdLife7!$V$53 -> 4.09 | CE22: =RawStdLife7!$W$53 -> 11.55 | CF22: =RawStdLife7!$X$53 -> 14.88 | CG22: =RawStdLife7!$Y$53 -> 18.2 | CH22: 9999 | CI22: 9999 | CK22: 32 | CL22: 9999 | CM22: 3.6 | CN22: 9.44 | CO22: 12.84 | CP22: 16.24 | CQ22: 9999 | CR22: 5.94 | CS22: 15.58 | CT22: 21.19 | CU22: 26.8 | CV22: 0 | CY22: 32 | CZ22: 9999 | DA22: 2.88 | DB22: 8.4 | DC22: 11.28 | DD22: 14.16 | DE22: 9999 | DF22: 4.75 | DG22: 13.86 | DH22: 18.61 | DI22: 23.36 | DJ22: 9999 | DK22: 9999 | DM22: 32 | DN22: 9999 | DO22: 2.48 | DP22: 6.56 | DQ22: 8.32 | DR22: 10.08 | DS22: 9999 | DT22: 4.09 | DU22: 10.82 | DV22: 13.73 | DW22: 16.63 | DX22: 9999 | DY22: 9999 | EA22: 32 | EB22: 9999 | EC22: 2.83 | ED22: 8.17 | EE22: 10.91 | EF22: 13.65 | EG22: 9999 | EH22: 4.67 | EI22: 13.48 | EJ22: 18 | EK22: 22.52 | EL22: 9999 | EM22: 9999 | EO22: 32 | EP22: 9999 | EQ22: 2.6 | ER22: 7.48 | ES22: 9.8 | ET22: 12.12 | EU22: 9999 | EV22: 4.29 | EW22: 12.34 | EX22: 16.17 | EY22: 20 | EZ22: 9999 | FA22: 9999 | FC22: 32 | FD22: 9999 | FE22: 2.5 | FF22: 6.72 | FG22: 8.66 | FH22: 10.59 | FI22: 9999 | FJ22: 4.13 | FK22: 11.09 | FL22: 14.29 | FM22: 17.47 | FN22: 9999 | FO22: 9999 | FQ22: 32 | FR22: 9999 | FS22: 3.43 | FT22: 9 | FU22: 12.24 | FV22: 15.48 | FW22: 9999 | FX22: 5.66 | FY22: 14.85 | FZ22: 20.2 | GA22: 25.54 | GB22: 0 | GE22: 32 | GF22: 9999 | GG22: 2.75 | GH22: 8.01 | GI22: 10.75 | GJ22: 13.5 | GK22: 9999 | GL22: 4.54 | GM22: 13.22 | GN22: 17.74 | GO22: 22.28 | GP22: 9999 | GQ22: 9999 | GS22: 32 | GT22: 9999 | GU22: 2.36 | GV22: 6.25 | GW22: 7.93 | GX22: 9.61 | GY22: 9999 | GZ22: 3.89 | HA22: 10.31 | HB22: 13.08 | HC22: 15.86 | HD22: 9999 | HE22: 9999 | HG22: 32 | HH22: 9999 | HI22: 2.7 | HJ22: 7.79 | HK22: 10.4 | HL22: 13.01 | HM22: 9999 | HN22: 4.46 | HO22: 12.85 | HP22: 17.16 | HQ22: 21.47 | HR22: 9999 | HS22: 9999 | HU22: 32 | HV22: 9999 | HW22: 2.48 | HX22: 7.13 | HY22: 9.34 | HZ22: 11.55 | IA22: 9999 | IB22: 4.09 | IC22: 11.76 | ID22: 15.41 | IE22: 19.06 | IF22: 9999 | IG22: 9999 | II22: 32 | IJ22: 9999 | IK22: 2.39 | IL22: 6.41 | IM22: 8.25 | IN22: 10.1 | IO22: 9999 | IP22: 3.94 | IQ22: 10.58 | IR22: 13.61 | IS22: 16.67 | IT22: 9999 | IU22: 9999 | IW22: 32 | IX22: 9999 | IY22: 9999 | IZ22: 9999 | JA22: 9999 | JB22: 9999 | JC22: 9999 | JD22: 9999 | JE22: 9999 | JF22: 9999 | JG22: 9999 | JH22: 0 | JK22: 32 | JL22: 9999 | JM22: 9999 | JN22: 9999 | JO22: 9999 | JP22: 9999 | JQ22: 9999 | JR22: 9999 | JS22: 9999 | JT22: 9999 | JU22: 9999 | JV22: 9999 | JW22: 9999 | JY22: 32 | JZ22: 9999 | KA22: 9999 | KB22: 9999 | KC22: 9999 | KD22: 9999 | KE22: 9999 | KF22: 9999 | KG22: 9999 | KH22: 9999 | KI22: 9999 | KJ22: 9999 | KK22: 9999 | KM22: 32 | KN22: 9999 | KO22: 9999 | KP22: 9999 | KQ22: 9999 | KR22: 9999 | KS22: 9999 | KT22: 9999 | KU22: 9999 | KV22: 9999 | KW22: 9999 | KX22: 9999 | KY22: 9999 | LA22: 32 | LB22: 9999 | LC22: 9999 | LD22: 9999 | LE22: 9999 | LF22: 9999 | LG22: 9999 | LH22: 9999 | LI22: 9999 | LJ22: 9999 | LK22: 9999 | LL22: 9999 | LM22: 9999 | LO22: 32 | LP22: 9999 | LQ22: 9999 | LR22: 9999 | LS22: 9999 | LT22: 9999 | LU22: 9999 | LV22: 9999 | LW22: 9999 | LX22: 9999 | LY22: 9999 | LZ22: 9999 | MA22: 9999 | MC22: 32 | MD22: 9999 | ME22: 3.08 | MF22: 8.06 | MG22: 10.97 | MH22: 13.87 | MI22: 9999 | MJ22: 5.08 | MK22: 13.3 | ML22: 18.1 | MM22: 22.89 | MN22: 0 | MQ22: 32 | MR22: 9999 | MS22: 2.46 | MT22: 7.18 | MU22: 9.64 | MV22: 12.1 | MW22: 9999 | MX22: 4.06 | MY22: 11.85 | MZ22: 15.91 | NA22: 19.97 | NB22: 9999 | NC22: 9999 | NE22: 32 | NF22: 9999 | NG22: 2.12 | NH22: 5.6 | NI22: 7.11 | NJ22: 8.61 | NK22: 9999 | NL22: 3.5 | NM22: 9.24 | NN22: 11.73 | NO22: 14.21 | NP22: 9999 | NQ22: 9999 | NS22: 32 | NT22: 9999 | NU22: 2.42 | NV22: 6.98 | NW22: 9.32 | NX22: 11.66 | NY22: 9999 | NZ22: 3.99 | OA22: 11.52 | OB22: 15.38 | OC22: 19.24 | OD22: 9999 | OE22: 9999 | OG22: 32 | OH22: 9999 | OI22: 2.22 | OJ22: 6.39 | OK22: 8.37 | OL22: 10.35 | OM22: 9999 | ON22: 3.66 | OO22: 10.54 | OP22: 13.81 | OQ22: 17.08 | OR22: 9999 | OS22: 9999 | OU22: 32 | OV22: 9999 | OW22: 2.14 | OX22: 5.74 | OY22: 7.39 | OZ22: 9.05 | PA22: 9999 | PB22: 3.53 | PC22: 9.47 | PD22: 12.19 | PE22: 14.93 | PF22: 9999 | PG22: 9999
E23: 33 | F23: 9999 | G23: =RawStdLife7!$B$6 -> 3.75 | H23: =RawStdLife7!$C$6 -> 9.83 | I23: =RawStdLife7!$D$6 -> 13.38 | J23: =RawStdLife7!$E$6 -> 16.92 | K23: 9999 | L23: =RawStdLife7!$B$53 -> 6.19 | M23: =RawStdLife7!$C$53 -> 16.22 | N23: =RawStdLife7!$D$53 -> 22.08 | O23: =RawStdLife7!$E$53 -> 27.92 | P23: 0 | S23: 33 | T23: 9999 | U23: =RawStdLife7!$G$6 -> 3 | V23: =RawStdLife7!$H$6 -> 8.75 | W23: =RawStdLife7!$I$6 -> 11.75 | X23: =RawStdLife7!$J$6 -> 14.75 | Y23: 9999 | Z23: =RawStdLife7!$G$53 -> 4.95 | AA23: =RawStdLife7!$H$53 -> 14.44 | AB23: =RawStdLife7!$I$53 -> 19.39 | AC23: =RawStdLife7!$J$53 -> 24.34 | AD23: 9999 | AE23: 9999 | AG23: 33 | AH23: 9999 | AI23: =RawStdLife7!$AA$6 -> 2.58 | AJ23: =RawStdLife7!$AB$6 -> 6.83 | AK23: =RawStdLife7!$AC$6 -> 8.67 | AL23: =RawStdLife7!$AD$6 -> 10.5 | AM23: 9999 | AN23: =RawStdLife7!$AA$53 -> 4.26 | AO23: =RawStdLife7!$AB$53 -> 11.27 | AP23: =RawStdLife7!$AC$53 -> 14.31 | AQ23: =RawStdLife7!$AD$53 -> 17.33 | AR23: 9999 | AS23: 9999 | AU23: 33 | AV23: 9999 | AW23: =RawStdLife7!$L$6 -> 2.95 | AX23: =RawStdLife7!$M$6 -> 8.51 | AY23: =RawStdLife7!$N$6 -> 11.36 | AZ23: =RawStdLife7!$O$6 -> 14.22 | BA23: 9999 | BB23: =RawStdLife7!$L$53 -> 4.87 | BC23: =RawStdLife7!$M$53 -> 14.04 | BD23: =RawStdLife7!$N$53 -> 18.74 | BE23: =RawStdLife7!$O$53 -> 23.46 | BF23: 9999 | BG23: 9999 | BI23: 33 | BJ23: 9999 | BK23: =RawStdLife7!$Q$6 -> 2.71 | BL23: =RawStdLife7!$R$6 -> 7.79 | BM23: =RawStdLife7!$S$6 -> 10.21 | BN23: =RawStdLife7!$T$6 -> 12.63 | BO23: 9999 | BP23: =RawStdLife7!$Q$53 -> 4.47 | BQ23: =RawStdLife7!$R$53 -> 12.85 | BR23: =RawStdLife7!$S$53 -> 16.85 | BS23: =RawStdLife7!$T$53 -> 20.84 | BT23: 9999 | BU23: 9999 | BW23: 33 | BX23: 9999 | BY23: =RawStdLife7!$V$6 -> 2.48 | BZ23: =RawStdLife7!$W$6 -> 7 | CA23: =RawStdLife7!$X$6 -> 9.02 | CB23: =RawStdLife7!$Y$6 -> 11.03 | CC23: 9999 | CD23: =RawStdLife7!$V$53 -> 4.09 | CE23: =RawStdLife7!$W$53 -> 11.55 | CF23: =RawStdLife7!$X$53 -> 14.88 | CG23: =RawStdLife7!$Y$53 -> 18.2 | CH23: 9999 | CI23: 9999 | CK23: 33 | CL23: 9999 | CM23: 3.6 | CN23: 9.44 | CO23: 12.84 | CP23: 16.24 | CQ23: 9999 | CR23: 5.94 | CS23: 15.58 | CT23: 21.19 | CU23: 26.8 | CV23: 0 | CY23: 33 | CZ23: 9999 | DA23: 2.88 | DB23: 8.4 | DC23: 11.28 | DD23: 14.16 | DE23: 9999 | DF23: 4.75 | DG23: 13.86 | DH23: 18.61 | DI23: 23.36 | DJ23: 9999 | DK23: 9999 | DM23: 33 | DN23: 9999 | DO23: 2.48 | DP23: 6.56 | DQ23: 8.32 | DR23: 10.08 | DS23: 9999 | DT23: 4.09 | DU23: 10.82 | DV23: 13.73 | DW23: 16.63 | DX23: 9999 | DY23: 9999 | EA23: 33 | EB23: 9999 | EC23: 2.83 | ED23: 8.17 | EE23: 10.91 | EF23: 13.65 | EG23: 9999 | EH23: 4.67 | EI23: 13.48 | EJ23: 18 | EK23: 22.52 | EL23: 9999 | EM23: 9999 | EO23: 33 | EP23: 9999 | EQ23: 2.6 | ER23: 7.48 | ES23: 9.8 | ET23: 12.12 | EU23: 9999 | EV23: 4.29 | EW23: 12.34 | EX23: 16.17 | EY23: 20 | EZ23: 9999 | FA23: 9999 | FC23: 33 | FD23: 9999 | FE23: 2.5 | FF23: 6.72 | FG23: 8.66 | FH23: 10.59 | FI23: 9999 | FJ23: 4.13 | FK23: 11.09 | FL23: 14.29 | FM23: 17.47 | FN23: 9999 | FO23: 9999 | FQ23: 33 | FR23: 9999 | FS23: 3.43 | FT23: 9 | FU23: 12.24 | FV23: 15.48 | FW23: 9999 | FX23: 5.66 | FY23: 14.85 | FZ23: 20.2 | GA23: 25.54 | GB23: 0 | GE23: 33 | GF23: 9999 | GG23: 2.75 | GH23: 8.01 | GI23: 10.75 | GJ23: 13.5 | GK23: 9999 | GL23: 4.54 | GM23: 13.22 | GN23: 17.74 | GO23: 22.28 | GP23: 9999 | GQ23: 9999 | GS23: 33 | GT23: 9999 | GU23: 2.36 | GV23: 6.25 | GW23: 7.93 | GX23: 9.61 | GY23: 9999 | GZ23: 3.89 | HA23: 10.31 | HB23: 13.08 | HC23: 15.86 | HD23: 9999 | HE23: 9999 | HG23: 33 | HH23: 9999 | HI23: 2.7 | HJ23: 7.79 | HK23: 10.4 | HL23: 13.01 | HM23: 9999 | HN23: 4.46 | HO23: 12.85 | HP23: 17.16 | HQ23: 21.47 | HR23: 9999 | HS23: 9999 | HU23: 33 | HV23: 9999 | HW23: 2.48 | HX23: 7.13 | HY23: 9.34 | HZ23: 11.55 | IA23: 9999 | IB23: 4.09 | IC23: 11.76 | ID23: 15.41 | IE23: 19.06 | IF23: 9999 | IG23: 9999 | II23: 33 | IJ23: 9999 | IK23: 2.39 | IL23: 6.41 | IM23: 8.25 | IN23: 10.1 | IO23: 9999 | IP23: 3.94 | IQ23: 10.58 | IR23: 13.61 | IS23: 16.67 | IT23: 9999 | IU23: 9999 | IW23: 33 | IX23: 9999 | IY23: 9999 | IZ23: 9999 | JA23: 9999 | JB23: 9999 | JC23: 9999 | JD23: 9999 | JE23: 9999 | JF23: 9999 | JG23: 9999 | JH23: 0 | JK23: 33 | JL23: 9999 | JM23: 9999 | JN23: 9999 | JO23: 9999 | JP23: 9999 | JQ23: 9999 | JR23: 9999 | JS23: 9999 | JT23: 9999 | JU23: 9999 | JV23: 9999 | JW23: 9999 | JY23: 33 | JZ23: 9999 | KA23: 9999 | KB23: 9999 | KC23: 9999 | KD23: 9999 | KE23: 9999 | KF23: 9999 | KG23: 9999 | KH23: 9999 | KI23: 9999 | KJ23: 9999 | KK23: 9999 | KM23: 33 | KN23: 9999 | KO23: 9999 | KP23: 9999 | KQ23: 9999 | KR23: 9999 | KS23: 9999 | KT23: 9999 | KU23: 9999 | KV23: 9999 | KW23: 9999 | KX23: 9999 | KY23: 9999 | LA23: 33 | LB23: 9999 | LC23: 9999 | LD23: 9999 | LE23: 9999 | LF23: 9999 | LG23: 9999 | LH23: 9999 | LI23: 9999 | LJ23: 9999 | LK23: 9999 | LL23: 9999 | LM23: 9999 | LO23: 33 | LP23: 9999 | LQ23: 9999 | LR23: 9999 | LS23: 9999 | LT23: 9999 | LU23: 9999 | LV23: 9999 | LW23: 9999 | LX23: 9999 | LY23: 9999 | LZ23: 9999 | MA23: 9999 | MC23: 33 | MD23: 9999 | ME23: 3.08 | MF23: 8.06 | MG23: 10.97 | MH23: 13.87 | MI23: 9999 | MJ23: 5.08 | MK23: 13.3 | ML23: 18.1 | MM23: 22.89 | MN23: 0 | MQ23: 33 | MR23: 9999 | MS23: 2.46 | MT23: 7.18 | MU23: 9.64 | MV23: 12.1 | MW23: 9999 | MX23: 4.06 | MY23: 11.85 | MZ23: 15.91 | NA23: 19.97 | NB23: 9999 | NC23: 9999 | NE23: 33 | NF23: 9999 | NG23: 2.12 | NH23: 5.6 | NI23: 7.11 | NJ23: 8.61 | NK23: 9999 | NL23: 3.5 | NM23: 9.24 | NN23: 11.73 | NO23: 14.21 | NP23: 9999 | NQ23: 9999 | NS23: 33 | NT23: 9999 | NU23: 2.42 | NV23: 6.98 | NW23: 9.32 | NX23: 11.66 | NY23: 9999 | NZ23: 3.99 | OA23: 11.52 | OB23: 15.38 | OC23: 19.24 | OD23: 9999 | OE23: 9999 | OG23: 33 | OH23: 9999 | OI23: 2.22 | OJ23: 6.39 | OK23: 8.37 | OL23: 10.35 | OM23: 9999 | ON23: 3.66 | OO23: 10.54 | OP23: 13.81 | OQ23: 17.08 | OR23: 9999 | OS23: 9999 | OU23: 33 | OV23: 9999 | OW23: 2.14 | OX23: 5.74 | OY23: 7.39 | OZ23: 9.05 | PA23: 9999 | PB23: 3.53 | PC23: 9.47 | PD23: 12.19 | PE23: 14.93 | PF23: 9999 | PG23: 9999
E24: 34 | F24: 9999 | G24: =RawStdLife7!$B$6 -> 3.75 | H24: =RawStdLife7!$C$6 -> 9.83 | I24: =RawStdLife7!$D$6 -> 13.38 | J24: =RawStdLife7!$E$6 -> 16.92 | K24: 9999 | L24: =RawStdLife7!$B$53 -> 6.19 | M24: =RawStdLife7!$C$53 -> 16.22 | N24: =RawStdLife7!$D$53 -> 22.08 | O24: =RawStdLife7!$E$53 -> 27.92 | P24: 0 | S24: 34 | T24: 9999 | U24: =RawStdLife7!$G$6 -> 3 | V24: =RawStdLife7!$H$6 -> 8.75 | W24: =RawStdLife7!$I$6 -> 11.75 | X24: =RawStdLife7!$J$6 -> 14.75 | Y24: 9999 | Z24: =RawStdLife7!$G$53 -> 4.95 | AA24: =RawStdLife7!$H$53 -> 14.44 | AB24: =RawStdLife7!$I$53 -> 19.39 | AC24: =RawStdLife7!$J$53 -> 24.34 | AD24: 9999 | AE24: 9999 | AG24: 34 | AH24: 9999 | AI24: =RawStdLife7!$AA$6 -> 2.58 | AJ24: =RawStdLife7!$AB$6 -> 6.83 | AK24: =RawStdLife7!$AC$6 -> 8.67 | AL24: =RawStdLife7!$AD$6 -> 10.5 | AM24: 9999 | AN24: =RawStdLife7!$AA$53 -> 4.26 | AO24: =RawStdLife7!$AB$53 -> 11.27 | AP24: =RawStdLife7!$AC$53 -> 14.31 | AQ24: =RawStdLife7!$AD$53 -> 17.33 | AR24: 9999 | AS24: 9999 | AU24: 34 | AV24: 9999 | AW24: =RawStdLife7!$L$6 -> 2.95 | AX24: =RawStdLife7!$M$6 -> 8.51 | AY24: =RawStdLife7!$N$6 -> 11.36 | AZ24: =RawStdLife7!$O$6 -> 14.22 | BA24: 9999 | BB24: =RawStdLife7!$L$53 -> 4.87 | BC24: =RawStdLife7!$M$53 -> 14.04 | BD24: =RawStdLife7!$N$53 -> 18.74 | BE24: =RawStdLife7!$O$53 -> 23.46 | BF24: 9999 | BG24: 9999 | BI24: 34 | BJ24: 9999 | BK24: =RawStdLife7!$Q$6 -> 2.71 | BL24: =RawStdLife7!$R$6 -> 7.79 | BM24: =RawStdLife7!$S$6 -> 10.21 | BN24: =RawStdLife7!$T$6 -> 12.63 | BO24: 9999 | BP24: =RawStdLife7!$Q$53 -> 4.47 | BQ24: =RawStdLife7!$R$53 -> 12.85 | BR24: =RawStdLife7!$S$53 -> 16.85 | BS24: =RawStdLife7!$T$53 -> 20.84 | BT24: 9999 | BU24: 9999 | BW24: 34 | BX24: 9999 | BY24: =RawStdLife7!$V$6 -> 2.48 | BZ24: =RawStdLife7!$W$6 -> 7 | CA24: =RawStdLife7!$X$6 -> 9.02 | CB24: =RawStdLife7!$Y$6 -> 11.03 | CC24: 9999 | CD24: =RawStdLife7!$V$53 -> 4.09 | CE24: =RawStdLife7!$W$53 -> 11.55 | CF24: =RawStdLife7!$X$53 -> 14.88 | CG24: =RawStdLife7!$Y$53 -> 18.2 | CH24: 9999 | CI24: 9999 | CK24: 34 | CL24: 9999 | CM24: 3.6 | CN24: 9.44 | CO24: 12.84 | CP24: 16.24 | CQ24: 9999 | CR24: 5.94 | CS24: 15.58 | CT24: 21.19 | CU24: 26.8 | CV24: 0 | CY24: 34 | CZ24: 9999 | DA24: 2.88 | DB24: 8.4 | DC24: 11.28 | DD24: 14.16 | DE24: 9999 | DF24: 4.75 | DG24: 13.86 | DH24: 18.61 | DI24: 23.36 | DJ24: 9999 | DK24: 9999 | DM24: 34 | DN24: 9999 | DO24: 2.48 | DP24: 6.56 | DQ24: 8.32 | DR24: 10.08 | DS24: 9999 | DT24: 4.09 | DU24: 10.82 | DV24: 13.73 | DW24: 16.63 | DX24: 9999 | DY24: 9999 | EA24: 34 | EB24: 9999 | EC24: 2.83 | ED24: 8.17 | EE24: 10.91 | EF24: 13.65 | EG24: 9999 | EH24: 4.67 | EI24: 13.48 | EJ24: 18 | EK24: 22.52 | EL24: 9999 | EM24: 9999 | EO24: 34 | EP24: 9999 | EQ24: 2.6 | ER24: 7.48 | ES24: 9.8 | ET24: 12.12 | EU24: 9999 | EV24: 4.29 | EW24: 12.34 | EX24: 16.17 | EY24: 20 | EZ24: 9999 | FA24: 9999 | FC24: 34 | FD24: 9999 | FE24: 2.5 | FF24: 6.72 | FG24: 8.66 | FH24: 10.59 | FI24: 9999 | FJ24: 4.13 | FK24: 11.09 | FL24: 14.29 | FM24: 17.47 | FN24: 9999 | FO24: 9999 | FQ24: 34 | FR24: 9999 | FS24: 3.43 | FT24: 9 | FU24: 12.24 | FV24: 15.48 | FW24: 9999 | FX24: 5.66 | FY24: 14.85 | FZ24: 20.2 | GA24: 25.54 | GB24: 0 | GE24: 34 | GF24: 9999 | GG24: 2.75 | GH24: 8.01 | GI24: 10.75 | GJ24: 13.5 | GK24: 9999 | GL24: 4.54 | GM24: 13.22 | GN24: 17.74 | GO24: 22.28 | GP24: 9999 | GQ24: 9999 | GS24: 34 | GT24: 9999 | GU24: 2.36 | GV24: 6.25 | GW24: 7.93 | GX24: 9.61 | GY24: 9999 | GZ24: 3.89 | HA24: 10.31 | HB24: 13.08 | HC24: 15.86 | HD24: 9999 | HE24: 9999 | HG24: 34 | HH24: 9999 | HI24: 2.7 | HJ24: 7.79 | HK24: 10.4 | HL24: 13.01 | HM24: 9999 | HN24: 4.46 | HO24: 12.85 | HP24: 17.16 | HQ24: 21.47 | HR24: 9999 | HS24: 9999 | HU24: 34 | HV24: 9999 | HW24: 2.48 | HX24: 7.13 | HY24: 9.34 | HZ24: 11.55 | IA24: 9999 | IB24: 4.09 | IC24: 11.76 | ID24: 15.41 | IE24: 19.06 | IF24: 9999 | IG24: 9999 | II24: 34 | IJ24: 9999 | IK24: 2.39 | IL24: 6.41 | IM24: 8.25 | IN24: 10.1 | IO24: 9999 | IP24: 3.94 | IQ24: 10.58 | IR24: 13.61 | IS24: 16.67 | IT24: 9999 | IU24: 9999 | IW24: 34 | IX24: 9999 | IY24: 9999 | IZ24: 9999 | JA24: 9999 | JB24: 9999 | JC24: 9999 | JD24: 9999 | JE24: 9999 | JF24: 9999 | JG24: 9999 | JH24: 0 | JK24: 34 | JL24: 9999 | JM24: 9999 | JN24: 9999 | JO24: 9999 | JP24: 9999 | JQ24: 9999 | JR24: 9999 | JS24: 9999 | JT24: 9999 | JU24: 9999 | JV24: 9999 | JW24: 9999 | JY24: 34 | JZ24: 9999 | KA24: 9999 | KB24: 9999 | KC24: 9999 | KD24: 9999 | KE24: 9999 | KF24: 9999 | KG24: 9999 | KH24: 9999 | KI24: 9999 | KJ24: 9999 | KK24: 9999 | KM24: 34 | KN24: 9999 | KO24: 9999 | KP24: 9999 | KQ24: 9999 | KR24: 9999 | KS24: 9999 | KT24: 9999 | KU24: 9999 | KV24: 9999 | KW24: 9999 | KX24: 9999 | KY24: 9999 | LA24: 34 | LB24: 9999 | LC24: 9999 | LD24: 9999 | LE24: 9999 | LF24: 9999 | LG24: 9999 | LH24: 9999 | LI24: 9999 | LJ24: 9999 | LK24: 9999 | LL24: 9999 | LM24: 9999 | LO24: 34 | LP24: 9999 | LQ24: 9999 | LR24: 9999 | LS24: 9999 | LT24: 9999 | LU24: 9999 | LV24: 9999 | LW24: 9999 | LX24: 9999 | LY24: 9999 | LZ24: 9999 | MA24: 9999 | MC24: 34 | MD24: 9999 | ME24: 3.08 | MF24: 8.06 | MG24: 10.97 | MH24: 13.87 | MI24: 9999 | MJ24: 5.08 | MK24: 13.3 | ML24: 18.1 | MM24: 22.89 | MN24: 0 | MQ24: 34 | MR24: 9999 | MS24: 2.46 | MT24: 7.18 | MU24: 9.64 | MV24: 12.1 | MW24: 9999 | MX24: 4.06 | MY24: 11.85 | MZ24: 15.91 | NA24: 19.97 | NB24: 9999 | NC24: 9999 | NE24: 34 | NF24: 9999 | NG24: 2.12 | NH24: 5.6 | NI24: 7.11 | NJ24: 8.61 | NK24: 9999 | NL24: 3.5 | NM24: 9.24 | NN24: 11.73 | NO24: 14.21 | NP24: 9999 | NQ24: 9999 | NS24: 34 | NT24: 9999 | NU24: 2.42 | NV24: 6.98 | NW24: 9.32 | NX24: 11.66 | NY24: 9999 | NZ24: 3.99 | OA24: 11.52 | OB24: 15.38 | OC24: 19.24 | OD24: 9999 | OE24: 9999 | OG24: 34 | OH24: 9999 | OI24: 2.22 | OJ24: 6.39 | OK24: 8.37 | OL24: 10.35 | OM24: 9999 | ON24: 3.66 | OO24: 10.54 | OP24: 13.81 | OQ24: 17.08 | OR24: 9999 | OS24: 9999 | OU24: 34 | OV24: 9999 | OW24: 2.14 | OX24: 5.74 | OY24: 7.39 | OZ24: 9.05 | PA24: 9999 | PB24: 3.53 | PC24: 9.47 | PD24: 12.19 | PE24: 14.93 | PF24: 9999 | PG24: 9999
E25: 35 | F25: 9999 | G25: =RawStdLife7!$B$6 -> 3.75 | H25: =RawStdLife7!$C$6 -> 9.83 | I25: =RawStdLife7!$D$6 -> 13.38 | J25: =RawStdLife7!$E$6 -> 16.92 | K25: 9999 | L25: =RawStdLife7!$B$53 -> 6.19 | M25: =RawStdLife7!$C$53 -> 16.22 | N25: =RawStdLife7!$D$53 -> 22.08 | O25: =RawStdLife7!$E$53 -> 27.92 | P25: 0 | S25: 35 | T25: 9999 | U25: =RawStdLife7!$G$6 -> 3 | V25: =RawStdLife7!$H$6 -> 8.75 | W25: =RawStdLife7!$I$6 -> 11.75 | X25: =RawStdLife7!$J$6 -> 14.75 | Y25: 9999 | Z25: =RawStdLife7!$G$53 -> 4.95 | AA25: =RawStdLife7!$H$53 -> 14.44 | AB25: =RawStdLife7!$I$53 -> 19.39 | AC25: =RawStdLife7!$J$53 -> 24.34 | AD25: 9999 | AE25: 9999 | AG25: 35 | AH25: 9999 | AI25: =RawStdLife7!$AA$6 -> 2.58 | AJ25: =RawStdLife7!$AB$6 -> 6.83 | AK25: =RawStdLife7!$AC$6 -> 8.67 | AL25: =RawStdLife7!$AD$6 -> 10.5 | AM25: 9999 | AN25: =RawStdLife7!$AA$53 -> 4.26 | AO25: =RawStdLife7!$AB$53 -> 11.27 | AP25: =RawStdLife7!$AC$53 -> 14.31 | AQ25: =RawStdLife7!$AD$53 -> 17.33 | AR25: 9999 | AS25: 9999 | AU25: 35 | AV25: 9999 | AW25: =RawStdLife7!$L$6 -> 2.95 | AX25: =RawStdLife7!$M$6 -> 8.51 | AY25: =RawStdLife7!$N$6 -> 11.36 | AZ25: =RawStdLife7!$O$6 -> 14.22 | BA25: 9999 | BB25: =RawStdLife7!$L$53 -> 4.87 | BC25: =RawStdLife7!$M$53 -> 14.04 | BD25: =RawStdLife7!$N$53 -> 18.74 | BE25: =RawStdLife7!$O$53 -> 23.46 | BF25: 9999 | BG25: 9999 | BI25: 35 | BJ25: 9999 | BK25: =RawStdLife7!$Q$6 -> 2.71 | BL25: =RawStdLife7!$R$6 -> 7.79 | BM25: =RawStdLife7!$S$6 -> 10.21 | BN25: =RawStdLife7!$T$6 -> 12.63 | BO25: 9999 | BP25: =RawStdLife7!$Q$53 -> 4.47 | BQ25: =RawStdLife7!$R$53 -> 12.85 | BR25: =RawStdLife7!$S$53 -> 16.85 | BS25: =RawStdLife7!$T$53 -> 20.84 | BT25: 9999 | BU25: 9999 | BW25: 35 | BX25: 9999 | BY25: =RawStdLife7!$V$6 -> 2.48 | BZ25: =RawStdLife7!$W$6 -> 7 | CA25: =RawStdLife7!$X$6 -> 9.02 | CB25: =RawStdLife7!$Y$6 -> 11.03 | CC25: 9999 | CD25: =RawStdLife7!$V$53 -> 4.09 | CE25: =RawStdLife7!$W$53 -> 11.55 | CF25: =RawStdLife7!$X$53 -> 14.88 | CG25: =RawStdLife7!$Y$53 -> 18.2 | CH25: 9999 | CI25: 9999 | CK25: 35 | CL25: 9999 | CM25: 3.6 | CN25: 9.44 | CO25: 12.84 | CP25: 16.24 | CQ25: 9999 | CR25: 5.94 | CS25: 15.58 | CT25: 21.19 | CU25: 26.8 | CV25: 0 | CY25: 35 | CZ25: 9999 | DA25: 2.88 | DB25: 8.4 | DC25: 11.28 | DD25: 14.16 | DE25: 9999 | DF25: 4.75 | DG25: 13.86 | DH25: 18.61 | DI25: 23.36 | DJ25: 9999 | DK25: 9999 | DM25: 35 | DN25: 9999 | DO25: 2.48 | DP25: 6.56 | DQ25: 8.32 | DR25: 10.08 | DS25: 9999 | DT25: 4.09 | DU25: 10.82 | DV25: 13.73 | DW25: 16.63 | DX25: 9999 | DY25: 9999 | EA25: 35 | EB25: 9999 | EC25: 2.83 | ED25: 8.17 | EE25: 10.91 | EF25: 13.65 | EG25: 9999 | EH25: 4.67 | EI25: 13.48 | EJ25: 18 | EK25: 22.52 | EL25: 9999 | EM25: 9999 | EO25: 35 | EP25: 9999 | EQ25: 2.6 | ER25: 7.48 | ES25: 9.8 | ET25: 12.12 | EU25: 9999 | EV25: 4.29 | EW25: 12.34 | EX25: 16.17 | EY25: 20 | EZ25: 9999 | FA25: 9999 | FC25: 35 | FD25: 9999 | FE25: 2.5 | FF25: 6.72 | FG25: 8.66 | FH25: 10.59 | FI25: 9999 | FJ25: 4.13 | FK25: 11.09 | FL25: 14.29 | FM25: 17.47 | FN25: 9999 | FO25: 9999 | FQ25: 35 | FR25: 9999 | FS25: 3.43 | FT25: 9 | FU25: 12.24 | FV25: 15.48 | FW25: 9999 | FX25: 5.66 | FY25: 14.85 | FZ25: 20.2 | GA25: 25.54 | GB25: 0 | GE25: 35 | GF25: 9999 | GG25: 2.75 | GH25: 8.01 | GI25: 10.75 | GJ25: 13.5 | GK25: 9999 | GL25: 4.54 | GM25: 13.22 | GN25: 17.74 | GO25: 22.28 | GP25: 9999 | GQ25: 9999 | GS25: 35 | GT25: 9999 | GU25: 2.36 | GV25: 6.25 | GW25: 7.93 | GX25: 9.61 | GY25: 9999 | GZ25: 3.89 | HA25: 10.31 | HB25: 13.08 | HC25: 15.86 | HD25: 9999 | HE25: 9999 | HG25: 35 | HH25: 9999 | HI25: 2.7 | HJ25: 7.79 | HK25: 10.4 | HL25: 13.01 | HM25: 9999 | HN25: 4.46 | HO25: 12.85 | HP25: 17.16 | HQ25: 21.47 | HR25: 9999 | HS25: 9999 | HU25: 35 | HV25: 9999 | HW25: 2.48 | HX25: 7.13 | HY25: 9.34 | HZ25: 11.55 | IA25: 9999 | IB25: 4.09 | IC25: 11.76 | ID25: 15.41 | IE25: 19.06 | IF25: 9999 | IG25: 9999 | II25: 35 | IJ25: 9999 | IK25: 2.39 | IL25: 6.41 | IM25: 8.25 | IN25: 10.1 | IO25: 9999 | IP25: 3.94 | IQ25: 10.58 | IR25: 13.61 | IS25: 16.67 | IT25: 9999 | IU25: 9999 | IW25: 35 | IX25: 9999 | IY25: 9999 | IZ25: 9999 | JA25: 9999 | JB25: 9999 | JC25: 9999 | JD25: 9999 | JE25: 9999 | JF25: 9999 | JG25: 9999 | JH25: 0 | JK25: 35 | JL25: 9999 | JM25: 9999 | JN25: 9999 | JO25: 9999 | JP25: 9999 | JQ25: 9999 | JR25: 9999 | JS25: 9999 | JT25: 9999 | JU25: 9999 | JV25: 9999 | JW25: 9999 | JY25: 35 | JZ25: 9999 | KA25: 9999 | KB25: 9999 | KC25: 9999 | KD25: 9999 | KE25: 9999 | KF25: 9999 | KG25: 9999 | KH25: 9999 | KI25: 9999 | KJ25: 9999 | KK25: 9999 | KM25: 35 | KN25: 9999 | KO25: 9999 | KP25: 9999 | KQ25: 9999 | KR25: 9999 | KS25: 9999 | KT25: 9999 | KU25: 9999 | KV25: 9999 | KW25: 9999 | KX25: 9999 | KY25: 9999 | LA25: 35 | LB25: 9999 | LC25: 9999 | LD25: 9999 | LE25: 9999 | LF25: 9999 | LG25: 9999 | LH25: 9999 | LI25: 9999 | LJ25: 9999 | LK25: 9999 | LL25: 9999 | LM25: 9999 | LO25: 35 | LP25: 9999 | LQ25: 9999 | LR25: 9999 | LS25: 9999 | LT25: 9999 | LU25: 9999 | LV25: 9999 | LW25: 9999 | LX25: 9999 | LY25: 9999 | LZ25: 9999 | MA25: 9999 | MC25: 35 | MD25: 9999 | ME25: 3.08 | MF25: 8.06 | MG25: 10.97 | MH25: 13.87 | MI25: 9999 | MJ25: 5.08 | MK25: 13.3 | ML25: 18.1 | MM25: 22.89 | MN25: 0 | MQ25: 35 | MR25: 9999 | MS25: 2.46 | MT25: 7.18 | MU25: 9.64 | MV25: 12.1 | MW25: 9999 | MX25: 4.06 | MY25: 11.85 | MZ25: 15.91 | NA25: 19.97 | NB25: 9999 | NC25: 9999 | NE25: 35 | NF25: 9999 | NG25: 2.12 | NH25: 5.6 | NI25: 7.11 | NJ25: 8.61 | NK25: 9999 | NL25: 3.5 | NM25: 9.24 | NN25: 11.73 | NO25: 14.21 | NP25: 9999 | NQ25: 9999 | NS25: 35 | NT25: 9999 | NU25: 2.42 | NV25: 6.98 | NW25: 9.32 | NX25: 11.66 | NY25: 9999 | NZ25: 3.99 | OA25: 11.52 | OB25: 15.38 | OC25: 19.24 | OD25: 9999 | OE25: 9999 | OG25: 35 | OH25: 9999 | OI25: 2.22 | OJ25: 6.39 | OK25: 8.37 | OL25: 10.35 | OM25: 9999 | ON25: 3.66 | OO25: 10.54 | OP25: 13.81 | OQ25: 17.08 | OR25: 9999 | OS25: 9999 | OU25: 35 | OV25: 9999 | OW25: 2.14 | OX25: 5.74 | OY25: 7.39 | OZ25: 9.05 | PA25: 9999 | PB25: 3.53 | PC25: 9.47 | PD25: 12.19 | PE25: 14.93 | PF25: 9999 | PG25: 9999
E26: 36 | F26: 9999 | G26: =RawStdLife7!$B$6 -> 3.75 | H26: =RawStdLife7!$C$6 -> 9.83 | I26: =RawStdLife7!$D$6 -> 13.38 | J26: =RawStdLife7!$E$6 -> 16.92 | K26: 9999 | L26: =RawStdLife7!$B$53 -> 6.19 | M26: =RawStdLife7!$C$53 -> 16.22 | N26: =RawStdLife7!$D$53 -> 22.08 | O26: =RawStdLife7!$E$53 -> 27.92 | P26: 0 | S26: 36 | T26: 9999 | U26: =RawStdLife7!$G$6 -> 3 | V26: =RawStdLife7!$H$6 -> 8.75 | W26: =RawStdLife7!$I$6 -> 11.75 | X26: =RawStdLife7!$J$6 -> 14.75 | Y26: 9999 | Z26: =RawStdLife7!$G$53 -> 4.95 | AA26: =RawStdLife7!$H$53 -> 14.44 | AB26: =RawStdLife7!$I$53 -> 19.39 | AC26: =RawStdLife7!$J$53 -> 24.34 | AD26: 9999 | AE26: 9999 | AG26: 36 | AH26: 9999 | AI26: =RawStdLife7!$AA$6 -> 2.58 | AJ26: =RawStdLife7!$AB$6 -> 6.83 | AK26: =RawStdLife7!$AC$6 -> 8.67 | AL26: =RawStdLife7!$AD$6 -> 10.5 | AM26: 9999 | AN26: =RawStdLife7!$AA$53 -> 4.26 | AO26: =RawStdLife7!$AB$53 -> 11.27 | AP26: =RawStdLife7!$AC$53 -> 14.31 | AQ26: =RawStdLife7!$AD$53 -> 17.33 | AR26: 9999 | AS26: 9999 | AU26: 36 | AV26: 9999 | AW26: =RawStdLife7!$L$6 -> 2.95 | AX26: =RawStdLife7!$M$6 -> 8.51 | AY26: =RawStdLife7!$N$6 -> 11.36 | AZ26: =RawStdLife7!$O$6 -> 14.22 | BA26: 9999 | BB26: =RawStdLife7!$L$53 -> 4.87 | BC26: =RawStdLife7!$M$53 -> 14.04 | BD26: =RawStdLife7!$N$53 -> 18.74 | BE26: =RawStdLife7!$O$53 -> 23.46 | BF26: 9999 | BG26: 9999 | BI26: 36 | BJ26: 9999 | BK26: =RawStdLife7!$Q$6 -> 2.71 | BL26: =RawStdLife7!$R$6 -> 7.79 | BM26: =RawStdLife7!$S$6 -> 10.21 | BN26: =RawStdLife7!$T$6 -> 12.63 | BO26: 9999 | BP26: =RawStdLife7!$Q$53 -> 4.47 | BQ26: =RawStdLife7!$R$53 -> 12.85 | BR26: =RawStdLife7!$S$53 -> 16.85 | BS26: =RawStdLife7!$T$53 -> 20.84 | BT26: 9999 | BU26: 9999 | BW26: 36 | BX26: 9999 | BY26: =RawStdLife7!$V$6 -> 2.48 | BZ26: =RawStdLife7!$W$6 -> 7 | CA26: =RawStdLife7!$X$6 -> 9.02 | CB26: =RawStdLife7!$Y$6 -> 11.03 | CC26: 9999 | CD26: =RawStdLife7!$V$53 -> 4.09 | CE26: =RawStdLife7!$W$53 -> 11.55 | CF26: =RawStdLife7!$X$53 -> 14.88 | CG26: =RawStdLife7!$Y$53 -> 18.2 | CH26: 9999 | CI26: 9999 | CK26: 36 | CL26: 9999 | CM26: 3.6 | CN26: 9.44 | CO26: 12.84 | CP26: 16.24 | CQ26: 9999 | CR26: 5.94 | CS26: 15.58 | CT26: 21.19 | CU26: 26.8 | CV26: 0 | CY26: 36 | CZ26: 9999 | DA26: 2.88 | DB26: 8.4 | DC26: 11.28 | DD26: 14.16 | DE26: 9999 | DF26: 4.75 | DG26: 13.86 | DH26: 18.61 | DI26: 23.36 | DJ26: 9999 | DK26: 9999 | DM26: 36 | DN26: 9999 | DO26: 2.48 | DP26: 6.56 | DQ26: 8.32 | DR26: 10.08 | DS26: 9999 | DT26: 4.09 | DU26: 10.82 | DV26: 13.73 | DW26: 16.63 | DX26: 9999 | DY26: 9999 | EA26: 36 | EB26: 9999 | EC26: 2.83 | ED26: 8.17 | EE26: 10.91 | EF26: 13.65 | EG26: 9999 | EH26: 4.67 | EI26: 13.48 | EJ26: 18 | EK26: 22.52 | EL26: 9999 | EM26: 9999 | EO26: 36 | EP26: 9999 | EQ26: 2.6 | ER26: 7.48 | ES26: 9.8 | ET26: 12.12 | EU26: 9999 | EV26: 4.29 | EW26: 12.34 | EX26: 16.17 | EY26: 20 | EZ26: 9999 | FA26: 9999 | FC26: 36 | FD26: 9999 | FE26: 2.5 | FF26: 6.72 | FG26: 8.66 | FH26: 10.59 | FI26: 9999 | FJ26: 4.13 | FK26: 11.09 | FL26: 14.29 | FM26: 17.47 | FN26: 9999 | FO26: 9999 | FQ26: 36 | FR26: 9999 | FS26: 3.43 | FT26: 9 | FU26: 12.24 | FV26: 15.48 | FW26: 9999 | FX26: 5.66 | FY26: 14.85 | FZ26: 20.2 | GA26: 25.54 | GB26: 0 | GE26: 36 | GF26: 9999 | GG26: 2.75 | GH26: 8.01 | GI26: 10.75 | GJ26: 13.5 | GK26: 9999 | GL26: 4.54 | GM26: 13.22 | GN26: 17.74 | GO26: 22.28 | GP26: 9999 | GQ26: 9999 | GS26: 36 | GT26: 9999 | GU26: 2.36 | GV26: 6.25 | GW26: 7.93 | GX26: 9.61 | GY26: 9999 | GZ26: 3.89 | HA26: 10.31 | HB26: 13.08 | HC26: 15.86 | HD26: 9999 | HE26: 9999 | HG26: 36 | HH26: 9999 | HI26: 2.7 | HJ26: 7.79 | HK26: 10.4 | HL26: 13.01 | HM26: 9999 | HN26: 4.46 | HO26: 12.85 | HP26: 17.16 | HQ26: 21.47 | HR26: 9999 | HS26: 9999 | HU26: 36 | HV26: 9999 | HW26: 2.48 | HX26: 7.13 | HY26: 9.34 | HZ26: 11.55 | IA26: 9999 | IB26: 4.09 | IC26: 11.76 | ID26: 15.41 | IE26: 19.06 | IF26: 9999 | IG26: 9999 | II26: 36 | IJ26: 9999 | IK26: 2.39 | IL26: 6.41 | IM26: 8.25 | IN26: 10.1 | IO26: 9999 | IP26: 3.94 | IQ26: 10.58 | IR26: 13.61 | IS26: 16.67 | IT26: 9999 | IU26: 9999 | IW26: 36 | IX26: 9999 | IY26: 9999 | IZ26: 9999 | JA26: 9999 | JB26: 9999 | JC26: 9999 | JD26: 9999 | JE26: 9999 | JF26: 9999 | JG26: 9999 | JH26: 0 | JK26: 36 | JL26: 9999 | JM26: 9999 | JN26: 9999 | JO26: 9999 | JP26: 9999 | JQ26: 9999 | JR26: 9999 | JS26: 9999 | JT26: 9999 | JU26: 9999 | JV26: 9999 | JW26: 9999 | JY26: 36 | JZ26: 9999 | KA26: 9999 | KB26: 9999 | KC26: 9999 | KD26: 9999 | KE26: 9999 | KF26: 9999 | KG26: 9999 | KH26: 9999 | KI26: 9999 | KJ26: 9999 | KK26: 9999 | KM26: 36 | KN26: 9999 | KO26: 9999 | KP26: 9999 | KQ26: 9999 | KR26: 9999 | KS26: 9999 | KT26: 9999 | KU26: 9999 | KV26: 9999 | KW26: 9999 | KX26: 9999 | KY26: 9999 | LA26: 36 | LB26: 9999 | LC26: 9999 | LD26: 9999 | LE26: 9999 | LF26: 9999 | LG26: 9999 | LH26: 9999 | LI26: 9999 | LJ26: 9999 | LK26: 9999 | LL26: 9999 | LM26: 9999 | LO26: 36 | LP26: 9999 | LQ26: 9999 | LR26: 9999 | LS26: 9999 | LT26: 9999 | LU26: 9999 | LV26: 9999 | LW26: 9999 | LX26: 9999 | LY26: 9999 | LZ26: 9999 | MA26: 9999 | MC26: 36 | MD26: 9999 | ME26: 3.08 | MF26: 8.06 | MG26: 10.97 | MH26: 13.87 | MI26: 9999 | MJ26: 5.08 | MK26: 13.3 | ML26: 18.1 | MM26: 22.89 | MN26: 0 | MQ26: 36 | MR26: 9999 | MS26: 2.46 | MT26: 7.18 | MU26: 9.64 | MV26: 12.1 | MW26: 9999 | MX26: 4.06 | MY26: 11.85 | MZ26: 15.91 | NA26: 19.97 | NB26: 9999 | NC26: 9999 | NE26: 36 | NF26: 9999 | NG26: 2.12 | NH26: 5.6 | NI26: 7.11 | NJ26: 8.61 | NK26: 9999 | NL26: 3.5 | NM26: 9.24 | NN26: 11.73 | NO26: 14.21 | NP26: 9999 | NQ26: 9999 | NS26: 36 | NT26: 9999 | NU26: 2.42 | NV26: 6.98 | NW26: 9.32 | NX26: 11.66 | NY26: 9999 | NZ26: 3.99 | OA26: 11.52 | OB26: 15.38 | OC26: 19.24 | OD26: 9999 | OE26: 9999 | OG26: 36 | OH26: 9999 | OI26: 2.22 | OJ26: 6.39 | OK26: 8.37 | OL26: 10.35 | OM26: 9999 | ON26: 3.66 | OO26: 10.54 | OP26: 13.81 | OQ26: 17.08 | OR26: 9999 | OS26: 9999 | OU26: 36 | OV26: 9999 | OW26: 2.14 | OX26: 5.74 | OY26: 7.39 | OZ26: 9.05 | PA26: 9999 | PB26: 3.53 | PC26: 9.47 | PD26: 12.19 | PE26: 14.93 | PF26: 9999 | PG26: 9999
E27: 37 | F27: 9999 | G27: =RawStdLife7!$B$6 -> 3.75 | H27: =RawStdLife7!$C$6 -> 9.83 | I27: =RawStdLife7!$D$6 -> 13.38 | J27: =RawStdLife7!$E$6 -> 16.92 | K27: 9999 | L27: =RawStdLife7!$B$53 -> 6.19 | M27: =RawStdLife7!$C$53 -> 16.22 | N27: =RawStdLife7!$D$53 -> 22.08 | O27: =RawStdLife7!$E$53 -> 27.92 | P27: 0 | S27: 37 | T27: 9999 | U27: =RawStdLife7!$G$6 -> 3 | V27: =RawStdLife7!$H$6 -> 8.75 | W27: =RawStdLife7!$I$6 -> 11.75 | X27: =RawStdLife7!$J$6 -> 14.75 | Y27: 9999 | Z27: =RawStdLife7!$G$53 -> 4.95 | AA27: =RawStdLife7!$H$53 -> 14.44 | AB27: =RawStdLife7!$I$53 -> 19.39 | AC27: =RawStdLife7!$J$53 -> 24.34 | AD27: 9999 | AE27: 9999 | AG27: 37 | AH27: 9999 | AI27: =RawStdLife7!$AA$6 -> 2.58 | AJ27: =RawStdLife7!$AB$6 -> 6.83 | AK27: =RawStdLife7!$AC$6 -> 8.67 | AL27: =RawStdLife7!$AD$6 -> 10.5 | AM27: 9999 | AN27: =RawStdLife7!$AA$53 -> 4.26 | AO27: =RawStdLife7!$AB$53 -> 11.27 | AP27: =RawStdLife7!$AC$53 -> 14.31 | AQ27: =RawStdLife7!$AD$53 -> 17.33 | AR27: 9999 | AS27: 9999 | AU27: 37 | AV27: 9999 | AW27: =RawStdLife7!$L$6 -> 2.95 | AX27: =RawStdLife7!$M$6 -> 8.51 | AY27: =RawStdLife7!$N$6 -> 11.36 | AZ27: =RawStdLife7!$O$6 -> 14.22 | BA27: 9999 | BB27: =RawStdLife7!$L$53 -> 4.87 | BC27: =RawStdLife7!$M$53 -> 14.04 | BD27: =RawStdLife7!$N$53 -> 18.74 | BE27: =RawStdLife7!$O$53 -> 23.46 | BF27: 9999 | BG27: 9999 | BI27: 37 | BJ27: 9999 | BK27: =RawStdLife7!$Q$6 -> 2.71 | BL27: =RawStdLife7!$R$6 -> 7.79 | BM27: =RawStdLife7!$S$6 -> 10.21 | BN27: =RawStdLife7!$T$6 -> 12.63 | BO27: 9999 | BP27: =RawStdLife7!$Q$53 -> 4.47 | BQ27: =RawStdLife7!$R$53 -> 12.85 | BR27: =RawStdLife7!$S$53 -> 16.85 | BS27: =RawStdLife7!$T$53 -> 20.84 | BT27: 9999 | BU27: 9999 | BW27: 37 | BX27: 9999 | BY27: =RawStdLife7!$V$6 -> 2.48 | BZ27: =RawStdLife7!$W$6 -> 7 | CA27: =RawStdLife7!$X$6 -> 9.02 | CB27: =RawStdLife7!$Y$6 -> 11.03 | CC27: 9999 | CD27: =RawStdLife7!$V$53 -> 4.09 | CE27: =RawStdLife7!$W$53 -> 11.55 | CF27: =RawStdLife7!$X$53 -> 14.88 | CG27: =RawStdLife7!$Y$53 -> 18.2 | CH27: 9999 | CI27: 9999 | CK27: 37 | CL27: 9999 | CM27: 3.6 | CN27: 9.44 | CO27: 12.84 | CP27: 16.24 | CQ27: 9999 | CR27: 5.94 | CS27: 15.58 | CT27: 21.19 | CU27: 26.8 | CV27: 0 | CY27: 37 | CZ27: 9999 | DA27: 2.88 | DB27: 8.4 | DC27: 11.28 | DD27: 14.16 | DE27: 9999 | DF27: 4.75 | DG27: 13.86 | DH27: 18.61 | DI27: 23.36 | DJ27: 9999 | DK27: 9999 | DM27: 37 | DN27: 9999 | DO27: 2.48 | DP27: 6.56 | DQ27: 8.32 | DR27: 10.08 | DS27: 9999 | DT27: 4.09 | DU27: 10.82 | DV27: 13.73 | DW27: 16.63 | DX27: 9999 | DY27: 9999 | EA27: 37 | EB27: 9999 | EC27: 2.83 | ED27: 8.17 | EE27: 10.91 | EF27: 13.65 | EG27: 9999 | EH27: 4.67 | EI27: 13.48 | EJ27: 18 | EK27: 22.52 | EL27: 9999 | EM27: 9999 | EO27: 37 | EP27: 9999 | EQ27: 2.6 | ER27: 7.48 | ES27: 9.8 | ET27: 12.12 | EU27: 9999 | EV27: 4.29 | EW27: 12.34 | EX27: 16.17 | EY27: 20 | EZ27: 9999 | FA27: 9999 | FC27: 37 | FD27: 9999 | FE27: 2.5 | FF27: 6.72 | FG27: 8.66 | FH27: 10.59 | FI27: 9999 | FJ27: 4.13 | FK27: 11.09 | FL27: 14.29 | FM27: 17.47 | FN27: 9999 | FO27: 9999 | FQ27: 37 | FR27: 9999 | FS27: 3.43 | FT27: 9 | FU27: 12.24 | FV27: 15.48 | FW27: 9999 | FX27: 5.66 | FY27: 14.85 | FZ27: 20.2 | GA27: 25.54 | GB27: 0 | GE27: 37 | GF27: 9999 | GG27: 2.75 | GH27: 8.01 | GI27: 10.75 | GJ27: 13.5 | GK27: 9999 | GL27: 4.54 | GM27: 13.22 | GN27: 17.74 | GO27: 22.28 | GP27: 9999 | GQ27: 9999 | GS27: 37 | GT27: 9999 | GU27: 2.36 | GV27: 6.25 | GW27: 7.93 | GX27: 9.61 | GY27: 9999 | GZ27: 3.89 | HA27: 10.31 | HB27: 13.08 | HC27: 15.86 | HD27: 9999 | HE27: 9999 | HG27: 37 | HH27: 9999 | HI27: 2.7 | HJ27: 7.79 | HK27: 10.4 | HL27: 13.01 | HM27: 9999 | HN27: 4.46 | HO27: 12.85 | HP27: 17.16 | HQ27: 21.47 | HR27: 9999 | HS27: 9999 | HU27: 37 | HV27: 9999 | HW27: 2.48 | HX27: 7.13 | HY27: 9.34 | HZ27: 11.55 | IA27: 9999 | IB27: 4.09 | IC27: 11.76 | ID27: 15.41 | IE27: 19.06 | IF27: 9999 | IG27: 9999 | II27: 37 | IJ27: 9999 | IK27: 2.39 | IL27: 6.41 | IM27: 8.25 | IN27: 10.1 | IO27: 9999 | IP27: 3.94 | IQ27: 10.58 | IR27: 13.61 | IS27: 16.67 | IT27: 9999 | IU27: 9999 | IW27: 37 | IX27: 9999 | IY27: 9999 | IZ27: 9999 | JA27: 9999 | JB27: 9999 | JC27: 9999 | JD27: 9999 | JE27: 9999 | JF27: 9999 | JG27: 9999 | JH27: 0 | JK27: 37 | JL27: 9999 | JM27: 9999 | JN27: 9999 | JO27: 9999 | JP27: 9999 | JQ27: 9999 | JR27: 9999 | JS27: 9999 | JT27: 9999 | JU27: 9999 | JV27: 9999 | JW27: 9999 | JY27: 37 | JZ27: 9999 | KA27: 9999 | KB27: 9999 | KC27: 9999 | KD27: 9999 | KE27: 9999 | KF27: 9999 | KG27: 9999 | KH27: 9999 | KI27: 9999 | KJ27: 9999 | KK27: 9999 | KM27: 37 | KN27: 9999 | KO27: 9999 | KP27: 9999 | KQ27: 9999 | KR27: 9999 | KS27: 9999 | KT27: 9999 | KU27: 9999 | KV27: 9999 | KW27: 9999 | KX27: 9999 | KY27: 9999 | LA27: 37 | LB27: 9999 | LC27: 9999 | LD27: 9999 | LE27: 9999 | LF27: 9999 | LG27: 9999 | LH27: 9999 | LI27: 9999 | LJ27: 9999 | LK27: 9999 | LL27: 9999 | LM27: 9999 | LO27: 37 | LP27: 9999 | LQ27: 9999 | LR27: 9999 | LS27: 9999 | LT27: 9999 | LU27: 9999 | LV27: 9999 | LW27: 9999 | LX27: 9999 | LY27: 9999 | LZ27: 9999 | MA27: 9999 | MC27: 37 | MD27: 9999 | ME27: 3.08 | MF27: 8.06 | MG27: 10.97 | MH27: 13.87 | MI27: 9999 | MJ27: 5.08 | MK27: 13.3 | ML27: 18.1 | MM27: 22.89 | MN27: 0 | MQ27: 37 | MR27: 9999 | MS27: 2.46 | MT27: 7.18 | MU27: 9.64 | MV27: 12.1 | MW27: 9999 | MX27: 4.06 | MY27: 11.85 | MZ27: 15.91 | NA27: 19.97 | NB27: 9999 | NC27: 9999 | NE27: 37 | NF27: 9999 | NG27: 2.12 | NH27: 5.6 | NI27: 7.11 | NJ27: 8.61 | NK27: 9999 | NL27: 3.5 | NM27: 9.24 | NN27: 11.73 | NO27: 14.21 | NP27: 9999 | NQ27: 9999 | NS27: 37 | NT27: 9999 | NU27: 2.42 | NV27: 6.98 | NW27: 9.32 | NX27: 11.66 | NY27: 9999 | NZ27: 3.99 | OA27: 11.52 | OB27: 15.38 | OC27: 19.24 | OD27: 9999 | OE27: 9999 | OG27: 37 | OH27: 9999 | OI27: 2.22 | OJ27: 6.39 | OK27: 8.37 | OL27: 10.35 | OM27: 9999 | ON27: 3.66 | OO27: 10.54 | OP27: 13.81 | OQ27: 17.08 | OR27: 9999 | OS27: 9999 | OU27: 37 | OV27: 9999 | OW27: 2.14 | OX27: 5.74 | OY27: 7.39 | OZ27: 9.05 | PA27: 9999 | PB27: 3.53 | PC27: 9.47 | PD27: 12.19 | PE27: 14.93 | PF27: 9999 | PG27: 9999
E28: 38 | F28: 9999 | G28: =RawStdLife7!$B$6 -> 3.75 | H28: =RawStdLife7!$C$6 -> 9.83 | I28: =RawStdLife7!$D$6 -> 13.38 | J28: =RawStdLife7!$E$6 -> 16.92 | K28: 9999 | L28: =RawStdLife7!$B$53 -> 6.19 | M28: =RawStdLife7!$C$53 -> 16.22 | N28: =RawStdLife7!$D$53 -> 22.08 | O28: =RawStdLife7!$E$53 -> 27.92 | P28: 0 | S28: 38 | T28: 9999 | U28: =RawStdLife7!$G$6 -> 3 | V28: =RawStdLife7!$H$6 -> 8.75 | W28: =RawStdLife7!$I$6 -> 11.75 | X28: =RawStdLife7!$J$6 -> 14.75 | Y28: 9999 | Z28: =RawStdLife7!$G$53 -> 4.95 | AA28: =RawStdLife7!$H$53 -> 14.44 | AB28: =RawStdLife7!$I$53 -> 19.39 | AC28: =RawStdLife7!$J$53 -> 24.34 | AD28: 9999 | AE28: 9999 | AG28: 38 | AH28: 9999 | AI28: =RawStdLife7!$AA$6 -> 2.58 | AJ28: =RawStdLife7!$AB$6 -> 6.83 | AK28: =RawStdLife7!$AC$6 -> 8.67 | AL28: =RawStdLife7!$AD$6 -> 10.5 | AM28: 9999 | AN28: =RawStdLife7!$AA$53 -> 4.26 | AO28: =RawStdLife7!$AB$53 -> 11.27 | AP28: =RawStdLife7!$AC$53 -> 14.31 | AQ28: =RawStdLife7!$AD$53 -> 17.33 | AR28: 9999 | AS28: 9999 | AU28: 38 | AV28: 9999 | AW28: =RawStdLife7!$L$6 -> 2.95 | AX28: =RawStdLife7!$M$6 -> 8.51 | AY28: =RawStdLife7!$N$6 -> 11.36 | AZ28: =RawStdLife7!$O$6 -> 14.22 | BA28: 9999 | BB28: =RawStdLife7!$L$53 -> 4.87 | BC28: =RawStdLife7!$M$53 -> 14.04 | BD28: =RawStdLife7!$N$53 -> 18.74 | BE28: =RawStdLife7!$O$53 -> 23.46 | BF28: 9999 | BG28: 9999 | BI28: 38 | BJ28: 9999 | BK28: =RawStdLife7!$Q$6 -> 2.71 | BL28: =RawStdLife7!$R$6 -> 7.79 | BM28: =RawStdLife7!$S$6 -> 10.21 | BN28: =RawStdLife7!$T$6 -> 12.63 | BO28: 9999 | BP28: =RawStdLife7!$Q$53 -> 4.47 | BQ28: =RawStdLife7!$R$53 -> 12.85 | BR28: =RawStdLife7!$S$53 -> 16.85 | BS28: =RawStdLife7!$T$53 -> 20.84 | BT28: 9999 | BU28: 9999 | BW28: 38 | BX28: 9999 | BY28: =RawStdLife7!$V$6 -> 2.48 | BZ28: =RawStdLife7!$W$6 -> 7 | CA28: =RawStdLife7!$X$6 -> 9.02 | CB28: =RawStdLife7!$Y$6 -> 11.03 | CC28: 9999 | CD28: =RawStdLife7!$V$53 -> 4.09 | CE28: =RawStdLife7!$W$53 -> 11.55 | CF28: =RawStdLife7!$X$53 -> 14.88 | CG28: =RawStdLife7!$Y$53 -> 18.2 | CH28: 9999 | CI28: 9999 | CK28: 38 | CL28: 9999 | CM28: 3.6 | CN28: 9.44 | CO28: 12.84 | CP28: 16.24 | CQ28: 9999 | CR28: 5.94 | CS28: 15.58 | CT28: 21.19 | CU28: 26.8 | CV28: 0 | CY28: 38 | CZ28: 9999 | DA28: 2.88 | DB28: 8.4 | DC28: 11.28 | DD28: 14.16 | DE28: 9999 | DF28: 4.75 | DG28: 13.86 | DH28: 18.61 | DI28: 23.36 | DJ28: 9999 | DK28: 9999 | DM28: 38 | DN28: 9999 | DO28: 2.48 | DP28: 6.56 | DQ28: 8.32 | DR28: 10.08 | DS28: 9999 | DT28: 4.09 | DU28: 10.82 | DV28: 13.73 | DW28: 16.63 | DX28: 9999 | DY28: 9999 | EA28: 38 | EB28: 9999 | EC28: 2.83 | ED28: 8.17 | EE28: 10.91 | EF28: 13.65 | EG28: 9999 | EH28: 4.67 | EI28: 13.48 | EJ28: 18 | EK28: 22.52 | EL28: 9999 | EM28: 9999 | EO28: 38 | EP28: 9999 | EQ28: 2.6 | ER28: 7.48 | ES28: 9.8 | ET28: 12.12 | EU28: 9999 | EV28: 4.29 | EW28: 12.34 | EX28: 16.17 | EY28: 20 | EZ28: 9999 | FA28: 9999 | FC28: 38 | FD28: 9999 | FE28: 2.5 | FF28: 6.72 | FG28: 8.66 | FH28: 10.59 | FI28: 9999 | FJ28: 4.13 | FK28: 11.09 | FL28: 14.29 | FM28: 17.47 | FN28: 9999 | FO28: 9999 | FQ28: 38 | FR28: 9999 | FS28: 3.43 | FT28: 9 | FU28: 12.24 | FV28: 15.48 | FW28: 9999 | FX28: 5.66 | FY28: 14.85 | FZ28: 20.2 | GA28: 25.54 | GB28: 0 | GE28: 38 | GF28: 9999 | GG28: 2.75 | GH28: 8.01 | GI28: 10.75 | GJ28: 13.5 | GK28: 9999 | GL28: 4.54 | GM28: 13.22 | GN28: 17.74 | GO28: 22.28 | GP28: 9999 | GQ28: 9999 | GS28: 38 | GT28: 9999 | GU28: 2.36 | GV28: 6.25 | GW28: 7.93 | GX28: 9.61 | GY28: 9999 | GZ28: 3.89 | HA28: 10.31 | HB28: 13.08 | HC28: 15.86 | HD28: 9999 | HE28: 9999 | HG28: 38 | HH28: 9999 | HI28: 2.7 | HJ28: 7.79 | HK28: 10.4 | HL28: 13.01 | HM28: 9999 | HN28: 4.46 | HO28: 12.85 | HP28: 17.16 | HQ28: 21.47 | HR28: 9999 | HS28: 9999 | HU28: 38 | HV28: 9999 | HW28: 2.48 | HX28: 7.13 | HY28: 9.34 | HZ28: 11.55 | IA28: 9999 | IB28: 4.09 | IC28: 11.76 | ID28: 15.41 | IE28: 19.06 | IF28: 9999 | IG28: 9999 | II28: 38 | IJ28: 9999 | IK28: 2.39 | IL28: 6.41 | IM28: 8.25 | IN28: 10.1 | IO28: 9999 | IP28: 3.94 | IQ28: 10.58 | IR28: 13.61 | IS28: 16.67 | IT28: 9999 | IU28: 9999 | IW28: 38 | IX28: 9999 | IY28: 9999 | IZ28: 9999 | JA28: 9999 | JB28: 9999 | JC28: 9999 | JD28: 9999 | JE28: 9999 | JF28: 9999 | JG28: 9999 | JH28: 0 | JK28: 38 | JL28: 9999 | JM28: 9999 | JN28: 9999 | JO28: 9999 | JP28: 9999 | JQ28: 9999 | JR28: 9999 | JS28: 9999 | JT28: 9999 | JU28: 9999 | JV28: 9999 | JW28: 9999 | JY28: 38 | JZ28: 9999 | KA28: 9999 | KB28: 9999 | KC28: 9999 | KD28: 9999 | KE28: 9999 | KF28: 9999 | KG28: 9999 | KH28: 9999 | KI28: 9999 | KJ28: 9999 | KK28: 9999 | KM28: 38 | KN28: 9999 | KO28: 9999 | KP28: 9999 | KQ28: 9999 | KR28: 9999 | KS28: 9999 | KT28: 9999 | KU28: 9999 | KV28: 9999 | KW28: 9999 | KX28: 9999 | KY28: 9999 | LA28: 38 | LB28: 9999 | LC28: 9999 | LD28: 9999 | LE28: 9999 | LF28: 9999 | LG28: 9999 | LH28: 9999 | LI28: 9999 | LJ28: 9999 | LK28: 9999 | LL28: 9999 | LM28: 9999 | LO28: 38 | LP28: 9999 | LQ28: 9999 | LR28: 9999 | LS28: 9999 | LT28: 9999 | LU28: 9999 | LV28: 9999 | LW28: 9999 | LX28: 9999 | LY28: 9999 | LZ28: 9999 | MA28: 9999 | MC28: 38 | MD28: 9999 | ME28: 3.08 | MF28: 8.06 | MG28: 10.97 | MH28: 13.87 | MI28: 9999 | MJ28: 5.08 | MK28: 13.3 | ML28: 18.1 | MM28: 22.89 | MN28: 0 | MQ28: 38 | MR28: 9999 | MS28: 2.46 | MT28: 7.18 | MU28: 9.64 | MV28: 12.1 | MW28: 9999 | MX28: 4.06 | MY28: 11.85 | MZ28: 15.91 | NA28: 19.97 | NB28: 9999 | NC28: 9999 | NE28: 38 | NF28: 9999 | NG28: 2.12 | NH28: 5.6 | NI28: 7.11 | NJ28: 8.61 | NK28: 9999 | NL28: 3.5 | NM28: 9.24 | NN28: 11.73 | NO28: 14.21 | NP28: 9999 | NQ28: 9999 | NS28: 38 | NT28: 9999 | NU28: 2.42 | NV28: 6.98 | NW28: 9.32 | NX28: 11.66 | NY28: 9999 | NZ28: 3.99 | OA28: 11.52 | OB28: 15.38 | OC28: 19.24 | OD28: 9999 | OE28: 9999 | OG28: 38 | OH28: 9999 | OI28: 2.22 | OJ28: 6.39 | OK28: 8.37 | OL28: 10.35 | OM28: 9999 | ON28: 3.66 | OO28: 10.54 | OP28: 13.81 | OQ28: 17.08 | OR28: 9999 | OS28: 9999 | OU28: 38 | OV28: 9999 | OW28: 2.14 | OX28: 5.74 | OY28: 7.39 | OZ28: 9.05 | PA28: 9999 | PB28: 3.53 | PC28: 9.47 | PD28: 12.19 | PE28: 14.93 | PF28: 9999 | PG28: 9999
E29: 39 | F29: 9999 | G29: =RawStdLife7!$B$6 -> 3.75 | H29: =RawStdLife7!$C$6 -> 9.83 | I29: =RawStdLife7!$D$6 -> 13.38 | J29: =RawStdLife7!$E$6 -> 16.92 | K29: 9999 | L29: =RawStdLife7!$B$53 -> 6.19 | M29: =RawStdLife7!$C$53 -> 16.22 | N29: =RawStdLife7!$D$53 -> 22.08 | O29: =RawStdLife7!$E$53 -> 27.92 | P29: 0 | S29: 39 | T29: 9999 | U29: =RawStdLife7!$G$6 -> 3 | V29: =RawStdLife7!$H$6 -> 8.75 | W29: =RawStdLife7!$I$6 -> 11.75 | X29: =RawStdLife7!$J$6 -> 14.75 | Y29: 9999 | Z29: =RawStdLife7!$G$53 -> 4.95 | AA29: =RawStdLife7!$H$53 -> 14.44 | AB29: =RawStdLife7!$I$53 -> 19.39 | AC29: =RawStdLife7!$J$53 -> 24.34 | AD29: 9999 | AE29: 9999 | AG29: 39 | AH29: 9999 | AI29: =RawStdLife7!$AA$6 -> 2.58 | AJ29: =RawStdLife7!$AB$6 -> 6.83 | AK29: =RawStdLife7!$AC$6 -> 8.67 | AL29: =RawStdLife7!$AD$6 -> 10.5 | AM29: 9999 | AN29: =RawStdLife7!$AA$53 -> 4.26 | AO29: =RawStdLife7!$AB$53 -> 11.27 | AP29: =RawStdLife7!$AC$53 -> 14.31 | AQ29: =RawStdLife7!$AD$53 -> 17.33 | AR29: 9999 | AS29: 9999 | AU29: 39 | AV29: 9999 | AW29: =RawStdLife7!$L$6 -> 2.95 | AX29: =RawStdLife7!$M$6 -> 8.51 | AY29: =RawStdLife7!$N$6 -> 11.36 | AZ29: =RawStdLife7!$O$6 -> 14.22 | BA29: 9999 | BB29: =RawStdLife7!$L$53 -> 4.87 | BC29: =RawStdLife7!$M$53 -> 14.04 | BD29: =RawStdLife7!$N$53 -> 18.74 | BE29: =RawStdLife7!$O$53 -> 23.46 | BF29: 9999 | BG29: 9999 | BI29: 39 | BJ29: 9999 | BK29: =RawStdLife7!$Q$6 -> 2.71 | BL29: =RawStdLife7!$R$6 -> 7.79 | BM29: =RawStdLife7!$S$6 -> 10.21 | BN29: =RawStdLife7!$T$6 -> 12.63 | BO29: 9999 | BP29: =RawStdLife7!$Q$53 -> 4.47 | BQ29: =RawStdLife7!$R$53 -> 12.85 | BR29: =RawStdLife7!$S$53 -> 16.85 | BS29: =RawStdLife7!$T$53 -> 20.84 | BT29: 9999 | BU29: 9999 | BW29: 39 | BX29: 9999 | BY29: =RawStdLife7!$V$6 -> 2.48 | BZ29: =RawStdLife7!$W$6 -> 7 | CA29: =RawStdLife7!$X$6 -> 9.02 | CB29: =RawStdLife7!$Y$6 -> 11.03 | CC29: 9999 | CD29: =RawStdLife7!$V$53 -> 4.09 | CE29: =RawStdLife7!$W$53 -> 11.55 | CF29: =RawStdLife7!$X$53 -> 14.88 | CG29: =RawStdLife7!$Y$53 -> 18.2 | CH29: 9999 | CI29: 9999 | CK29: 39 | CL29: 9999 | CM29: 3.6 | CN29: 9.44 | CO29: 12.84 | CP29: 16.24 | CQ29: 9999 | CR29: 5.94 | CS29: 15.58 | CT29: 21.19 | CU29: 26.8 | CV29: 0 | CY29: 39 | CZ29: 9999 | DA29: 2.88 | DB29: 8.4 | DC29: 11.28 | DD29: 14.16 | DE29: 9999 | DF29: 4.75 | DG29: 13.86 | DH29: 18.61 | DI29: 23.36 | DJ29: 9999 | DK29: 9999 | DM29: 39 | DN29: 9999 | DO29: 2.48 | DP29: 6.56 | DQ29: 8.32 | DR29: 10.08 | DS29: 9999 | DT29: 4.09 | DU29: 10.82 | DV29: 13.73 | DW29: 16.63 | DX29: 9999 | DY29: 9999 | EA29: 39 | EB29: 9999 | EC29: 2.83 | ED29: 8.17 | EE29: 10.91 | EF29: 13.65 | EG29: 9999 | EH29: 4.67 | EI29: 13.48 | EJ29: 18 | EK29: 22.52 | EL29: 9999 | EM29: 9999 | EO29: 39 | EP29: 9999 | EQ29: 2.6 | ER29: 7.48 | ES29: 9.8 | ET29: 12.12 | EU29: 9999 | EV29: 4.29 | EW29: 12.34 | EX29: 16.17 | EY29: 20 | EZ29: 9999 | FA29: 9999 | FC29: 39 | FD29: 9999 | FE29: 2.5 | FF29: 6.72 | FG29: 8.66 | FH29: 10.59 | FI29: 9999 | FJ29: 4.13 | FK29: 11.09 | FL29: 14.29 | FM29: 17.47 | FN29: 9999 | FO29: 9999 | FQ29: 39 | FR29: 9999 | FS29: 3.43 | FT29: 9 | FU29: 12.24 | FV29: 15.48 | FW29: 9999 | FX29: 5.66 | FY29: 14.85 | FZ29: 20.2 | GA29: 25.54 | GB29: 0 | GE29: 39 | GF29: 9999 | GG29: 2.75 | GH29: 8.01 | GI29: 10.75 | GJ29: 13.5 | GK29: 9999 | GL29: 4.54 | GM29: 13.22 | GN29: 17.74 | GO29: 22.28 | GP29: 9999 | GQ29: 9999 | GS29: 39 | GT29: 9999 | GU29: 2.36 | GV29: 6.25 | GW29: 7.93 | GX29: 9.61 | GY29: 9999 | GZ29: 3.89 | HA29: 10.31 | HB29: 13.08 | HC29: 15.86 | HD29: 9999 | HE29: 9999 | HG29: 39 | HH29: 9999 | HI29: 2.7 | HJ29: 7.79 | HK29: 10.4 | HL29: 13.01 | HM29: 9999 | HN29: 4.46 | HO29: 12.85 | HP29: 17.16 | HQ29: 21.47 | HR29: 9999 | HS29: 9999 | HU29: 39 | HV29: 9999 | HW29: 2.48 | HX29: 7.13 | HY29: 9.34 | HZ29: 11.55 | IA29: 9999 | IB29: 4.09 | IC29: 11.76 | ID29: 15.41 | IE29: 19.06 | IF29: 9999 | IG29: 9999 | II29: 39 | IJ29: 9999 | IK29: 2.39 | IL29: 6.41 | IM29: 8.25 | IN29: 10.1 | IO29: 9999 | IP29: 3.94 | IQ29: 10.58 | IR29: 13.61 | IS29: 16.67 | IT29: 9999 | IU29: 9999 | IW29: 39 | IX29: 9999 | IY29: 9999 | IZ29: 9999 | JA29: 9999 | JB29: 9999 | JC29: 9999 | JD29: 9999 | JE29: 9999 | JF29: 9999 | JG29: 9999 | JH29: 0 | JK29: 39 | JL29: 9999 | JM29: 9999 | JN29: 9999 | JO29: 9999 | JP29: 9999 | JQ29: 9999 | JR29: 9999 | JS29: 9999 | JT29: 9999 | JU29: 9999 | JV29: 9999 | JW29: 9999 | JY29: 39 | JZ29: 9999 | KA29: 9999 | KB29: 9999 | KC29: 9999 | KD29: 9999 | KE29: 9999 | KF29: 9999 | KG29: 9999 | KH29: 9999 | KI29: 9999 | KJ29: 9999 | KK29: 9999 | KM29: 39 | KN29: 9999 | KO29: 9999 | KP29: 9999 | KQ29: 9999 | KR29: 9999 | KS29: 9999 | KT29: 9999 | KU29: 9999 | KV29: 9999 | KW29: 9999 | KX29: 9999 | KY29: 9999 | LA29: 39 | LB29: 9999 | LC29: 9999 | LD29: 9999 | LE29: 9999 | LF29: 9999 | LG29: 9999 | LH29: 9999 | LI29: 9999 | LJ29: 9999 | LK29: 9999 | LL29: 9999 | LM29: 9999 | LO29: 39 | LP29: 9999 | LQ29: 9999 | LR29: 9999 | LS29: 9999 | LT29: 9999 | LU29: 9999 | LV29: 9999 | LW29: 9999 | LX29: 9999 | LY29: 9999 | LZ29: 9999 | MA29: 9999 | MC29: 39 | MD29: 9999 | ME29: 3.08 | MF29: 8.06 | MG29: 10.97 | MH29: 13.87 | MI29: 9999 | MJ29: 5.08 | MK29: 13.3 | ML29: 18.1 | MM29: 22.89 | MN29: 0 | MQ29: 39 | MR29: 9999 | MS29: 2.46 | MT29: 7.18 | MU29: 9.64 | MV29: 12.1 | MW29: 9999 | MX29: 4.06 | MY29: 11.85 | MZ29: 15.91 | NA29: 19.97 | NB29: 9999 | NC29: 9999 | NE29: 39 | NF29: 9999 | NG29: 2.12 | NH29: 5.6 | NI29: 7.11 | NJ29: 8.61 | NK29: 9999 | NL29: 3.5 | NM29: 9.24 | NN29: 11.73 | NO29: 14.21 | NP29: 9999 | NQ29: 9999 | NS29: 39 | NT29: 9999 | NU29: 2.42 | NV29: 6.98 | NW29: 9.32 | NX29: 11.66 | NY29: 9999 | NZ29: 3.99 | OA29: 11.52 | OB29: 15.38 | OC29: 19.24 | OD29: 9999 | OE29: 9999 | OG29: 39 | OH29: 9999 | OI29: 2.22 | OJ29: 6.39 | OK29: 8.37 | OL29: 10.35 | OM29: 9999 | ON29: 3.66 | OO29: 10.54 | OP29: 13.81 | OQ29: 17.08 | OR29: 9999 | OS29: 9999 | OU29: 39 | OV29: 9999 | OW29: 2.14 | OX29: 5.74 | OY29: 7.39 | OZ29: 9.05 | PA29: 9999 | PB29: 3.53 | PC29: 9.47 | PD29: 12.19 | PE29: 14.93 | PF29: 9999 | PG29: 9999
E30: 40 | F30: 9999 | G30: =RawStdLife7!$B$6 -> 3.75 | H30: =RawStdLife7!$C$6 -> 9.83 | I30: =RawStdLife7!$D$6 -> 13.38 | J30: =RawStdLife7!$E$6 -> 16.92 | K30: 9999 | L30: =RawStdLife7!$B$53 -> 6.19 | M30: =RawStdLife7!$C$53 -> 16.22 | N30: =RawStdLife7!$D$53 -> 22.08 | O30: =RawStdLife7!$E$53 -> 27.92 | P30: 0 | S30: 40 | T30: 9999 | U30: =RawStdLife7!$G$6 -> 3 | V30: =RawStdLife7!$H$6 -> 8.75 | W30: =RawStdLife7!$I$6 -> 11.75 | X30: =RawStdLife7!$J$6 -> 14.75 | Y30: 9999 | Z30: =RawStdLife7!$G$53 -> 4.95 | AA30: =RawStdLife7!$H$53 -> 14.44 | AB30: =RawStdLife7!$I$53 -> 19.39 | AC30: =RawStdLife7!$J$53 -> 24.34 | AD30: 9999 | AE30: 9999 | AG30: 40 | AH30: 9999 | AI30: =RawStdLife7!$AA$6 -> 2.58 | AJ30: =RawStdLife7!$AB$6 -> 6.83 | AK30: =RawStdLife7!$AC$6 -> 8.67 | AL30: =RawStdLife7!$AD$6 -> 10.5 | AM30: 9999 | AN30: =RawStdLife7!$AA$53 -> 4.26 | AO30: =RawStdLife7!$AB$53 -> 11.27 | AP30: =RawStdLife7!$AC$53 -> 14.31 | AQ30: =RawStdLife7!$AD$53 -> 17.33 | AR30: 9999 | AS30: 9999 | AU30: 40 | AV30: 9999 | AW30: =RawStdLife7!$L$6 -> 2.95 | AX30: =RawStdLife7!$M$6 -> 8.51 | AY30: =RawStdLife7!$N$6 -> 11.36 | AZ30: =RawStdLife7!$O$6 -> 14.22 | BA30: 9999 | BB30: =RawStdLife7!$L$53 -> 4.87 | BC30: =RawStdLife7!$M$53 -> 14.04 | BD30: =RawStdLife7!$N$53 -> 18.74 | BE30: =RawStdLife7!$O$53 -> 23.46 | BF30: 9999 | BG30: 9999 | BI30: 40 | BJ30: 9999 | BK30: =RawStdLife7!$Q$6 -> 2.71 | BL30: =RawStdLife7!$R$6 -> 7.79 | BM30: =RawStdLife7!$S$6 -> 10.21 | BN30: =RawStdLife7!$T$6 -> 12.63 | BO30: 9999 | BP30: =RawStdLife7!$Q$53 -> 4.47 | BQ30: =RawStdLife7!$R$53 -> 12.85 | BR30: =RawStdLife7!$S$53 -> 16.85 | BS30: =RawStdLife7!$T$53 -> 20.84 | BT30: 9999 | BU30: 9999 | BW30: 40 | BX30: 9999 | BY30: =RawStdLife7!$V$6 -> 2.48 | BZ30: =RawStdLife7!$W$6 -> 7 | CA30: =RawStdLife7!$X$6 -> 9.02 | CB30: =RawStdLife7!$Y$6 -> 11.03 | CC30: 9999 | CD30: =RawStdLife7!$V$53 -> 4.09 | CE30: =RawStdLife7!$W$53 -> 11.55 | CF30: =RawStdLife7!$X$53 -> 14.88 | CG30: =RawStdLife7!$Y$53 -> 18.2 | CH30: 9999 | CI30: 9999 | CK30: 40 | CL30: 9999 | CM30: 3.6 | CN30: 9.44 | CO30: 12.84 | CP30: 16.24 | CQ30: 9999 | CR30: 5.94 | CS30: 15.58 | CT30: 21.19 | CU30: 26.8 | CV30: 0 | CY30: 40 | CZ30: 9999 | DA30: 2.88 | DB30: 8.4 | DC30: 11.28 | DD30: 14.16 | DE30: 9999 | DF30: 4.75 | DG30: 13.86 | DH30: 18.61 | DI30: 23.36 | DJ30: 9999 | DK30: 9999 | DM30: 40 | DN30: 9999 | DO30: 2.48 | DP30: 6.56 | DQ30: 8.32 | DR30: 10.08 | DS30: 9999 | DT30: 4.09 | DU30: 10.82 | DV30: 13.73 | DW30: 16.63 | DX30: 9999 | DY30: 9999 | EA30: 40 | EB30: 9999 | EC30: 2.83 | ED30: 8.17 | EE30: 10.91 | EF30: 13.65 | EG30: 9999 | EH30: 4.67 | EI30: 13.48 | EJ30: 18 | EK30: 22.52 | EL30: 9999 | EM30: 9999 | EO30: 40 | EP30: 9999 | EQ30: 2.6 | ER30: 7.48 | ES30: 9.8 | ET30: 12.12 | EU30: 9999 | EV30: 4.29 | EW30: 12.34 | EX30: 16.17 | EY30: 20 | EZ30: 9999 | FA30: 9999 | FC30: 40 | FD30: 9999 | FE30: 2.5 | FF30: 6.72 | FG30: 8.66 | FH30: 10.59 | FI30: 9999 | FJ30: 4.13 | FK30: 11.09 | FL30: 14.29 | FM30: 17.47 | FN30: 9999 | FO30: 9999 | FQ30: 40 | FR30: 9999 | FS30: 3.43 | FT30: 9 | FU30: 12.24 | FV30: 15.48 | FW30: 9999 | FX30: 5.66 | FY30: 14.85 | FZ30: 20.2 | GA30: 25.54 | GB30: 0 | GE30: 40 | GF30: 9999 | GG30: 2.75 | GH30: 8.01 | GI30: 10.75 | GJ30: 13.5 | GK30: 9999 | GL30: 4.54 | GM30: 13.22 | GN30: 17.74 | GO30: 22.28 | GP30: 9999 | GQ30: 9999 | GS30: 40 | GT30: 9999 | GU30: 2.36 | GV30: 6.25 | GW30: 7.93 | GX30: 9.61 | GY30: 9999 | GZ30: 3.89 | HA30: 10.31 | HB30: 13.08 | HC30: 15.86 | HD30: 9999 | HE30: 9999 | HG30: 40 | HH30: 9999 | HI30: 2.7 | HJ30: 7.79 | HK30: 10.4 | HL30: 13.01 | HM30: 9999 | HN30: 4.46 | HO30: 12.85 | HP30: 17.16 | HQ30: 21.47 | HR30: 9999 | HS30: 9999 | HU30: 40 | HV30: 9999 | HW30: 2.48 | HX30: 7.13 | HY30: 9.34 | HZ30: 11.55 | IA30: 9999 | IB30: 4.09 | IC30: 11.76 | ID30: 15.41 | IE30: 19.06 | IF30: 9999 | IG30: 9999 | II30: 40 | IJ30: 9999 | IK30: 2.39 | IL30: 6.41 | IM30: 8.25 | IN30: 10.1 | IO30: 9999 | IP30: 3.94 | IQ30: 10.58 | IR30: 13.61 | IS30: 16.67 | IT30: 9999 | IU30: 9999 | IW30: 40 | IX30: 9999 | IY30: 9999 | IZ30: 9999 | JA30: 9999 | JB30: 9999 | JC30: 9999 | JD30: 9999 | JE30: 9999 | JF30: 9999 | JG30: 9999 | JH30: 0 | JK30: 40 | JL30: 9999 | JM30: 9999 | JN30: 9999 | JO30: 9999 | JP30: 9999 | JQ30: 9999 | JR30: 9999 | JS30: 9999 | JT30: 9999 | JU30: 9999 | JV30: 9999 | JW30: 9999 | JY30: 40 | JZ30: 9999 | KA30: 9999 | KB30: 9999 | KC30: 9999 | KD30: 9999 | KE30: 9999 | KF30: 9999 | KG30: 9999 | KH30: 9999 | KI30: 9999 | KJ30: 9999 | KK30: 9999 | KM30: 40 | KN30: 9999 | KO30: 9999 | KP30: 9999 | KQ30: 9999 | KR30: 9999 | KS30: 9999 | KT30: 9999 | KU30: 9999 | KV30: 9999 | KW30: 9999 | KX30: 9999 | KY30: 9999 | LA30: 40 | LB30: 9999 | LC30: 9999 | LD30: 9999 | LE30: 9999 | LF30: 9999 | LG30: 9999 | LH30: 9999 | LI30: 9999 | LJ30: 9999 | LK30: 9999 | LL30: 9999 | LM30: 9999 | LO30: 40 | LP30: 9999 | LQ30: 9999 | LR30: 9999 | LS30: 9999 | LT30: 9999 | LU30: 9999 | LV30: 9999 | LW30: 9999 | LX30: 9999 | LY30: 9999 | LZ30: 9999 | MA30: 9999 | MC30: 40 | MD30: 9999 | ME30: 3.08 | MF30: 8.06 | MG30: 10.97 | MH30: 13.87 | MI30: 9999 | MJ30: 5.08 | MK30: 13.3 | ML30: 18.1 | MM30: 22.89 | MN30: 0 | MQ30: 40 | MR30: 9999 | MS30: 2.46 | MT30: 7.18 | MU30: 9.64 | MV30: 12.1 | MW30: 9999 | MX30: 4.06 | MY30: 11.85 | MZ30: 15.91 | NA30: 19.97 | NB30: 9999 | NC30: 9999 | NE30: 40 | NF30: 9999 | NG30: 2.12 | NH30: 5.6 | NI30: 7.11 | NJ30: 8.61 | NK30: 9999 | NL30: 3.5 | NM30: 9.24 | NN30: 11.73 | NO30: 14.21 | NP30: 9999 | NQ30: 9999 | NS30: 40 | NT30: 9999 | NU30: 2.42 | NV30: 6.98 | NW30: 9.32 | NX30: 11.66 | NY30: 9999 | NZ30: 3.99 | OA30: 11.52 | OB30: 15.38 | OC30: 19.24 | OD30: 9999 | OE30: 9999 | OG30: 40 | OH30: 9999 | OI30: 2.22 | OJ30: 6.39 | OK30: 8.37 | OL30: 10.35 | OM30: 9999 | ON30: 3.66 | OO30: 10.54 | OP30: 13.81 | OQ30: 17.08 | OR30: 9999 | OS30: 9999 | OU30: 40 | OV30: 9999 | OW30: 2.14 | OX30: 5.74 | OY30: 7.39 | OZ30: 9.05 | PA30: 9999 | PB30: 3.53 | PC30: 9.47 | PD30: 12.19 | PE30: 14.93 | PF30: 9999 | PG30: 9999
